Workbook

Sheet 設定
A1: 年 | B1: 月 | C1: 日 | E1: 対応表 | I1: 年、対応表の21項目すべて変更できます
A2: 2020 | B2: 1 | C2: 1 | E2: 印 | F2: IN | I2: 消費税率を変更すれば請求金額に反映されます
A3: 2021 | B3: 2 | C3: 2 | E3: 米 | F3: US
A4: 2022 | B4: 3 | C4: 3 | E4: 英 | F4: EI
A5: 2023 | B5: 4 | C5: 4 | E5: 露 | F5: RO | I5: 使い方
A6: 2024 | B6: 5 | C6: 5 | E6: 欄 | F6: RN | I6: ①設定の年、対応表を自分の都合よいように変更（このページ上で行ってください）
A7: 2025 | B7: 6 | C7: 6 | E7: 伊 | F7: IT | I7: ②請求書の内容を変更（請求先を左の対応表に従って変更してください）
A8: 2026 | B8: 7 | C8: 7 | E8: 尼 | F8: AM | I8: ③（Dataページに）データを入力
A9: 2027 | B9: 8 | C9: 8 | E9: 香 | F9: KO | I9: ④（Resultページで）請求内容に従って、週別や月別の始めと終わりを設定し「請求書ボタン」を押す
A10: 2028 | B10: 9 | C10: 9 | E10: 沙 | F10: SA | I10: ⑤Resultの担当者別、取引先別の集計が出る
A11: 2029 | B11: 10 | C11: 10 | E11: 星 | F11: HO | I11: ⑥同時に取引先への請求書の内訳と消費税込みの金額も「seikyu」に表示される
A12: 2030 | B12: 11 | C12: 11 | E12: 泰 | F12: TA | I12: ⑦必要な部分を印刷し、請求先に送る
A13: 2031 | B13: 12 | C13: 12 | E13: 台 | F13: TI
C14: 13 | E14: 比 | F14: HI
C15: 14 | E15: 越 | F15: ET
C16: 15 | E16: 馬 | F16: UM
C17: 16 | E17: 緬 | F17: MN
C18: 17 | E18: 蒙 | F18: MO
C19: 18 | E19: 老 | F19: LO
C20: 19 | E20: 豪 | F20: GO
C21: 20 | E21: 加 | F21: KA
C22: 21 | E22: 伯 | F22: HK
C23: 22
C24: 23 | E24: 消費税
C25: 24 | E25: 0.1
C26: 25
C27: 26
C28: 27
C29: 28
C30: 29
C31: 30
C32: 31

Sheet Result
A1: 日付選択 | B1: 年 | C1: 月 | D1: 日 | F1: Nakano～Mitaは担当者です
A2: 集計開始 | B2: 2021 | C2: 7 | D2: 1 | F2: 取引先も担当者も名称の変更ができます
A3: 集計終了 | B3: 2021 | C3: 7 | D3: 31 | F3: このページ上で他のセルは触らずに作業を行ってください
A9: 取引名称 | B9: 合計 | C9: Nakano | D9: Ito | E9: Sato | F9: Yoshida | G9: Suzuki | H9: Tanaka | I9: Mita
A10: 印度商事 | B10: =SUM(C10:I10) -> -336537 | C10: ='s2'!A1 -> -39976 | D10: ='s2'!B1 -> -58047 | E10: ='s2'!C1 -> -89451 | F10: ='s2'!D1 -> -55889 | G10: ='s2'!E1 -> -5020 | H10: ='s2'!F1 -> -24927 | I10: ='s2'!G1 -> -63227
A11: 米商会 | B11: =SUM(C11:I11) -> 1025615 | C11: ='s2'!K1 -> 161695 | D11: ='s2'!L1 -> 237613 | E11: ='s2'!M1 -> 248855 | F11: ='s2'!N1 -> 164119 | G11: ='s2'!O1 -> 174547 | H11: ='s2'!P1 -> 73030 | I11: ='s2'!Q1 -> -34244
A12: 英販売 | B12: 1176715 | C12: ='s2'!U1 -> 394624 | D12: ='s2'!V1 -> 135845 | E12: ='s2'!W1 -> 337449 | F12: ='s2'!X1 -> -30281 | G12: ='s2'!Y1 -> 0 | H12: ='s2'!Z1 -> 250891 | I12: ='s2'!AA1 -> 88187
A13: 露不動産 | B13: 445922 | C13: ='s2'!AE1 -> 18245 | D13: ='s2'!AF1 -> 0 | E13: ='s2'!AG1 -> 460888 | F13: ='s2'!AH1 -> -173406 | G13: ='s2'!AI1 -> -42052 | H13: ='s2'!AJ1 -> 27541 | I13: ='s2'!AK1 -> 154706
A14: 欄航空 | B14: 480999 | C14: ='s2'!AO1 -> 225205 | D14: ='s2'!AP1 -> 0 | E14: ='s2'!AQ1 -> 35232 | F14: ='s2'!AR1 -> -49201 | G14: ='s2'!AS1 -> 4460 | H14: ='s2'!AT1 -> 66594 | I14: ='s2'!AU1 -> 198709
A15: 伊研究所 | B15: 979822 | C15: ='s2'!AY1 -> 0 | D15: ='s2'!AZ1 -> 100499 | E15: ='s2'!BA1 -> 16034 | F15: ='s2'!BB1 -> 481669 | G15: ='s2'!BC1 -> 84105 | H15: ='s2'!BD1 -> 269794 | I15: ='s2'!BE1 -> 27721
A16: 尼百貨店 | B16: 106851 | C16: ='s2'!BI1 -> -76126 | D16: ='s2'!BJ1 -> 0 | E16: ='s2'!BK1 -> 252187 | F16: ='s2'!BL1 -> 176557 | G16: ='s2'!BM1 -> -81982 | H16: ='s2'!BN1 -> 0 | I16: ='s2'!BO1 -> -163785
A17: 香商船 | B17: -12671 | C17: ='s2'!BS1 -> 0 | D17: ='s2'!BT1 -> 87358 | E17: ='s2'!BU1 -> 0 | F17: ='s2'!BV1 -> 7610 | G17: ='s2'!BW1 -> -75786 | H17: ='s2'!BX1 -> -31853 | I17: ='s2'!BY1 -> 0
A18: 沙信託 | B18: 254152 | C18: ='s2'!CC1 -> -85338 | D18: ='s2'!CD1 -> -166298 | E18: ='s2'!CE1 -> 2400 | F18: ='s2'!CF1 -> 0 | G18: ='s2'!CG1 -> 157487 | H18: ='s2'!CH1 -> 345901 | I18: ='s2'!CI1 -> 0
A19: 星ホテル | B19: 655810 | C19: ='s2'!CM1 -> 165250 | D19: ='s2'!CN1 -> 13876 | E19: ='s2'!CO1 -> 191119 | F19: ='s2'!CP1 -> 65899 | G19: ='s2'!CQ1 -> 27470 | H19: ='s2'!CR1 -> 192196 | I19: ='s2'!CS1 -> 0
A20: 泰製本 | B20: 327217 | C20: ='s2'!CW1 -> 41275 | D20: ='s2'!CX1 -> 0 | E20: ='s2'!CY1 -> 89247 | F20: ='s2'!CZ1 -> -29040 | G20: ='s2'!DA1 -> 74274 | H20: ='s2'!DB1 -> 69796 | I20: ='s2'!DC1 -> 81665
A21: 台建設 | B21: 376838 | C21: ='s2'!DG1 -> 67669 | D21: ='s2'!DH1 -> 88019 | E21: ='s2'!DI1 -> -12840 | F21: ='s2'!DJ1 -> 0 | G21: ='s2'!DK1 -> 0 | H21: ='s2'!DL1 -> 72717 | I21: ='s2'!DM1 -> 161273
A22: 比石油 | B22: 142191 | C22: ='s2'!DQ1 -> 0 | D22: ='s2'!DR1 -> 0 | E22: ='s2'!DS1 -> -34135 | F22: ='s2'!DT1 -> 0 | G22: ='s2'!DU1 -> 0 | H22: ='s2'!DV1 -> 176326 | I22: ='s2'!DW1 -> 0
A23: 越繊維 | B23: -31701 | C23: ='s2'!EA1 -> 0 | D23: ='s2'!EB1 -> 0 | E23: ='s2'!EC1 -> -31701 | F23: ='s2'!ED1 -> 0 | G23: ='s2'!EE1 -> 0 | H23: ='s2'!EF1 -> 0 | I23: ='s2'!EG1 -> 0
A24: 馬紡績 | B24: 97029 | C24: ='s2'!EK1 -> 0 | D24: ='s2'!EL1 -> 0 | E24: ='s2'!EM1 -> 0 | F24: ='s2'!EN1 -> 58187 | G24: ='s2'!EO1 -> 0 | H24: ='s2'!EP1 -> 0 | I24: ='s2'!EQ1 -> 38842
A25: 緬物産 | B25: 79606 | C25: ='s2'!EU1 -> 0 | D25: ='s2'!EV1 -> 128294 | E25: ='s2'!EW1 -> -48688 | F25: ='s2'!EX1 -> 0 | G25: ='s2'!EY1 -> 0 | H25: ='s2'!EZ1 -> 0 | I25: ='s2'!FA1 -> 0
A26: 蒙印刷 | B26: 64234 | C26: ='s2'!FE1 -> 0 | D26: ='s2'!FF1 -> 0 | E26: ='s2'!FG1 -> 77196 | F26: ='s2'!FH1 -> 0 | G26: ='s2'!FI1 -> 0 | H26: ='s2'!FJ1 -> 0 | I26: ='s2'!FK1 -> -12962
A27: 老繊維 | B27: 69341 | C27: ='s2'!FO1 -> 0 | D27: ='s2'!FP1 -> 0 | E27: ='s2'!FQ1 -> 0 | F27: ='s2'!FR1 -> 0 | G27: ='s2'!FS1 -> 0 | H27: ='s2'!FT1 -> 0 | I27: ='s2'!FU1 -> 69341
A28: 豪工業 | B28: 242545 | C28: ='s2'!FY1 -> 0 | D28: ='s2'!FZ1 -> 0 | E28: ='s2'!GA1 -> 0 | F28: ='s2'!GB1 -> 242545 | G28: ='s2'!GC1 -> 0 | H28: ='s2'!GD1 -> 0 | I28: ='s2'!GE1 -> 0
A29: 加不動産 | B29: 227066 | C29: ='s2'!GI1 -> 118320 | D29: ='s2'!GJ1 -> 0 | E29: ='s2'!GK1 -> 0 | F29: ='s2'!GL1 -> 0 | G29: ='s2'!GM1 -> 0 | H29: ='s2'!GN1 -> 108746 | I29: ='s2'!GO1 -> 0
A30: 伯商会 | B30: 290938 | C30: ='s2'!GS1 -> 290938 | D30: ='s2'!GT1 -> 0 | E30: ='s2'!GU1 -> 0 | F30: ='s2'!GV1 -> 0 | G30: ='s2'!GW1 -> 0 | H30: ='s2'!GX1 -> 0 | I30: ='s2'!GY1 -> 0

Sheet Data
A1: No | B1: 取引先名称 | C1: 担当者 | D1: 日付 | E1: 会計番号 | F1: 注文番号 | G1: 取引詳細 | H1: 取引金額 | J1: データはご自分の関係のある内容で入力してください
A2: 1 | B2: 米商会 | C2: Suzuki | D2: 2020-04-01 | E2: 378 | F2: 981511 | G2: 〇◆ | H2: 95548 | J2: 左記はデモデータです
A3: 2 | B3: 英販売 | C3: Sato | D3: 2020-04-01 | E3: 378 | F3: 282169 | G3: △△ | H3: -14720
A4: 3 | B4: 欄航空 | C4: Yoshida | D4: 2020-04-01 | E4: 378 | F4: 495639 | G4: □▽ | H4: -17714 | J4: 請求書はご自身の内容で変更してください
A5: 4 | B5: 露不動産 | C5: Tanaka | D5: 2020-04-01 | E5: 378 | F5: 835880 | G5: △■ | H5: -60741 | J5: Resultの取引先を変更すると請求先も変更できます
A6: 5 | B6: 印度商事 | C6: Nakano | D6: 2020-04-03 | E6: 213 | F6: 962250 | G6: □■ | H6: -48348 | J6: 半透明のハンコを作成したい場合は
A7: 6 | B7: 欄航空 | C7: Ito | D7: 2020-04-03 | E7: 213 | F7: 868832 | G7: 〇□ | H7: 23087 | J7: 印鑑透過 | 無料で簡単 使いやすいハンコの画像 (tojiko.net)
A8: 7 | B8: 英販売 | C8: Nakano | D8: 2020-04-04 | E8: 311 | F8: 238042 | G8: △□ | H8: 8952 | J8: をご利用いただくと便利です
A9: 8 | B9: 米商会 | C9: Tanaka | D9: 2020-04-05 | E9: 203 | F9: 663608 | G9: □▲ | H9: 20909
A10: 9 | B10: 伊研究所 | C10: Suzuki | D10: 2020-04-05 | E10: 204 | F10: 755468 | G10: 〇▲ | H10: -91165
A11: 10 | B11: 泰製本 | C11: Nakano | D11: 2020-04-06 | E11: 189 | F11: 674828 | G11: □■ | H11: 179460
A12: 11 | B12: 台建設 | C12: Mita | D12: 2020-04-07 | E12: 397 | F12: 668769 | G12: □〇 | H12: 166020
A13: 12 | B13: 印度商事 | C13: Nakano | D13: 2020-04-07 | E13: 398 | F13: 688842 | G13: 〇◆ | H13: 9618
A14: 13 | B14: 尼百貨店 | C14: Tanaka | D14: 2020-04-07 | E14: 399 | F14: 304313 | G14: △〇 | H14: 177644
A15: 14 | B15: 露不動産 | C15: Suzuki | D15: 2020-04-08 | E15: 503 | F15: 743650 | G15: □▲ | H15: 43074
A16: 15 | B16: 香商船 | C16: Sato | D16: 2020-04-08 | E16: 504 | F16: 244988 | G16: 〇■ | H16: 195631
A17: 16 | B17: 沙信託 | C17: Yoshida | D17: 2020-04-08 | E17: 505 | F17: 876518 | G17: △〇 | H17: 111813
A18: 17 | B18: 星ホテル | C18: Tanaka | D18: 2020-04-09 | E18: 223 | F18: 917687 | G18: 〇■ | H18: 112691
A19: 18 | B19: 米商会 | C19: Nakano | D19: 2020-04-09 | E19: 224 | F19: 412982 | G19: △◆ | H19: 196888
A20: 19 | B20: 欄航空 | C20: Tanaka | D20: 2020-04-09 | E20: 225 | F20: 679002 | G20: □△ | H20: 178459
A21: 20 | B21: 英販売 | C21: Sato | D21: 2020-04-09 | E21: 226 | F21: 902251 | G21: △◆ | H21: 127379
A22: 21 | B22: 伊研究所 | C22: Sato | D22: 2020-04-10 | E22: 197 | F22: 981367 | G22: △◇ | H22: 179368
A23: 22 | B23: 露不動産 | C23: Ito | D23: 2020-04-10 | E23: 198 | F23: 847762 | G23: 〇◆ | H23: 62265
A24: 23 | B24: 尼百貨店 | C24: Mita | D24: 2020-04-10 | E24: 199 | F24: 213895 | G24: □□ | H24: 128969
A25: 24 | B25: 米商会 | C25: Tanaka | D25: 2020-04-10 | E25: 200 | F25: 270302 | G25: □△ | H25: 74641
A26: 25 | B26: 台建設 | C26: Ito | D26: 2020-04-10 | E26: 201 | F26: 134785 | G26: △□ | H26: -33668
A27: 26 | B27: 泰製本 | C27: Yoshida | D27: 2020-04-10 | E27: 202 | F27: 407624 | G27: 〇▽ | H27: 25171
A28: 27 | B28: 欄航空 | C28: Tanaka | D28: 2020-04-10 | E28: 203 | F28: 459293 | G28: △◆ | H28: -26534
A29: 28 | B29: 印度商事 | C29: Nakano | D29: 2020-04-10 | E29: 204 | F29: 515538 | G29: □■ | H29: 157234
A30: 29 | B30: 英販売 | C30: Yoshida | D30: 2020-04-11 | E30: 308 | F30: 904328 | G30: △▼ | H30: 86019
A31: 30 | B31: 露不動産 | C31: Ito | D31: 2020-04-11 | E31: 309 | F31: 241058 | G31: △▽ | H31: 45898
A32: 31 | B32: 米商会 | C32: Suzuki | D32: 2020-04-11 | E32: 310 | F32: 551498 | G32: △▽ | H32: -48569
A33: 32 | B33: 伊研究所 | C33: Ito | D33: 2020-04-11 | E33: 311 | F33: 729913 | G33: △◆ | H33: -48199
A34: 33 | B34: 英販売 | C34: Ito | D34: 2020-04-11 | E34: 312 | F34: 492036 | G34: △■ | H34: 111038
A35: 34 | B35: 尼百貨店 | C35: Ito | D35: 2020-04-11 | E35: 313 | F35: 199625 | G35: 〇〇 | H35: -82526
A36: 35 | B36: 露不動産 | C36: Nakano | D36: 2020-04-11 | E36: 314 | F36: 735113 | G36: 〇◆ | H36: 142437
A37: 36 | B37: 星ホテル | C37: Yoshida | D37: 2020-04-11 | E37: 315 | F37: 500866 | G37: 〇▼ | H37: 124284
A38: 37 | B38: 沙信託 | C38: Suzuki | D38: 2020-04-11 | E38: 316 | F38: 448982 | G38: 〇▽ | H38: 75430
A39: 38 | B39: 米商会 | C39: Tanaka | D39: 2020-04-11 | E39: 317 | F39: 529027 | G39: △〇 | H39: 47454
A40: 39 | B40: 欄航空 | C40: Tanaka | D40: 2020-04-11 | E40: 318 | F40: 847676 | G40: △◇ | H40: 106089
A41: 40 | B41: 英販売 | C41: Ito | D41: 2020-04-11 | E41: 319 | F41: 858547 | G41: 〇▲ | H41: 43060
A42: 41 | B42: 伊研究所 | C42: Mita | D42: 2020-04-12 | E42: 192 | F42: 732690 | G42: △◆ | H42: 10309
A43: 42 | B43: 露不動産 | C43: Suzuki | D43: 2020-04-12 | E43: 193 | F43: 987132 | G43: □〇 | H43: 178354
A44: 43 | B44: 台建設 | C44: Tanaka | D44: 2020-04-12 | E44: 194 | F44: 750269 | G44: △■ | H44: -66494
A45: 44 | B45: 泰製本 | C45: Ito | D45: 2020-04-12 | E45: 195 | F45: 254369 | G45: △▼ | H45: 175115
A46: 45 | B46: 香商船 | C46: Yoshida | D46: 2020-04-12 | E46: 196 | F46: 687917 | G46: □△ | H46: -63640
A47: 46 | B47: 欄航空 | C47: Mita | D47: 2020-04-12 | E47: 197 | F47: 996078 | G47: △□ | H47: -3073
A48: 47 | B48: 印度商事 | C48: Suzuki | D48: 2020-04-12 | E48: 198 | F48: 230648 | G48: 〇△ | H48: 111285
A49: 48 | B49: 尼百貨店 | C49: Nakano | D49: 2020-04-12 | E49: 199 | F49: 115105 | G49: △▽ | H49: -77874
A50: 49 | B50: 沙信託 | C50: Suzuki | D50: 2020-04-12 | E50: 200 | F50: 931203 | G50: △□ | H50: 90936
A51: 50 | B51: 英販売 | C51: Sato | D51: 2020-04-12 | E51: 201 | F51: 287589 | G51: □◆ | H51: 71058
A52: 51 | B52: 米商会 | C52: Mita | D52: 2020-04-12 | E52: 202 | F52: 279880 | G52: □▼ | H52: 145523
A53: 52 | B53: 露不動産 | C53: Yoshida | D53: 2020-04-12 | E53: 203 | F53: 669211 | G53: 〇□ | H53: 181448
A54: 53 | B54: 伊研究所 | C54: Suzuki | D54: 2020-04-13 | E54: 293 | F54: 203129 | G54: □▲ | H54: 160892
A55: 54 | B55: 欄航空 | C55: Tanaka | D55: 2020-04-13 | E55: 294 | F55: 919908 | G55: △〇 | H55: 67891
A56: 55 | B56: 印度商事 | C56: Ito | D56: 2020-04-13 | E56: 295 | F56: 341266 | G56: □◇ | H56: 101259
A57: 56 | B57: 英販売 | C57: Yoshida | D57: 2020-04-13 | E57: 296 | F57: 398605 | G57: □△ | H57: -85249
A58: 57 | B58: 露不動産 | C58: Yoshida | D58: 2020-04-13 | E58: 297 | F58: 817182 | G58: □■ | H58: 188786
A59: 58 | B59: 米商会 | C59: Ito | D59: 2020-04-13 | E59: 298 | F59: 676146 | G59: △■ | H59: -60846
A60: 59 | B60: 沙信託 | C60: Ito | D60: 2020-04-13 | E60: 299 | F60: 252563 | G60: △△ | H60: 167445
A61: 60 | B61: 星ホテル | C61: Tanaka | D61: 2020-04-13 | E61: 300 | F61: 774043 | G61: 〇▼ | H61: -83846
A62: 61 | B62: 尼百貨店 | C62: Mita | D62: 2020-04-13 | E62: 301 | F62: 498413 | G62: △◇ | H62: -86389
A63: 62 | B63: 米商会 | C63: Suzuki | D63: 2020-04-13 | E63: 302 | F63: 538910 | G63: △■ | H63: 61879
A64: 63 | B64: 英販売 | C64: Tanaka | D64: 2020-04-13 | E64: 303 | F64: 541487 | G64: □◇ | H64: -68630
A65: 64 | B65: 印度商事 | C65: Mita | D65: 2020-04-13 | E65: 304 | F65: 965478 | G65: □〇 | H65: 129973
A66: 65 | B66: 香商船 | C66: Mita | D66: 2020-04-13 | E66: 305 | F66: 698300 | G66: 〇■ | H66: -75095
A67: 66 | B67: 露不動産 | C67: Nakano | D67: 2020-04-13 | E67: 306 | F67: 102660 | G67: △■ | H67: 48142
A68: 67 | B68: 米商会 | C68: Nakano | D68: 2020-04-13 | E68: 307 | F68: 575734 | G68: □◇ | H68: 161164
A69: 68 | B69: 欄航空 | C69: Nakano | D69: 2020-04-13 | E69: 308 | F69: 722993 | G69: △〇 | H69: 62554
A70: 69 | B70: 泰製本 | C70: Suzuki | D70: 2020-04-14 | E70: 103 | F70: 329075 | G70: 〇〇 | H70: 43646
A71: 70 | B71: 台建設 | C71: Ito | D71: 2020-04-14 | E71: 104 | F71: 770434 | G71: △◇ | H71: -71984
A72: 71 | B72: 英販売 | C72: Sato | D72: 2020-04-14 | E72: 105 | F72: 335707 | G72: 〇◆ | H72: -1246
A73: 72 | B73: 伊研究所 | C73: Suzuki | D73: 2020-04-14 | E73: 106 | F73: 342633 | G73: △□ | H73: -50965
A74: 73 | B74: 印度商事 | C74: Yoshida | D74: 2020-04-14 | E74: 107 | F74: 590103 | G74: 〇◇ | H74: -25538
A75: 74 | B75: 露不動産 | C75: Sato | D75: 2020-04-14 | E75: 108 | F75: 898185 | G75: △▽ | H75: 151394
A76: 75 | B76: 米商会 | C76: Suzuki | D76: 2020-04-14 | E76: 109 | F76: 800027 | G76: △◆ | H76: 73475
A77: 76 | B77: 英販売 | C77: Yoshida | D77: 2020-04-14 | E77: 110 | F77: 536692 | G77: □△ | H77: 182398
A78: 77 | B78: 星ホテル | C78: Mita | D78: 2020-04-14 | E78: 111 | F78: 950226 | G78: 〇■ | H78: 119237
A79: 78 | B79: 沙信託 | C79: Mita | D79: 2020-04-14 | E79: 112 | F79: 647634 | G79: 〇□ | H79: 163383
A80: 79 | B80: 欄航空 | C80: Sato | D80: 2020-04-14 | E80: 113 | F80: 683289 | G80: □◆ | H80: -34194
A81: 80 | B81: 印度商事 | C81: Mita | D81: 2020-04-14 | E81: 114 | F81: 978867 | G81: 〇〇 | H81: 60958
A82: 81 | B82: 露不動産 | C82: Yoshida | D82: 2020-04-14 | E82: 115 | F82: 835207 | G82: △〇 | H82: -91818
A83: 82 | B83: 台建設 | C83: Ito | D83: 2020-04-14 | E83: 116 | F83: 145193 | G83: △■ | H83: 141949
A84: 83 | B84: 泰製本 | C84: Suzuki | D84: 2020-04-14 | E84: 117 | F84: 590114 | G84: △◇ | H84: 44795
A85: 84 | B85: 伊研究所 | C85: Sato | D85: 2020-04-14 | E85: 118 | F85: 426771 | G85: △▽ | H85: -70963
A86: 85 | B86: 尼百貨店 | C86: Yoshida | D86: 2020-04-15 | E86: 130 | F86: 745220 | G86: △▽ | H86: 127696
A87: 86 | B87: 香商船 | C87: Tanaka | D87: 2020-04-15 | E87: 131 | F87: 123315 | G87: △◇ | H87: 25004
A88: 87 | B88: 星ホテル | C88: Nakano | D88: 2020-04-15 | E88: 132 | F88: 813312 | G88: 〇〇 | H88: 36276
A89: 88 | B89: 沙信託 | C89: Yoshida | D89: 2020-04-15 | E89: 133 | F89: 679521 | G89: □■ | H89: 91270
A90: 89 | B90: 比石油 | C90: Suzuki | D90: 2020-04-15 | E90: 134 | F90: 225182 | G90: 〇■ | H90: 97217
A91: 90 | B91: 越繊維 | C91: Suzuki | D91: 2020-04-15 | E91: 135 | F91: 573841 | G91: △▽ | H91: 68581
A92: 91 | B92: 馬紡績 | C92: Mita | D92: 2020-04-15 | E92: 136 | F92: 170495 | G92: △△ | H92: 101878
A93: 92 | B93: 緬物産 | C93: Sato | D93: 2020-04-15 | E93: 137 | F93: 504898 | G93: □■ | H93: 24630
A94: 93 | B94: 蒙印刷 | C94: Suzuki | D94: 2020-04-15 | E94: 138 | F94: 878926 | G94: △◆ | H94: -45085
A95: 94 | B95: 老繊維 | C95: Nakano | D95: 2020-04-15 | E95: 139 | F95: 206221 | G95: □■ | H95: 186408
A96: 95 | B96: 豪工業 | C96: Tanaka | D96: 2020-04-15 | E96: 140 | F96: 779771 | G96: □△ | H96: -37968
A97: 96 | B97: 加不動産 | C97: Sato | D97: 2020-04-15 | E97: 141 | F97: 327723 | G97: □▲ | H97: 10500
A98: 97 | B98: 伯商会 | C98: Nakano | D98: 2020-04-15 | E98: 142 | F98: 694346 | G98: 〇□ | H98: -95104
A99: 98 | B99: 台建設 | C99: Nakano | D99: 2020-04-15 | E99: 143 | F99: 680546 | G99: △▽ | H99: 193286
A100: 99 | B100: 英販売 | C100: Suzuki | D100: 2020-04-15 | E100: 144 | F100: 247311 | G100: 〇■ | H100: -19904
A101: 100 | B101: 伊研究所 | C101: Mita | D101: 2020-04-15 | E101: 145 | F101: 416301 | G101: △□ | H101: 127171
A102: 101 | B102: 印度商事 | C102: Suzuki | D102: 2020-04-16 | E102: 503 | F102: 882247 | G102: 〇〇 | H102: -82012
A103: 102 | B103: 露不動産 | C103: Mita | D103: 2020-04-16 | E103: 504 | F103: 879209 | G103: △◇ | H103: 122889
A104: 103 | B104: 米商会 | C104: Ito | D104: 2020-04-16 | E104: 505 | F104: 352574 | G104: □▽ | H104: 96980
A105: 104 | B105: 英販売 | C105: Ito | D105: 2020-04-16 | E105: 506 | F105: 773898 | G105: △□ | H105: 104330
A106: 105 | B106: 星ホテル | C106: Suzuki | D106: 2020-04-16 | E106: 507 | F106: 867419 | G106: □◇ | H106: -49336
A107: 106 | B107: 沙信託 | C107: Suzuki | D107: 2020-04-16 | E107: 508 | F107: 433131 | G107: △▽ | H107: -51837
A108: 107 | B108: 欄航空 | C108: Suzuki | D108: 2020-04-16 | E108: 509 | F108: 760854 | G108: 〇〇 | H108: 49254
A109: 108 | B109: 印度商事 | C109: Nakano | D109: 2020-04-16 | E109: 510 | F109: 205073 | G109: 〇□ | H109: 133087
A110: 109 | B110: 露不動産 | C110: Yoshida | D110: 2020-04-16 | E110: 511 | F110: 183575 | G110: 〇▼ | H110: 25569
A111: 110 | B111: 米商会 | C111: Sato | D111: 2020-04-16 | E111: 512 | F111: 937103 | G111: □▼ | H111: -32788
A112: 111 | B112: 欄航空 | C112: Nakano | D112: 2020-04-16 | E112: 513 | F112: 197735 | G112: △■ | H112: 108406
A113: 112 | B113: 泰製本 | C113: Sato | D113: 2020-04-16 | E113: 514 | F113: 160730 | G113: □■ | H113: 87676
A114: 113 | B114: 台建設 | C114: Ito | D114: 2020-04-16 | E114: 515 | F114: 655846 | G114: △◆ | H114: 145641
A115: 114 | B115: 英販売 | C115: Nakano | D115: 2020-04-16 | E115: 516 | F115: 728467 | G115: △▼ | H115: -34387
A116: 115 | B116: 伊研究所 | C116: Mita | D116: 2020-04-16 | E116: 517 | F116: 693403 | G116: 〇■ | H116: 166300
A117: 116 | B117: 印度商事 | C117: Nakano | D117: 2020-04-16 | E117: 518 | F117: 754791 | G117: □▽ | H117: 8179
A118: 117 | B118: 露不動産 | C118: Ito | D118: 2020-04-16 | E118: 519 | F118: 458751 | G118: 〇▼ | H118: 119320
A119: 118 | B119: 米商会 | C119: Yoshida | D119: 2020-04-16 | E119: 520 | F119: 275845 | G119: □◇ | H119: 123671
A120: 119 | B120: 英販売 | C120: Suzuki | D120: 2020-04-17 | E120: 702 | F120: 457218 | G120: △〇 | H120: 182843
A121: 120 | B121: 星ホテル | C121: Ito | D121: 2020-04-17 | E121: 703 | F121: 132699 | G121: 〇■ | H121: 46253
A122: 121 | B122: 伊研究所 | C122: Ito | D122: 2020-04-17 | E122: 704 | F122: 429688 | G122: △▼ | H122: 182846
A123: 122 | B123: 印度商事 | C123: Mita | D123: 2020-04-17 | E123: 705 | F123: 427067 | G123: 〇■ | H123: -81344
A124: 123 | B124: 露不動産 | C124: Ito | D124: 2020-04-17 | E124: 706 | F124: 445094 | G124: □▽ | H124: 90449
A125: 124 | B125: 米商会 | C125: Tanaka | D125: 2020-04-17 | E125: 707 | F125: 931484 | G125: □▲ | H125: 111270
A126: 125 | B126: 英販売 | C126: Tanaka | D126: 2020-04-17 | E126: 708 | F126: 161869 | G126: 〇〇 | H126: -83423
A127: 126 | B127: 星ホテル | C127: Suzuki | D127: 2020-04-17 | E127: 709 | F127: 292867 | G127: △◇ | H127: 1294
A128: 127 | B128: 沙信託 | C128: Tanaka | D128: 2020-04-17 | E128: 710 | F128: 428575 | G128: □▽ | H128: 187704
A129: 128 | B129: 欄航空 | C129: Suzuki | D129: 2020-04-17 | E129: 711 | F129: 490058 | G129: 〇■ | H129: -49580
A130: 129 | B130: 印度商事 | C130: Nakano | D130: 2020-04-17 | E130: 712 | F130: 262127 | G130: △▼ | H130: -11715
A131: 130 | B131: 露不動産 | C131: Tanaka | D131: 2020-04-17 | E131: 713 | F131: 177469 | G131: 〇◆ | H131: 78323
A132: 131 | B132: 台建設 | C132: Sato | D132: 2020-04-17 | E132: 714 | F132: 906878 | G132: □■ | H132: 98787
A133: 132 | B133: 泰製本 | C133: Nakano | D133: 2020-04-17 | E133: 715 | F133: 334377 | G133: 〇▽ | H133: 80072
A134: 133 | B134: 伊研究所 | C134: Yoshida | D134: 2020-04-17 | E134: 716 | F134: 879757 | G134: 〇▽ | H134: -41770
A135: 134 | B135: 尼百貨店 | C135: Sato | D135: 2020-04-18 | E135: 603 | F135: 880486 | G135: □◇ | H135: 15578
A136: 135 | B136: 香商船 | C136: Sato | D136: 2020-04-19 | E136: 302 | F136: 198148 | G136: 〇〇 | H136: -60738
A137: 136 | B137: 星ホテル | C137: Mita | D137: 2020-04-20 | E137: 103 | F137: 450575 | G137: △◇ | H137: 20839
A138: 137 | B138: 沙信託 | C138: Tanaka | D138: 2020-04-21 | E138: 222 | F138: 435201 | G138: 〇◆ | H138: -73337
A139: 138 | B139: 比石油 | C139: Tanaka | D139: 2020-04-21 | E139: 223 | F139: 446720 | G139: 〇□ | H139: 171688
A140: 139 | B140: 越繊維 | C140: Tanaka | D140: 2020-04-21 | E140: 224 | F140: 173625 | G140: △▲ | H140: -35278
A141: 140 | B141: 馬紡績 | C141: Ito | D141: 2020-04-21 | E141: 225 | F141: 408354 | G141: □〇 | H141: 153973
A142: 141 | B142: 緬物産 | C142: Mita | D142: 2020-04-21 | E142: 226 | F142: 383054 | G142: △◇ | H142: 44144
A143: 142 | B143: 蒙印刷 | C143: Sato | D143: 2020-04-21 | E143: 227 | F143: 342143 | G143: □◆ | H143: 106986
A144: 143 | B144: 老繊維 | C144: Sato | D144: 2020-04-21 | E144: 228 | F144: 550199 | G144: 〇◆ | H144: 73122
A145: 144 | B145: 豪工業 | C145: Ito | D145: 2020-04-21 | E145: 229 | F145: 446206 | G145: □◇ | H145: 40746
A146: 145 | B146: 加不動産 | C146: Tanaka | D146: 2020-04-21 | E146: 230 | F146: 431278 | G146: □▽ | H146: 98065
A147: 146 | B147: 伯商会 | C147: Sato | D147: 2020-04-21 | E147: 231 | F147: 858966 | G147: □◇ | H147: 118131
A148: 147 | B148: 台建設 | C148: Yoshida | D148: 2020-04-21 | E148: 232 | F148: 109593 | G148: □■ | H148: -25689
A149: 148 | B149: 英販売 | C149: Nakano | D149: 2020-04-21 | E149: 233 | F149: 731372 | G149: □△ | H149: -90400
A150: 149 | B150: 伊研究所 | C150: Nakano | D150: 2020-04-30 | E150: 808 | F150: 759229 | G150: 〇△ | H150: -62770
A151: 150 | B151: 印度商事 | C151: Mita | D151: 2020-04-30 | E151: 809 | F151: 161973 | G151: □◇ | H151: -29103
A152: 151 | B152: 露不動産 | C152: Nakano | D152: 2020-04-30 | E152: 810 | F152: 982850 | G152: □〇 | H152: -61458
A153: 152 | B153: 米商会 | C153: Mita | D153: 2020-04-30 | E153: 811 | F153: 733156 | G153: □▲ | H153: 33206
A154: 153 | B154: 英販売 | C154: Suzuki | D154: 2020-04-30 | E154: 812 | F154: 741983 | G154: □◆ | H154: -66191
A155: 154 | B155: 星ホテル | C155: Yoshida | D155: 2020-04-30 | E155: 813 | F155: 218474 | G155: □▽ | H155: 160816
A156: 155 | B156: 沙信託 | C156: Tanaka | D156: 2020-04-30 | E156: 814 | F156: 902203 | G156: △□ | H156: -54736
A157: 156 | B157: 欄航空 | C157: Nakano | D157: 2020-04-30 | E157: 815 | F157: 167338 | G157: 〇□ | H157: -22685
A158: 157 | B158: 印度商事 | C158: Sato | D158: 2020-04-30 | E158: 816 | F158: 748123 | G158: 〇▽ | H158: 76308
A159: 158 | B159: 露不動産 | C159: Tanaka | D159: 2020-04-30 | E159: 817 | F159: 425853 | G159: 〇△ | H159: 87388
A160: 159 | B160: 米商会 | C160: Sato | D160: 2020-04-30 | E160: 818 | F160: 785284 | G160: □■ | H160: 129641
A161: 160 | B161: 欄航空 | C161: Tanaka | D161: 2020-04-30 | E161: 819 | F161: 303912 | G161: □▼ | H161: 130374
A162: 161 | B162: 米商会 | C162: Ito | D162: 2020-05-01 | E162: 410 | F162: 894389 | G162: △▽ | H162: 90527
A163: 162 | B163: 英販売 | C163: Sato | D163: 2020-05-01 | E163: 410 | F163: 669774 | G163: □◇ | H163: 198507
A164: 163 | B164: 欄航空 | C164: Yoshida | D164: 2020-05-01 | E164: 410 | F164: 377479 | G164: △△ | H164: 177407
A165: 164 | B165: 露不動産 | C165: Suzuki | D165: 2020-05-01 | E165: 410 | F165: 504387 | G165: □△ | H165: 79125
A166: 165 | B166: 印度商事 | C166: Sato | D166: 2020-05-03 | E166: 245 | F166: 424411 | G166: 〇▼ | H166: 25994
A167: 166 | B167: 欄航空 | C167: Ito | D167: 2020-05-03 | E167: 245 | F167: 929942 | G167: △■ | H167: 54373
A168: 167 | B168: 英販売 | C168: Nakano | D168: 2020-05-05 | E168: 343 | F168: 310860 | G168: △〇 | H168: 174965
A169: 168 | B169: 米商会 | C169: Nakano | D169: 2020-05-05 | E169: 235 | F169: 479800 | G169: △■ | H169: 9270
A170: 169 | B170: 伊研究所 | C170: Mita | D170: 2020-05-05 | E170: 236 | F170: 868422 | G170: □◆ | H170: -1100
A171: 170 | B171: 泰製本 | C171: Tanaka | D171: 2020-05-06 | E171: 221 | F171: 699466 | G171: 〇◇ | H171: 152351
A172: 171 | B172: 台建設 | C172: Tanaka | D172: 2020-05-07 | E172: 429 | F172: 871723 | G172: □▲ | H172: 85915
A173: 172 | B173: 印度商事 | C173: Tanaka | D173: 2020-05-07 | E173: 430 | F173: 340418 | G173: □▽ | H173: -69892
A174: 173 | B174: 尼百貨店 | C174: Suzuki | D174: 2020-05-07 | E174: 431 | F174: 880364 | G174: △■ | H174: 191450
A175: 174 | B175: 露不動産 | C175: Yoshida | D175: 2020-05-08 | E175: 535 | F175: 478696 | G175: □〇 | H175: 183227
A176: 175 | B176: 香商船 | C176: Ito | D176: 2020-05-08 | E176: 536 | F176: 208688 | G176: □△ | H176: 38194
A177: 176 | B177: 沙信託 | C177: Suzuki | D177: 2020-05-08 | E177: 537 | F177: 702201 | G177: △△ | H177: 56016
A178: 177 | B178: 星ホテル | C178: Sato | D178: 2020-05-09 | E178: 255 | F178: 438289 | G178: △▲ | H178: 33195
A179: 178 | B179: 米商会 | C179: Ito | D179: 2020-05-09 | E179: 256 | F179: 458732 | G179: 〇□ | H179: 193117
A180: 179 | B180: 欄航空 | C180: Mita | D180: 2020-05-09 | E180: 257 | F180: 257003 | G180: △◆ | H180: 132833
A181: 180 | B181: 英販売 | C181: Yoshida | D181: 2020-05-09 | E181: 258 | F181: 508360 | G181: 〇〇 | H181: 167073
A182: 181 | B182: 伊研究所 | C182: Nakano | D182: 2020-05-10 | E182: 229 | F182: 930614 | G182: □▼ | H182: 18134
A183: 182 | B183: 露不動産 | C183: Suzuki | D183: 2020-05-10 | E183: 230 | F183: 178381 | G183: 〇△ | H183: 68729
A184: 183 | B184: 尼百貨店 | C184: Yoshida | D184: 2020-05-10 | E184: 231 | F184: 454564 | G184: □▼ | H184: 12470
A185: 184 | B185: 米商会 | C185: Yoshida | D185: 2020-05-10 | E185: 232 | F185: 463410 | G185: △▽ | H185: 198708
A186: 185 | B186: 台建設 | C186: Tanaka | D186: 2020-05-10 | E186: 233 | F186: 302879 | G186: △◆ | H186: -3008
A187: 186 | B187: 泰製本 | C187: Ito | D187: 2020-05-10 | E187: 234 | F187: 338164 | G187: 〇〇 | H187: -21412
A188: 187 | B188: 欄航空 | C188: Suzuki | D188: 2020-05-10 | E188: 235 | F188: 373008 | G188: △▽ | H188: 162617
A189: 188 | B189: 印度商事 | C189: Tanaka | D189: 2020-05-10 | E189: 236 | F189: 426963 | G189: 〇□ | H189: 74803
A190: 189 | B190: 英販売 | C190: Ito | D190: 2020-05-11 | E190: 340 | F190: 336889 | G190: △▽ | H190: 145456
A191: 190 | B191: 露不動産 | C191: Ito | D191: 2020-05-11 | E191: 341 | F191: 628549 | G191: 〇◆ | H191: -82461
A192: 191 | B192: 米商会 | C192: Ito | D192: 2020-05-11 | E192: 342 | F192: 268923 | G192: 〇◇ | H192: -93388
A193: 192 | B193: 伊研究所 | C193: Tanaka | D193: 2020-05-11 | E193: 343 | F193: 653001 | G193: △△ | H193: 17846
A194: 193 | B194: 英販売 | C194: Sato | D194: 2020-05-11 | E194: 344 | F194: 440976 | G194: 〇■ | H194: -73196
A195: 194 | B195: 尼百貨店 | C195: Mita | D195: 2020-05-11 | E195: 345 | F195: 465484 | G195: □▽ | H195: 77780
A196: 195 | B196: 露不動産 | C196: Sato | D196: 2020-05-11 | E196: 346 | F196: 632780 | G196: □▲ | H196: -1324
A197: 196 | B197: 星ホテル | C197: Ito | D197: 2020-05-11 | E197: 347 | F197: 126422 | G197: □◆ | H197: 71096
A198: 197 | B198: 沙信託 | C198: Suzuki | D198: 2020-05-11 | E198: 348 | F198: 838716 | G198: △▽ | H198: -1210
A199: 198 | B199: 米商会 | C199: Suzuki | D199: 2020-05-11 | E199: 349 | F199: 612782 | G199: △▲ | H199: 59231
A200: 199 | B200: 欄航空 | C200: Tanaka | D200: 2020-05-11 | E200: 350 | F200: 393139 | G200: □□ | H200: 100468
... 2701 more rows

Sheet seikyu
A1: 請 求 書 | K1: 請 求 書 | U1: 請 求 書 | AE1: 請 求 書 | AO1: 請 求 書 | AY1: 請 求 書 | BI1: 請 求 書 | BS1: 請 求 書 | CC1: 請 求 書 | CM1: 請 求 書 | CW1: 請 求 書 | DG1: 請 求 書 | DQ1: 請 求 書 | EA1: 請 求 書 | EK1: 請 求 書 | EU1: 請 求 書 | FE1: 請 求 書 | FO1: 請 求 書 | FY1: 請 求 書 | GI1: 請 求 書 | GS1: 請 求 書
A3: 印度商事 | E3: 御中 | F3: 請求No. | G3: =設定!F2&"-"&TEXT(seikyu!G4,"yyyymmdd") -> IN-20211031 | K3: 米商会 | O3: 御中 | P3: 請求No. | Q3: =設定!F3&"-"&TEXT(seikyu!Q4,"yyyymmdd") -> US-20211031 | U3: 英販売 | Y3: 御中 | Z3: 請求No. | AA3: =設定!F4&"-"&TEXT(seikyu!AA4,"yyyymmdd") -> EI-20211031 | AE3: 露不動産 | AI3: 御中 | AJ3: 請求No. | AK3: =設定!F5&"-"&TEXT(seikyu!AK4,"yyyymmdd") -> RO-20211031 | AO3: 欄航空 | AS3: 御中 | AT3: 請求No. | AU3: =設定!F6&"-"&TEXT(seikyu!AU4,"yyyymmdd") -> RN-20211031 | AY3: 伊研究所 | BC3: 御中 | BD3: 請求No. | BE3: =設定!F7&"-"&TEXT(seikyu!BE4,"yyyymmdd") -> IT-20211031 | BI3: 尼百貨店 | BM3: 御中 | BN3: 請求No. | BO3: =設定!F8&"-"&TEXT(seikyu!BO4,"yyyymmdd") -> AM-20211031 | BS3: 香商船 | BW3: 御中 | BX3: 請求No. | BY3: =設定!F9&"-"&TEXT(seikyu!BY4,"yyyymmdd") -> KO-20211031 | CC3: 沙信託 | CG3: 御中 | CH3: 請求No. | CI3: =設定!F10&"-"&TEXT(seikyu!CI4,"yyyymmdd") -> SA-20211031 | CM3: 星ホテル | CQ3: 御中 | CR3: 請求No. | CS3: =設定!F11&"-"&TEXT(seikyu!CS4,"yyyymmdd") -> HO-20211031 | CW3: 泰製本 | DA3: 御中 | DB3: 請求No. | DC3: =設定!F12&"-"&TEXT(seikyu!DC4,"yyyymmdd") -> TA-20211031 | DG3: 台建設 | DK3: 御中 | DL3: 請求No. | DM3: =設定!F13&"-"&TEXT(seikyu!DM4,"yyyymmdd") -> TI-20211031 | DQ3: 比石油 | DU3: 御中 | DV3: 請求No. | DW3: =設定!F14&"-"&TEXT(seikyu!DW4,"yyyymmdd") -> HI-20211031 | EA3: 越繊維 | EE3: 御中 | EF3: 請求No. | EG3: =設定!F15&"-"&TEXT(seikyu!EG4,"yyyymmdd") -> ET-20211031 | EK3: 馬紡績 | EO3: 御中 | EP3: 請求No. | EQ3: =設定!F16&"-"&TEXT(seikyu!EQ4,"yyyymmdd") -> UM-20211031 | EU3: 緬物産 | EY3: 御中 | EZ3: 請求No. | FA3: =設定!F17&"-"&TEXT(seikyu!FA4,"yyyymmdd") -> MN-20211031 | FE3: 蒙印刷 | FI3: 御中 | FJ3: 請求No. | FK3: =設定!F18&"-"&TEXT(seikyu!FK4,"yyyymmdd") -> MO-20211031 | FO3: 老繊維 | FS3: 御中 | FT3: 請求No. | FU3: =設定!F19&"-"&TEXT(seikyu!FU4,"yyyymmdd") -> LO-20211031 | FY3: 豪工業 | GC3: 御中 | GD3: 請求No. | GE3: =設定!F20&"-"&TEXT(seikyu!GE4,"yyyymmdd") -> GO-20211031 | GI3: 加不動産 | GM3: 御中 | GN3: 請求No. | GO3: =設定!F21&"-"&TEXT(seikyu!GO4,"yyyymmdd") -> KA-20211031 | GS3: 伯商会 | GW3: 御中 | GX3: 請求No. | GY3: =設定!F22&"-"&TEXT(seikyu!GY4,"yyyymmdd") -> HK-20211031
B4: ご担当： | D4: 様 | F4: 請求日 | G4: =TODAY() -> 2021-10-31 | L4: ご担当： | N4: 様 | P4: 請求日 | Q4: =TODAY() -> 2021-10-31 | V4: ご担当： | X4: 様 | Z4: 請求日 | AA4: =TODAY() -> 2021-10-31 | AF4: ご担当： | AH4: 様 | AJ4: 請求日 | AK4: =TODAY() -> 2021-10-31 | AP4: ご担当： | AR4: 様 | AT4: 請求日 | AU4: =TODAY() -> 2021-10-31 | AZ4: ご担当： | BB4: 様 | BD4: 請求日 | BE4: =TODAY() -> 2021-10-31 | BJ4: ご担当： | BL4: 様 | BN4: 請求日 | BO4: =TODAY() -> 2021-10-31 | BT4: ご担当： | BV4: 様 | BX4: 請求日 | BY4: =TODAY() -> 2021-10-31 | CD4: ご担当： | CF4: 様 | CH4: 請求日 | CI4: =TODAY() -> 2021-10-31 | CN4: ご担当： | CP4: 様 | CR4: 請求日 | CS4: =TODAY() -> 2021-10-31 | CX4: ご担当： | CZ4: 様 | DB4: 請求日 | DC4: =TODAY() -> 2021-10-31 | DH4: ご担当： | DJ4: 様 | DL4: 請求日 | DM4: =TODAY() -> 2021-10-31 | DR4: ご担当： | DT4: 様 | DV4: 請求日 | DW4: =TODAY() -> 2021-10-31 | EB4: ご担当： | ED4: 様 | EF4: 請求日 | EG4: =TODAY() -> 2021-10-31 | EL4: ご担当： | EN4: 様 | EP4: 請求日 | EQ4: =TODAY() -> 2021-10-31 | EV4: ご担当： | EX4: 様 | EZ4: 請求日 | FA4: =TODAY() -> 2021-10-31 | FF4: ご担当： | FH4: 様 | FJ4: 請求日 | FK4: =TODAY() -> 2021-10-31 | FP4: ご担当： | FR4: 様 | FT4: 請求日 | FU4: =TODAY() -> 2021-10-31 | FZ4: ご担当： | GB4: 様 | GD4: 請求日 | GE4: =TODAY() -> 2021-10-31 | GJ4: ご担当： | GL4: 様 | GN4: 請求日 | GO4: =TODAY() -> 2021-10-31 | GT4: ご担当： | GV4: 様 | GX4: 請求日 | GY4: =TODAY() -> 2021-10-31
A6: 件名： | F6: 株式会社〇〇 | K6: 件名： | P6: 株式会社〇〇 | U6: 件名： | Z6: 株式会社〇〇 | AE6: 件名： | AJ6: 株式会社〇〇 | AO6: 件名： | AT6: 株式会社〇〇 | AY6: 件名： | BD6: 株式会社〇〇 | BI6: 件名： | BN6: 株式会社〇〇 | BS6: 件名： | BX6: 株式会社〇〇 | CC6: 件名： | CH6: 株式会社〇〇 | CM6: 件名： | CR6: 株式会社〇〇 | CW6: 件名： | DB6: 株式会社〇〇 | DG6: 件名： | DL6: 株式会社〇〇 | DQ6: 件名： | DV6: 株式会社〇〇 | EA6: 件名： | EF6: 株式会社〇〇 | EK6: 件名： | EP6: 株式会社〇〇 | EU6: 件名： | EZ6: 株式会社〇〇 | FE6: 件名： | FJ6: 株式会社〇〇 | FO6: 件名： | FT6: 株式会社〇〇 | FY6: 件名： | GD6: 株式会社〇〇 | GI6: 件名： | GN6: 株式会社〇〇 | GS6: 件名： | GX6: 株式会社〇〇
B7: 下記の通り、ご請求申し上げます。 | F7: 〒 | L7: 下記の通り、ご請求申し上げます。 | P7: 〒 | V7: 下記の通り、ご請求申し上げます。 | Z7: 〒 | AF7: 下記の通り、ご請求申し上げます。 | AJ7: 〒 | AP7: 下記の通り、ご請求申し上げます。 | AT7: 〒 | AZ7: 下記の通り、ご請求申し上げます。 | BD7: 〒 | BJ7: 下記の通り、ご請求申し上げます。 | BN7: 〒 | BT7: 下記の通り、ご請求申し上げます。 | BX7: 〒 | CD7: 下記の通り、ご請求申し上げます。 | CH7: 〒 | CN7: 下記の通り、ご請求申し上げます。 | CR7: 〒 | CX7: 下記の通り、ご請求申し上げます。 | DB7: 〒 | DH7: 下記の通り、ご請求申し上げます。 | DL7: 〒 | DR7: 下記の通り、ご請求申し上げます。 | DV7: 〒 | EB7: 下記の通り、ご請求申し上げます。 | EF7: 〒 | EL7: 下記の通り、ご請求申し上げます。 | EP7: 〒 | EV7: 下記の通り、ご請求申し上げます。 | EZ7: 〒 | FF7: 下記の通り、ご請求申し上げます。 | FJ7: 〒 | FP7: 下記の通り、ご請求申し上げます。 | FT7: 〒 | FZ7: 下記の通り、ご請求申し上げます。 | GD7: 〒 | GJ7: 下記の通り、ご請求申し上げます。 | GN7: 〒 | GT7: 下記の通り、ご請求申し上げます。 | GX7: 〒
F8: 東京都江戸川区東葛西１－２－３ | P8: 東京都江戸川区東葛西１－２－３ | Z8: 東京都江戸川区東葛西１－２－３ | AJ8: 東京都江戸川区東葛西１－２－３ | AT8: 東京都江戸川区東葛西１－２－３ | BD8: 東京都江戸川区東葛西１－２－３ | BN8: 東京都江戸川区東葛西１－２－３ | BX8: 東京都江戸川区東葛西１－２－３ | CH8: 東京都江戸川区東葛西１－２－３ | CR8: 東京都江戸川区東葛西１－２－３ | DB8: 東京都江戸川区東葛西１－２－３ | DL8: 東京都江戸川区東葛西１－２－３ | DV8: 東京都江戸川区東葛西１－２－３ | EF8: 東京都江戸川区東葛西１－２－３ | EP8: 東京都江戸川区東葛西１－２－３ | EZ8: 東京都江戸川区東葛西１－２－３ | FJ8: 東京都江戸川区東葛西１－２－３ | FT8: 東京都江戸川区東葛西１－２－３ | GD8: 東京都江戸川区東葛西１－２－３ | GN8: 東京都江戸川区東葛西１－２－３ | GX8: 東京都江戸川区東葛西１－２－３
F9: 中野ビル２F | P9: 中野ビル２F | Z9: 中野ビル２F | AJ9: 中野ビル２F | AT9: 中野ビル２F | BD9: 中野ビル２F | BN9: 中野ビル２F | BX9: 中野ビル２F | CH9: 中野ビル２F | CR9: 中野ビル２F | DB9: 中野ビル２F | DL9: 中野ビル２F | DV9: 中野ビル２F | EF9: 中野ビル２F | EP9: 中野ビル２F | EZ9: 中野ビル２F | FJ9: 中野ビル２F | FT9: 中野ビル２F | GD9: 中野ビル２F | GN9: 中野ビル２F | GX9: 中野ビル２F
F10: TEL： | P10: TEL： | Z10: TEL： | AJ10: TEL： | AT10: TEL： | BD10: TEL： | BN10: TEL： | BX10: TEL： | CH10: TEL： | CR10: TEL： | DB10: TEL： | DL10: TEL： | DV10: TEL： | EF10: TEL： | EP10: TEL： | EZ10: TEL： | FJ10: TEL： | FT10: TEL： | GD10: TEL： | GN10: TEL： | GX10: TEL：
F11: FAX： | P11: FAX： | Z11: FAX： | AJ11: FAX： | AT11: FAX： | BD11: FAX： | BN11: FAX： | BX11: FAX： | CH11: FAX： | CR11: FAX： | DB11: FAX： | DL11: FAX： | DV11: FAX： | EF11: FAX： | EP11: FAX： | EZ11: FAX： | FJ11: FAX： | FT11: FAX： | GD11: FAX： | GN11: FAX： | GX11: FAX：
F12: E-Mail： | P12: E-Mail： | Z12: E-Mail： | AJ12: E-Mail： | AT12: E-Mail： | BD12: E-Mail： | BN12: E-Mail： | BX12: E-Mail： | CH12: E-Mail： | CR12: E-Mail： | DB12: E-Mail： | DL12: E-Mail： | DV12: E-Mail： | EF12: E-Mail： | EP12: E-Mail： | EZ12: E-Mail： | FJ12: E-Mail： | FT12: E-Mail： | GD12: E-Mail： | GN12: E-Mail： | GX12: E-Mail：
F13: 担当： | P13: 担当： | Z13: 担当： | AJ13: 担当： | AT13: 担当： | BD13: 担当： | BN13: 担当： | BX13: 担当： | CH13: 担当： | CR13: 担当： | DB13: 担当： | DL13: 担当： | DV13: 担当： | EF13: 担当： | EP13: 担当： | EZ13: 担当： | FJ13: 担当： | FT13: 担当： | GD13: 担当： | GN13: 担当： | GX13: 担当：
A15: 合計金額 | B15: =D28 -> -370190.7 | E15: （税込） | F15: お支払期限： | G15: =EOMONTH(A30,1) -> 2021-08-31 | K15: 合計金額 | L15: =N28 -> 1128176.5 | O15: （税込） | P15: お支払期限： | Q15: =EOMONTH(K30,1) -> 2021-08-31 | U15: 合計金額 | V15: =X28 -> 1294386.5 | Y15: （税込） | Z15: お支払期限： | AA15: =EOMONTH(U30,1) -> 2021-08-31 | AE15: 合計金額 | AF15: =AH28 -> 490514.2 | AI15: （税込） | AJ15: お支払期限： | AK15: =EOMONTH(AE30,1) -> 2021-08-31 | AO15: 合計金額 | AP15: =AR28 -> 529098.9 | AS15: （税込） | AT15: お支払期限： | AU15: =EOMONTH(AO30,1) -> 2021-08-31 | AY15: 合計金額 | AZ15: =BB28 -> 1077804.2 | BC15: （税込） | BD15: お支払期限： | BE15: =EOMONTH(AY30,1) -> 2021-08-31 | BI15: 合計金額 | BJ15: =BL28 -> 117536.1 | BM15: （税込） | BN15: お支払期限： | BO15: =EOMONTH(BI30,1) -> 2021-08-31 | BS15: 合計金額 | BT15: =BV28 -> -13938.1 | BW15: （税込） | BX15: お支払期限： | BY15: =EOMONTH(BS30,1) -> 2021-08-31 | CC15: 合計金額 | CD15: =CF28 -> 279567.2 | CG15: （税込） | CH15: お支払期限： | CI15: =EOMONTH(CC30,1) -> 2021-08-31 | CM15: 合計金額 | CN15: =CP28 -> 721391 | CQ15: （税込） | CR15: お支払期限： | CS15: =EOMONTH(CM30,1) -> 2021-08-31 | CW15: 合計金額 | CX15: =CZ28 -> 359938.7 | DA15: （税込） | DB15: お支払期限： | DC15: =EOMONTH(CW30,1) -> 2021-08-31 | DG15: 合計金額 | DH15: =DJ28 -> 414521.8 | DK15: （税込） | DL15: お支払期限： | DM15: =EOMONTH(DG30,1) -> 2021-08-31 | DQ15: 合計金額 | DR15: =DT28 -> 156410.1 | DU15: （税込） | DV15: お支払期限： | DW15: =EOMONTH(DQ30,1) -> 2021-08-31 | EA15: 合計金額 | EB15: =ED28 -> -34871.1 | EE15: （税込） | EF15: お支払期限： | EG15: =EOMONTH(EA30,1) -> 2021-08-31 | EK15: 合計金額 | EL15: =EN28 -> 106731.9 | EO15: （税込） | EP15: お支払期限： | EQ15: =EOMONTH(EK30,1) -> 2021-08-31 | EU15: 合計金額 | EV15: =EX28 -> 87566.6 | EY15: （税込） | EZ15: お支払期限： | FA15: =EOMONTH(EU30,1) -> 2021-08-31 | FE15: 合計金額 | FF15: =FH28 -> 70657.4 | FI15: （税込） | FJ15: お支払期限： | FK15: =EOMONTH(FE30,1) -> 2021-08-31 | FO15: 合計金額 | FP15: =FR28 -> 76275.1 | FS15: （税込） | FT15: お支払期限： | FU15: =EOMONTH(FO30,1) -> 2021-08-31 | FY15: 合計金額 | FZ15: =GB28 -> 266799.5 | GC15: （税込） | GD15: お支払期限： | GE15: =EOMONTH(FY30,1) -> 2021-08-31 | GI15: 合計金額 | GJ15: =GL28 -> 249772.6 | GM15: （税込） | GN15: お支払期限： | GS15: 合計金額 | GT15: =GV28 -> 320031.8 | GW15: （税込） | GX15: お支払期限： | GY15: =EOMONTH(GS30,1) -> 2021-08-31
A18: お振込先 | K18: お振込先 | U18: お振込先 | AE18: お振込先 | AO18: お振込先 | AY18: お振込先 | BI18: お振込先 | BS18: お振込先 | CC18: お振込先 | CM18: お振込先 | CW18: お振込先 | DG18: お振込先 | DQ18: お振込先 | EA18: お振込先 | EK18: お振込先 | EU18: お振込先 | FE18: お振込先 | FO18: お振込先 | FY18: お振込先 | GI18: お振込先 | GS18: お振込先
B19: ○○銀行 △△支店 | L19: ○○銀行 △△支店 | V19: ○○銀行 △△支店 | AF19: ○○銀行 △△支店 | AP19: ○○銀行 △△支店 | AZ19: ○○銀行 △△支店 | BJ19: ○○銀行 △△支店 | BT19: ○○銀行 △△支店 | CD19: ○○銀行 △△支店 | CN19: ○○銀行 △△支店 | CX19: ○○銀行 △△支店 | DH19: ○○銀行 △△支店 | DR19: ○○銀行 △△支店 | EB19: ○○銀行 △△支店 | EL19: ○○銀行 △△支店 | EV19: ○○銀行 △△支店 | FF19: ○○銀行 △△支店 | FP19: ○○銀行 △△支店 | FZ19: ○○銀行 △△支店 | GJ19: ○○銀行 △△支店 | GT19: ○○銀行 △△支店
B20: 当座 | L20: 当座 | V20: 当座 | AF20: 当座 | AP20: 当座 | AZ20: 当座 | BJ20: 当座 | BT20: 当座 | CD20: 当座 | CN20: 当座 | CX20: 当座 | DH20: 当座 | DR20: 当座 | EB20: 当座 | EL20: 当座 | EV20: 当座 | FF20: 当座 | FP20: 当座 | FZ20: 当座 | GJ20: 当座 | GT20: 当座
B21: 0123456 | L21: 0123456 | V21: 0123456 | AF21: 0123456 | AP21: 0123456 | AZ21: 0123456 | BJ21: 0123456 | BT21: 0123456 | CD21: 0123456 | CN21: 0123456 | CX21: 0123456 | DH21: 0123456 | DR21: 0123456 | EB21: 0123456 | EL21: 0123456 | EV21: 0123456 | FF21: 0123456 | FP21: 0123456 | FZ21: 0123456 | GJ21: 0123456 | GT21: 0123456
B22: サンプル（カ | L22: サンプル（カ | V22: サンプル（カ | AF22: サンプル（カ | AP22: サンプル（カ | AZ22: サンプル（カ | BJ22: サンプル（カ | BT22: サンプル（カ | CD22: サンプル（カ | CN22: サンプル（カ | CX22: サンプル（カ | DH22: サンプル（カ | DR22: サンプル（カ | EB22: サンプル（カ | EL22: サンプル（カ | EV22: サンプル（カ | FF22: サンプル（カ | FP22: サンプル（カ | FZ22: サンプル（カ | GJ22: サンプル（カ | GT22: サンプル（カ
A23: 備考 | K23: 備考 | U23: 備考 | AE23: 備考 | AO23: 備考 | AY23: 備考 | BI23: 備考 | BS23: 備考 | CC23: 備考 | CM23: 備考 | CW23: 備考 | DG23: 備考 | DQ23: 備考 | EA23: 備考 | EK23: 備考 | EU23: 備考 | FE23: 備考 | FO23: 備考 | FY23: 備考 | GI23: 備考 | GS23: 備考
C26: 小計 | D26: =SUM(D30:D10000) -> -336537 | M26: 小計 | N26: =SUM(N30:N10000) -> 1025615 | W26: 小計 | X26: =SUM(X30:X10000) -> 1176715 | AG26: 小計 | AH26: =SUM(AH30:AH10000) -> 445922 | AQ26: 小計 | AR26: =SUM(AR30:AR10000) -> 480999 | BA26: 小計 | BB26: =SUM(BB30:BB10000) -> 979822 | BK26: 小計 | BL26: =SUM(BL30:BL10000) -> 106851 | BU26: 小計 | BV26: =SUM(BV30:BV10000) -> -12671 | CE26: 小計 | CF26: =SUM(CF30:CF10000) -> 254152 | CO26: 小計 | CP26: =SUM(CP30:CP10000) -> 655810 | CY26: 小計 | CZ26: =SUM(CZ30:CZ10000) -> 327217 | DI26: 小計 | DJ26: =SUM(DJ30:DJ10000) -> 376838 | DS26: 小計 | DT26: =SUM(DT30:DT10000) -> 142191 | EC26: 小計 | ED26: =SUM(ED30:ED10000) -> -31701 | EM26: 小計 | EN26: =SUM(EN30:EN10000) -> 97029 | EW26: 小計 | EX26: =SUM(EX30:EX10000) -> 79606 | FG26: 小計 | FH26: =SUM(FH30:FH10000) -> 64234 | FQ26: 小計 | FR26: =SUM(FR30:FR10000) -> 69341 | GA26: 小計 | GB26: =SUM(GB30:GB10000) -> 242545 | GK26: 小計 | GL26: =SUM(GL30:GL10000) -> 227066 | GU26: 小計 | GV26: =SUM(GV30:GV10000) -> 290938
C27: 消費税 | D27: =D26*設定!E25 -> -33653.7 | M27: 消費税 | N27: =N26*設定!E25 -> 102561.5 | W27: 消費税 | X27: =X26*設定!E25 -> 117671.5 | AG27: 消費税 | AH27: =AH26*設定!E25 -> 44592.2 | AQ27: 消費税 | AR27: =AR26*設定!E25 -> 48099.9 | BA27: 消費税 | BB27: =BB26*設定!E25 -> 97982.2 | BK27: 消費税 | BL27: =BL26*設定!E25 -> 10685.1 | BU27: 消費税 | BV27: =BV26*設定!E25 -> -1267.1 | CE27: 消費税 | CF27: =CF26*設定!E25 -> 25415.2 | CO27: 消費税 | CP27: =CP26*設定!E25 -> 65581 | CY27: 消費税 | CZ27: =CZ26*設定!E25 -> 32721.7 | DI27: 消費税 | DJ27: =DJ26*設定!E25 -> 37683.8 | DS27: 消費税 | DT27: =DT26*設定!E25 -> 14219.1 | EC27: 消費税 | ED27: =ED26*設定!E25 -> -3170.1 | EM27: 消費税 | EN27: =EN26*設定!E25 -> 9702.9 | EW27: 消費税 | EX27: =EX26*設定!E25 -> 7960.6 | FG27: 消費税 | FH27: =FH26*設定!E25 -> 6423.4 | FQ27: 消費税 | FR27: =FR26*設定!E25 -> 6934.1 | GA27: 消費税 | GB27: =GB26*設定!E25 -> 24254.5 | GK27: 消費税 | GL27: =GL26*設定!E25 -> 22706.6 | GU27: 消費税 | GV27: =GV26*設定!E25 -> 29093.8
C28: 合計 | D28: =SUM(D26:D27) -> -370190.7 | M28: 合計 | N28: =SUM(N26:N27) -> 1128176.5 | W28: 合計 | X28: =SUM(X26:X27) -> 1294386.5 | AG28: 合計 | AH28: =SUM(AH26:AH27) -> 490514.2 | AQ28: 合計 | AR28: =SUM(AR26:AR27) -> 529098.9 | BA28: 合計 | BB28: =SUM(BB26:BB27) -> 1077804.2 | BK28: 合計 | BL28: =SUM(BL26:BL27) -> 117536.1 | BU28: 合計 | BV28: =SUM(BV26:BV27) -> -13938.1 | CE28: 合計 | CF28: =SUM(CF26:CF27) -> 279567.2 | CO28: 合計 | CP28: =SUM(CP26:CP27) -> 721391 | CY28: 合計 | CZ28: =SUM(CZ26:CZ27) -> 359938.7 | DI28: 合計 | DJ28: =SUM(DJ26:DJ27) -> 414521.8 | DS28: 合計 | DT28: =SUM(DT26:DT27) -> 156410.1 | EC28: 合計 | ED28: =SUM(ED26:ED27) -> -34871.1 | EM28: 合計 | EN28: =SUM(EN26:EN27) -> 106731.9 | EW28: 合計 | EX28: =SUM(EX26:EX27) -> 87566.6 | FG28: 合計 | FH28: =SUM(FH26:FH27) -> 70657.4 | FQ28: 合計 | FR28: =SUM(FR26:FR27) -> 76275.1 | GA28: 合計 | GB28: =SUM(GB26:GB27) -> 266799.5 | GK28: 合計 | GL28: =SUM(GL26:GL27) -> 249772.6 | GU28: 合計 | GV28: =SUM(GV26:GV27) -> 320031.8
A29: 日付 | B29: 担当 | C29: 取引詳細 | D29: 取引金額 | K29: 日付 | L29: 担当 | M29: 取引詳細 | N29: 取引金額 | U29: 日付 | V29: 担当 | W29: 取引詳細 | X29: 取引金額 | AE29: 日付 | AF29: 担当 | AG29: 取引詳細 | AH29: 取引金額 | AO29: 日付 | AP29: 担当 | AQ29: 取引詳細 | AR29: 取引金額 | AY29: 日付 | AZ29: 担当 | BA29: 取引詳細 | BB29: 取引金額 | BI29: 日付 | BJ29: 担当 | BK29: 取引詳細 | BL29: 取引金額 | BS29: 日付 | BT29: 担当 | BU29: 取引詳細 | BV29: 取引金額 | CC29: 日付 | CD29: 担当 | CE29: 取引詳細 | CF29: 取引金額 | CM29: 日付 | CN29: 担当 | CO29: 取引詳細 | CP29: 取引金額 | CW29: 日付 | CX29: 担当 | CY29: 取引詳細 | CZ29: 取引金額 | DG29: 日付 | DH29: 担当 | DI29: 取引詳細 | DJ29: 取引金額 | DQ29: 日付 | DR29: 担当 | DS29: 取引詳細 | DT29: 取引金額 | EA29: 日付 | EB29: 担当 | EC29: 取引詳細 | ED29: 取引金額 | EK29: 日付 | EL29: 担当 | EM29: 取引詳細 | EN29: 取引金額 | EU29: 日付 | EV29: 担当 | EW29: 取引詳細 | EX29: 取引金額 | FE29: 日付 | FF29: 担当 | FG29: 取引詳細 | FH29: 取引金額 | FO29: 日付 | FP29: 担当 | FQ29: 取引詳細 | FR29: 取引金額 | FY29: 日付 | FZ29: 担当 | GA29: 取引詳細 | GB29: 取引金額 | GI29: 日付 | GJ29: 担当 | GK29: 取引詳細 | GL29: 取引金額 | GS29: 日付 | GT29: 担当 | GU29: 取引詳細 | GV29: 取引金額
A30: 2021-07-01 | B30: Yoshida | C30: 〇■ | D30: -55889 | K30: 2021-07-07 | L30: Sato | M30: △▼ | N30: 59842 | U30: 2021-07-07 | V30: Nakano | W30: 〇▼ | X30: 37907 | AE30: 2021-07-03 | AF30: Suzuki | AG30: △▼ | AH30: -51733 | AO30: 2021-07-07 | AP30: Suzuki | AQ30: □■ | AR30: 4460 | AY30: 2021-07-07 | AZ30: Ito | BA30: △〇 | BB30: 106759 | BI30: 2021-07-01 | BJ30: Nakano | BK30: □■ | BL30: -76126 | BS30: 2021-07-03 | BT30: Tanaka | BU30: △▲ | BV30: -31853 | CC30: 2021-07-07 | CD30: Ito | CE30: △△ | CF30: -77543 | CM30: 2021-07-07 | CN30: Sato | CO30: 〇◇ | CP30: 191119 | CW30: 2021-07-01 | CX30: Nakano | CY30: △△ | CZ30: 95801 | DG30: 2021-07-01 | DH30: Mita | DI30: 〇▽ | DJ30: 161273 | DQ30: 2021-07-17 | DR30: Tanaka | DS30: □▽ | DT30: 176326 | EA30: 2021-07-17 | EB30: Sato | EC30: △◇ | ED30: -20262 | EK30: 2021-07-17 | EL30: Yoshida | EM30: □△ | EN30: 58187 | EU30: 2021-07-17 | EV30: Sato | EW30: △■ | EX30: -48688 | FE30: 2021-07-17 | FF30: Mita | FG30: □□ | FH30: -12962 | FO30: 2021-07-17 | FP30: Mita | FQ30: □▲ | FR30: 25049 | FY30: 2021-07-17 | FZ30: Yoshida | GA30: □▲ | GB30: 167921 | GI30: 2021-07-17 | GJ30: Tanaka | GK30: □△ | GL30: 108746 | GS30: 2021-07-17 | GT30: Nakano | GU30: △▼ | GV30: 188337
A31: 2021-07-09 | B31: Nakano | C31: □◇ | D31: -79209 | K31: 2021-07-08 | L31: Mita | M31: △□ | N31: -99032 | U31: 2021-07-09 | V31: Mita | W31: 〇◆ | X31: -15448 | AE31: 2021-07-07 | AF31: Mita | AG31: 〇▲ | AH31: 162093 | AO31: 2021-07-09 | AP31: Nakano | AQ31: □▼ | AR31: 130179 | AY31: 2021-07-10 | AZ31: Yoshida | BA31: △▲ | BB31: 74393 | BI31: 2021-07-08 | BJ31: Sato | BK31: 〇△ | BL31: -43812 | BS31: 2021-07-11 | BT31: Ito | BU31: △◆ | BV31: 87358 | CC31: 2021-07-10 | CD31: Tanaka | CE31: 〇■ | CF31: 84352 | CM31: 2021-07-10 | CN31: Ito | CO31: 〇〇 | CP31: 79842 | CW31: 2021-07-09 | CX31: Nakano | CY31: 〇△ | CZ31: -54526 | DG31: 2021-07-08 | DH31: Nakano | DI31: △□ | DJ31: 49610 | DQ31: 2021-07-17 | DR31: Sato | DS31: 〇〇 | DT31: -34135 | EA31: 2021-07-17 | EB31: Sato | EC31: □▽ | ED31: -11439 | EK31: 2021-07-17 | EL31: Mita | EM31: 〇〇 | EN31: 38842 | EU31: 2021-07-17 | EV31: Ito | EW31: □▽ | EX31: 128294 | FE31: 2021-07-17 | FF31: Sato | FG31: 〇■ | FH31: 77196 | FO31: 2021-07-18 | FP31: Mita | FQ31: 〇▲ | FR31: 44292 | FY31: 2021-07-19 | FZ31: Yoshida | GA31: 〇□ | GB31: 74624 | GI31: 2021-07-20 | GJ31: Nakano | GK31: △□ | GL31: 118320 | GS31: 2021-07-21 | GT31: Nakano | GU31: 〇◆ | GV31: 102601
A32: 2021-07-11 | B32: Ito | C32: 〇◆ | D32: -72683 | K32: 2021-07-10 | L32: Tanaka | M32: 〇◆ | N32: 33586 | U32: 2021-07-10 | V32: Mita | W32: □▽ | X32: 30046 | AE32: 2021-07-10 | AF32: Sato | AG32: □△ | AH32: -3725 | AO32: 2021-07-11 | AP32: Tanaka | AQ32: △▼ | AR32: 3435 | AY32: 2021-07-11 | AZ32: Ito | BA32: □◇ | BB32: -6260 | BI32: 2021-07-10 | BJ32: Sato | BK32: 〇▼ | BL32: 105328 | BS32: 2021-07-13 | BT32: Yoshida | BU32: 〇△ | BV32: -60418 | CC32: 2021-07-11 | CD32: Tanaka | CE32: 〇□ | CF32: 110144 | CM32: 2021-07-12 | CN32: Suzuki | CO32: △△ | CP32: 55526 | CW32: 2021-07-11 | CX32: Tanaka | CY32: △〇 | CZ32: 29408 | DG32: 2021-07-11 | DH32: Sato | DI32: □△ | DJ32: -44533
A33: 2021-07-12 | B33: Ito | C33: □▽ | D33: 12805 | K33: 2021-07-11 | L33: Nakano | M33: △■ | N33: 161695 | U33: 2021-07-11 | V33: Ito | W33: △■ | X33: 135845 | AE33: 2021-07-10 | AF33: Sato | AG33: △▲ | AH33: 109664 | AO33: 2021-07-11 | AP33: Nakano | AQ33: □〇 | AR33: 95026 | AY33: 2021-07-12 | AZ33: Yoshida | BA33: △◆ | BB33: 194603 | BI33: 2021-07-11 | BJ33: Yoshida | BK33: □□ | BL33: 176557 | BS33: 2021-07-17 | BT33: Yoshida | BU33: △◆ | BV33: 68028 | CC33: 2021-07-12 | CD33: Sato | CE33: □◆ | CF33: 51970 | CM33: 2021-07-13 | CN33: Suzuki | CO33: △▽ | CP33: -65565 | CW33: 2021-07-13 | CX33: Sato | CY33: □〇 | CZ33: 89247 | DG33: 2021-07-13 | DH33: Sato | DI33: △◇ | DJ33: -90792
A34: 2021-07-13 | B34: Sato | C34: △△ | D34: -55997 | K34: 2021-07-12 | L34: Yoshida | M34: 〇〇 | N34: 60737 | U34: 2021-07-12 | V34: Mita | W34: 〇▲ | X34: 73589 | AE34: 2021-07-11 | AF34: Suzuki | AG34: □△ | AH34: -5328 | AO34: 2021-07-12 | AP34: Mita | AQ34: 〇△ | AR34: -67715 | AY34: 2021-07-13 | AZ34: Tanaka | BA34: □■ | BB34: 79119 | BI34: 2021-07-12 | BJ34: Sato | BK34: □▼ | BL34: 51960 | BS34: 2021-07-17 | BT34: Suzuki | BU34: △▼ | BV34: -75786 | CC34: 2021-07-17 | CD34: Ito | CE34: 〇◇ | CF34: -88755 | CM34: 2021-07-17 | CN34: Suzuki | CO34: 〇▼ | CP34: 37509 | CW34: 2021-07-17 | CX34: Suzuki | CY34: △▽ | CZ34: 74274 | DG34: 2021-07-17 | DH34: Sato | DI34: □◆ | DJ34: 158578
A35: 2021-07-13 | B35: Ito | C35: △▲ | D35: -65968 | K35: 2021-07-12 | L35: Suzuki | M35: △□ | N35: 174547 | U35: 2021-07-12 | V35: Tanaka | W35: □▽ | X35: 75944 | AE35: 2021-07-12 | AF35: Nakano | AG35: △△ | AH35: -29173 | AO35: 2021-07-13 | AP35: Sato | AQ35: □〇 | AR35: 35232 | AY35: 2021-07-17 | AZ35: Sato | BA35: 〇△ | BB35: 16034 | BI35: 2021-07-17 | BJ35: Suzuki | BK35: □◆ | BL35: -81982 | CC35: 2021-07-17 | CD35: Suzuki | CE35: 〇□ | CF35: 133504 | CM35: 2021-07-17 | CN35: Tanaka | CO35: 〇▼ | CP35: -2648 | CW35: 2021-07-17 | CX35: Mita | CY35: □▼ | CZ35: 81665 | DG35: 2021-07-17 | DH35: Nakano | DI35: 〇■ | DJ35: 18059
A36: 2021-07-17 | B36: Suzuki | C36: 〇□ | D36: -5020 | K36: 2021-07-13 | L36: Mita | M36: △△ | N36: -54761 | U36: 2021-07-13 | V36: Nakano | W36: □▽ | X36: 59681 | AE36: 2021-07-12 | AF36: Sato | AG36: □〇 | AH36: 41176 | AO36: 2021-07-17 | AP36: Yoshida | AQ36: △◆ | AR36: -9427 | AY36: 2021-07-17 | AZ36: Suzuki | BA36: □▽ | BB36: 113723 | BI36: 2021-07-17 | BJ36: Sato | BK36: △▲ | BL36: 138711 | CC36: 2021-07-17 | CD36: Nakano | CE36: □△ | CF36: -85338 | CM36: 2021-07-17 | CN36: Nakano | CO36: △□ | CP36: 165250 | CW36: 2021-07-17 | CX36: Yoshida | CY36: □〇 | CZ36: -29040 | DG36: 2021-07-17 | DH36: Ito | DI36: □◇ | DJ36: 88019
A37: 2021-07-17 | B37: Mita | C37: △□ | D37: -20069 | K37: 2021-07-13 | L37: Mita | M37: □◆ | N37: 196130 | U37: 2021-07-13 | V37: Nakano | W37: 〇◇ | X37: 125349 | AE37: 2021-07-13 | AF37: Tanaka | AG37: △▲ | AH37: -5365 | AO37: 2021-07-17 | AP37: Mita | AQ37: □〇 | AR37: 67160 | AY37: 2021-07-17 | AZ37: Tanaka | BA37: 〇◇ | BB37: 190675 | BI37: 2021-07-21 | BJ37: Mita | BK37: △▼ | BL37: -77842 | CC37: 2021-07-17 | CD37: Suzuki | CE37: △□ | CF37: 23983 | CM37: 2021-07-17 | CN37: Ito | CO37: △□ | CP37: -65966 | CW37: 2021-07-21 | CX37: Tanaka | CY37: △△ | CZ37: 40388 | DG37: 2021-07-17 | DH37: Tanaka | DI37: △◇ | DJ37: -51393
A38: 2021-07-17 | B38: Mita | C38: △◇ | D38: -43158 | K38: 2021-07-13 | L38: Yoshida | M38: 〇▲ | N38: 103382 | U38: 2021-07-13 | V38: Yoshida | W38: △◆ | X38: -10075 | AE38: 2021-07-13 | AF38: Sato | AG38: △▼ | AH38: 118451 | AO38: 2021-07-17 | AP38: Tanaka | AQ38: □△ | AR38: 63159 | AY38: 2021-07-17 | AZ38: Mita | BA38: 〇△ | BB38: 27721 | BI38: 2021-07-30 | BJ38: Mita | BK38: 〇▼ | BL38: -85943 | CC38: 2021-07-17 | CD38: Tanaka | CE38: △□ | CF38: 151405 | CM38: 2021-07-17 | CN38: Yoshida | CO38: □▲ | CP38: 65899 | DG38: 2021-07-21 | DH38: Tanaka | DI38: 〇▽ | DJ38: -5858
A39: 2021-07-17 | B39: Sato | C39: 〇▽ | D39: -33454 | K39: 2021-07-17 | L39: Sato | M39: 〇〇 | N39: 60192 | U39: 2021-07-17 | V39: Nakano | W39: 〇◇ | X39: 171687 | AE39: 2021-07-17 | AF39: Sato | AG39: 〇■ | AH39: -1302 | AO39: 2021-07-17 | AP39: Mita | AQ39: 〇▽ | AR39: 194821 | AY39: 2021-07-17 | AZ39: Suzuki | BA39: □▲ | BB39: 24249 | CC39: 2021-07-30 | CD39: Sato | CE39: 〇〇 | CF39: -49570 | CM39: 2021-07-30 | CN39: Tanaka | CO39: □◇ | CP39: 194844 | DG39: 2021-07-21 | DH39: Tanaka | DI39: 〇□ | DJ39: 129968
A40: 2021-07-17 | B40: Nakano | C40: □■ | D40: 39233 | K40: 2021-07-17 | L40: Tanaka | M40: △■ | N40: 101851 | U40: 2021-07-17 | V40: Sato | W40: △■ | X40: 8454 | AE40: 2021-07-17 | AF40: Tanaka | AG40: 〇▼ | AH40: 22254 | AO40: 2021-07-21 | AP40: Mita | AQ40: □△ | AR40: 4443 | AY40: 2021-07-21 | AZ40: Yoshida | BA40: △□ | BB40: 12694 | DG40: 2021-07-31 | DH40: Sato | DI40: 〇△ | DJ40: -36093
A41: 2021-07-17 | B41: Tanaka | C41: 〇△ | D41: -24927 | K41: 2021-07-17 | L41: Sato | M41: △□ | N41: 128821 | U41: 2021-07-17 | V41: Sato | W41: 〇◆ | X41: 60185 | AE41: 2021-07-17 | AF41: Suzuki | AG41: □▲ | AH41: -86074 | AO41: 2021-07-30 | AP41: Yoshida | AQ41: 〇▼ | AR41: -39774 | AY41: 2021-07-30 | AZ41: Yoshida | BA41: △◇ | BB41: 199979
A42: 2021-07-21 | B42: Ito | C42: 〇△ | D42: 67799 | K42: 2021-07-17 | L42: Tanaka | M42: □■ | N42: -62407 | U42: 2021-07-17 | V42: Sato | W42: △▽ | X42: 154916 | AE42: 2021-07-17 | AF42: Suzuki | AG42: □□ | AH42: 101083 | AY42: 2021-07-30 | AZ42: Suzuki | BA42: △▼ | BB42: -53867
K43: 2021-07-21 | L43: Ito | M43: △□ | N43: 193675 | U43: 2021-07-17 | V43: Yoshida | W43: 〇◆ | X43: 75722 | AE43: 2021-07-17 | AF43: Yoshida | AG43: □△ | AH43: -82721
K44: 2021-07-30 | L44: Ito | M44: □■ | N44: 43938 | U44: 2021-07-21 | V44: Sato | W44: △△ | X44: 90463 | AE44: 2021-07-17 | AF44: Nakano | AG44: □▼ | AH44: 47418
K45: 2021-07-30 | L45: Mita | M45: △■ | N45: -76581 | U45: 2021-07-21 | V45: Tanaka | W45: □■ | X45: 174947 | AE45: 2021-07-21 | AF45: Yoshida | AG45: □▽ | AH45: -90685
U46: 2021-07-30 | V46: Yoshida | W46: □◇ | X46: -95928 | AE46: 2021-07-30 | AF46: Mita | AG46: □〇 | AH46: -7387
U47: 2021-07-30 | V47: Sato | W47: △▲ | X47: 23431 | AE47: 2021-07-30 | AF47: Tanaka | AG47: □□ | AH47: 10652
AE48: 2021-07-31 | AF48: Sato | AG48: □■ | AH48: 196624

Sheet s1
A1: No | B1: 取引先名称 | C1: 担当者 | D1: 日付 | E1: 会計番号 | F1: 注文番号 | G1: 取引詳細 | H1: 取引金額 | K1: No | L1: 取引先名称 | M1: 担当者 | N1: 日付 | O1: 会計番号 | P1: 注文番号 | Q1: 取引詳細 | R1: 取引金額 | U1: No | V1: 取引先名称 | W1: 担当者 | X1: 日付 | Y1: 会計番号 | Z1: 注文番号 | AA1: 取引詳細 | AB1: 取引金額 | AE1: No | AF1: 取引先名称 | AG1: 担当者 | AH1: 日付 | AI1: 会計番号 | AJ1: 注文番号 | AK1: 取引詳細 | AL1: 取引金額 | AO1: No | AP1: 取引先名称 | AQ1: 担当者 | AR1: 日付 | AS1: 会計番号 | AT1: 注文番号 | AU1: 取引詳細 | AV1: 取引金額 | AY1: No | AZ1: 取引先名称 | BA1: 担当者 | BB1: 日付 | BC1: 会計番号 | BD1: 注文番号 | BE1: 取引詳細 | BF1: 取引金額 | BI1: No | BJ1: 取引先名称 | BK1: 担当者 | BL1: 日付 | BM1: 会計番号 | BN1: 注文番号 | BO1: 取引詳細 | BP1: 取引金額 | BS1: No | BT1: 取引先名称 | BU1: 担当者 | BV1: 日付 | BW1: 会計番号 | BX1: 注文番号 | BY1: 取引詳細 | BZ1: 取引金額 | CC1: No | CD1: 取引先名称 | CE1: 担当者 | CF1: 日付 | CG1: 会計番号 | CH1: 注文番号 | CI1: 取引詳細 | CJ1: 取引金額 | CM1: No | CN1: 取引先名称 | CO1: 担当者 | CP1: 日付 | CQ1: 会計番号 | CR1: 注文番号 | CS1: 取引詳細 | CT1: 取引金額 | CW1: No | CX1: 取引先名称 | CY1: 担当者 | CZ1: 日付 | DA1: 会計番号 | DB1: 注文番号 | DC1: 取引詳細 | DD1: 取引金額 | DG1: No | DH1: 取引先名称 | DI1: 担当者 | DJ1: 日付 | DK1: 会計番号 | DL1: 注文番号 | DM1: 取引詳細 | DN1: 取引金額 | DQ1: No | DR1: 取引先名称 | DS1: 担当者 | DT1: 日付 | DU1: 会計番号 | DV1: 注文番号 | DW1: 取引詳細 | DX1: 取引金額 | EA1: No | EB1: 取引先名称 | EC1: 担当者 | ED1: 日付 | EE1: 会計番号 | EF1: 注文番号 | EG1: 取引詳細 | EH1: 取引金額 | EK1: No | EL1: 取引先名称 | EM1: 担当者 | EN1: 日付 | EO1: 会計番号 | EP1: 注文番号 | EQ1: 取引詳細 | ER1: 取引金額 | EU1: No | EV1: 取引先名称 | EW1: 担当者 | EX1: 日付 | EY1: 会計番号 | EZ1: 注文番号 | FA1: 取引詳細 | FB1: 取引金額 | FE1: No | FF1: 取引先名称 | FG1: 担当者 | FH1: 日付 | FI1: 会計番号 | FJ1: 注文番号 | FK1: 取引詳細 | FL1: 取引金額 | FO1: No | FP1: 取引先名称 | FQ1: 担当者 | FR1: 日付 | FS1: 会計番号 | FT1: 注文番号 | FU1: 取引詳細 | FV1: 取引金額 | FY1: No | FZ1: 取引先名称 | GA1: 担当者 | GB1: 日付 | GC1: 会計番号 | GD1: 注文番号 | GE1: 取引詳細 | GF1: 取引金額 | GI1: No | GJ1: 取引先名称 | GK1: 担当者 | GL1: 日付 | GM1: 会計番号 | GN1: 注文番号 | GO1: 取引詳細 | GP1: 取引金額 | GS1: No | GT1: 取引先名称 | GU1: 担当者 | GV1: 日付 | GW1: 会計番号 | GX1: 注文番号 | GY1: 取引詳細 | GZ1: 取引金額
A2: 5 | B2: 印度商事 | C2: Nakano | D2: 2020-04-03 | E2: 213 | F2: 962250 | G2: □■ | H2: -48348 | K2: 1 | L2: 米商会 | M2: Suzuki | N2: 2020-04-01 | O2: 378 | P2: 981511 | Q2: 〇◆ | R2: 95548 | U2: 2 | V2: 英販売 | W2: Sato | X2: 2020-04-01 | Y2: 378 | Z2: 282169 | AA2: △△ | AB2: -14720 | AE2: 4 | AF2: 露不動産 | AG2: Tanaka | AH2: 2020-04-01 | AI2: 378 | AJ2: 835880 | AK2: △■ | AL2: -60741 | AO2: 3 | AP2: 欄航空 | AQ2: Yoshida | AR2: 2020-04-01 | AS2: 378 | AT2: 495639 | AU2: □▽ | AV2: -17714 | AY2: 9 | AZ2: 伊研究所 | BA2: Suzuki | BB2: 2020-04-05 | BC2: 204 | BD2: 755468 | BE2: 〇▲ | BF2: -91165 | BI2: 13 | BJ2: 尼百貨店 | BK2: Tanaka | BL2: 2020-04-07 | BM2: 399 | BN2: 304313 | BO2: △〇 | BP2: 177644 | BS2: 15 | BT2: 香商船 | BU2: Sato | BV2: 2020-04-08 | BW2: 504 | BX2: 244988 | BY2: 〇■ | BZ2: 195631 | CC2: 16 | CD2: 沙信託 | CE2: Yoshida | CF2: 2020-04-08 | CG2: 505 | CH2: 876518 | CI2: △〇 | CJ2: 111813 | CM2: 17 | CN2: 星ホテル | CO2: Tanaka | CP2: 2020-04-09 | CQ2: 223 | CR2: 917687 | CS2: 〇■ | CT2: 112691 | CW2: 10 | CX2: 泰製本 | CY2: Nakano | CZ2: 2020-04-06 | DA2: 189 | DB2: 674828 | DC2: □■ | DD2: 179460 | DG2: 11 | DH2: 台建設 | DI2: Mita | DJ2: 2020-04-07 | DK2: 397 | DL2: 668769 | DM2: □〇 | DN2: 166020 | DQ2: 89 | DR2: 比石油 | DS2: Suzuki | DT2: 2020-04-15 | DU2: 134 | DV2: 225182 | DW2: 〇■ | DX2: 97217 | EA2: 90 | EB2: 越繊維 | EC2: Suzuki | ED2: 2020-04-15 | EE2: 135 | EF2: 573841 | EG2: △▽ | EH2: 68581 | EK2: 91 | EL2: 馬紡績 | EM2: Mita | EN2: 2020-04-15 | EO2: 136 | EP2: 170495 | EQ2: △△ | ER2: 101878 | EU2: 92 | EV2: 緬物産 | EW2: Sato | EX2: 2020-04-15 | EY2: 137 | EZ2: 504898 | FA2: □■ | FB2: 24630 | FE2: 93 | FF2: 蒙印刷 | FG2: Suzuki | FH2: 2020-04-15 | FI2: 138 | FJ2: 878926 | FK2: △◆ | FL2: -45085 | FO2: 94 | FP2: 老繊維 | FQ2: Nakano | FR2: 2020-04-15 | FS2: 139 | FT2: 206221 | FU2: □■ | FV2: 186408 | FY2: 95 | FZ2: 豪工業 | GA2: Tanaka | GB2: 2020-04-15 | GC2: 140 | GD2: 779771 | GE2: □△ | GF2: -37968 | GI2: 96 | GJ2: 加不動産 | GK2: Sato | GL2: 2020-04-15 | GM2: 141 | GN2: 327723 | GO2: □▲ | GP2: 10500 | GS2: 97 | GT2: 伯商会 | GU2: Nakano | GV2: 2020-04-15 | GW2: 142 | GX2: 694346 | GY2: 〇□ | GZ2: -95104
A3: 12 | B3: 印度商事 | C3: Nakano | D3: 2020-04-07 | E3: 398 | F3: 688842 | G3: 〇◆ | H3: 9618 | K3: 8 | L3: 米商会 | M3: Tanaka | N3: 2020-04-05 | O3: 203 | P3: 663608 | Q3: □▲ | R3: 20909 | U3: 7 | V3: 英販売 | W3: Nakano | X3: 2020-04-04 | Y3: 311 | Z3: 238042 | AA3: △□ | AB3: 8952 | AE3: 14 | AF3: 露不動産 | AG3: Suzuki | AH3: 2020-04-08 | AI3: 503 | AJ3: 743650 | AK3: □▲ | AL3: 43074 | AO3: 6 | AP3: 欄航空 | AQ3: Ito | AR3: 2020-04-03 | AS3: 213 | AT3: 868832 | AU3: 〇□ | AV3: 23087 | AY3: 21 | AZ3: 伊研究所 | BA3: Sato | BB3: 2020-04-10 | BC3: 197 | BD3: 981367 | BE3: △◇ | BF3: 179368 | BI3: 23 | BJ3: 尼百貨店 | BK3: Mita | BL3: 2020-04-10 | BM3: 199 | BN3: 213895 | BO3: □□ | BP3: 128969 | BS3: 45 | BT3: 香商船 | BU3: Yoshida | BV3: 2020-04-12 | BW3: 196 | BX3: 687917 | BY3: □△ | BZ3: -63640 | CC3: 37 | CD3: 沙信託 | CE3: Suzuki | CF3: 2020-04-11 | CG3: 316 | CH3: 448982 | CI3: 〇▽ | CJ3: 75430 | CM3: 36 | CN3: 星ホテル | CO3: Yoshida | CP3: 2020-04-11 | CQ3: 315 | CR3: 500866 | CS3: 〇▼ | CT3: 124284 | CW3: 26 | CX3: 泰製本 | CY3: Yoshida | CZ3: 2020-04-10 | DA3: 202 | DB3: 407624 | DC3: 〇▽ | DD3: 25171 | DG3: 25 | DH3: 台建設 | DI3: Ito | DJ3: 2020-04-10 | DK3: 201 | DL3: 134785 | DM3: △□ | DN3: -33668 | DQ3: 138 | DR3: 比石油 | DS3: Tanaka | DT3: 2020-04-21 | DU3: 223 | DV3: 446720 | DW3: 〇□ | DX3: 171688 | EA3: 139 | EB3: 越繊維 | EC3: Tanaka | ED3: 2020-04-21 | EE3: 224 | EF3: 173625 | EG3: △▲ | EH3: -35278 | EK3: 140 | EL3: 馬紡績 | EM3: Ito | EN3: 2020-04-21 | EO3: 225 | EP3: 408354 | EQ3: □〇 | ER3: 153973 | EU3: 141 | EV3: 緬物産 | EW3: Mita | EX3: 2020-04-21 | EY3: 226 | EZ3: 383054 | FA3: △◇ | FB3: 44144 | FE3: 142 | FF3: 蒙印刷 | FG3: Sato | FH3: 2020-04-21 | FI3: 227 | FJ3: 342143 | FK3: □◆ | FL3: 106986 | FO3: 143 | FP3: 老繊維 | FQ3: Sato | FR3: 2020-04-21 | FS3: 228 | FT3: 550199 | FU3: 〇◆ | FV3: 73122 | FY3: 144 | FZ3: 豪工業 | GA3: Ito | GB3: 2020-04-21 | GC3: 229 | GD3: 446206 | GE3: □◇ | GF3: 40746 | GI3: 145 | GJ3: 加不動産 | GK3: Tanaka | GL3: 2020-04-21 | GM3: 230 | GN3: 431278 | GO3: □▽ | GP3: 98065 | GS3: 146 | GT3: 伯商会 | GU3: Sato | GV3: 2020-04-21 | GW3: 231 | GX3: 858966 | GY3: □◇ | GZ3: 118131
A4: 28 | B4: 印度商事 | C4: Nakano | D4: 2020-04-10 | E4: 204 | F4: 515538 | G4: □■ | H4: 157234 | K4: 18 | L4: 米商会 | M4: Nakano | N4: 2020-04-09 | O4: 224 | P4: 412982 | Q4: △◆ | R4: 196888 | U4: 20 | V4: 英販売 | W4: Sato | X4: 2020-04-09 | Y4: 226 | Z4: 902251 | AA4: △◆ | AB4: 127379 | AE4: 22 | AF4: 露不動産 | AG4: Ito | AH4: 2020-04-10 | AI4: 198 | AJ4: 847762 | AK4: 〇◆ | AL4: 62265 | AO4: 19 | AP4: 欄航空 | AQ4: Tanaka | AR4: 2020-04-09 | AS4: 225 | AT4: 679002 | AU4: □△ | AV4: 178459 | AY4: 32 | AZ4: 伊研究所 | BA4: Ito | BB4: 2020-04-11 | BC4: 311 | BD4: 729913 | BE4: △◆ | BF4: -48199 | BI4: 34 | BJ4: 尼百貨店 | BK4: Ito | BL4: 2020-04-11 | BM4: 313 | BN4: 199625 | BO4: 〇〇 | BP4: -82526 | BS4: 65 | BT4: 香商船 | BU4: Mita | BV4: 2020-04-13 | BW4: 305 | BX4: 698300 | BY4: 〇■ | BZ4: -75095 | CC4: 49 | CD4: 沙信託 | CE4: Suzuki | CF4: 2020-04-12 | CG4: 200 | CH4: 931203 | CI4: △□ | CJ4: 90936 | CM4: 60 | CN4: 星ホテル | CO4: Tanaka | CP4: 2020-04-13 | CQ4: 300 | CR4: 774043 | CS4: 〇▼ | CT4: -83846 | CW4: 44 | CX4: 泰製本 | CY4: Ito | CZ4: 2020-04-12 | DA4: 195 | DB4: 254369 | DC4: △▼ | DD4: 175115 | DG4: 43 | DH4: 台建設 | DI4: Tanaka | DJ4: 2020-04-12 | DK4: 194 | DL4: 750269 | DM4: △■ | DN4: -66494 | DQ4: 249 | DR4: 比石油 | DS4: Tanaka | DT4: 2020-05-15 | DU4: 166 | DV4: 335702 | DW4: 〇△ | DX4: 78715 | EA4: 250 | EB4: 越繊維 | EC4: Nakano | ED4: 2020-05-15 | EE4: 167 | EF4: 826874 | EG4: □□ | EH4: 8615 | EK4: 251 | EL4: 馬紡績 | EM4: Mita | EN4: 2020-05-15 | EO4: 168 | EP4: 192590 | EQ4: 〇▼ | ER4: -78895 | EU4: 252 | EV4: 緬物産 | EW4: Yoshida | EX4: 2020-05-15 | EY4: 169 | EZ4: 235489 | FA4: □◇ | FB4: -328 | FE4: 253 | FF4: 蒙印刷 | FG4: Nakano | FH4: 2020-05-15 | FI4: 170 | FJ4: 881004 | FK4: 〇▲ | FL4: -14319 | FO4: 254 | FP4: 老繊維 | FQ4: Yoshida | FR4: 2020-05-15 | FS4: 171 | FT4: 157140 | FU4: □◆ | FV4: -49803 | FY4: 255 | FZ4: 豪工業 | GA4: Suzuki | GB4: 2020-05-15 | GC4: 172 | GD4: 647203 | GE4: □■ | GF4: 187953 | GI4: 256 | GJ4: 加不動産 | GK4: Tanaka | GL4: 2020-05-15 | GM4: 173 | GN4: 396068 | GO4: 〇▽ | GP4: 72439 | GS4: 257 | GT4: 伯商会 | GU4: Sato | GV4: 2020-05-15 | GW4: 174 | GX4: 766256 | GY4: △▲ | GZ4: -59250
A5: 47 | B5: 印度商事 | C5: Suzuki | D5: 2020-04-12 | E5: 198 | F5: 230648 | G5: 〇△ | H5: 111285 | K5: 24 | L5: 米商会 | M5: Tanaka | N5: 2020-04-10 | O5: 200 | P5: 270302 | Q5: □△ | R5: 74641 | U5: 29 | V5: 英販売 | W5: Yoshida | X5: 2020-04-11 | Y5: 308 | Z5: 904328 | AA5: △▼ | AB5: 86019 | AE5: 30 | AF5: 露不動産 | AG5: Ito | AH5: 2020-04-11 | AI5: 309 | AJ5: 241058 | AK5: △▽ | AL5: 45898 | AO5: 27 | AP5: 欄航空 | AQ5: Tanaka | AR5: 2020-04-10 | AS5: 203 | AT5: 459293 | AU5: △◆ | AV5: -26534 | AY5: 41 | AZ5: 伊研究所 | BA5: Mita | BB5: 2020-04-12 | BC5: 192 | BD5: 732690 | BE5: △◆ | BF5: 10309 | BI5: 48 | BJ5: 尼百貨店 | BK5: Nakano | BL5: 2020-04-12 | BM5: 199 | BN5: 115105 | BO5: △▽ | BP5: -77874 | BS5: 86 | BT5: 香商船 | BU5: Tanaka | BV5: 2020-04-15 | BW5: 131 | BX5: 123315 | BY5: △◇ | BZ5: 25004 | CC5: 59 | CD5: 沙信託 | CE5: Ito | CF5: 2020-04-13 | CG5: 299 | CH5: 252563 | CI5: △△ | CJ5: 167445 | CM5: 77 | CN5: 星ホテル | CO5: Mita | CP5: 2020-04-14 | CQ5: 111 | CR5: 950226 | CS5: 〇■ | CT5: 119237 | CW5: 69 | CX5: 泰製本 | CY5: Suzuki | CZ5: 2020-04-14 | DA5: 103 | DB5: 329075 | DC5: 〇〇 | DD5: 43646 | DG5: 70 | DH5: 台建設 | DI5: Ito | DJ5: 2020-04-14 | DK5: 104 | DL5: 770434 | DM5: △◇ | DN5: -71984 | DQ5: 298 | DR5: 比石油 | DS5: Yoshida | DT5: 2020-05-21 | DU5: 255 | DV5: 894381 | DW5: □□ | DX5: -1661 | EA5: 299 | EB5: 越繊維 | EC5: Tanaka | ED5: 2020-05-21 | EE5: 256 | EF5: 183708 | EG5: □□ | EH5: 170055 | EK5: 300 | EL5: 馬紡績 | EM5: Tanaka | EN5: 2020-05-21 | EO5: 257 | EP5: 892190 | EQ5: 〇▲ | ER5: 80168 | EU5: 301 | EV5: 緬物産 | EW5: Nakano | EX5: 2020-05-21 | EY5: 258 | EZ5: 706445 | FA5: 〇□ | FB5: 63986 | FE5: 302 | FF5: 蒙印刷 | FG5: Nakano | FH5: 2020-05-21 | FI5: 259 | FJ5: 705487 | FK5: △▲ | FL5: -56913 | FO5: 303 | FP5: 老繊維 | FQ5: Ito | FR5: 2020-05-21 | FS5: 260 | FT5: 924492 | FU5: △〇 | FV5: 30901 | FY5: 304 | FZ5: 豪工業 | GA5: Mita | GB5: 2020-05-21 | GC5: 261 | GD5: 623220 | GE5: 〇□ | GF5: 173395 | GI5: 305 | GJ5: 加不動産 | GK5: Yoshida | GL5: 2020-05-21 | GM5: 262 | GN5: 837248 | GO5: △▲ | GP5: -37029 | GS5: 306 | GT5: 伯商会 | GU5: Tanaka | GV5: 2020-05-21 | GW5: 263 | GX5: 561635 | GY5: □△ | GZ5: -92577
A6: 55 | B6: 印度商事 | C6: Ito | D6: 2020-04-13 | E6: 295 | F6: 341266 | G6: □◇ | H6: 101259 | K6: 31 | L6: 米商会 | M6: Suzuki | N6: 2020-04-11 | O6: 310 | P6: 551498 | Q6: △▽ | R6: -48569 | U6: 33 | V6: 英販売 | W6: Ito | X6: 2020-04-11 | Y6: 312 | Z6: 492036 | AA6: △■ | AB6: 111038 | AE6: 35 | AF6: 露不動産 | AG6: Nakano | AH6: 2020-04-11 | AI6: 314 | AJ6: 735113 | AK6: 〇◆ | AL6: 142437 | AO6: 39 | AP6: 欄航空 | AQ6: Tanaka | AR6: 2020-04-11 | AS6: 318 | AT6: 847676 | AU6: △◇ | AV6: 106089 | AY6: 53 | AZ6: 伊研究所 | BA6: Suzuki | BB6: 2020-04-13 | BC6: 293 | BD6: 203129 | BE6: □▲ | BF6: 160892 | BI6: 61 | BJ6: 尼百貨店 | BK6: Mita | BL6: 2020-04-13 | BM6: 301 | BN6: 498413 | BO6: △◇ | BP6: -86389 | BS6: 135 | BT6: 香商船 | BU6: Sato | BV6: 2020-04-19 | BW6: 302 | BX6: 198148 | BY6: 〇〇 | BZ6: -60738 | CC6: 78 | CD6: 沙信託 | CE6: Mita | CF6: 2020-04-14 | CG6: 112 | CH6: 647634 | CI6: 〇□ | CJ6: 163383 | CM6: 87 | CN6: 星ホテル | CO6: Nakano | CP6: 2020-04-15 | CQ6: 132 | CR6: 813312 | CS6: 〇〇 | CT6: 36276 | CW6: 83 | CX6: 泰製本 | CY6: Suzuki | CZ6: 2020-04-14 | DA6: 117 | DB6: 590114 | DC6: △◇ | DD6: 44795 | DG6: 82 | DH6: 台建設 | DI6: Ito | DJ6: 2020-04-14 | DK6: 116 | DL6: 145193 | DM6: △■ | DN6: 141949 | DQ6: 401 | DR6: 比石油 | DS6: Ito | DT6: 2020-06-16 | DU6: 201 | DV6: 486718 | DW6: 〇◆ | DX6: 162072 | EA6: 402 | EB6: 越繊維 | EC6: Tanaka | ED6: 2020-06-16 | EE6: 202 | EF6: 527228 | EG6: 〇▲ | EH6: 29983 | EK6: 403 | EL6: 馬紡績 | EM6: Ito | EN6: 2020-06-16 | EO6: 203 | EP6: 274526 | EQ6: 〇△ | ER6: 34558 | EU6: 404 | EV6: 緬物産 | EW6: Mita | EX6: 2020-06-16 | EY6: 204 | EZ6: 998961 | FA6: □△ | FB6: -39211 | FE6: 405 | FF6: 蒙印刷 | FG6: Yoshida | FH6: 2020-06-16 | FI6: 205 | FJ6: 876912 | FK6: 〇〇 | FL6: -17934 | FO6: 406 | FP6: 老繊維 | FQ6: Sato | FR6: 2020-06-16 | FS6: 206 | FT6: 833938 | FU6: △◇ | FV6: 50467 | FY6: 407 | FZ6: 豪工業 | GA6: Nakano | GB6: 2020-06-16 | GC6: 207 | GD6: 134166 | GE6: △□ | GF6: 60204 | GI6: 408 | GJ6: 加不動産 | GK6: Suzuki | GL6: 2020-06-16 | GM6: 208 | GN6: 832958 | GO6: 〇△ | GP6: 138855 | GS6: 409 | GT6: 伯商会 | GU6: Ito | GV6: 2020-06-16 | GW6: 209 | GX6: 803095 | GY6: □◇ | GZ6: 27104
A7: 64 | B7: 印度商事 | C7: Mita | D7: 2020-04-13 | E7: 304 | F7: 965478 | G7: □〇 | H7: 129973 | K7: 38 | L7: 米商会 | M7: Tanaka | N7: 2020-04-11 | O7: 317 | P7: 529027 | Q7: △〇 | R7: 47454 | U7: 40 | V7: 英販売 | W7: Ito | X7: 2020-04-11 | Y7: 319 | Z7: 858547 | AA7: 〇▲ | AB7: 43060 | AE7: 42 | AF7: 露不動産 | AG7: Suzuki | AH7: 2020-04-12 | AI7: 193 | AJ7: 987132 | AK7: □〇 | AL7: 178354 | AO7: 46 | AP7: 欄航空 | AQ7: Mita | AR7: 2020-04-12 | AS7: 197 | AT7: 996078 | AU7: △□ | AV7: -3073 | AY7: 72 | AZ7: 伊研究所 | BA7: Suzuki | BB7: 2020-04-14 | BC7: 106 | BD7: 342633 | BE7: △□ | BF7: -50965 | BI7: 85 | BJ7: 尼百貨店 | BK7: Yoshida | BL7: 2020-04-15 | BM7: 130 | BN7: 745220 | BO7: △▽ | BP7: 127696 | BS7: 175 | BT7: 香商船 | BU7: Ito | BV7: 2020-05-08 | BW7: 536 | BX7: 208688 | BY7: □△ | BZ7: 38194 | CC7: 88 | CD7: 沙信託 | CE7: Yoshida | CF7: 2020-04-15 | CG7: 133 | CH7: 679521 | CI7: □■ | CJ7: 91270 | CM7: 105 | CN7: 星ホテル | CO7: Suzuki | CP7: 2020-04-16 | CQ7: 507 | CR7: 867419 | CS7: □◇ | CT7: -49336 | CW7: 112 | CX7: 泰製本 | CY7: Sato | CZ7: 2020-04-16 | DA7: 514 | DB7: 160730 | DC7: □■ | DD7: 87676 | DG7: 98 | DH7: 台建設 | DI7: Nakano | DJ7: 2020-04-15 | DK7: 143 | DL7: 680546 | DM7: △▽ | DN7: 193286 | DQ7: 450 | DR7: 比石油 | DS7: Tanaka | DT7: 2020-06-17 | DU7: 699 | DV7: 696455 | DW7: △▽ | DX7: 181596 | EA7: 451 | EB7: 越繊維 | EC7: Ito | ED7: 2020-06-17 | EE7: 700 | EF7: 284740 | EG7: □□ | EH7: 168993 | EK7: 452 | EL7: 馬紡績 | EM7: Mita | EN7: 2020-06-17 | EO7: 701 | EP7: 815247 | EQ7: □▲ | ER7: 103664 | EU7: 453 | EV7: 緬物産 | EW7: Nakano | EX7: 2020-06-17 | EY7: 702 | EZ7: 817919 | FA7: △▲ | FB7: 160479 | FE7: 454 | FF7: 蒙印刷 | FG7: Mita | FH7: 2020-06-17 | FI7: 703 | FJ7: 929908 | FK7: 〇◆ | FL7: 130573 | FO7: 455 | FP7: 老繊維 | FQ7: Ito | FR7: 2020-06-17 | FS7: 704 | FT7: 488519 | FU7: 〇◇ | FV7: 11356 | FY7: 456 | FZ7: 豪工業 | GA7: Suzuki | GB7: 2020-06-18 | GC7: 591 | GD7: 938521 | GE7: △△ | GF7: 32556 | GI7: 457 | GJ7: 加不動産 | GK7: Ito | GL7: 2020-06-19 | GM7: 290 | GN7: 395639 | GO7: □▲ | GP7: -96549 | GS7: 458 | GT7: 伯商会 | GU7: Mita | GV7: 2020-06-20 | GW7: 91 | GX7: 131323 | GY7: □□ | GZ7: -50505
A8: 73 | B8: 印度商事 | C8: Yoshida | D8: 2020-04-14 | E8: 107 | F8: 590103 | G8: 〇◇ | H8: -25538 | K8: 51 | L8: 米商会 | M8: Mita | N8: 2020-04-12 | O8: 202 | P8: 279880 | Q8: □▼ | R8: 145523 | U8: 50 | V8: 英販売 | W8: Sato | X8: 2020-04-12 | Y8: 201 | Z8: 287589 | AA8: □◆ | AB8: 71058 | AE8: 52 | AF8: 露不動産 | AG8: Yoshida | AH8: 2020-04-12 | AI8: 203 | AJ8: 669211 | AK8: 〇□ | AL8: 181448 | AO8: 54 | AP8: 欄航空 | AQ8: Tanaka | AR8: 2020-04-13 | AS8: 294 | AT8: 919908 | AU8: △〇 | AV8: 67891 | AY8: 84 | AZ8: 伊研究所 | BA8: Sato | BB8: 2020-04-14 | BC8: 118 | BD8: 426771 | BE8: △▽ | BF8: -70963 | BI8: 134 | BJ8: 尼百貨店 | BK8: Sato | BL8: 2020-04-18 | BM8: 603 | BN8: 880486 | BO8: □◇ | BP8: 15578 | BS8: 205 | BT8: 香商船 | BU8: Mita | BV8: 2020-05-12 | BW8: 228 | BX8: 760666 | BY8: □▼ | BZ8: -22025 | CC8: 106 | CD8: 沙信託 | CE8: Suzuki | CF8: 2020-04-16 | CG8: 508 | CH8: 433131 | CI8: △▽ | CJ8: -51837 | CM8: 120 | CN8: 星ホテル | CO8: Ito | CP8: 2020-04-17 | CQ8: 703 | CR8: 132699 | CS8: 〇■ | CT8: 46253 | CW8: 132 | CX8: 泰製本 | CY8: Nakano | CZ8: 2020-04-17 | DA8: 715 | DB8: 334377 | DC8: 〇▽ | DD8: 80072 | DG8: 113 | DH8: 台建設 | DI8: Ito | DJ8: 2020-04-16 | DK8: 515 | DL8: 655846 | DM8: △◆ | DN8: 145641 | DQ8: 554 | DR8: 比石油 | DS8: Tanaka | DT8: 2020-07-17 | DU8: 126 | DV8: 851829 | DW8: □■ | DX8: -47108 | EA8: 555 | EB8: 越繊維 | EC8: Mita | ED8: 2020-07-17 | EE8: 127 | EF8: 539504 | EG8: △■ | EH8: 19261 | EK8: 556 | EL8: 馬紡績 | EM8: Nakano | EN8: 2020-07-17 | EO8: 128 | EP8: 564285 | EQ8: △■ | ER8: -90513 | EU8: 557 | EV8: 緬物産 | EW8: Suzuki | EX8: 2020-07-17 | EY8: 129 | EZ8: 298079 | FA8: △△ | FB8: -22326 | FE8: 558 | FF8: 蒙印刷 | FG8: Nakano | FH8: 2020-07-17 | FI8: 130 | FJ8: 642884 | FK8: □□ | FL8: -83992 | FO8: 559 | FP8: 老繊維 | FQ8: Nakano | FR8: 2020-07-17 | FS8: 131 | FT8: 107991 | FU8: □〇 | FV8: 108844 | FY8: 560 | FZ8: 豪工業 | GA8: Tanaka | GB8: 2020-07-17 | GC8: 132 | GD8: 994084 | GE8: □▼ | GF8: 66741 | GI8: 561 | GJ8: 加不動産 | GK8: Suzuki | GL8: 2020-07-17 | GM8: 133 | GN8: 330790 | GO8: □◆ | GP8: 161256 | GS8: 562 | GT8: 伯商会 | GU8: Yoshida | GV8: 2020-07-17 | GW8: 134 | GX8: 308754 | GY8: △▲ | GZ8: 54822
A9: 80 | B9: 印度商事 | C9: Mita | D9: 2020-04-14 | E9: 114 | F9: 978867 | G9: 〇〇 | H9: 60958 | K9: 58 | L9: 米商会 | M9: Ito | N9: 2020-04-13 | O9: 298 | P9: 676146 | Q9: △■ | R9: -60846 | U9: 56 | V9: 英販売 | W9: Yoshida | X9: 2020-04-13 | Y9: 296 | Z9: 398605 | AA9: □△ | AB9: -85249 | AE9: 57 | AF9: 露不動産 | AG9: Yoshida | AH9: 2020-04-13 | AI9: 297 | AJ9: 817182 | AK9: □■ | AL9: 188786 | AO9: 68 | AP9: 欄航空 | AQ9: Nakano | AR9: 2020-04-13 | AS9: 308 | AT9: 722993 | AU9: △〇 | AV9: 62554 | AY9: 100 | AZ9: 伊研究所 | BA9: Mita | BB9: 2020-04-15 | BC9: 145 | BD9: 416301 | BE9: △□ | BF9: 127171 | BI9: 173 | BJ9: 尼百貨店 | BK9: Suzuki | BL9: 2020-05-07 | BM9: 431 | BN9: 880364 | BO9: △■ | BP9: 191450 | BS9: 225 | BT9: 香商船 | BU9: Nakano | BV9: 2020-05-13 | BW9: 337 | BX9: 694487 | BY9: △▽ | BZ9: 22746 | CC9: 127 | CD9: 沙信託 | CE9: Tanaka | CF9: 2020-04-17 | CG9: 710 | CH9: 428575 | CI9: □▽ | CJ9: 187704 | CM9: 126 | CN9: 星ホテル | CO9: Suzuki | CP9: 2020-04-17 | CQ9: 709 | CR9: 292867 | CS9: △◇ | CT9: 1294 | CW9: 170 | CX9: 泰製本 | CY9: Tanaka | CZ9: 2020-05-06 | DA9: 221 | DB9: 699466 | DC9: 〇◇ | DD9: 152351 | DG9: 131 | DH9: 台建設 | DI9: Sato | DJ9: 2020-04-17 | DK9: 714 | DL9: 906878 | DM9: □■ | DN9: 98787 | DQ9: 603 | DR9: 比石油 | DS9: Yoshida | DT9: 2020-07-17 | DU9: 724 | DV9: 798080 | DW9: 〇▲ | DX9: 164762 | EA9: 604 | EB9: 越繊維 | EC9: Mita | ED9: 2020-07-17 | EE9: 725 | EF9: 900566 | EG9: 〇▽ | EH9: -78679 | EK9: 605 | EL9: 馬紡績 | EM9: Nakano | EN9: 2020-07-17 | EO9: 726 | EP9: 891044 | EQ9: □■ | ER9: 18273 | EU9: 606 | EV9: 緬物産 | EW9: Yoshida | EX9: 2020-07-17 | EY9: 727 | EZ9: 434086 | FA9: △◆ | FB9: -83726 | FE9: 607 | FF9: 蒙印刷 | FG9: Sato | FH9: 2020-07-17 | FI9: 728 | FJ9: 741544 | FK9: △◇ | FL9: 6396 | FO9: 608 | FP9: 老繊維 | FQ9: Tanaka | FR9: 2020-07-17 | FS9: 729 | FT9: 258549 | FU9: 〇◇ | FV9: -91449 | FY9: 609 | FZ9: 豪工業 | GA9: Yoshida | GB9: 2020-07-17 | GC9: 730 | GD9: 875512 | GE9: □◇ | GF9: -67073 | GI9: 610 | GJ9: 加不動産 | GK9: Mita | GL9: 2020-07-17 | GM9: 731 | GN9: 872268 | GO9: 〇◆ | GP9: -86503 | GS9: 611 | GT9: 伯商会 | GU9: Sato | GV9: 2020-07-17 | GW9: 732 | GX9: 157252 | GY9: 〇△ | GZ9: 26847
A10: 101 | B10: 印度商事 | C10: Suzuki | D10: 2020-04-16 | E10: 503 | F10: 882247 | G10: 〇〇 | H10: -82012 | K10: 62 | L10: 米商会 | M10: Suzuki | N10: 2020-04-13 | O10: 302 | P10: 538910 | Q10: △■ | R10: 61879 | U10: 63 | V10: 英販売 | W10: Tanaka | X10: 2020-04-13 | Y10: 303 | Z10: 541487 | AA10: □◇ | AB10: -68630 | AE10: 66 | AF10: 露不動産 | AG10: Nakano | AH10: 2020-04-13 | AI10: 306 | AJ10: 102660 | AK10: △■ | AL10: 48142 | AO10: 79 | AP10: 欄航空 | AQ10: Sato | AR10: 2020-04-14 | AS10: 113 | AT10: 683289 | AU10: □◆ | AV10: -34194 | AY10: 115 | AZ10: 伊研究所 | BA10: Mita | BB10: 2020-04-16 | BC10: 517 | BD10: 693403 | BE10: 〇■ | BF10: 166300 | BI10: 183 | BJ10: 尼百貨店 | BK10: Yoshida | BL10: 2020-05-10 | BM10: 231 | BN10: 454564 | BO10: □▼ | BP10: 12470 | BS10: 246 | BT10: 香商船 | BU10: Sato | BV10: 2020-05-15 | BW10: 163 | BX10: 156208 | BY10: 〇◇ | BZ10: -54298 | CC10: 137 | CD10: 沙信託 | CE10: Tanaka | CF10: 2020-04-21 | CG10: 222 | CH10: 435201 | CI10: 〇◆ | CJ10: -73337 | CM10: 136 | CN10: 星ホテル | CO10: Mita | CP10: 2020-04-20 | CQ10: 103 | CR10: 450575 | CS10: △◇ | CT10: 20839 | CW10: 186 | CX10: 泰製本 | CY10: Ito | CZ10: 2020-05-10 | DA10: 234 | DB10: 338164 | DC10: 〇〇 | DD10: -21412 | DG10: 147 | DH10: 台建設 | DI10: Yoshida | DJ10: 2020-04-21 | DK10: 232 | DL10: 109593 | DM10: □■ | DN10: -25689 | DQ10: 704 | DR10: 比石油 | DS10: Nakano | DT10: 2020-08-13 | DU10: 300 | DV10: 111950 | DW10: △▼ | DX10: -3648 | EA10: 705 | EB10: 越繊維 | EC10: Suzuki | ED10: 2020-08-13 | EE10: 301 | EF10: 587418 | EG10: □〇 | EH10: 15464 | EK10: 706 | EL10: 馬紡績 | EM10: Mita | EN10: 2020-08-13 | EO10: 302 | EP10: 248516 | EQ10: 〇◆ | ER10: 63774 | EU10: 707 | EV10: 緬物産 | EW10: Tanaka | EX10: 2020-08-13 | EY10: 303 | EZ10: 897179 | FA10: □▲ | FB10: 125631 | FE10: 708 | FF10: 蒙印刷 | FG10: Mita | FH10: 2020-08-13 | FI10: 304 | FJ10: 625563 | FK10: △▼ | FL10: 169043 | FO10: 709 | FP10: 老繊維 | FQ10: Yoshida | FR10: 2020-08-13 | FS10: 305 | FT10: 923905 | FU10: □〇 | FV10: -22394 | FY10: 710 | FZ10: 豪工業 | GA10: Tanaka | GB10: 2020-08-13 | GC10: 306 | GD10: 271090 | GE10: 〇◇ | GF10: -26122 | GI10: 711 | GJ10: 加不動産 | GK10: Sato | GL10: 2020-08-13 | GM10: 307 | GN10: 531557 | GO10: 〇▽ | GP10: 150306 | GS10: 712 | GT10: 伯商会 | GU10: Yoshida | GV10: 2020-08-13 | GW10: 308 | GX10: 337720 | GY10: △□ | GZ10: -40289
A11: 108 | B11: 印度商事 | C11: Nakano | D11: 2020-04-16 | E11: 510 | F11: 205073 | G11: 〇□ | H11: 133087 | K11: 67 | L11: 米商会 | M11: Nakano | N11: 2020-04-13 | O11: 307 | P11: 575734 | Q11: □◇ | R11: 161164 | U11: 71 | V11: 英販売 | W11: Sato | X11: 2020-04-14 | Y11: 105 | Z11: 335707 | AA11: 〇◆ | AB11: -1246 | AE11: 74 | AF11: 露不動産 | AG11: Sato | AH11: 2020-04-14 | AI11: 108 | AJ11: 898185 | AK11: △▽ | AL11: 151394 | AO11: 107 | AP11: 欄航空 | AQ11: Suzuki | AR11: 2020-04-16 | AS11: 509 | AT11: 760854 | AU11: 〇〇 | AV11: 49254 | AY11: 121 | AZ11: 伊研究所 | BA11: Ito | BB11: 2020-04-17 | BC11: 704 | BD11: 429688 | BE11: △▼ | BF11: 182846 | BI11: 194 | BJ11: 尼百貨店 | BK11: Mita | BL11: 2020-05-11 | BM11: 345 | BN11: 465484 | BO11: □▽ | BP11: 77780 | BS11: 295 | BT11: 香商船 | BU11: Sato | BV11: 2020-05-19 | BW11: 334 | BX11: 894512 | BY11: □△ | BZ11: 194137 | CC11: 155 | CD11: 沙信託 | CE11: Tanaka | CF11: 2020-04-30 | CG11: 814 | CH11: 902203 | CI11: △□ | CJ11: -54736 | CM11: 154 | CN11: 星ホテル | CO11: Yoshida | CP11: 2020-04-30 | CQ11: 813 | CR11: 218474 | CS11: □▽ | CT11: 160816 | CW11: 204 | CX11: 泰製本 | CY11: Ito | CZ11: 2020-05-12 | DA11: 227 | DB11: 206760 | DC11: □◆ | DD11: -2905 | DG11: 171 | DH11: 台建設 | DI11: Tanaka | DJ11: 2020-05-07 | DK11: 429 | DL11: 871723 | DM11: □▲ | DN11: 85915 | DQ11: 753 | DR11: 比石油 | DS11: Mita | DT11: 2020-08-18 | DU11: 511 | DV11: 508003 | DW11: △□ | DX11: -82100 | EA11: 754 | EB11: 越繊維 | EC11: Suzuki | ED11: 2020-08-18 | EE11: 512 | EF11: 406545 | EG11: △□ | EH11: -39541 | EK11: 755 | EL11: 馬紡績 | EM11: Yoshida | EN11: 2020-08-18 | EO11: 513 | EP11: 964584 | EQ11: △▲ | ER11: -92804 | EU11: 756 | EV11: 緬物産 | EW11: Suzuki | EX11: 2020-08-18 | EY11: 514 | EZ11: 904915 | FA11: △■ | FB11: -53889 | FE11: 757 | FF11: 蒙印刷 | FG11: Nakano | FH11: 2020-08-18 | FI11: 515 | FJ11: 189241 | FK11: □▽ | FL11: 90042 | FO11: 758 | FP11: 老繊維 | FQ11: Tanaka | FR11: 2020-08-18 | FS11: 516 | FT11: 232035 | FU11: 〇▲ | FV11: 74165 | FY11: 759 | FZ11: 豪工業 | GA11: Yoshida | GB11: 2020-08-18 | GC11: 517 | GD11: 200504 | GE11: □〇 | GF11: 190739 | GI11: 760 | GJ11: 加不動産 | GK11: Nakano | GL11: 2020-08-18 | GM11: 518 | GN11: 501813 | GO11: △◇ | GP11: 115824 | GS11: 761 | GT11: 伯商会 | GU11: Ito | GV11: 2020-08-18 | GW11: 519 | GX11: 844505 | GY11: 〇▽ | GZ11: -41431
A12: 116 | B12: 印度商事 | C12: Nakano | D12: 2020-04-16 | E12: 518 | F12: 754791 | G12: □▽ | H12: 8179 | K12: 75 | L12: 米商会 | M12: Suzuki | N12: 2020-04-14 | O12: 109 | P12: 800027 | Q12: △◆ | R12: 73475 | U12: 76 | V12: 英販売 | W12: Yoshida | X12: 2020-04-14 | Y12: 110 | Z12: 536692 | AA12: □△ | AB12: 182398 | AE12: 81 | AF12: 露不動産 | AG12: Yoshida | AH12: 2020-04-14 | AI12: 115 | AJ12: 835207 | AK12: △〇 | AL12: -91818 | AO12: 111 | AP12: 欄航空 | AQ12: Nakano | AR12: 2020-04-16 | AS12: 513 | AT12: 197735 | AU12: △■ | AV12: 108406 | AY12: 133 | AZ12: 伊研究所 | BA12: Yoshida | BB12: 2020-04-17 | BC12: 716 | BD12: 879757 | BE12: 〇▽ | BF12: -41770 | BI12: 208 | BJ12: 尼百貨店 | BK12: Nakano | BL12: 2020-05-12 | BM12: 231 | BN12: 851440 | BO12: □▲ | BP12: 111742 | BS12: 327 | BT12: 香商船 | BU12: Tanaka | BV12: 2020-06-03 | BW12: 201 | BX12: 478432 | BY12: 〇〇 | BZ12: 189926 | CC12: 176 | CD12: 沙信託 | CE12: Suzuki | CF12: 2020-05-08 | CG12: 537 | CH12: 702201 | CI12: △△ | CJ12: 56016 | CM12: 177 | CN12: 星ホテル | CO12: Sato | CP12: 2020-05-09 | CQ12: 255 | CR12: 438289 | CS12: △▲ | CT12: 33195 | CW12: 229 | CX12: 泰製本 | CY12: Suzuki | CZ12: 2020-05-15 | DA12: 135 | DB12: 491225 | DC12: △◇ | DD12: 122053 | DG12: 185 | DH12: 台建設 | DI12: Tanaka | DJ12: 2020-05-10 | DK12: 233 | DL12: 302879 | DM12: △◆ | DN12: -3008 | DQ12: 854 | DR12: 比石油 | DS12: Suzuki | DT12: 2020-09-12 | DU12: 233 | DV12: 166346 | DW12: 〇▽ | DX12: 59565 | EA12: 855 | EB12: 越繊維 | EC12: Suzuki | ED12: 2020-09-12 | EE12: 234 | EF12: 282687 | EG12: □□ | EH12: -64537 | EK12: 856 | EL12: 馬紡績 | EM12: Yoshida | EN12: 2020-09-12 | EO12: 235 | EP12: 374135 | EQ12: □▽ | ER12: 59331 | EU12: 857 | EV12: 緬物産 | EW12: Suzuki | EX12: 2020-09-12 | EY12: 325 | EZ12: 672038 | FA12: △▲ | FB12: 128153 | FE12: 858 | FF12: 蒙印刷 | FG12: Mita | FH12: 2020-09-12 | FI12: 326 | FJ12: 378659 | FK12: 〇■ | FL12: -38284 | FO12: 859 | FP12: 老繊維 | FQ12: Yoshida | FR12: 2020-09-13 | FS12: 327 | FT12: 123379 | FU12: △〇 | FV12: -32296 | FY12: 860 | FZ12: 豪工業 | GA12: Ito | GB12: 2020-09-13 | GC12: 328 | GD12: 710463 | GE12: □■ | GF12: -99377 | GI12: 861 | GJ12: 加不動産 | GK12: Suzuki | GL12: 2020-09-13 | GM12: 329 | GN12: 111902 | GO12: 〇◆ | GP12: -75877 | GS12: 862 | GT12: 伯商会 | GU12: Tanaka | GV12: 2020-09-13 | GW12: 330 | GX12: 448177 | GY12: □◇ | GZ12: 159721
A13: 122 | B13: 印度商事 | C13: Mita | D13: 2020-04-17 | E13: 705 | F13: 427067 | G13: 〇■ | H13: -81344 | K13: 103 | L13: 米商会 | M13: Ito | N13: 2020-04-16 | O13: 505 | P13: 352574 | Q13: □▽ | R13: 96980 | U13: 99 | V13: 英販売 | W13: Suzuki | X13: 2020-04-15 | Y13: 144 | Z13: 247311 | AA13: 〇■ | AB13: -19904 | AE13: 102 | AF13: 露不動産 | AG13: Mita | AH13: 2020-04-16 | AI13: 504 | AJ13: 879209 | AK13: △◇ | AL13: 122889 | AO13: 128 | AP13: 欄航空 | AQ13: Suzuki | AR13: 2020-04-17 | AS13: 711 | AT13: 490058 | AU13: 〇■ | AV13: -49580 | AY13: 149 | AZ13: 伊研究所 | BA13: Nakano | BB13: 2020-04-30 | BC13: 808 | BD13: 759229 | BE13: 〇△ | BF13: -62770 | BI13: 221 | BJ13: 尼百貨店 | BK13: Ito | BL13: 2020-05-13 | BM13: 333 | BN13: 298045 | BO13: 〇□ | BP13: -32532 | BS13: 357 | BT13: 香商船 | BU13: Nakano | BV13: 2020-06-11 | BW13: 302 | BX13: 130028 | BY13: 〇◆ | BZ13: 177131 | CC13: 197 | CD13: 沙信託 | CE13: Suzuki | CF13: 2020-05-11 | CG13: 348 | CH13: 838716 | CI13: △▽ | CJ13: -1210 | CM13: 196 | CN13: 星ホテル | CO13: Ito | CP13: 2020-05-11 | CQ13: 347 | CR13: 126422 | CS13: □◆ | CT13: 71096 | CW13: 243 | CX13: 泰製本 | CY13: Nakano | CZ13: 2020-05-15 | DA13: 149 | DB13: 733094 | DC13: △▽ | DD13: 155877 | DG13: 203 | DH13: 台建設 | DI13: Suzuki | DJ13: 2020-05-12 | DK13: 226 | DL13: 721743 | DM13: 〇□ | DN13: 158921 | DQ13: 903 | DR13: 比石油 | DS13: Ito | DT13: 2020-09-19 | DU13: 176 | DV13: 867695 | DW13: □◇ | DX13: 53390 | EA13: 904 | EB13: 越繊維 | EC13: Yoshida | ED13: 2020-09-19 | EE13: 177 | EF13: 275689 | EG13: △▼ | EH13: -28876 | EK13: 905 | EL13: 馬紡績 | EM13: Ito | EN13: 2020-09-19 | EO13: 535 | EP13: 996576 | EQ13: △□ | ER13: 170380 | EU13: 906 | EV13: 緬物産 | EW13: Suzuki | EX13: 2020-09-19 | EY13: 536 | EZ13: 153691 | FA13: □□ | FB13: 1775 | FE13: 907 | FF13: 蒙印刷 | FG13: Tanaka | FH13: 2020-09-19 | FI13: 537 | FJ13: 344929 | FK13: □◇ | FL13: -25487 | FO13: 908 | FP13: 老繊維 | FQ13: Tanaka | FR13: 2020-09-19 | FS13: 538 | FT13: 185601 | FU13: □▽ | FV13: 58691 | FY13: 909 | FZ13: 豪工業 | GA13: Mita | GB13: 2020-09-19 | GC13: 539 | GD13: 759416 | GE13: □■ | GF13: 46781 | GI13: 910 | GJ13: 加不動産 | GK13: Sato | GL13: 2020-09-19 | GM13: 540 | GN13: 957114 | GO13: 〇◆ | GP13: -82851 | GS13: 911 | GT13: 伯商会 | GU13: Tanaka | GV13: 2020-09-19 | GW13: 541 | GX13: 698753 | GY13: △■ | GZ13: 158715
A14: 129 | B14: 印度商事 | C14: Nakano | D14: 2020-04-17 | E14: 712 | F14: 262127 | G14: △▼ | H14: -11715 | K14: 110 | L14: 米商会 | M14: Sato | N14: 2020-04-16 | O14: 512 | P14: 937103 | Q14: □▼ | R14: -32788 | U14: 104 | V14: 英販売 | W14: Ito | X14: 2020-04-16 | Y14: 506 | Z14: 773898 | AA14: △□ | AB14: 104330 | AE14: 109 | AF14: 露不動産 | AG14: Yoshida | AH14: 2020-04-16 | AI14: 511 | AJ14: 183575 | AK14: 〇▼ | AL14: 25569 | AO14: 156 | AP14: 欄航空 | AQ14: Nakano | AR14: 2020-04-30 | AS14: 815 | AT14: 167338 | AU14: 〇□ | AV14: -22685 | AY14: 169 | AZ14: 伊研究所 | BA14: Mita | BB14: 2020-05-05 | BC14: 236 | BD14: 868422 | BE14: □◆ | BF14: -1100 | BI14: 245 | BJ14: 尼百貨店 | BK14: Nakano | BL14: 2020-05-15 | BM14: 162 | BN14: 466592 | BO14: △□ | BP14: 57805 | BS14: 377 | BT14: 香商船 | BU14: Mita | BV14: 2020-06-13 | BW14: 283 | BX14: 618347 | BY14: 〇▲ | BZ14: -78174 | CC14: 209 | CD14: 沙信託 | CE14: Yoshida | CF14: 2020-05-12 | CG14: 232 | CH14: 307077 | CI14: 〇▲ | CJ14: 183949 | CM14: 220 | CN14: 星ホテル | CO14: Sato | CP14: 2020-05-13 | CQ14: 332 | CR14: 287446 | CS14: 〇▼ | CT14: -28468 | CW14: 272 | CX14: 泰製本 | CY14: Yoshida | CZ14: 2020-05-16 | DA14: 546 | DB14: 187070 | DC14: 〇◆ | DD14: 22003 | DG14: 230 | DH14: 台建設 | DI14: Suzuki | DJ14: 2020-05-15 | DK14: 136 | DL14: 664149 | DM14: △▽ | DN14: 199828 | DQ14: 1006 | DR14: 比石油 | DS14: Mita | DT14: 2020-10-11 | DU14: 307 | DV14: 581753 | DW14: 〇▼ | DX14: -59435 | EA14: 1007 | EB14: 越繊維 | EC14: Ito | ED14: 2020-10-12 | EE14: 180 | EF14: 225728 | EG14: 〇▲ | EH14: 25876 | EK14: 1008 | EL14: 馬紡績 | EM14: Tanaka | EN14: 2020-10-12 | EO14: 181 | EP14: 239586 | EQ14: 〇▼ | ER14: 5659 | EU14: 1009 | EV14: 緬物産 | EW14: Sato | EX14: 2020-10-12 | EY14: 182 | EZ14: 338245 | FA14: 〇△ | FB14: -20547 | FE14: 1010 | FF14: 蒙印刷 | FG14: Sato | FH14: 2020-10-12 | FI14: 183 | FJ14: 268094 | FK14: △〇 | FL14: 185312 | FO14: 1011 | FP14: 老繊維 | FQ14: Tanaka | FR14: 2020-10-12 | FS14: 184 | FT14: 547553 | FU14: △◇ | FV14: 180927 | FY14: 1012 | FZ14: 豪工業 | GA14: Nakano | GB14: 2020-10-12 | GC14: 185 | GD14: 321249 | GE14: △▽ | GF14: 137684 | GI14: 1013 | GJ14: 加不動産 | GK14: Tanaka | GL14: 2020-10-12 | GM14: 186 | GN14: 144538 | GO14: □◇ | GP14: 165087 | GS14: 1014 | GT14: 伯商会 | GU14: Sato | GV14: 2020-10-12 | GW14: 187 | GX14: 630681 | GY14: 〇〇 | GZ14: 145894
A15: 150 | B15: 印度商事 | C15: Mita | D15: 2020-04-30 | E15: 809 | F15: 161973 | G15: □◇ | H15: -29103 | K15: 118 | L15: 米商会 | M15: Yoshida | N15: 2020-04-16 | O15: 520 | P15: 275845 | Q15: □◇ | R15: 123671 | U15: 114 | V15: 英販売 | W15: Nakano | X15: 2020-04-16 | Y15: 516 | Z15: 728467 | AA15: △▼ | AB15: -34387 | AE15: 117 | AF15: 露不動産 | AG15: Ito | AH15: 2020-04-16 | AI15: 519 | AJ15: 458751 | AK15: 〇▼ | AL15: 119320 | AO15: 160 | AP15: 欄航空 | AQ15: Tanaka | AR15: 2020-04-30 | AS15: 819 | AT15: 303912 | AU15: □▼ | AV15: 130374 | AY15: 181 | AZ15: 伊研究所 | BA15: Nakano | BB15: 2020-05-10 | BC15: 229 | BD15: 930614 | BE15: □▼ | BF15: 18134 | BI15: 294 | BJ15: 尼百貨店 | BK15: Nakano | BL15: 2020-05-18 | BM15: 635 | BN15: 617690 | BO15: △◇ | BP15: 61449 | BS15: 398 | BT15: 香商船 | BU15: Ito | BV15: 2020-06-16 | BW15: 198 | BX15: 950159 | BY15: □▽ | BZ15: 172947 | CC15: 219 | CD15: 沙信託 | CE15: Nakano | CF15: 2020-05-13 | CG15: 331 | CH15: 978615 | CI15: △◆ | CJ15: 90639 | CM15: 237 | CN15: 星ホテル | CO15: Nakano | CP15: 2020-05-15 | CQ15: 143 | CR15: 569969 | CS15: △□ | CT15: 188488 | CW15: 292 | CX15: 泰製本 | CY15: Tanaka | CZ15: 2020-05-17 | DA15: 747 | DB15: 834452 | DC15: △■ | DD15: -50700 | DG15: 242 | DH15: 台建設 | DI15: Nakano | DJ15: 2020-05-15 | DK15: 148 | DL15: 359474 | DM15: △■ | DN15: 165150 | DQ15: 1055 | DR15: 比石油 | DS15: Suzuki | DT15: 2020-10-15 | DU15: 211 | DV15: 786786 | DW15: △◆ | DX15: 103513 | EA15: 1056 | EB15: 越繊維 | EC15: Yoshida | ED15: 2020-10-15 | EE15: 212 | EF15: 859945 | EG15: 〇▽ | EH15: 155738 | EK15: 1057 | EL15: 馬紡績 | EM15: Nakano | EN15: 2020-10-15 | EO15: 213 | EP15: 859579 | EQ15: 〇△ | ER15: 126371 | EU15: 1058 | EV15: 緬物産 | EW15: Ito | EX15: 2020-10-15 | EY15: 214 | EZ15: 927985 | FA15: □△ | FB15: 57773 | FE15: 1059 | FF15: 蒙印刷 | FG15: Nakano | FH15: 2020-10-15 | FI15: 215 | FJ15: 260030 | FK15: 〇□ | FL15: 14619 | FO15: 1060 | FP15: 老繊維 | FQ15: Mita | FR15: 2020-10-15 | FS15: 216 | FT15: 696590 | FU15: □▲ | FV15: 59234 | FY15: 1061 | FZ15: 豪工業 | GA15: Nakano | GB15: 2020-10-15 | GC15: 217 | GD15: 638885 | GE15: △▽ | GF15: 88496 | GI15: 1062 | GJ15: 加不動産 | GK15: Tanaka | GL15: 2020-10-15 | GM15: 218 | GN15: 551914 | GO15: 〇▽ | GP15: 42073 | GS15: 1063 | GT15: 伯商会 | GU15: Ito | GV15: 2020-10-15 | GW15: 219 | GX15: 814816 | GY15: 〇□ | GZ15: 184898
A16: 157 | B16: 印度商事 | C16: Sato | D16: 2020-04-30 | E16: 816 | F16: 748123 | G16: 〇▽ | H16: 76308 | K16: 124 | L16: 米商会 | M16: Tanaka | N16: 2020-04-17 | O16: 707 | P16: 931484 | Q16: □▲ | R16: 111270 | U16: 119 | V16: 英販売 | W16: Suzuki | X16: 2020-04-17 | Y16: 702 | Z16: 457218 | AA16: △〇 | AB16: 182843 | AE16: 123 | AF16: 露不動産 | AG16: Ito | AH16: 2020-04-17 | AI16: 706 | AJ16: 445094 | AK16: □▽ | AL16: 90449 | AO16: 163 | AP16: 欄航空 | AQ16: Yoshida | AR16: 2020-05-01 | AS16: 410 | AT16: 377479 | AU16: △△ | AV16: 177407 | AY16: 192 | AZ16: 伊研究所 | BA16: Tanaka | BB16: 2020-05-11 | BC16: 343 | BD16: 653001 | BE16: △△ | BF16: 17846 | BI16: 325 | BJ16: 尼百貨店 | BK16: Sato | BL16: 2020-06-01 | BM16: 366 | BN16: 334642 | BO16: △◇ | BP16: -88132 | BS16: 447 | BT16: 香商船 | BU16: Ito | BV16: 2020-06-17 | BW16: 696 | BX16: 767511 | BY16: △◆ | BZ16: 175399 | CC16: 238 | CD16: 沙信託 | CE16: Yoshida | CF16: 2020-05-15 | CG16: 144 | CH16: 838853 | CI16: □△ | CJ16: -382 | CM16: 247 | CN16: 星ホテル | CO16: Yoshida | CP16: 2020-05-15 | CQ16: 164 | CR16: 156681 | CS16: □▲ | CT16: 149881 | CW16: 322 | CX16: 泰製本 | CY16: Tanaka | CZ16: 2020-05-31 | DA16: 203 | DB16: 390053 | DC16: △◇ | DD16: 86691 | DG16: 258 | DH16: 台建設 | DI16: Sato | DJ16: 2020-05-15 | DK16: 175 | DL16: 953330 | DM16: △▼ | DN16: 4297 | DQ16: 1157 | DR16: 比石油 | DS16: Mita | DT16: 2020-11-10 | DU16: 330 | DV16: 476159 | DW16: △◇ | DX16: 137465 | EA16: 1158 | EB16: 越繊維 | EC16: Mita | ED16: 2020-11-10 | EE16: 331 | EF16: 332019 | EG16: 〇□ | EH16: -8140 | EK16: 1159 | EL16: 馬紡績 | EM16: Tanaka | EN16: 2020-11-10 | EO16: 332 | EP16: 855309 | EQ16: 〇▽ | ER16: -13229 | EU16: 1160 | EV16: 緬物産 | EW16: Sato | EX16: 2020-11-10 | EY16: 333 | EZ16: 655207 | FA16: □◇ | FB16: -49379 | FE16: 1161 | FF16: 蒙印刷 | FG16: Suzuki | FH16: 2020-11-11 | FI16: 334 | FJ16: 758162 | FK16: △■ | FL16: 57840 | FO16: 1162 | FP16: 老繊維 | FQ16: Sato | FR16: 2020-11-11 | FS16: 335 | FT16: 323637 | FU16: 〇▼ | FV16: -92025 | FY16: 1163 | FZ16: 豪工業 | GA16: Ito | GB16: 2020-11-11 | GC16: 336 | GD16: 541721 | GE16: □□ | GF16: -85067 | GI16: 1164 | GJ16: 加不動産 | GK16: Tanaka | GL16: 2020-11-11 | GM16: 337 | GN16: 626837 | GO16: 〇□ | GP16: 105801 | GS16: 1165 | GT16: 伯商会 | GU16: Tanaka | GV16: 2020-11-11 | GW16: 338 | GX16: 388286 | GY16: 〇◆ | GZ16: 12653
A17: 165 | B17: 印度商事 | C17: Sato | D17: 2020-05-03 | E17: 245 | F17: 424411 | G17: 〇▼ | H17: 25994 | K17: 152 | L17: 米商会 | M17: Mita | N17: 2020-04-30 | O17: 811 | P17: 733156 | Q17: □▲ | R17: 33206 | U17: 125 | V17: 英販売 | W17: Tanaka | X17: 2020-04-17 | Y17: 708 | Z17: 161869 | AA17: 〇〇 | AB17: -83423 | AE17: 130 | AF17: 露不動産 | AG17: Tanaka | AH17: 2020-04-17 | AI17: 713 | AJ17: 177469 | AK17: 〇◆ | AL17: 78323 | AO17: 166 | AP17: 欄航空 | AQ17: Ito | AR17: 2020-05-03 | AS17: 245 | AT17: 929942 | AU17: △■ | AV17: 54373 | AY17: 201 | AZ17: 伊研究所 | BA17: Tanaka | BB17: 2020-05-12 | BC17: 224 | BD17: 631037 | BE17: △△ | BF17: 183043 | BI17: 335 | BJ17: 尼百貨店 | BK17: Yoshida | BL17: 2020-06-07 | BM17: 387 | BN17: 221069 | BO17: □▽ | BP17: 113559 | BS17: 480 | BT17: 香商船 | BU17: Sato | BV17: 2020-06-30 | BW17: 805 | BX17: 371018 | BY17: 〇〇 | BZ17: -32093 | CC17: 248 | CD17: 沙信託 | CE17: Sato | CF17: 2020-05-15 | CG17: 165 | CH17: 218072 | CI17: 〇▽ | CJ17: -76996 | CM17: 265 | CN17: 星ホテル | CO17: Ito | CP17: 2020-05-16 | CQ17: 539 | CR17: 323636 | CS17: △▽ | CT17: -24868 | CW17: 338 | CX17: 泰製本 | CY17: Tanaka | CZ17: 2020-06-08 | DA17: 493 | DB17: 753398 | DC17: △▽ | DD17: 19712 | DG17: 273 | DH17: 台建設 | DI17: Mita | DJ17: 2020-05-16 | DK17: 547 | DL17: 301879 | DM17: △■ | DN17: -29276 | DQ17: 1206 | DR17: 比石油 | DS17: Mita | DT17: 2020-11-15 | DU17: 134 | DV17: 978134 | DW17: 〇△ | DX17: 173262 | EA17: 1207 | EB17: 越繊維 | EC17: Tanaka | ED17: 2020-11-15 | EE17: 135 | EF17: 961546 | EG17: □▲ | EH17: 164165 | EK17: 1208 | EL17: 馬紡績 | EM17: Yoshida | EN17: 2020-11-15 | EO17: 136 | EP17: 668448 | EQ17: △◆ | ER17: 33075 | EU17: 1209 | EV17: 緬物産 | EW17: Yoshida | EX17: 2020-11-15 | EY17: 137 | EZ17: 282039 | FA17: 〇◆ | FB17: 162374 | FE17: 1210 | FF17: 蒙印刷 | FG17: Sato | FH17: 2020-11-15 | FI17: 138 | FJ17: 633511 | FK17: □〇 | FL17: -82161 | FO17: 1211 | FP17: 老繊維 | FQ17: Yoshida | FR17: 2020-11-15 | FS17: 150 | FT17: 755654 | FU17: △▲ | FV17: 142393 | FY17: 1212 | FZ17: 豪工業 | GA17: Nakano | GB17: 2020-11-15 | GC17: 151 | GD17: 898047 | GE17: □△ | GF17: 106407 | GI17: 1213 | GJ17: 加不動産 | GK17: Ito | GL17: 2020-11-15 | GM17: 152 | GN17: 112621 | GO17: 〇▼ | GP17: 14561 | GS17: 1214 | GT17: 伯商会 | GU17: Nakano | GV17: 2020-11-15 | GW17: 153 | GX17: 201792 | GY17: △▽ | GZ17: 133662
A18: 172 | B18: 印度商事 | C18: Tanaka | D18: 2020-05-07 | E18: 430 | F18: 340418 | G18: □▽ | H18: -69892 | K18: 159 | L18: 米商会 | M18: Sato | N18: 2020-04-30 | O18: 818 | P18: 785284 | Q18: □■ | R18: 129641 | U18: 148 | V18: 英販売 | W18: Nakano | X18: 2020-04-21 | Y18: 233 | Z18: 731372 | AA18: □△ | AB18: -90400 | AE18: 151 | AF18: 露不動産 | AG18: Nakano | AH18: 2020-04-30 | AI18: 810 | AJ18: 982850 | AK18: □〇 | AL18: -61458 | AO18: 179 | AP18: 欄航空 | AQ18: Mita | AR18: 2020-05-09 | AS18: 257 | AT18: 257003 | AU18: △◆ | AV18: 132833 | AY18: 213 | AZ18: 伊研究所 | BA18: Ito | BB18: 2020-05-13 | BC18: 325 | BD18: 919215 | BE18: □□ | BF18: 44838 | BI18: 346 | BJ18: 尼百貨店 | BK18: Suzuki | BL18: 2020-06-10 | BM18: 188 | BN18: 100569 | BO18: △□ | BP18: -4825 | BS18: 510 | BT18: 香商船 | BU18: Nakano | BV18: 2020-07-10 | BW18: 224 | BX18: 265614 | BY18: 〇▲ | BZ18: 110184 | CC18: 266 | CD18: 沙信託 | CE18: Yoshida | CF18: 2020-05-16 | CG18: 540 | CH18: 588666 | CI18: 〇△ | CJ18: 138217 | CM18: 280 | CN18: 星ホテル | CO18: Ito | CP18: 2020-05-17 | CQ18: 735 | CR18: 109065 | CS18: □〇 | CT18: -82520 | CW18: 356 | CX18: 泰製本 | CY18: Ito | CZ18: 2020-06-11 | DA18: 301 | DB18: 966170 | DC18: □◇ | DD18: 157622 | DG18: 291 | DH18: 台建設 | DI18: Sato | DJ18: 2020-05-17 | DK18: 746 | DL18: 380662 | DM18: □〇 | DN18: -25488 | DQ18: 1306 | DR18: 比石油 | DS18: Sato | DT18: 2020-12-08 | DU18: 224 | DV18: 730728 | DW18: △■ | DX18: -99010 | EA18: 1307 | EB18: 越繊維 | EC18: Ito | ED18: 2020-12-08 | EE18: 225 | EF18: 954067 | EG18: △△ | EH18: 83733 | EK18: 1308 | EL18: 馬紡績 | EM18: Tanaka | EN18: 2020-12-08 | EO18: 226 | EP18: 121649 | EQ18: △▽ | ER18: 42302 | EU18: 1309 | EV18: 緬物産 | EW18: Ito | EX18: 2020-12-08 | EY18: 197 | EZ18: 800020 | FA18: △▽ | FB18: 150917 | FE18: 1310 | FF18: 蒙印刷 | FG18: Sato | FH18: 2020-12-08 | FI18: 198 | FJ18: 147048 | FK18: △▽ | FL18: 138711 | FO18: 1311 | FP18: 老繊維 | FQ18: Mita | FR18: 2020-12-09 | FS18: 199 | FT18: 922423 | FU18: □▼ | FV18: 131427 | FY18: 1312 | FZ18: 豪工業 | GA18: Suzuki | GB18: 2020-12-09 | GC18: 200 | GD18: 201238 | GE18: △▲ | GF18: -19002 | GI18: 1313 | GJ18: 加不動産 | GK18: Sato | GL18: 2020-12-09 | GM18: 201 | GN18: 269120 | GO18: 〇▼ | GP18: 135476 | GS18: 1314 | GT18: 伯商会 | GU18: Yoshida | GV18: 2020-12-09 | GW18: 202 | GX18: 480388 | GY18: □▽ | GZ18: -39002
A19: 188 | B19: 印度商事 | C19: Tanaka | D19: 2020-05-10 | E19: 236 | F19: 426963 | G19: 〇□ | H19: 74803 | K19: 161 | L19: 米商会 | M19: Ito | N19: 2020-05-01 | O19: 410 | P19: 894389 | Q19: △▽ | R19: 90527 | U19: 153 | V19: 英販売 | W19: Suzuki | X19: 2020-04-30 | Y19: 812 | Z19: 741983 | AA19: □◆ | AB19: -66191 | AE19: 158 | AF19: 露不動産 | AG19: Tanaka | AH19: 2020-04-30 | AI19: 817 | AJ19: 425853 | AK19: 〇△ | AL19: 87388 | AO19: 187 | AP19: 欄航空 | AQ19: Suzuki | AR19: 2020-05-10 | AS19: 235 | AT19: 373008 | AU19: △▽ | AV19: 162617 | AY19: 232 | AZ19: 伊研究所 | BA19: Yoshida | BB19: 2020-05-15 | BC19: 138 | BD19: 951380 | BE19: 〇▼ | BF19: 24444 | BI19: 360 | BJ19: 尼百貨店 | BK19: Sato | BL19: 2020-06-11 | BM19: 305 | BN19: 782602 | BO19: △▲ | BP19: 130080 | BS19: 530 | BT19: 香商船 | BU19: Sato | BV19: 2020-07-12 | BW19: 219 | BX19: 920179 | BY19: △▽ | BZ19: 176971 | CC19: 287 | CD19: 沙信託 | CE19: Ito | CF19: 2020-05-17 | CG19: 742 | CH19: 121934 | CI19: □〇 | CJ19: -16902 | CM19: 286 | CN19: 星ホテル | CO19: Ito | CP19: 2020-05-17 | CQ19: 741 | CR19: 303617 | CS19: △▽ | CT19: 82814 | CW19: 381 | CX19: 泰製本 | CY19: Yoshida | CZ19: 2020-06-13 | DA19: 287 | DB19: 233374 | DC19: △■ | DD19: -31215 | DG19: 307 | DH19: 台建設 | DI19: Ito | DJ19: 2020-05-21 | DK19: 264 | DL19: 577439 | DM19: □〇 | DN19: 74467 | DQ19: 1355 | DR19: 比石油 | DS19: Nakano | DT19: 2020-12-13 | DU19: 307 | DV19: 339038 | DW19: 〇■ | DX19: 191711 | EA19: 1356 | EB19: 越繊維 | EC19: Nakano | ED19: 2020-12-13 | EE19: 308 | EF19: 771546 | EG19: △□ | EH19: -99267 | EK19: 1357 | EL19: 馬紡績 | EM19: Sato | EN19: 2020-12-15 | EO19: 103 | EP19: 523521 | EQ19: 〇△ | ER19: 82560 | EU19: 1358 | EV19: 緬物産 | EW19: Yoshida | EX19: 2020-12-15 | EY19: 104 | EZ19: 847174 | FA19: □〇 | FB19: 170164 | FE19: 1359 | FF19: 蒙印刷 | FG19: Yoshida | FH19: 2020-12-15 | FI19: 105 | FJ19: 237124 | FK19: □◆ | FL19: 162652 | FO19: 1360 | FP19: 老繊維 | FQ19: Tanaka | FR19: 2020-12-15 | FS19: 106 | FT19: 430959 | FU19: △■ | FV19: 114343 | FY19: 1361 | FZ19: 豪工業 | GA19: Nakano | GB19: 2020-12-15 | GC19: 107 | GD19: 181455 | GE19: 〇□ | GF19: 92946 | GI19: 1457 | GJ19: 加不動産 | GK19: Ito | GL19: 2021-04-04 | GM19: 236 | GN19: 750792 | GO19: △▲ | GP19: 88805 | GS19: 1458 | GT19: 伯商会 | GU19: Yoshida | GV19: 2021-04-05 | GW19: 221 | GX19: 641834 | GY19: 〇▼ | GZ19: 46965
A20: 207 | B20: 印度商事 | C20: Suzuki | D20: 2020-05-12 | E20: 230 | F20: 367341 | G20: □▽ | H20: 153089 | K20: 168 | L20: 米商会 | M20: Nakano | N20: 2020-05-05 | O20: 235 | P20: 479800 | Q20: △■ | R20: 9270 | U20: 162 | V20: 英販売 | W20: Sato | X20: 2020-05-01 | Y20: 410 | Z20: 669774 | AA20: □◇ | AB20: 198507 | AE20: 164 | AF20: 露不動産 | AG20: Suzuki | AH20: 2020-05-01 | AI20: 410 | AJ20: 504387 | AK20: □△ | AL20: 79125 | AO20: 199 | AP20: 欄航空 | AQ20: Tanaka | AR20: 2020-05-11 | AS20: 350 | AT20: 393139 | AU20: □□ | AV20: 100468 | AY20: 244 | AZ20: 伊研究所 | BA20: Sato | BB20: 2020-05-15 | BC20: 150 | BD20: 887473 | BE20: △▽ | BF20: 140219 | BI20: 373 | BJ20: 尼百貨店 | BK20: Nakano | BL20: 2020-06-12 | BM20: 190 | BN20: 557789 | BO20: △▼ | BP20: 21028 | BS20: 551 | BT20: 香商船 | BU20: Ito | BV20: 2020-07-17 | BW20: 123 | BX20: 647646 | BY20: 〇▼ | BZ20: 28735 | CC20: 297 | CD20: 沙信託 | CE20: Sato | CF20: 2020-05-21 | CG20: 254 | CH20: 404163 | CI20: 〇▲ | CJ20: -45948 | CM20: 296 | CN20: 星ホテル | CO20: Tanaka | CP20: 2020-05-20 | CQ20: 135 | CR20: 819116 | CS20: 〇▼ | CT20: 181339 | CW20: 395 | CX20: 泰製本 | CY20: Yoshida | CZ20: 2020-06-16 | DA20: 195 | DB20: 431176 | DC20: △◆ | DD20: -61493 | DG20: 323 | DH20: 台建設 | DI20: Nakano | DJ20: 2020-06-01 | DK20: 366 | DL20: 984288 | DM20: □□ | DN20: 167603 | DQ20: 1450 | DR20: 比石油 | DS20: Sato | DT20: 2020-12-31 | DU20: 410 | DV20: 327538 | DW20: □▲ | DX20: 108901 | EA20: 1451 | EB20: 越繊維 | EC20: Yoshida | ED20: 2021-04-01 | EE20: 410 | EF20: 741609 | EG20: 〇〇 | EH20: 149115 | EK20: 1452 | EL20: 馬紡績 | EM20: Sato | EN20: 2021-04-01 | EO20: 410 | EP20: 158283 | EQ20: □◆ | ER20: 73957 | EU20: 1453 | EV20: 緬物産 | EW20: Suzuki | EX20: 2021-04-01 | EY20: 245 | EZ20: 188088 | FA20: □◇ | FB20: -29031 | FE20: 1454 | FF20: 蒙印刷 | FG20: Mita | FH20: 2021-04-01 | FI20: 245 | FJ20: 992309 | FK20: □▲ | FL20: 78391 | FO20: 1455 | FP20: 老繊維 | FQ20: Nakano | FR20: 2021-04-03 | FS20: 343 | FT20: 111263 | FU20: △▲ | FV20: 46047 | FY20: 1456 | FZ20: 豪工業 | GA20: Nakano | GB20: 2021-04-03 | GC20: 235 | GD20: 381091 | GE20: □△ | GF20: -94793 | GI20: 1506 | GJ20: 加不動産 | GK20: Tanaka | GL20: 2021-04-13 | GM20: 330 | GN20: 451366 | GO20: 〇▼ | GP20: -4972 | GS20: 1507 | GT20: 伯商会 | GU20: Nakano | GV20: 2021-04-13 | GW20: 331 | GX20: 600918 | GY20: 〇◆ | GZ20: -58567
A21: 215 | B21: 印度商事 | C21: Suzuki | D21: 2020-05-13 | E21: 327 | F21: 820092 | G21: 〇▽ | H21: -92226 | K21: 178 | L21: 米商会 | M21: Ito | N21: 2020-05-09 | O21: 256 | P21: 458732 | Q21: 〇□ | R21: 193117 | U21: 167 | V21: 英販売 | W21: Nakano | X21: 2020-05-05 | Y21: 343 | Z21: 310860 | AA21: △〇 | AB21: 174965 | AE21: 174 | AF21: 露不動産 | AG21: Yoshida | AH21: 2020-05-08 | AI21: 535 | AJ21: 478696 | AK21: □〇 | AL21: 183227 | AO21: 206 | AP21: 欄航空 | AQ21: Sato | AR21: 2020-05-12 | AS21: 229 | AT21: 785747 | AU21: 〇◇ | AV21: -78237 | AY21: 260 | AZ21: 伊研究所 | BA21: Mita | BB21: 2020-05-15 | BC21: 177 | BD21: 206664 | BE21: 〇▽ | BF21: -30872 | BI21: 397 | BJ21: 尼百貨店 | BK21: Nakano | BL21: 2020-06-16 | BM21: 197 | BN21: 531251 | BO21: □■ | BP21: 113033 | BS21: 600 | BT21: 香商船 | BU21: Suzuki | BV21: 2020-07-17 | BW21: 540 | BX21: 130043 | BY21: □◆ | BZ21: -73911 | CC21: 328 | CD21: 沙信託 | CE21: Nakano | CF21: 2020-06-03 | CG21: 201 | CH21: 566777 | CI21: 〇〇 | CJ21: 26410 | CM21: 329 | CN21: 星ホテル | CO21: Nakano | CP21: 2020-06-06 | CQ21: 299 | CR21: 363689 | CS21: △◇ | CT21: -27194 | CW21: 424 | CX21: 泰製本 | CY21: Mita | CZ21: 2020-06-16 | DA21: 224 | DB21: 997787 | DC21: 〇▼ | DD21: -5037 | DG21: 337 | DH21: 台建設 | DI21: Ito | DJ21: 2020-06-08 | DK21: 492 | DL21: 892601 | DM21: 〇◆ | DN21: 120871 | DQ21: 1499 | DR21: 比石油 | DS21: Yoshida | DT21: 2021-04-12 | DU21: 234 | DV21: 952507 | DW21: △〇 | DX21: 88895 | EA21: 1500 | EB21: 越繊維 | EC21: Tanaka | ED21: 2021-04-12 | EE21: 235 | EF21: 539386 | EG21: □▼ | EH21: 81113 | EK21: 1501 | EL21: 馬紡績 | EM21: Nakano | EN21: 2021-04-12 | EO21: 325 | EP21: 835533 | EQ21: 〇◆ | ER21: 78895 | EU21: 1502 | EV21: 緬物産 | EW21: Tanaka | EX21: 2021-04-12 | EY21: 326 | EZ21: 450966 | FA21: 〇◆ | FB21: 99667 | FE21: 1503 | FF21: 蒙印刷 | FG21: Ito | FH21: 2021-04-13 | FI21: 327 | FJ21: 396554 | FK21: □◆ | FL21: 159605 | FO21: 1504 | FP21: 老繊維 | FQ21: Suzuki | FR21: 2021-04-13 | FS21: 328 | FT21: 969545 | FU21: △▽ | FV21: -93088 | FY21: 1505 | FZ21: 豪工業 | GA21: Tanaka | GB21: 2021-04-13 | GC21: 329 | GD21: 731094 | GE21: 〇▼ | GF21: 9331 | GI21: 1597 | GJ21: 加不動産 | GK21: Ito | GL21: 2021-04-21 | GM21: 840 | GN21: 858127 | GO21: □□ | GP21: 139266 | GS21: 1598 | GT21: 伯商会 | GU21: Suzuki | GV21: 2021-04-21 | GW21: 841 | GX21: 592018 | GY21: △△ | GZ21: -77888
A22: 224 | B22: 印度商事 | C22: Suzuki | D22: 2020-05-13 | E22: 336 | F22: 280334 | G22: △〇 | H22: 18780 | K22: 184 | L22: 米商会 | M22: Yoshida | N22: 2020-05-10 | O22: 232 | P22: 463410 | Q22: △▽ | R22: 198708 | U22: 180 | V22: 英販売 | W22: Yoshida | X22: 2020-05-09 | Y22: 258 | Z22: 508360 | AA22: 〇〇 | AB22: 167073 | AE22: 182 | AF22: 露不動産 | AG22: Suzuki | AH22: 2020-05-10 | AI22: 230 | AJ22: 178381 | AK22: 〇△ | AL22: 68729 | AO22: 214 | AP22: 欄航空 | AQ22: Ito | AR22: 2020-05-13 | AS22: 326 | AT22: 949046 | AU22: △◆ | AV22: -59796 | AY22: 275 | AZ22: 伊研究所 | BA22: Yoshida | BB22: 2020-05-16 | BC22: 549 | BD22: 222060 | BE22: □▽ | BF22: -97471 | BI22: 446 | BJ22: 尼百貨店 | BK22: Suzuki | BL22: 2020-06-17 | BM22: 695 | BN22: 968028 | BO22: △■ | BP22: -83113 | BS22: 630 | BT22: 香商船 | BU22: Tanaka | BV22: 2020-07-21 | BW22: 253 | BX22: 540165 | BY22: △▲ | BZ22: 120644 | CC22: 349 | CD22: 沙信託 | CE22: Ito | CF22: 2020-06-10 | CG22: 191 | CH22: 785947 | CI22: △△ | CJ22: -88945 | CM22: 348 | CN22: 星ホテル | CO22: Ito | CP22: 2020-06-10 | CQ22: 190 | CR22: 445099 | CS22: 〇■ | CT22: 152351 | CW22: 444 | CX22: 泰製本 | CY22: Sato | CZ22: 2020-06-17 | DA22: 693 | DB22: 584398 | DC22: △◇ | DD22: 182368 | DG22: 355 | DH22: 台建設 | DI22: Nakano | DJ22: 2020-06-11 | DK22: 300 | DL22: 288150 | DM22: □◇ | DN22: -67822 | DQ22: 1590 | DR22: 比石油 | DS22: Nakano | DT22: 2021-04-21 | DU22: 259 | DV22: 551114 | DW22: 〇■ | DX22: 168399 | EA22: 1591 | EB22: 越繊維 | EC22: Tanaka | ED22: 2021-04-21 | EE22: 260 | EF22: 775862 | EG22: 〇△ | EH22: -6745 | EK22: 1592 | EL22: 馬紡績 | EM22: Suzuki | EN22: 2021-04-21 | EO22: 261 | EP22: 741331 | EQ22: △〇 | ER22: -97088 | EU22: 1593 | EV22: 緬物産 | EW22: Mita | EX22: 2021-04-21 | EY22: 262 | EZ22: 220906 | FA22: □■ | FB22: 157014 | FE22: 1594 | FF22: 蒙印刷 | FG22: Mita | FH22: 2021-04-21 | FI22: 263 | FJ22: 403488 | FK22: □■ | FL22: 24817 | FO22: 1595 | FP22: 老繊維 | FQ22: Mita | FR22: 2021-04-21 | FS22: 264 | FT22: 777627 | FU22: △▼ | FV22: -40007 | FY22: 1596 | FZ22: 豪工業 | GA22: Mita | GB22: 2021-04-21 | GC22: 265 | GD22: 376722 | GE22: □▲ | GF22: 145333 | GI22: 1741 | GJ22: 加不動産 | GK22: Ito | GL22: 2021-05-17 | GM22: 702 | GN22: 388882 | GO22: 〇▼ | GP22: 54978 | GS22: 1742 | GT22: 伯商会 | GU22: Ito | GV22: 2021-05-17 | GW22: 703 | GX22: 833416 | GY22: △▼ | GZ22: 184050
A23: 233 | B23: 印度商事 | C23: Sato | D23: 2020-05-15 | E23: 139 | F23: 139141 | G23: △◇ | H23: 5292 | K23: 191 | L23: 米商会 | M23: Ito | N23: 2020-05-11 | O23: 342 | P23: 268923 | Q23: 〇◇ | R23: -93388 | U23: 189 | V23: 英販売 | W23: Ito | X23: 2020-05-11 | Y23: 340 | Z23: 336889 | AA23: △▽ | AB23: 145456 | AE23: 190 | AF23: 露不動産 | AG23: Ito | AH23: 2020-05-11 | AI23: 341 | AJ23: 628549 | AK23: 〇◆ | AL23: -82461 | AO23: 228 | AP23: 欄航空 | AQ23: Sato | AR23: 2020-05-13 | AS23: 340 | AT23: 248914 | AU23: □▼ | AV23: 19632 | AY23: 281 | AZ23: 伊研究所 | BA23: Sato | BB23: 2020-05-17 | BC23: 736 | BD23: 209181 | BE23: △◇ | BF23: 29884 | BI23: 478 | BJ23: 尼百貨店 | BK23: Suzuki | BL23: 2020-06-30 | BM23: 803 | BN23: 552073 | BO23: △△ | BP23: 138811 | BS23: 660 | BT23: 香商船 | BU23: Suzuki | BV23: 2020-08-08 | BW23: 505 | BX23: 102051 | BY23: △〇 | BZ23: -21197 | CC23: 361 | CD23: 沙信託 | CE23: Nakano | CF23: 2020-06-11 | CG23: 306 | CH23: 487171 | CI23: △▲ | CJ23: 100729 | CM23: 372 | CN23: 星ホテル | CO23: Mita | CP23: 2020-06-12 | CQ23: 189 | CR23: 869206 | CS23: △□ | CT23: 123486 | CW23: 475 | CX23: 泰製本 | CY23: Suzuki | CZ23: 2020-06-30 | DA23: 800 | DB23: 569458 | DC23: □〇 | DD23: 192345 | DG23: 382 | DH23: 台建設 | DI23: Tanaka | DJ23: 2020-06-13 | DK23: 288 | DL23: 923526 | DM23: △▲ | DN23: 142441 | DQ23: 1639 | DR23: 比石油 | DS23: Tanaka | DT23: 2021-05-11 | DU23: 296 | DV23: 403387 | DW23: 〇△ | DX23: 7309 | EA23: 1640 | EB23: 越繊維 | EC23: Suzuki | ED23: 2021-05-11 | EE23: 297 | EF23: 300021 | EG23: □■ | EH23: -40103 | EK23: 1641 | EL23: 馬紡績 | EM23: Nakano | EN23: 2021-05-11 | EO23: 298 | EP23: 812520 | EQ23: 〇▲ | ER23: -45206 | EU23: 1642 | EV23: 緬物産 | EW23: Yoshida | EX23: 2021-05-11 | EY23: 299 | EZ23: 616202 | FA23: □■ | FB23: 30387 | FE23: 1643 | FF23: 蒙印刷 | FG23: Nakano | FH23: 2021-05-11 | FI23: 300 | FJ23: 756277 | FK23: □◇ | FL23: -27395 | FO23: 1644 | FP23: 老繊維 | FQ23: Tanaka | FR23: 2021-05-11 | FS23: 301 | FT23: 112599 | FU23: △▲ | FV23: 49868 | FY23: 1645 | FZ23: 豪工業 | GA23: Suzuki | GB23: 2021-05-11 | GC23: 302 | GD23: 292862 | GE23: △▼ | GF23: 91955 | GI23: 1790 | GJ23: 加不動産 | GK23: Sato | GL23: 2021-06-09 | GM23: 246 | GN23: 508886 | GO23: △▼ | GP23: -11786 | GS23: 1791 | GT23: 伯商会 | GU23: Suzuki | GV23: 2021-06-09 | GW23: 217 | GX23: 411029 | GY23: △◇ | GZ23: 52828
A24: 240 | B24: 印度商事 | C24: Nakano | D24: 2020-05-15 | E24: 146 | F24: 139758 | G24: △〇 | H24: 44485 | K24: 198 | L24: 米商会 | M24: Suzuki | N24: 2020-05-11 | O24: 349 | P24: 612782 | Q24: △▲ | R24: 59231 | U24: 193 | V24: 英販売 | W24: Sato | X24: 2020-05-11 | Y24: 344 | Z24: 440976 | AA24: 〇■ | AB24: -73196 | AE24: 195 | AF24: 露不動産 | AG24: Sato | AH24: 2020-05-11 | AI24: 346 | AJ24: 632780 | AK24: □▲ | AL24: -1324 | AO24: 239 | AP24: 欄航空 | AQ24: Sato | AR24: 2020-05-15 | AS24: 145 | AT24: 915678 | AU24: 〇◆ | AV24: 157988 | AY24: 293 | AZ24: 伊研究所 | BA24: Nakano | BB24: 2020-05-17 | BC24: 748 | BD24: 332598 | BE24: □■ | BF24: 121327 | BI24: 488 | BJ24: 尼百貨店 | BK24: Nakano | BL24: 2020-07-03 | BM24: 233 | BN24: 803712 | BO24: □◇ | BP24: -75813 | BS24: 680 | BT24: 香商船 | BU24: Sato | BV24: 2020-08-11 | BW24: 315 | BX24: 482577 | BY24: □▽ | BZ24: -58805 | CC24: 371 | CD24: 沙信託 | CE24: Sato | CF24: 2020-06-12 | CG24: 188 | CH24: 870823 | CI24: △▲ | CJ24: -28604 | CM24: 389 | CN24: 星ホテル | CO24: Nakano | CP24: 2020-06-13 | CQ24: 295 | CR24: 202666 | CS24: □〇 | CT24: 60378 | CW24: 491 | CX24: 泰製本 | CY24: Suzuki | CZ24: 2020-07-07 | DA24: 224 | DB24: 283865 | DC24: □〇 | DD24: 96483 | DG24: 394 | DH24: 台建設 | DI24: Ito | DJ24: 2020-06-16 | DK24: 194 | DL24: 655535 | DM24: 〇▲ | DN24: -41165 | DQ24: 1734 | DR24: 比石油 | DS24: Tanaka | DT24: 2021-05-17 | DU24: 695 | DV24: 512869 | DW24: △■ | DX24: -75926 | EA24: 1735 | EB24: 越繊維 | EC24: Yoshida | ED24: 2021-05-17 | EE24: 696 | EF24: 833459 | EG24: □△ | EH24: 32879 | EK24: 1736 | EL24: 馬紡績 | EM24: Tanaka | EN24: 2021-05-17 | EO24: 697 | EP24: 668790 | EQ24: △▽ | ER24: -13012 | EU24: 1737 | EV24: 緬物産 | EW24: Nakano | EX24: 2021-05-17 | EY24: 698 | EZ24: 597986 | FA24: △□ | FB24: -75274 | FE24: 1738 | FF24: 蒙印刷 | FG24: Suzuki | FH24: 2021-05-17 | FI24: 699 | FJ24: 316095 | FK24: 〇□ | FL24: -39421 | FO24: 1739 | FP24: 老繊維 | FQ24: Nakano | FR24: 2021-05-17 | FS24: 700 | FT24: 866606 | FU24: △■ | FV24: 121066 | FY24: 1740 | FZ24: 豪工業 | GA24: Suzuki | GB24: 2021-05-17 | GC24: 701 | GD24: 398424 | GE24: 〇△ | GF24: 102434 | GI24: 1875 | GJ24: 加不動産 | GK24: Ito | GL24: 2021-06-16 | GM24: 527 | GN24: 635374 | GO24: 〇▽ | GP24: 115251 | GS24: 1876 | GT24: 伯商会 | GU24: Nakano | GV24: 2021-06-16 | GW24: 528 | GX24: 351977 | GY24: △▲ | GZ24: 10002
A25: 261 | B25: 印度商事 | C25: Suzuki | D25: 2020-05-16 | E25: 535 | F25: 645310 | G25: □▽ | H25: 109213 | K25: 211 | L25: 米商会 | M25: Mita | N25: 2020-05-12 | O25: 234 | P25: 675593 | Q25: □▼ | R25: -37151 | U25: 200 | V25: 英販売 | W25: Tanaka | X25: 2020-05-11 | Y25: 351 | Z25: 516080 | AA25: □▲ | AB25: -74487 | AE25: 202 | AF25: 露不動産 | AG25: Yoshida | AH25: 2020-05-12 | AI25: 225 | AJ25: 695775 | AK25: 〇■ | AL25: 44717 | AO25: 267 | AP25: 欄航空 | AQ25: Mita | AR25: 2020-05-16 | AS25: 541 | AT25: 224120 | AU25: □■ | AV25: 75689 | AY25: 309 | AZ25: 伊研究所 | BA25: Nakano | BB25: 2020-05-30 | BC25: 840 | BD25: 155920 | BE25: □▼ | BF25: 176855 | BI25: 499 | BJ25: 尼百貨店 | BK25: Ito | BL25: 2020-07-09 | BM25: 243 | BN25: 415574 | BO25: □〇 | BP25: -8655 | BS25: 701 | BT25: 香商船 | BU25: Ito | BV25: 2020-08-13 | BW25: 297 | BX25: 473847 | BY25: △▽ | BZ25: -36750 | CC25: 390 | CD25: 沙信託 | CE25: Suzuki | CF25: 2020-06-13 | CG25: 296 | CH25: 940184 | CI25: 〇▼ | CJ25: -52514 | CM25: 399 | CN25: 星ホテル | CO25: Suzuki | CP25: 2020-06-16 | CQ25: 199 | CR25: 401059 | CS25: 〇▲ | CT25: 141197 | CW25: 509 | CX25: 泰製本 | CY25: Tanaka | CZ25: 2020-07-10 | DA25: 223 | DB25: 982843 | DC25: □▽ | DD25: 65775 | DG25: 410 | DH25: 台建設 | DI25: Suzuki | DJ25: 2020-06-16 | DK25: 210 | DL25: 439593 | DM25: □◇ | DN25: 73526 | DQ25: 1783 | DR25: 比石油 | DS25: Sato | DT25: 2021-06-07 | DU25: 419 | DV25: 161698 | DW25: △▼ | DX25: 117597 | EA25: 1784 | EB25: 越繊維 | EC25: Suzuki | ED25: 2021-06-07 | EE25: 523 | EF25: 446041 | EG25: □▽ | EH25: -8718 | EK25: 1785 | EL25: 馬紡績 | EM25: Sato | EN25: 2021-06-07 | EO25: 524 | EP25: 989015 | EQ25: △△ | ER25: -6512 | EU25: 1786 | EV25: 緬物産 | EW25: Mita | EX25: 2021-06-08 | EY25: 525 | EZ25: 998665 | FA25: □◆ | FB25: -36581 | FE25: 1787 | FF25: 蒙印刷 | FG25: Mita | FH25: 2021-06-08 | FI25: 243 | FJ25: 966321 | FK25: 〇■ | FL25: 127248 | FO25: 1788 | FP25: 老繊維 | FQ25: Ito | FR25: 2021-06-08 | FS25: 244 | FT25: 626053 | FU25: △□ | FV25: -11215 | FY25: 1789 | FZ25: 豪工業 | GA25: Suzuki | GB25: 2021-06-09 | GC25: 245 | GD25: 302371 | GE25: □〇 | GF25: 35583 | GI25: 2019 | GJ25: 加不動産 | GK25: Tanaka | GL25: 2021-07-17 | GM25: 132 | GN25: 497856 | GO25: □△ | GP25: 108746 | GS25: 2020 | GT25: 伯商会 | GU25: Nakano | GV25: 2021-07-17 | GW25: 133 | GX25: 735385 | GY25: △▼ | GZ25: 188337
A26: 268 | B26: 印度商事 | C26: Sato | D26: 2020-05-16 | E26: 542 | F26: 888607 | G26: □△ | H26: 64496 | K26: 218 | L26: 米商会 | M26: Ito | N26: 2020-05-13 | O26: 330 | P26: 989873 | Q26: △□ | R26: 58746 | U26: 210 | V26: 英販売 | W26: Mita | X26: 2020-05-12 | Y26: 233 | Z26: 967687 | AA26: △◇ | AB26: 50465 | AE26: 212 | AF26: 露不動産 | AG26: Tanaka | AH26: 2020-05-12 | AI26: 235 | AJ26: 757301 | AK26: △〇 | AL26: 144324 | AO26: 271 | AP26: 欄航空 | AQ26: Ito | AR26: 2020-05-16 | AS26: 545 | AT26: 230332 | AU26: 〇△ | AV26: 166051 | AY26: 321 | AZ26: 伊研究所 | BA26: Mita | BB26: 2020-05-31 | BC26: 202 | BD26: 469771 | BE26: □■ | BF26: -53891 | BI26: 513 | BJ26: 尼百貨店 | BK26: Yoshida | BL26: 2020-07-11 | BM26: 330 | BN26: 607593 | BO26: □〇 | BP26: -11991 | BS26: 750 | BT26: 香商船 | BU26: Nakano | BV26: 2020-08-18 | BW26: 508 | BX26: 524509 | BY26: 〇□ | BZ26: 61837 | CC26: 400 | CD26: 沙信託 | CE26: Ito | CF26: 2020-06-16 | CG26: 200 | CH26: 593282 | CI26: 〇〇 | CJ26: 137894 | CM26: 417 | CN26: 星ホテル | CO26: Sato | CP26: 2020-06-16 | CQ26: 217 | CR26: 379731 | CS26: □△ | CT26: 66021 | CW26: 534 | CX26: 泰製本 | CY26: Yoshida | CZ26: 2020-07-12 | DA26: 223 | DB26: 177829 | DC26: □■ | DD26: 165198 | DG26: 425 | DH26: 台建設 | DI26: Ito | DJ26: 2020-06-16 | DK26: 225 | DL26: 560151 | DM26: 〇▽ | DN26: 180240 | DQ26: 1868 | DR26: 比石油 | DS26: Ito | DT26: 2021-06-16 | DU26: 163 | DV26: 575426 | DW26: △◆ | DX26: 168916 | EA26: 1869 | EB26: 越繊維 | EC26: Sato | ED26: 2021-06-16 | EE26: 164 | EF26: 221399 | EG26: □◇ | EH26: -67882 | EK26: 1870 | EL26: 馬紡績 | EM26: Ito | EN26: 2021-06-16 | EO26: 165 | EP26: 884896 | EQ26: □〇 | ER26: 76998 | EU26: 1871 | EV26: 緬物産 | EW26: Tanaka | EX26: 2021-06-16 | EY26: 523 | EZ26: 111619 | FA26: △□ | FB26: -48030 | FE26: 1872 | FF26: 蒙印刷 | FG26: Nakano | FH26: 2021-06-16 | FI26: 524 | FJ26: 372668 | FK26: □▽ | FL26: -95647 | FO26: 1873 | FP26: 老繊維 | FQ26: Tanaka | FR26: 2021-06-16 | FS26: 525 | FT26: 758742 | FU26: □△ | FV26: 80455 | FY26: 1874 | FZ26: 豪工業 | GA26: Ito | GB26: 2021-06-16 | GC26: 526 | GD26: 575690 | GE26: □▲ | GF26: 115982 | GI26: 2068 | GJ26: 加不動産 | GK26: Nakano | GL26: 2021-07-20 | GM26: 103 | GN26: 198288 | GO26: △□ | GP26: 118320 | GS26: 2069 | GT26: 伯商会 | GU26: Nakano | GV26: 2021-07-21 | GW26: 222 | GX26: 195189 | GY26: 〇◆ | GZ26: 102601
A27: 276 | B27: 印度商事 | C27: Yoshida | D27: 2020-05-16 | E27: 550 | F27: 271037 | G27: 〇■ | H27: -80569 | K27: 222 | L27: 米商会 | M27: Sato | N27: 2020-05-13 | O27: 334 | P27: 576977 | Q27: 〇◆ | R27: -59981 | U27: 216 | V27: 英販売 | W27: Sato | X27: 2020-05-13 | Y27: 328 | Z27: 213853 | AA27: △〇 | AB27: 21761 | AE27: 217 | AF27: 露不動産 | AG27: Sato | AH27: 2020-05-13 | AI27: 329 | AJ27: 747136 | AK27: △▲ | AL27: 177654 | AO27: 288 | AP27: 欄航空 | AQ27: Ito | AR27: 2020-05-17 | AS27: 743 | AT27: 798018 | AU27: △▼ | AV27: 97291 | AY27: 333 | AZ27: 伊研究所 | BA27: Yoshida | BB27: 2020-06-07 | BC27: 385 | BD27: 932097 | BE27: △▲ | BF27: 3662 | BI27: 526 | BJ27: 尼百貨店 | BK27: Mita | BL27: 2020-07-12 | BM27: 215 | BN27: 411563 | BO27: △□ | BP27: 15680 | BS27: 780 | BT27: 香商船 | BU27: Yoshida | BV27: 2020-08-20 | BW27: 103 | BX27: 977273 | BY27: 〇〇 | BZ27: -59731 | CC27: 418 | CD27: 沙信託 | CE27: Yoshida | CF27: 2020-06-16 | CG27: 218 | CH27: 178840 | CI27: 〇■ | CJ27: 177101 | CM27: 432 | CN27: 星ホテル | CO27: Nakano | CP27: 2020-06-16 | CQ27: 232 | CR27: 942554 | CS27: □■ | CT27: -78945 | CW27: 548 | CX27: 泰製本 | CY27: Suzuki | CZ27: 2020-07-13 | DA27: 326 | DB27: 768903 | DC27: 〇〇 | DD27: 141811 | DG27: 443 | DH27: 台建設 | DI27: Tanaka | DJ27: 2020-06-17 | DK27: 692 | DL27: 693289 | DM27: □◇ | DN27: 185008 | DQ27: 1917 | DR27: 比石油 | DS27: Ito | DT27: 2021-06-21 | DU27: 252 | DV27: 429341 | DW27: 〇◆ | DX27: 180425 | EA27: 1918 | EB27: 越繊維 | EC27: Suzuki | ED27: 2021-06-21 | EE27: 253 | EF27: 125999 | EG27: 〇△ | EH27: 148703 | EK27: 1919 | EL27: 馬紡績 | EM27: Nakano | EN27: 2021-06-21 | EO27: 828 | EP27: 700633 | EQ27: □▲ | ER27: 95595 | EU27: 1920 | EV27: 緬物産 | EW27: Nakano | EX27: 2021-06-21 | EY27: 829 | EZ27: 118869 | FA27: □◇ | FB27: 143551 | FE27: 1921 | FF27: 蒙印刷 | FG27: Ito | FH27: 2021-06-30 | FI27: 830 | FJ27: 804706 | FK27: 〇■ | FL27: 99110 | FO27: 1922 | FP27: 老繊維 | FQ27: Ito | FR27: 2021-06-30 | FS27: 831 | FT27: 327797 | FU27: 〇△ | FV27: -40385 | FY27: 1923 | FZ27: 豪工業 | GA27: Suzuki | GB27: 2021-06-30 | GC27: 832 | GD27: 234713 | GE27: 〇▼ | GF27: 191492 | GI27: 2147 | GJ27: 加不動産 | GK27: Yoshida | GL27: 2021-08-13 | GM27: 327 | GN27: 979083 | GO27: 〇■ | GP27: 38841 | GS27: 2148 | GT27: 伯商会 | GU27: Sato | GV27: 2021-08-13 | GW27: 328 | GX27: 261515 | GY27: □◆ | GZ27: 104338
A28: 282 | B28: 印度商事 | C28: Yoshida | D28: 2020-05-17 | E28: 737 | F28: 497794 | G28: △△ | H28: -78188 | K28: 227 | L28: 米商会 | M28: Nakano | N28: 2020-05-13 | O28: 339 | P28: 442702 | Q28: △▲ | R28: 95290 | U28: 223 | V28: 英販売 | W28: Mita | X28: 2020-05-13 | Y28: 335 | Z28: 687931 | AA28: 〇■ | AB28: 48888 | AE28: 226 | AF28: 露不動産 | AG28: Mita | AH28: 2020-05-13 | AI28: 338 | AJ28: 303635 | AK28: 〇〇 | AL28: 198575 | AO28: 315 | AP28: 欄航空 | AQ28: Ito | AR28: 2020-05-30 | AS28: 846 | AT28: 917484 | AU28: □■ | AV28: 15943 | AY28: 344 | AZ28: 伊研究所 | BA28: Sato | BB28: 2020-06-10 | BC28: 186 | BD28: 203755 | BE28: 〇▼ | BF28: -41034 | BI28: 550 | BJ28: 尼百貨店 | BK28: Nakano | BL28: 2020-07-13 | BM28: 328 | BN28: 854525 | BO28: □▼ | BP28: 70282 | BS28: 810 | BT28: 香商船 | BU28: Nakano | BV28: 2020-09-01 | BW28: 245 | BX28: 361002 | BY28: 〇□ | BZ28: 143680 | CC28: 439 | CD28: 沙信託 | CE28: Sato | CF28: 2020-06-16 | CG28: 239 | CH28: 983145 | CI28: 〇〇 | CJ28: 51453 | CM28: 438 | CN28: 星ホテル | CO28: Sato | CP28: 2020-06-16 | CQ28: 238 | CR28: 917639 | CS28: △◆ | CT28: 176865 | CW28: 577 | CX28: 泰製本 | CY28: Yoshida | CZ28: 2020-07-17 | DA28: 160 | DB28: 102641 | DC28: □〇 | DD28: -52664 | DG28: 459 | DH28: 台建設 | DI28: Sato | DJ28: 2020-06-21 | DK28: 210 | DL28: 725902 | DM28: △▲ | DN28: 34793 | DQ28: 2012 | DR28: 比石油 | DS28: Tanaka | DT28: 2021-07-17 | DU28: 114 | DV28: 397502 | DW28: □▽ | DX28: 176326 | EA28: 2013 | EB28: 越繊維 | EC28: Sato | ED28: 2021-07-17 | EE28: 115 | EF28: 773432 | EG28: △◇ | EH28: -20262 | EK28: 2014 | EL28: 馬紡績 | EM28: Yoshida | EN28: 2021-07-17 | EO28: 116 | EP28: 921873 | EQ28: □△ | ER28: 58187 | EU28: 2015 | EV28: 緬物産 | EW28: Sato | EX28: 2021-07-17 | EY28: 117 | EZ28: 916829 | FA28: △■ | FB28: -48688 | FE28: 2016 | FF28: 蒙印刷 | FG28: Mita | FH28: 2021-07-17 | FI28: 118 | FJ28: 277191 | FK28: □□ | FL28: -12962 | FO28: 2017 | FP28: 老繊維 | FQ28: Mita | FR28: 2021-07-17 | FS28: 130 | FT28: 446867 | FU28: □▲ | FV28: 25049 | FY28: 2018 | FZ28: 豪工業 | GA28: Yoshida | GB28: 2021-07-17 | GC28: 131 | GD28: 738843 | GE28: □▲ | GF28: 167921 | GI28: 2291 | GJ28: 加不動産 | GK28: Yoshida | GL28: 2021-09-11 | GM28: 304 | GN28: 332118 | GO28: 〇◇ | GP28: 37814 | GS28: 2292 | GT28: 伯商会 | GU28: Sato | GV28: 2021-09-11 | GW28: 305 | GX28: 364061 | GY28: 〇■ | GZ28: 180523
A29: 289 | B29: 印度商事 | C29: Ito | D29: 2020-05-17 | E29: 744 | F29: 310733 | G29: △■ | H29: -97189 | K29: 235 | L29: 米商会 | M29: Ito | N29: 2020-05-15 | O29: 141 | P29: 691138 | Q29: △□ | R29: 44156 | U29: 231 | V29: 英販売 | W29: Mita | X29: 2020-05-15 | Y29: 137 | Z29: 502593 | AA29: △◇ | AB29: -49700 | AE29: 234 | AF29: 露不動産 | AG29: Mita | AH29: 2020-05-15 | AI29: 140 | AJ29: 368615 | AK29: □△ | AL29: -60930 | AO29: 318 | AP29: 欄航空 | AQ29: Mita | AR29: 2020-05-30 | AS29: 849 | AT29: 902388 | AU29: 〇◇ | AV29: 196007 | AY29: 353 | AZ29: 伊研究所 | BA29: Nakano | BB29: 2020-06-11 | BC29: 298 | BD29: 271864 | BE29: □■ | BF29: -49842 | BI29: 599 | BJ29: 尼百貨店 | BK29: Suzuki | BL29: 2020-07-17 | BM29: 539 | BN29: 923853 | BO29: △◇ | BP29: 32497 | BS29: 830 | BT29: 香商船 | BU29: Yoshida | BV29: 2020-09-10 | BW29: 234 | BX29: 731340 | BY29: □▼ | BZ29: -26783 | CC29: 449 | CD29: 沙信託 | CE29: Tanaka | CF29: 2020-06-17 | CG29: 698 | CH29: 587177 | CI29: △◇ | CJ29: 157514 | CM29: 448 | CN29: 星ホテル | CO29: Suzuki | CP29: 2020-06-17 | CQ29: 697 | CR29: 107916 | CS29: □〇 | CT29: 9628 | CW29: 597 | CX29: 泰製本 | CY29: Tanaka | CZ29: 2020-07-17 | DA29: 537 | DB29: 907654 | DC29: 〇▼ | DD29: 12156 | DG29: 476 | DH29: 台建設 | DI29: Suzuki | DJ29: 2020-06-30 | DK29: 801 | DL29: 180745 | DM29: □◆ | DN29: -31344 | DQ29: 2061 | DR29: 比石油 | DS29: Sato | DT29: 2021-07-17 | DU29: 712 | DV29: 537038 | DW29: 〇〇 | DX29: -34135 | EA29: 2062 | EB29: 越繊維 | EC29: Sato | ED29: 2021-07-17 | EE29: 713 | EF29: 458860 | EG29: □▽ | EH29: -11439 | EK29: 2063 | EL29: 馬紡績 | EM29: Mita | EN29: 2021-07-17 | EO29: 714 | EP29: 548278 | EQ29: 〇〇 | ER29: 38842 | EU29: 2064 | EV29: 緬物産 | EW29: Ito | EX29: 2021-07-17 | EY29: 715 | EZ29: 764181 | FA29: □▽ | FB29: 128294 | FE29: 2065 | FF29: 蒙印刷 | FG29: Sato | FH29: 2021-07-17 | FI29: 716 | FJ29: 692572 | FK29: 〇■ | FL29: 77196 | FO29: 2066 | FP29: 老繊維 | FQ29: Mita | FR29: 2021-07-18 | FS29: 603 | FT29: 347247 | FU29: 〇▲ | FV29: 44292 | FY29: 2067 | FZ29: 豪工業 | GA29: Yoshida | GB29: 2021-07-19 | GC29: 302 | GD29: 510227 | GE29: 〇□ | GF29: 74624 | GI29: 2340 | GJ29: 加不動産 | GK29: Mita | GL29: 2021-09-19 | GM29: 208 | GN29: 660785 | GO29: 〇▽ | GP29: -74165 | GS29: 2341 | GT29: 伯商会 | GU29: Suzuki | GV29: 2021-09-19 | GW29: 209 | GX29: 189823 | GY29: 〇△ | GZ29: 11143
A30: 310 | B30: 印度商事 | C30: Ito | D30: 2020-05-30 | E30: 841 | F30: 141690 | G30: □〇 | H30: 117939 | K30: 263 | L30: 米商会 | M30: Tanaka | N30: 2020-05-16 | O30: 537 | P30: 737157 | Q30: □◇ | R30: 60562 | U30: 236 | V30: 英販売 | W30: Nakano | X30: 2020-05-15 | Y30: 142 | Z30: 474580 | AA30: □□ | AB30: 111720 | AE30: 241 | AF30: 露不動産 | AG30: Mita | AH30: 2020-05-15 | AI30: 147 | AJ30: 100327 | AK30: □△ | AL30: 92057 | AO30: 331 | AP30: 欄航空 | AQ30: Tanaka | AR30: 2020-06-06 | AS30: 192 | AT30: 358781 | AU30: 〇◆ | AV30: 109490 | AY30: 365 | AZ30: 伊研究所 | BA30: Sato | BB30: 2020-06-12 | BC30: 182 | BD30: 306084 | BE30: □□ | BF30: 92512 | BI30: 628 | BJ30: 尼百貨店 | BK30: Nakano | BL30: 2020-07-21 | BM30: 251 | BN30: 704447 | BO30: □◆ | BP30: 28788 | BS30: 851 | BT30: 香商船 | BU30: Tanaka | BV30: 2020-09-12 | BW30: 230 | BX30: 322972 | BY30: □〇 | BZ30: 176370 | CC30: 481 | CD30: 沙信託 | CE30: Sato | CF30: 2020-06-30 | CG30: 806 | CH30: 662412 | CI30: 〇△ | CJ30: 73532 | CM30: 482 | CN30: 星ホテル | CO30: Yoshida | CP30: 2020-06-30 | CQ30: 807 | CR30: 155314 | CS30: □◆ | CT30: 34382 | CW30: 625 | CX30: 泰製本 | CY30: Suzuki | CZ30: 2020-07-21 | DA30: 248 | DB30: 896251 | DC30: △△ | DD30: -94038 | DG30: 490 | DH30: 台建設 | DI30: Mita | DJ30: 2020-07-07 | DK30: 223 | DL30: 754518 | DM30: 〇▽ | DN30: 83377 | DQ30: 2140 | DR30: 比石油 | DS30: Mita | DT30: 2021-08-12 | DU30: 231 | DV30: 720149 | DW30: 〇▲ | DX30: 36836 | EA30: 2141 | EB30: 越繊維 | EC30: Suzuki | ED30: 2021-08-12 | EE30: 232 | EF30: 405500 | EG30: △△ | EH30: -76436 | EK30: 2142 | EL30: 馬紡績 | EM30: Sato | EN30: 2021-08-12 | EO30: 233 | EP30: 229944 | EQ30: □〇 | ER30: -28643 | EU30: 2143 | EV30: 緬物産 | EW30: Nakano | EX30: 2021-08-12 | EY30: 234 | EZ30: 696802 | FA30: 〇□ | FB30: 56749 | FE30: 2144 | FF30: 蒙印刷 | FG30: Sato | FH30: 2021-08-12 | FI30: 235 | FJ30: 323625 | FK30: □▲ | FL30: -78181 | FO30: 2145 | FP30: 老繊維 | FQ30: Sato | FR30: 2021-08-12 | FS30: 325 | FT30: 541015 | FU30: □◇ | FV30: -72407 | FY30: 2146 | FZ30: 豪工業 | GA30: Nakano | GB30: 2021-08-12 | GC30: 326 | GD30: 135533 | GE30: 〇▲ | GF30: -32511 | GI30: 2422 | GJ30: 加不動産 | GK30: Ito | GL30: 2021-10-03 | GM30: 223 | GN30: 897246 | GO30: □◆ | GP30: 143669 | GS30: 2423 | GT30: 伯商会 | GU30: Tanaka | GV30: 2021-10-10 | GW30: 224 | GX30: 314326 | GY30: □◇ | GZ30: -44441
A31: 317 | B31: 印度商事 | C31: Sato | D31: 2020-05-30 | E31: 848 | F31: 463453 | G31: △■ | H31: 6582 | K31: 270 | L31: 米商会 | M31: Tanaka | N31: 2020-05-16 | O31: 544 | P31: 218119 | Q31: □□ | R31: -71670 | U31: 259 | V31: 英販売 | W31: Tanaka | X31: 2020-05-15 | Y31: 176 | Z31: 401982 | AA31: △□ | AB31: 167146 | AE31: 262 | AF31: 露不動産 | AG31: Sato | AH31: 2020-05-16 | AI31: 536 | AJ31: 987785 | AK31: △▼ | AL31: 179898 | AO31: 339 | AP31: 欄航空 | AQ31: Ito | AR31: 2020-06-09 | AS31: 211 | AT31: 357526 | AU31: □▼ | AV31: 3175 | AY31: 384 | AZ31: 伊研究所 | BA31: Ito | BB31: 2020-06-13 | BC31: 290 | BD31: 447255 | BE31: 〇▽ | BF31: -98076 | BI31: 638 | BJ31: 尼百貨店 | BK31: Suzuki | BL31: 2020-07-30 | BM31: 835 | BN31: 749541 | BO31: □□ | BP31: -50967 | BS31: 900 | BT31: 香商船 | BU31: Nakano | BV31: 2020-09-19 | BW31: 173 | BX31: 265718 | BY31: 〇■ | BZ31: 183405 | CC31: 502 | CD31: 沙信託 | CE31: Suzuki | CF31: 2020-07-09 | CG31: 246 | CH31: 618070 | CI31: 〇〇 | CJ31: 20913 | CM31: 501 | CN31: 星ホテル | CO31: Nakano | CP31: 2020-07-09 | CQ31: 245 | CR31: 144608 | CS31: □▽ | CT31: -29773 | CW31: 641 | CX31: 泰製本 | CY31: Yoshida | CZ31: 2020-07-30 | DA31: 838 | DB31: 461228 | DC31: △△ | DD31: 39986 | DG31: 508 | DH31: 台建設 | DI31: Sato | DJ31: 2020-07-10 | DK31: 222 | DL31: 612692 | DM31: △□ | DN31: 134660 | DQ31: 2189 | DR31: 比石油 | DS31: Ito | DT31: 2021-08-18 | DU31: 174 | DV31: 827883 | DW31: 〇▽ | DX31: 23184 | EA31: 2190 | EB31: 越繊維 | EC31: Nakano | ED31: 2021-08-18 | EE31: 175 | EF31: 765525 | EG31: □〇 | EH31: 129341 | EK31: 2191 | EL31: 馬紡績 | EM31: Tanaka | EN31: 2021-08-18 | EO31: 176 | EP31: 940196 | EQ31: △◇ | ER31: -65271 | EU31: 2192 | EV31: 緬物産 | EW31: Yoshida | EX31: 2021-08-18 | EY31: 177 | EZ31: 215334 | FA31: 〇▽ | FB31: -67399 | FE31: 2193 | FF31: 蒙印刷 | FG31: Yoshida | FH31: 2021-08-18 | FI31: 535 | FJ31: 107820 | FK31: □▽ | FL31: 140049 | FO31: 2194 | FP31: 老繊維 | FQ31: Tanaka | FR31: 2021-08-18 | FS31: 536 | FT31: 347368 | FU31: 〇■ | FV31: 57341 | FY31: 2195 | FZ31: 豪工業 | GA31: Suzuki | GB31: 2021-08-18 | GC31: 537 | GD31: 756563 | GE31: □▼ | GF31: -72612 | GI31: 2566 | GJ31: 加不動産 | GK31: Ito | GL31: 2021-10-30 | GM31: 831 | GN31: 515071 | GO31: □△ | GP31: -22217 | GS31: 2567 | GT31: 伯商会 | GU31: Yoshida | GV31: 2021-10-30 | GW31: 832 | GX31: 902471 | GY31: 〇▼ | GZ31: 198764
A32: 324 | B32: 印度商事 | C32: Mita | D32: 2020-06-01 | E32: 366 | F32: 735529 | G32: △▽ | H32: 151301 | K32: 278 | L32: 米商会 | M32: Sato | N32: 2020-05-16 | O32: 552 | P32: 903543 | Q32: 〇◇ | R32: 158456 | U32: 264 | V32: 英販売 | W32: Yoshida | X32: 2020-05-16 | Y32: 538 | Z32: 985057 | AA32: 〇▼ | AB32: -18166 | AE32: 269 | AF32: 露不動産 | AG32: Suzuki | AH32: 2020-05-16 | AI32: 543 | AJ32: 478589 | AK32: □〇 | AL32: -29478 | AO32: 351 | AP32: 欄航空 | AQ32: Sato | AR32: 2020-06-11 | AS32: 296 | AT32: 858842 | AU32: □〇 | AV32: 131382 | AY32: 396 | AZ32: 伊研究所 | BA32: Yoshida | BB32: 2020-06-16 | BC32: 196 | BD32: 203330 | BE32: □□ | BF32: 132849 | BI32: 649 | BJ32: 尼百貨店 | BK32: Yoshida | BL32: 2020-08-03 | BM32: 213 | BN32: 831776 | BO32: △▼ | BP32: 137521 | BS32: 932 | BT32: 香商船 | BU32: Sato | BV32: 2020-09-19 | BW32: 743 | BX32: 699252 | BY32: 〇▼ | BZ32: -15688 | CC32: 514 | CD32: 沙信託 | CE32: Suzuki | CF32: 2020-07-11 | CG32: 331 | CH32: 316159 | CI32: □◆ | CJ32: -23932 | CM32: 525 | CN32: 星ホテル | CO32: Tanaka | CP32: 2020-07-12 | CQ32: 214 | CR32: 545930 | CS32: □■ | CT32: 32631 | CW32: 659 | CX32: 泰製本 | CY32: Sato | CZ32: 2020-08-08 | DA32: 504 | DB32: 555304 | DC32: 〇〇 | DD32: 68823 | DG32: 535 | DH32: 台建設 | DI32: Suzuki | DJ32: 2020-07-13 | DK32: 313 | DL32: 767590 | DM32: 〇▲ | DN32: 141585 | DQ32: 2284 | DR32: 比石油 | DS32: Mita | DT32: 2021-09-10 | DU32: 297 | DV32: 689539 | DW32: □▲ | DX32: -48575 | EA32: 2285 | EB32: 越繊維 | EC32: Tanaka | ED32: 2021-09-11 | EE32: 298 | EF32: 185973 | EG32: △□ | EH32: 38455 | EK32: 2286 | EL32: 馬紡績 | EM32: Suzuki | EN32: 2021-09-11 | EO32: 299 | EP32: 445251 | EQ32: □〇 | ER32: -15668 | EU32: 2287 | EV32: 緬物産 | EW32: Sato | EX32: 2021-09-11 | EY32: 300 | EZ32: 842839 | FA32: □◇ | FB32: 21267 | FE32: 2288 | FF32: 蒙印刷 | FG32: Ito | FH32: 2021-09-11 | FI32: 301 | FJ32: 249211 | FK32: △◆ | FL32: 14524 | FO32: 2289 | FP32: 老繊維 | FQ32: Ito | FR32: 2021-09-11 | FS32: 302 | FT32: 145820 | FU32: △▽ | FV32: 91093 | FY32: 2290 | FZ32: 豪工業 | GA32: Suzuki | GB32: 2021-09-11 | GC32: 303 | GD32: 504912 | GE32: 〇◆ | GF32: 133017 | GI32: 2615 | GJ32: 加不動産 | GK32: Nakano | GL32: 2021-11-11 | GM32: 318 | GN32: 954327 | GO32: △◇ | GP32: 56666 | GS32: 2616 | GT32: 伯商会 | GU32: Ito | GV32: 2021-11-11 | GW32: 319 | GX32: 813811 | GY32: □◇ | GZ32: 173590
A33: 340 | B33: 印度商事 | C33: Suzuki | D33: 2020-06-09 | E33: 212 | F33: 788322 | G33: □■ | H33: 97089 | K33: 284 | L33: 米商会 | M33: Tanaka | N33: 2020-05-17 | O33: 739 | P33: 318344 | Q33: □◆ | R33: 7089 | U33: 274 | V33: 英販売 | W33: Suzuki | X33: 2020-05-16 | Y33: 548 | Z33: 922968 | AA33: △△ | AB33: 41770 | AE33: 277 | AF33: 露不動産 | AG33: Nakano | AH33: 2020-05-16 | AI33: 551 | AJ33: 302291 | AK33: △▲ | AL33: -26038 | AO33: 358 | AP33: 欄航空 | AQ33: Tanaka | AR33: 2020-06-11 | AS33: 303 | AT33: 312775 | AU33: △▼ | AV33: -63086 | AY33: 412 | AZ33: 伊研究所 | BA33: Nakano | BB33: 2020-06-16 | BC33: 212 | BD33: 156918 | BE33: □□ | BF33: 110928 | BI33: 663 | BJ33: 尼百貨店 | BK33: Sato | BL33: 2020-08-09 | BM33: 225 | BN33: 344379 | BO33: □〇 | BP33: 193069 | BS33: 962 | BT33: 香商船 | BU33: Ito | BV33: 2020-09-30 | BW33: 849 | BX33: 920521 | BY33: □◆ | BZ33: -330 | CC33: 524 | CD33: 沙信託 | CE33: Mita | CF33: 2020-07-12 | CG33: 213 | CH33: 919495 | CI33: △▼ | CJ33: -7456 | CM33: 542 | CN33: 星ホテル | CO33: Mita | CP33: 2020-07-13 | CQ33: 320 | CR33: 110722 | CS33: □〇 | CT33: 41119 | CW33: 684 | CX33: 泰製本 | CY33: Nakano | CZ33: 2020-08-11 | DA33: 319 | DB33: 987174 | DC33: □▲ | DD33: 181919 | DG33: 547 | DH33: 台建設 | DI33: Suzuki | DJ33: 2020-07-13 | DK33: 325 | DL33: 213217 | DM33: △▼ | DN33: -39097 | DQ33: 2333 | DR33: 比石油 | DS33: Mita | DT33: 2021-09-19 | DU33: 201 | DV33: 274678 | DW33: △▼ | DX33: 88368 | EA33: 2334 | EB33: 越繊維 | EC33: Ito | ED33: 2021-09-19 | EE33: 202 | EF33: 238592 | EG33: 〇■ | EH33: -5034 | EK33: 2335 | EL33: 馬紡績 | EM33: Mita | EN33: 2021-09-19 | EO33: 203 | EP33: 477678 | EQ33: □▲ | ER33: 52286 | EU33: 2336 | EV33: 緬物産 | EW33: Yoshida | EX33: 2021-09-19 | EY33: 204 | EZ33: 721356 | FA33: □〇 | FB33: -71771 | FE33: 2337 | FF33: 蒙印刷 | FG33: Tanaka | FH33: 2021-09-19 | FI33: 205 | FJ33: 931508 | FK33: △◆ | FL33: 86020 | FO33: 2338 | FP33: 老繊維 | FQ33: Sato | FR33: 2021-09-19 | FS33: 206 | FT33: 576349 | FU33: 〇□ | FV33: -55780 | FY33: 2339 | FZ33: 豪工業 | GA33: Yoshida | GB33: 2021-09-19 | GC33: 207 | GD33: 345675 | GE33: 〇▲ | GF33: 197434 | GI33: 2700 | GJ33: 加不動産 | GK33: Sato | GL33: 2021-11-15 | GM33: 707 | GN33: 393760 | GO33: △△ | GP33: 40345 | GS33: 2701 | GT33: 伯商会 | GU33: Mita | GV33: 2021-11-15 | GW33: 708 | GX33: 292102 | GY33: □△ | GZ33: 155761
A34: 359 | B34: 印度商事 | C34: Nakano | D34: 2020-06-11 | E34: 304 | F34: 971359 | G34: 〇▲ | H34: 21950 | K34: 312 | L34: 米商会 | M34: Suzuki | N34: 2020-05-30 | O34: 843 | P34: 696794 | Q34: 〇◇ | R34: 152402 | U34: 279 | V34: 英販売 | W34: Yoshida | X34: 2020-05-17 | Y34: 734 | Z34: 525110 | AA34: □◇ | AB34: 64981 | AE34: 283 | AF34: 露不動産 | AG34: Nakano | AH34: 2020-05-17 | AI34: 738 | AJ34: 476799 | AK34: 〇△ | AL34: 62445 | AO34: 366 | AP34: 欄航空 | AQ34: Yoshida | AR34: 2020-06-12 | AS34: 183 | AT34: 249152 | AU34: □■ | AV34: 151077 | AY34: 427 | AZ34: 伊研究所 | BA34: Sato | BB34: 2020-06-16 | BC34: 227 | BD34: 751678 | BE34: □□ | BF34: 176634 | BI34: 676 | BJ34: 尼百貨店 | BK34: Mita | BL34: 2020-08-11 | BM34: 311 | BN34: 862214 | BO34: □▼ | BP34: -28134 | BS34: 982 | BT34: 香商船 | BU34: Ito | BV34: 2020-10-10 | BW34: 493 | BX34: 158759 | BY34: 〇□ | BZ34: 115401 | CC34: 543 | CD34: 沙信託 | CE34: Suzuki | CF34: 2020-07-13 | CG34: 321 | CH34: 799685 | CI34: △〇 | CJ34: 153930 | CM34: 552 | CN34: 星ホテル | CO34: Nakano | CP34: 2020-07-17 | CQ34: 124 | CR34: 870074 | CS34: △〇 | CT34: 19370 | CW34: 698 | CX34: 泰製本 | CY34: Ito | CZ34: 2020-08-13 | DA34: 294 | DB34: 477918 | DC34: 〇▼ | DD34: -83754 | DG34: 563 | DH34: 台建設 | DI34: Nakano | DJ34: 2020-07-17 | DK34: 135 | DL34: 209546 | DM34: □□ | DN34: 95077 | DQ34: 2415 | DR34: 比石油 | DS34: Suzuki | DT34: 2021-09-30 | DU34: 398 | DV34: 676091 | DW34: □〇 | DX34: 43802 | EA34: 2416 | EB34: 越繊維 | EC34: Nakano | ED34: 2021-09-30 | EE34: 398 | EF34: 230182 | EG34: 〇▽ | EH34: 179277 | EK34: 2417 | EL34: 馬紡績 | EM34: Suzuki | EN34: 2021-10-01 | EO34: 398 | EP34: 249476 | EQ34: □▽ | ER34: 128595 | EU34: 2418 | EV34: 緬物産 | EW34: Sato | EX34: 2021-10-01 | EY34: 398 | EZ34: 583322 | FA34: □△ | FB34: 148623 | FE34: 2419 | FF34: 蒙印刷 | FG34: Nakano | FH34: 2021-10-01 | FI34: 233 | FJ34: 362335 | FK34: △▲ | FL34: 67740 | FO34: 2420 | FP34: 老繊維 | FQ34: Suzuki | FR34: 2021-10-01 | FS34: 233 | FT34: 850754 | FU34: 〇〇 | FV34: 193512 | FY34: 2421 | FZ34: 豪工業 | GA34: Yoshida | GB34: 2021-10-03 | GC34: 331 | GD34: 378646 | GE34: 〇▼ | GF34: 67537 | GI34: 2844 | GJ34: 加不動産 | GK34: Mita | GL34: 2021-12-15 | GM34: 542 | GN34: 740692 | GO34: □△ | GP34: 38664 | GS34: 2845 | GT34: 伯商会 | GU34: Tanaka | GV34: 2021-12-15 | GW34: 543 | GX34: 950860 | GY34: 〇◆ | GZ34: 62614
A35: 367 | B35: 印度商事 | C35: Ito | D35: 2020-06-12 | E35: 184 | F35: 779678 | G35: □■ | H35: -13805 | K35: 313 | L35: 米商会 | M35: Nakano | N35: 2020-05-30 | O35: 844 | P35: 916527 | Q35: □◆ | R35: 29811 | U35: 285 | V35: 英販売 | W35: Yoshida | X35: 2020-05-17 | Y35: 740 | Z35: 830676 | AA35: 〇〇 | AB35: -18865 | AE35: 290 | AF35: 露不動産 | AG35: Yoshida | AH35: 2020-05-17 | AI35: 745 | AJ35: 811132 | AK35: □▽ | AL35: -8965 | AO35: 380 | AP35: 欄航空 | AQ35: Nakano | AR35: 2020-06-13 | AS35: 286 | AT35: 879092 | AU35: △◆ | AV35: 153292 | AY35: 433 | AZ35: 伊研究所 | BA35: Mita | BB35: 2020-06-16 | BC35: 233 | BD35: 206607 | BE35: △□ | BF35: -27952 | BI35: 700 | BJ35: 尼百貨店 | BK35: Tanaka | BL35: 2020-08-13 | BM35: 296 | BN35: 519616 | BO35: 〇■ | BP35: -72489 | BS35: 1003 | BT35: 香商船 | BU35: Tanaka | BV35: 2020-10-11 | BW35: 304 | BX35: 579684 | BY35: 〇〇 | BZ35: 16013 | CC35: 553 | CD35: 沙信託 | CE35: Nakano | CF35: 2020-07-17 | CG35: 125 | CH35: 878043 | CI35: 〇▽ | CJ35: -79680 | CM35: 570 | CN35: 星ホテル | CO35: Mita | CP35: 2020-07-17 | CQ35: 153 | CR35: 994028 | CS35: △□ | CT35: 151493 | CW35: 727 | CX35: 泰製本 | CY35: Tanaka | CZ35: 2020-08-18 | DA35: 117 | DB35: 135271 | DC35: △▲ | DD35: 93888 | DG35: 578 | DH35: 台建設 | DI35: Sato | DJ35: 2020-07-17 | DK35: 161 | DL35: 426649 | DM35: □▲ | DN35: 51488 | DQ35: 2464 | DR35: 比石油 | DS35: Tanaka | DT35: 2021-10-12 | DU35: 221 | DV35: 515604 | DW35: □□ | DX35: 22192 | EA35: 2465 | EB35: 越繊維 | EC35: Tanaka | ED35: 2021-10-12 | EE35: 222 | EF35: 266679 | EG35: △◇ | EH35: 65772 | EK35: 2466 | EL35: 馬紡績 | EM35: Yoshida | EN35: 2021-10-12 | EO35: 223 | EP35: 290626 | EQ35: △■ | ER35: -53195 | EU35: 2467 | EV35: 緬物産 | EW35: Yoshida | EX35: 2021-10-12 | EY35: 313 | EZ35: 770158 | FA35: △△ | FB35: 175426 | FE35: 2468 | FF35: 蒙印刷 | FG35: Mita | FH35: 2021-10-12 | FI35: 314 | FJ35: 700266 | FK35: △◇ | FL35: 31174 | FO35: 2469 | FP35: 老繊維 | FQ35: Tanaka | FR35: 2021-10-13 | FS35: 315 | FT35: 861461 | FU35: △▽ | FV35: 147467 | FY35: 2470 | FZ35: 豪工業 | GA35: Mita | GB35: 2021-10-13 | GC35: 316 | GD35: 676130 | GE35: □▲ | GF35: -82942 | GI35: 2893 | GJ35: 加不動産 | GK35: Mita | GL35: 2021-12-30 | GM35: 848 | GN35: 632830 | GO35: △〇 | GP35: 4341 | GS35: 2894 | GT35: 伯商会 | GU35: Ito | GV35: 2021-12-30 | GW35: 849 | GX35: 534115 | GY35: △△ | GZ35: -25076
A36: 376 | B36: 印度商事 | C36: Tanaka | D36: 2020-06-13 | E36: 282 | F36: 877441 | G36: △□ | H36: 151979 | K36: 320 | L36: 米商会 | M36: Mita | N36: 2020-05-30 | O36: 851 | P36: 821615 | Q36: □▽ | R36: 111153 | U36: 308 | V36: 英販売 | W36: Mita | X36: 2020-05-21 | Y36: 265 | Z36: 266913 | AA36: 〇□ | AB36: 124365 | AE36: 311 | AF36: 露不動産 | AG36: Yoshida | AH36: 2020-05-30 | AI36: 842 | AJ36: 540975 | AK36: △〇 | AL36: 37097 | AO36: 391 | AP36: 欄航空 | AQ36: Yoshida | AR36: 2020-06-16 | AS36: 191 | AT36: 256421 | AU36: 〇◆ | AV36: -64829 | AY36: 445 | AZ36: 伊研究所 | BA36: Nakano | BB36: 2020-06-17 | BC36: 694 | BD36: 251936 | BE36: 〇□ | BF36: -14947 | BI36: 749 | BJ36: 尼百貨店 | BK36: Sato | BL36: 2020-08-18 | BM36: 507 | BN36: 297580 | BO36: □■ | BP36: 65597 | BS36: 1052 | BT36: 香商船 | BU36: Suzuki | BV36: 2020-10-15 | BW36: 208 | BX36: 814225 | BY36: □□ | BZ36: -51652 | CC36: 571 | CD36: 沙信託 | CE36: Ito | CF36: 2020-07-17 | CG36: 154 | CH36: 957623 | CI36: 〇▼ | CJ36: -84343 | CM36: 585 | CN36: 星ホテル | CO36: Tanaka | CP36: 2020-07-17 | CQ36: 525 | CR36: 253098 | CS36: □▼ | CT36: 92006 | CW36: 747 | CX36: 泰製本 | CY36: Mita | CZ36: 2020-08-18 | DA36: 505 | DB36: 545332 | DC36: 〇▲ | DD36: 32913 | DG36: 596 | DH36: 台建設 | DI36: Tanaka | DJ36: 2020-07-17 | DK36: 536 | DL36: 146983 | DM36: △▲ | DN36: 184834 | DQ36: 2559 | DR36: 比石油 | DS36: Suzuki | DT36: 2021-10-21 | DU36: 250 | DV36: 965789 | DW36: △■ | DX36: -46447 | EA36: 2560 | EB36: 越繊維 | EC36: Ito | ED36: 2021-10-21 | EE36: 251 | EF36: 657383 | EG36: □▼ | EH36: 54840 | EK36: 2561 | EL36: 馬紡績 | EM36: Ito | EN36: 2021-10-21 | EO36: 252 | EP36: 846099 | EQ36: △■ | ER36: 34805 | EU36: 2562 | EV36: 緬物産 | EW36: Sato | EX36: 2021-10-21 | EY36: 253 | EZ36: 264957 | FA36: 〇□ | FB36: -58526 | FE36: 2563 | FF36: 蒙印刷 | FG36: Tanaka | FH36: 2021-10-21 | FI36: 828 | FJ36: 392978 | FK36: □▽ | FL36: 9551 | FO36: 2564 | FP36: 老繊維 | FQ36: Yoshida | FR36: 2021-10-21 | FS36: 829 | FT36: 485411 | FU36: △〇 | FV36: 196282 | FY36: 2565 | FZ36: 豪工業 | GA36: Yoshida | GB36: 2021-10-30 | GC36: 830 | GD36: 754003 | GE36: □▲ | GF36: 175318
A37: 385 | B37: 印度商事 | C37: Yoshida | D37: 2020-06-13 | E37: 291 | F37: 527931 | G37: 〇◆ | H37: 46702 | K37: 330 | L37: 米商会 | M37: Suzuki | N37: 2020-06-06 | O37: 191 | P37: 734398 | Q37: △〇 | R37: 57085 | U37: 314 | V37: 英販売 | W37: Suzuki | X37: 2020-05-30 | Y37: 845 | Z37: 209078 | AA37: 〇□ | AB37: -14660 | AE37: 316 | AF37: 露不動産 | AG37: Ito | AH37: 2020-05-30 | AI37: 847 | AJ37: 997472 | AK37: △◇ | AL37: 28469 | AO37: 419 | AP37: 欄航空 | AQ37: Mita | AR37: 2020-06-16 | AS37: 219 | AT37: 305620 | AU37: △◆ | AV37: 74151 | AY37: 461 | AZ37: 伊研究所 | BA37: Ito | BB37: 2020-06-21 | BC37: 212 | BD37: 520228 | BE37: 〇▲ | BF37: -68085 | BI37: 778 | BJ37: 尼百貨店 | BK37: Ito | BL37: 2020-08-18 | BM37: 603 | BN37: 961759 | BO37: △▽ | BP37: -33008 | BS37: 1083 | BT37: 香商船 | BU37: Nakano | BV37: 2020-10-15 | BW37: 239 | BX37: 757592 | BY37: △□ | BZ37: 146078 | CC37: 592 | CD37: 沙信託 | CE37: Mita | CF37: 2020-07-17 | CG37: 532 | CH37: 843025 | CI37: 〇▼ | CJ37: -83349 | CM37: 591 | CN37: 星ホテル | CO37: Suzuki | CP37: 2020-07-17 | CQ37: 531 | CR37: 734652 | CS37: △◆ | CT37: -66271 | CW37: 775 | CX37: 泰製本 | CY37: Suzuki | CZ37: 2020-08-18 | DA37: 714 | DB37: 482132 | DC37: 〇▼ | DD37: -4178 | DG37: 612 | DH37: 台建設 | DI37: Mita | DJ37: 2020-07-17 | DK37: 733 | DL37: 549986 | DM37: 〇▲ | DN37: 43314 | DQ37: 2608 | DR37: 比石油 | DS37: Nakano | DT37: 2021-11-10 | DU37: 311 | DV37: 263694 | DW37: □◇ | DX37: 29954 | EA37: 2609 | EB37: 越繊維 | EC37: Suzuki | ED37: 2021-11-10 | EE37: 312 | EF37: 413461 | EG37: □▼ | EH37: -42555 | EK37: 2610 | EL37: 馬紡績 | EM37: Nakano | EN37: 2021-11-10 | EO37: 313 | EP37: 890554 | EQ37: 〇〇 | ER37: 119467 | EU37: 2611 | EV37: 緬物産 | EW37: Nakano | EX37: 2021-11-11 | EY37: 314 | EZ37: 634400 | FA37: □△ | FB37: 124757 | FE37: 2612 | FF37: 蒙印刷 | FG37: Suzuki | FH37: 2021-11-11 | FI37: 315 | FJ37: 338248 | FK37: □□ | FL37: -56378 | FO37: 2613 | FP37: 老繊維 | FQ37: Suzuki | FR37: 2021-11-11 | FS37: 316 | FT37: 431509 | FU37: □■ | FV37: 132308 | FY37: 2614 | FZ37: 豪工業 | GA37: Suzuki | GB37: 2021-11-11 | GC37: 317 | GD37: 664372 | GE37: □▲ | GF37: -75598
A38: 392 | B38: 印度商事 | C38: Mita | D38: 2020-06-16 | E38: 192 | F38: 889590 | G38: □△ | H38: 149268 | K38: 336 | L38: 米商会 | M38: Yoshida | N38: 2020-06-08 | O38: 491 | P38: 578256 | Q38: 〇■ | R38: -26515 | U38: 319 | V38: 英販売 | W38: Nakano | X38: 2020-05-30 | Y38: 850 | Z38: 629757 | AA38: △▽ | AB38: 81793 | AE38: 326 | AF38: 露不動産 | AG38: Mita | AH38: 2020-06-01 | AI38: 366 | AJ38: 395120 | AK38: 〇▼ | AL38: 56288 | AO38: 423 | AP38: 欄航空 | AQ38: Mita | AR38: 2020-06-16 | AS38: 223 | AT38: 524356 | AU38: □■ | AV38: -18153 | AY38: 474 | AZ38: 伊研究所 | BA38: Suzuki | BB38: 2020-06-30 | BC38: 799 | BD38: 465900 | BE38: □▼ | BF38: -58358 | BI38: 788 | BJ38: 尼百貨店 | BK38: Nakano | BL38: 2020-08-21 | BM38: 229 | BN38: 450044 | BO38: △▼ | BP38: -65869 | BS38: 1113 | BT38: 香商船 | BU38: Nakano | BV38: 2020-10-21 | BW38: 220 | BX38: 295492 | BY38: △◆ | BZ38: 130698 | CC38: 602 | CD38: 沙信託 | CE38: Mita | CF38: 2020-07-17 | CG38: 723 | CH38: 285468 | CI38: △▲ | CJ38: 27125 | CM38: 601 | CN38: 星ホテル | CO38: Tanaka | CP38: 2020-07-17 | CQ38: 722 | CR38: 530795 | CS38: □▲ | CT38: -18775 | CW38: 791 | CX38: 泰製本 | CY38: Nakano | CZ38: 2020-08-21 | DA38: 232 | DB38: 780185 | DC38: □▼ | DD38: 11867 | DG38: 626 | DH38: 台建設 | DI38: Yoshida | DJ38: 2020-07-21 | DK38: 249 | DL38: 217971 | DM38: △△ | DN38: -71776 | DQ38: 2693 | DR38: 比石油 | DS38: Sato | DT38: 2021-11-15 | DU38: 519 | DV38: 320921 | DW38: △▽ | DX38: -69281 | EA38: 2694 | EB38: 越繊維 | EC38: Tanaka | ED38: 2021-11-15 | EE38: 520 | EF38: 940541 | EG38: 〇◇ | EH38: 147400 | EK38: 2695 | EL38: 馬紡績 | EM38: Tanaka | EN38: 2021-11-15 | EO38: 702 | EP38: 236946 | EQ38: 〇◆ | ER38: 174964 | EU38: 2696 | EV38: 緬物産 | EW38: Mita | EX38: 2021-11-15 | EY38: 703 | EZ38: 853197 | FA38: □△ | FB38: 114608 | FE38: 2697 | FF38: 蒙印刷 | FG38: Tanaka | FH38: 2021-11-15 | FI38: 704 | FJ38: 181274 | FK38: 〇▲ | FL38: -26773 | FO38: 2698 | FP38: 老繊維 | FQ38: Sato | FR38: 2021-11-15 | FS38: 705 | FT38: 809536 | FU38: △▽ | FV38: 150667 | FY38: 2699 | FZ38: 豪工業 | GA38: Nakano | GB38: 2021-11-15 | GC38: 706 | GD38: 393029 | GE38: 〇▽ | GF38: -15063
A39: 413 | B39: 印度商事 | C39: Mita | D39: 2020-06-16 | E39: 213 | F39: 617058 | G39: 〇▲ | H39: -16176 | K39: 343 | L39: 米商会 | M39: Mita | N39: 2020-06-10 | O39: 185 | P39: 176672 | Q39: △〇 | R39: 131066 | U39: 332 | V39: 英販売 | W39: Mita | X39: 2020-06-06 | Y39: 177 | Z39: 970137 | AA39: □〇 | AB39: -40241 | AE39: 334 | AF39: 露不動産 | AG39: Yoshida | AH39: 2020-06-07 | AI39: 386 | AJ39: 441196 | AK39: 〇▲ | AL39: 20450 | AO39: 440 | AP39: 欄航空 | AQ39: Mita | AR39: 2020-06-16 | AS39: 240 | AT39: 506230 | AU39: △▲ | AV39: -31322 | AY39: 486 | AZ39: 伊研究所 | BA39: Sato | BB39: 2020-07-01 | BC39: 398 | BD39: 359408 | BE39: 〇▼ | BF39: 182183 | BI39: 799 | BJ39: 尼百貨店 | BK39: Sato | BL39: 2020-08-30 | BM39: 814 | BN39: 516403 | BO39: 〇▽ | BP39: 115254 | BS39: 1133 | BT39: 香商船 | BU39: Sato | BV39: 2020-11-03 | BW39: 331 | BX39: 713700 | BY39: 〇▽ | BZ39: -74780 | CC39: 631 | CD39: 沙信託 | CE39: Nakano | CF39: 2020-07-30 | CG39: 828 | CH39: 322273 | CI39: 〇□ | CJ39: -44266 | CM39: 632 | CN39: 星ホテル | CO39: Tanaka | CP39: 2020-07-30 | CQ39: 829 | CR39: 426646 | CS39: □◇ | CT39: 151012 | CW39: 809 | CX39: 泰製本 | CY39: Yoshida | CZ39: 2020-09-01 | DA39: 245 | DB39: 504413 | DC39: 〇▽ | DD39: -80668 | DG39: 640 | DH39: 台建設 | DI39: Nakano | DJ39: 2020-07-30 | DK39: 837 | DL39: 353882 | DM39: □◆ | DN39: 177676 | DQ39: 2742 | DR39: 比石油 | DS39: Suzuki | DT39: 2021-12-01 | DU39: 245 | DV39: 400529 | DW39: □▼ | DX39: 111463 | EA39: 2743 | EB39: 越繊維 | EC39: Nakano | ED39: 2021-12-03 | EE39: 343 | EF39: 320630 | EG39: □■ | EH39: 177070 | EK39: 2744 | EL39: 馬紡績 | EM39: Suzuki | EN39: 2021-12-03 | EO39: 235 | EP39: 373257 | EQ39: □□ | ER39: 137505 | EU39: 2745 | EV39: 緬物産 | EW39: Yoshida | EX39: 2021-12-05 | EY39: 236 | EZ39: 386058 | FA39: △▼ | FB39: -77101 | FE39: 2746 | FF39: 蒙印刷 | FG39: Tanaka | FH39: 2021-12-05 | FI39: 221 | FJ39: 116406 | FK39: 〇〇 | FL39: -5699 | FO39: 2747 | FP39: 老繊維 | FQ39: Ito | FR39: 2021-12-05 | FS39: 429 | FT39: 370245 | FU39: 〇□ | FV39: 191646 | FY39: 2748 | FZ39: 豪工業 | GA39: Suzuki | GB39: 2021-12-06 | GC39: 430 | GD39: 155199 | GE39: □▽ | GF39: -8492
A40: 420 | B40: 印度商事 | C40: Mita | D40: 2020-06-16 | E40: 220 | F40: 702544 | G40: 〇△ | H40: 54607 | K40: 350 | L40: 米商会 | M40: Sato | N40: 2020-06-10 | O40: 192 | P40: 391358 | Q40: □■ | R40: 168561 | U40: 341 | V40: 英販売 | W40: Ito | X40: 2020-06-09 | Y40: 213 | Z40: 343370 | AA40: 〇◆ | AB40: 13523 | AE40: 342 | AF40: 露不動産 | AG40: Suzuki | AH40: 2020-06-09 | AI40: 214 | AJ40: 477072 | AK40: □〇 | AL40: -68674 | AO40: 468 | AP40: 欄航空 | AQ40: Yoshida | AR40: 2020-06-21 | AS40: 219 | AT40: 942548 | AU40: △▼ | AV40: -3230 | AY40: 497 | AZ40: 伊研究所 | BA40: Yoshida | BB40: 2020-07-08 | BC40: 524 | BD40: 880701 | BE40: □▲ | BF40: -9233 | BI40: 813 | BJ40: 尼百貨店 | BK40: Sato | BL40: 2020-09-09 | BM40: 236 | BN40: 335324 | BO40: △□ | BP40: 131704 | BS40: 1154 | BT40: 香商船 | BU40: Yoshida | BV40: 2020-11-09 | BW40: 224 | BX40: 960617 | BY40: 〇◇ | BZ40: 186427 | CC40: 652 | CD40: 沙信託 | CE40: Tanaka | CF40: 2020-08-08 | CG40: 203 | CH40: 614857 | CI40: △▼ | CJ40: -26339 | CM40: 651 | CN40: 星ホテル | CO40: Mita | CP40: 2020-08-08 | CQ40: 311 | CR40: 363250 | CS40: △▼ | CT40: -72986 | CW40: 834 | CX40: 泰製本 | CY40: Yoshida | CZ40: 2020-09-10 | DA40: 341 | DB40: 480795 | DC40: □□ | DD40: 41003 | DG40: 658 | DH40: 台建設 | DI40: Mita | DJ40: 2020-08-08 | DK40: 503 | DL40: 658166 | DM40: 〇〇 | DN40: 82684 | DQ40: 2837 | DR40: 比石油 | DS40: Suzuki | DT40: 2021-12-15 | DU40: 535 | DV40: 800320 | DW40: □▼ | DX40: 50467 | EA40: 2838 | EB40: 越繊維 | EC40: Ito | ED40: 2021-12-15 | EE40: 536 | EF40: 685023 | EG40: △■ | EH40: 168217 | EK40: 2839 | EL40: 馬紡績 | EM40: Mita | EN40: 2021-12-15 | EO40: 537 | EP40: 801885 | EQ40: 〇▽ | ER40: -49639 | EU40: 2840 | EV40: 緬物産 | EW40: Ito | EX40: 2021-12-15 | EY40: 538 | EZ40: 170017 | FA40: 〇◇ | FB40: 197111 | FE40: 2841 | FF40: 蒙印刷 | FG40: Yoshida | FH40: 2021-12-15 | FI40: 539 | FJ40: 982613 | FK40: □□ | FL40: -77588 | FO40: 2842 | FP40: 老繊維 | FQ40: Nakano | FR40: 2021-12-15 | FS40: 540 | FT40: 638349 | FU40: □▽ | FV40: -60892 | FY40: 2843 | FZ40: 豪工業 | GA40: Tanaka | GB40: 2021-12-15 | GC40: 541 | GD40: 245556 | GE40: △◆ | GF40: -64656
A41: 428 | B41: 印度商事 | C41: Ito | D41: 2020-06-16 | E41: 228 | F41: 615339 | G41: △◇ | H41: -20913 | K41: 363 | L41: 米商会 | M41: Sato | N41: 2020-06-12 | O41: 180 | P41: 510876 | Q41: □◇ | R41: -25576 | U41: 345 | V41: 英販売 | W41: Mita | X41: 2020-06-10 | Y41: 187 | Z41: 666472 | AA41: △△ | AB41: 112072 | AE41: 347 | AF41: 露不動産 | AG41: Yoshida | AH41: 2020-06-10 | AI41: 189 | AJ41: 516690 | AK41: □▽ | AL41: 144738 | AO41: 471 | AP41: 欄航空 | AQ41: Mita | AR41: 2020-06-30 | AS41: 796 | AT41: 862235 | AU41: △◇ | AV41: -7671 | AY41: 506 | AZ41: 伊研究所 | BA41: Tanaka | BB41: 2020-07-10 | BC41: 220 | BD41: 227566 | BE41: □□ | BF41: 11892 | BI41: 826 | BJ41: 尼百貨店 | BK41: Ito | BL41: 2020-09-09 | BM41: 230 | BN41: 280845 | BO41: □◆ | BP41: -65937 | BS41: 1203 | BT41: 香商船 | BU41: Mita | BV41: 2020-11-15 | BW41: 131 | BX41: 753705 | BY41: □◇ | BZ41: 105781 | CC41: 664 | CD41: 沙信託 | CE41: Nakano | CF41: 2020-08-09 | CG41: 226 | CH41: 350774 | CI41: 〇■ | CJ41: -54986 | CM41: 675 | CN41: 星ホテル | CO41: Yoshida | CP41: 2020-08-11 | CQ41: 310 | CR41: 721778 | CS41: △〇 | CT41: 98122 | CW41: 848 | CX41: 泰製本 | CY41: Ito | CZ41: 2020-09-12 | DA41: 227 | DB41: 324637 | DC41: △〇 | DD41: 123034 | DG41: 685 | DH41: 台建設 | DI41: Mita | DJ41: 2020-08-12 | DK41: 192 | DL41: 628517 | DM41: △〇 | DN41: 42965 | DQ41: 2886 | DR41: 比石油 | DS41: Suzuki | DT41: 2021-12-21 | DU41: 841 | DV41: 532874 | DW41: △◆ | DX41: 186103 | EA41: 2887 | EB41: 越繊維 | EC41: Sato | ED41: 2021-12-30 | EE41: 842 | EF41: 544406 | EG41: △〇 | EH41: -65540 | EK41: 2888 | EL41: 馬紡績 | EM41: Tanaka | EN41: 2021-12-30 | EO41: 843 | EP41: 779786 | EQ41: 〇△ | ER41: 169575 | EU41: 2889 | EV41: 緬物産 | EW41: Ito | EX41: 2021-12-30 | EY41: 844 | EZ41: 720197 | FA41: 〇◇ | FB41: -76795 | FE41: 2890 | FF41: 蒙印刷 | FG41: Suzuki | FH41: 2021-12-30 | FI41: 845 | FJ41: 686903 | FK41: 〇△ | FL41: 75835 | FO41: 2891 | FP41: 老繊維 | FQ41: Ito | FR41: 2021-12-30 | FS41: 846 | FT41: 252346 | FU41: △△ | FV41: 118791 | FY41: 2892 | FZ41: 豪工業 | GA41: Ito | GB41: 2021-12-30 | GC41: 847 | GD41: 202727 | GE41: □▽ | GF41: -26538
A42: 434 | B42: 印度商事 | C42: Nakano | D42: 2020-06-16 | E42: 234 | F42: 144733 | G42: □▲ | H42: 70725 | K42: 370 | L42: 米商会 | M42: Tanaka | N42: 2020-06-12 | O42: 187 | P42: 579714 | Q42: △▲ | R42: 176497 | U42: 352 | V42: 英販売 | W42: Suzuki | X42: 2020-06-11 | Y42: 297 | Z42: 698802 | AA42: 〇〇 | AB42: 76696 | AE42: 354 | AF42: 露不動産 | AG42: Ito | AH42: 2020-06-11 | AI42: 299 | AJ42: 735954 | AK42: 〇◇ | AL42: 102282 | AO42: 484 | AP42: 欄航空 | AQ42: Yoshida | AR42: 2020-07-01 | AS42: 398 | AT42: 554684 | AU42: △〇 | AV42: 68666 | AY42: 518 | AZ42: 伊研究所 | BA42: Nakano | BB42: 2020-07-11 | BC42: 335 | BD42: 459260 | BE42: 〇△ | BF42: -40708 | BI42: 850 | BJ42: 尼百貨店 | BK42: Nakano | BL42: 2020-09-12 | BM42: 229 | BN42: 198600 | BO42: △△ | BP42: 88447 | BS42: 1232 | BT42: 香商船 | BU42: Suzuki | BV42: 2020-11-15 | BW42: 528 | BX42: 103820 | BY42: △◆ | BZ42: 88654 | CC42: 674 | CD42: 沙信託 | CE42: Ito | CF42: 2020-08-11 | CG42: 309 | CH42: 759740 | CI42: 〇■ | CJ42: 164462 | CM42: 692 | CN42: 星ホテル | CO42: Nakano | CP42: 2020-08-12 | CQ42: 199 | CR42: 304958 | CS42: □□ | CT42: -40491 | CW42: 877 | CX42: 泰製本 | CY42: Yoshida | CZ42: 2020-09-19 | DA42: 139 | DB42: 594759 | DC42: △◇ | DD42: 115241 | DG42: 697 | DH42: 台建設 | DI42: Tanaka | DJ42: 2020-08-13 | DK42: 293 | DL42: 649210 | DM42: △〇 | DN42: -97299
A43: 441 | B43: 印度商事 | C43: Sato | D43: 2020-06-17 | E43: 690 | F43: 771994 | G43: △▼ | H43: 56375 | K43: 374 | L43: 米商会 | M43: Tanaka | N43: 2020-06-12 | O43: 191 | P43: 324280 | Q43: △◇ | R43: -76459 | U43: 362 | V43: 英販売 | W43: Tanaka | X43: 2020-06-11 | Y43: 307 | Z43: 985665 | AA43: 〇◆ | AB43: 83707 | AE43: 364 | AF43: 露不動産 | AG43: Ito | AH43: 2020-06-12 | AI43: 181 | AJ43: 673131 | AK43: 〇□ | AL43: 72313 | AO43: 492 | AP43: 欄航空 | AQ43: Mita | AR43: 2020-07-07 | AS43: 209 | AT43: 959844 | AU43: □▼ | AV43: 57671 | AY43: 537 | AZ43: 伊研究所 | BA43: Sato | BB43: 2020-07-13 | BC43: 315 | BD43: 932490 | BE43: 〇△ | BF43: 75193 | BI43: 899 | BJ43: 尼百貨店 | BK43: Sato | BL43: 2020-09-19 | BM43: 172 | BN43: 283569 | BO43: 〇▲ | BP43: 191544 | BS43: 1262 | BT43: 香商船 | BU43: Sato | BV43: 2020-11-15 | BW43: 123 | BX43: 528939 | BY43: □◆ | BZ43: 87879 | CC43: 693 | CD43: 沙信託 | CE43: Nakano | CF43: 2020-08-12 | CG43: 200 | CH43: 272656 | CI43: □〇 | CJ43: 134514 | CM43: 702 | CN43: 星ホテル | CO43: Ito | CP43: 2020-08-13 | CQ43: 298 | CR43: 857236 | CS43: □◆ | CT43: 99253 | CW43: 897 | CX43: 泰製本 | CY43: Ito | CZ43: 2020-09-19 | DA43: 170 | DB43: 988236 | DC43: □▲ | DD43: -18333 | DG43: 713 | DH43: 台建設 | DI43: Suzuki | DJ43: 2020-08-18 | DK43: 103 | DL43: 922098 | DM43: △△ | DN43: 83919
A44: 462 | B44: 印度商事 | C44: Ito | D44: 2020-06-21 | E44: 213 | F44: 782603 | G44: □△ | H44: 180450 | K44: 379 | L44: 米商会 | M44: Ito | N44: 2020-06-13 | O44: 285 | P44: 474400 | Q44: △□ | R44: -17012 | U44: 368 | V44: 英販売 | W44: Ito | X44: 2020-06-12 | Y44: 185 | Z44: 361610 | AA44: 〇■ | AB44: 80358 | AE44: 369 | AF44: 露不動産 | AG44: Tanaka | AH44: 2020-06-12 | AI44: 186 | AJ44: 419594 | AK44: 〇▽ | AL44: 82166 | AO44: 504 | AP44: 欄航空 | AQ44: Yoshida | AR44: 2020-07-10 | AS44: 218 | AT44: 506374 | AU44: □◇ | AV44: 164866 | AY44: 549 | AZ44: 伊研究所 | BA44: Mita | BB44: 2020-07-13 | BC44: 327 | BD44: 815204 | BE44: □◆ | BF44: 47005 | BI44: 930 | BJ44: 尼百貨店 | BK44: Ito | BL44: 2020-09-19 | BM44: 741 | BN44: 598931 | BO44: 〇◇ | BP44: 115550 | BS44: 1282 | BT44: 香商船 | BU44: Suzuki | BV44: 2020-11-30 | BW44: 835 | BX44: 496722 | BY44: △▽ | BZ44: 77450 | CC44: 703 | CD44: 沙信託 | CE44: Yoshida | CF44: 2020-08-13 | CG44: 299 | CH44: 229671 | CI44: □□ | CJ44: 56406 | CM44: 720 | CN44: 星ホテル | CO44: Nakano | CP44: 2020-08-18 | CQ44: 110 | CR44: 372592 | CS44: △◇ | CT44: 49915 | CW44: 927 | CX44: 泰製本 | CY44: Tanaka | CZ44: 2020-09-19 | DA44: 738 | DB44: 372390 | DC44: 〇□ | DD44: -56597 | DG44: 728 | DH44: 台建設 | DI44: Nakano | DJ44: 2020-08-18 | DK44: 118 | DL44: 215371 | DM44: 〇△ | DN44: -47419
A45: 470 | B45: 印度商事 | C45: Mita | D45: 2020-06-21 | E45: 221 | F45: 210502 | G45: □▽ | H45: 169634 | K45: 387 | L45: 米商会 | M45: Suzuki | N45: 2020-06-13 | O45: 293 | P45: 165968 | Q45: □◇ | R45: 59076 | U45: 375 | V45: 英販売 | W45: Mita | X45: 2020-06-13 | Y45: 281 | Z45: 722169 | AA45: 〇◆ | AB45: -57005 | AE45: 378 | AF45: 露不動産 | AG45: Sato | AH45: 2020-06-13 | AI45: 284 | AJ45: 992039 | AK45: △〇 | AL45: 161186 | AO45: 511 | AP45: 欄航空 | AQ45: Sato | AR45: 2020-07-11 | AS45: 328 | AT45: 813712 | AU45: □〇 | AV45: 141867 | AY45: 565 | AZ45: 伊研究所 | BA45: Suzuki | BB45: 2020-07-17 | BC45: 137 | BD45: 580809 | BE45: △△ | BF45: -93581 | BI45: 940 | BJ45: 尼百貨店 | BK45: Sato | BL45: 2020-09-19 | BM45: 135 | BN45: 485740 | BO45: △〇 | BP45: 180417 | BS45: 1303 | BT45: 香商船 | BU45: Suzuki | BV45: 2020-12-07 | BW45: 504 | BX45: 751380 | BY45: △■ | BZ45: -64300 | CC45: 721 | CD45: 沙信託 | CE45: Yoshida | CF45: 2020-08-18 | CG45: 111 | CH45: 854587 | CI45: △▼ | CJ45: 127652 | CM45: 735 | CN45: 星ホテル | CO45: Tanaka | CP45: 2020-08-18 | CQ45: 136 | CR45: 311967 | CS45: □◇ | CT45: -72682 | CW45: 943 | CX45: 泰製本 | CY45: Tanaka | CZ45: 2020-09-21 | DA45: 256 | DB45: 589645 | DC45: 〇▲ | DD45: 155113 | DG45: 746 | DH45: 台建設 | DI45: Sato | DJ45: 2020-08-18 | DK45: 504 | DL45: 862194 | DM45: △▼ | DN45: 172013
A46: 477 | B46: 印度商事 | C46: Tanaka | D46: 2020-06-30 | E46: 802 | F46: 707465 | G46: □▽ | H46: 90864 | K46: 415 | L46: 米商会 | M46: Suzuki | N46: 2020-06-16 | O46: 215 | P46: 547934 | Q46: 〇△ | R46: 103635 | U46: 383 | V46: 英販売 | W46: Tanaka | X46: 2020-06-13 | Y46: 289 | Z46: 944651 | AA46: □◇ | AB46: 159886 | AE46: 386 | AF46: 露不動産 | AG46: Tanaka | AH46: 2020-06-13 | AI46: 292 | AJ46: 326862 | AK46: △◆ | AL46: 88357 | AO46: 519 | AP46: 欄航空 | AQ46: Yoshida | AR46: 2020-07-11 | AS46: 336 | AT46: 761490 | AU46: △〇 | AV46: 183425 | AY46: 580 | AZ46: 伊研究所 | BA46: Nakano | BB46: 2020-07-17 | BC46: 163 | BD46: 675959 | BE46: △〇 | BF46: 143993 | BI46: 951 | BJ46: 尼百貨店 | BK46: Nakano | BL46: 2020-09-21 | BM46: 264 | BN46: 755911 | BO46: 〇◆ | BP46: -34177 | BS46: 1352 | BT46: 香商船 | BU46: Ito | BV46: 2020-12-13 | BW46: 304 | BX46: 801127 | BY46: △△ | BZ46: 67408 | CC46: 742 | CD46: 沙信託 | CE46: Ito | CF46: 2020-08-18 | CG46: 143 | CH46: 367167 | CI46: 〇■ | CJ46: 155351 | CM46: 741 | CN46: 星ホテル | CO46: Yoshida | CP46: 2020-08-18 | CQ46: 142 | CR46: 878837 | CS46: 〇△ | CT46: 17201 | CW46: 961 | CX46: 泰製本 | CY46: Nakano | CZ46: 2020-09-30 | DA46: 848 | DB46: 804005 | DC46: □□ | DD46: 120440 | DG46: 762 | DH46: 台建設 | DI46: Suzuki | DJ46: 2020-08-18 | DK46: 520 | DL46: 857027 | DM46: 〇□ | DN46: 179840
A47: 493 | B47: 印度商事 | C47: Nakano | D47: 2020-07-07 | E47: 417 | F47: 700890 | G47: □〇 | H47: 124587 | K47: 422 | L47: 米商会 | M47: Mita | N47: 2020-06-16 | O47: 222 | P47: 450165 | Q47: △▲ | R47: 198334 | U47: 388 | V47: 英販売 | W47: Nakano | X47: 2020-06-13 | Y47: 294 | Z47: 922218 | AA47: 〇〇 | AB47: 132005 | AE47: 393 | AF47: 露不動産 | AG47: Mita | AH47: 2020-06-16 | AI47: 193 | AJ47: 995588 | AK47: 〇◇ | AL47: -54795 | AO47: 533 | AP47: 欄航空 | AQ47: Sato | AR47: 2020-07-12 | AS47: 222 | AT47: 861963 | AU47: △▽ | AV47: 140300 | AY47: 586 | AZ47: 伊研究所 | BA47: Mita | BB47: 2020-07-17 | BC47: 526 | BD47: 917726 | BE47: △■ | BF47: -99176 | BI47: 965 | BJ47: 尼百貨店 | BK47: Tanaka | BL47: 2020-09-30 | BM47: 202 | BN47: 663280 | BO47: □■ | BP47: 17460 | BS47: 1376 | BT47: 香商船 | BU47: Nakano | BV47: 2020-12-15 | BW47: 133 | BX47: 462290 | BY47: □▽ | BZ47: 119770 | CC47: 752 | CD47: 沙信託 | CE47: Tanaka | CF47: 2020-08-18 | CG47: 510 | CH47: 285452 | CI47: 〇□ | CJ47: 20105 | CM47: 751 | CN47: 星ホテル | CO47: Yoshida | CP47: 2020-08-18 | CQ47: 509 | CR47: 259178 | CS47: △▽ | CT47: 109429 | CW47: 986 | CX47: 泰製本 | CY47: Nakano | CZ47: 2020-10-10 | DA47: 214 | DB47: 513870 | DC47: △◇ | DD47: 104679 | DG47: 776 | DH47: 台建設 | DI47: Yoshida | DJ47: 2020-08-18 | DK47: 715 | DL47: 198788 | DM47: 〇▲ | DN47: 83047
A48: 512 | B48: 印度商事 | C48: Ito | D48: 2020-07-11 | E48: 329 | F48: 865036 | G48: 〇□ | H48: 87962 | K48: 430 | L48: 米商会 | M48: Yoshida | N48: 2020-06-16 | O48: 230 | P48: 626920 | Q48: △◆ | R48: 138326 | U48: 411 | V48: 英販売 | W48: Nakano | X48: 2020-06-16 | Y48: 211 | Z48: 260363 | AA48: □〇 | AB48: 41480 | AE48: 414 | AF48: 露不動産 | AG48: Nakano | AH48: 2020-06-16 | AI48: 214 | AJ48: 172216 | AK48: □▲ | AL48: 106746 | AO48: 544 | AP48: 欄航空 | AQ48: Yoshida | AR48: 2020-07-13 | AS48: 322 | AT48: 705527 | AU48: 〇□ | AV48: 74816 | AY48: 598 | AZ48: 伊研究所 | BA48: Suzuki | BB48: 2020-07-17 | BC48: 538 | BD48: 979030 | BE48: □〇 | BF48: 69331 | BI48: 978 | BJ48: 尼百貨店 | BK48: Nakano | BL48: 2020-10-10 | BM48: 386 | BN48: 370652 | BO48: 〇□ | BP48: -88045 | BS48: 1406 | BT48: 香商船 | BU48: Yoshida | BV48: 2020-12-15 | BW48: 520 | BX48: 383442 | BY48: 〇〇 | BZ48: 116338 | CC48: 781 | CD48: 沙信託 | CE48: Sato | CF48: 2020-08-21 | CG48: 222 | CH48: 566069 | CI48: △◇ | CJ48: -63456 | CM48: 782 | CN48: 星ホテル | CO48: Sato | CP48: 2020-08-21 | CQ48: 223 | CR48: 814829 | CS48: 〇▼ | CT48: 46301 | CW48: 1000 | CX48: 泰製本 | CY48: Mita | CZ48: 2020-10-11 | DA48: 301 | DB48: 160365 | DC48: 〇▽ | DD48: 50631 | DG48: 790 | DH48: 台建設 | DI48: Yoshida | DJ48: 2020-08-21 | DK48: 231 | DL48: 482662 | DM48: □▼ | DN48: -75242
A49: 520 | B49: 印度商事 | C49: Mita | D49: 2020-07-11 | E49: 337 | F49: 979146 | G49: 〇□ | H49: -92455 | K49: 436 | L49: 米商会 | M49: Ito | N49: 2020-06-16 | O49: 236 | P49: 426890 | Q49: □〇 | R49: 120337 | U49: 416 | V49: 英販売 | W49: Suzuki | X49: 2020-06-16 | Y49: 216 | Z49: 874786 | AA49: 〇〇 | AB49: 137997 | AE49: 421 | AF49: 露不動産 | AG49: Sato | AH49: 2020-06-16 | AI49: 221 | AJ49: 993740 | AK49: △◇ | AL49: 146521 | AO49: 572 | AP49: 欄航空 | AQ49: Tanaka | AR49: 2020-07-17 | AS49: 155 | AT49: 323240 | AU49: △◆ | AV49: 59130 | AY49: 614 | AZ49: 伊研究所 | BA49: Sato | BB49: 2020-07-17 | BC49: 735 | BD49: 305128 | BE49: 〇△ | BF49: -96643 | BI49: 1002 | BJ49: 尼百貨店 | BK49: Suzuki | BL49: 2020-10-11 | BM49: 303 | BN49: 263443 | BO49: 〇▼ | BP49: 187284 | BS49: 1426 | BT49: 香商船 | BU49: Ito | BV49: 2020-12-21 | BW49: 223 | BX49: 354368 | BY49: 〇▼ | BZ49: 107816 | CC49: 802 | CD49: 沙信託 | CE49: Ito | CF49: 2020-08-30 | CG49: 817 | CH49: 978394 | CI49: △□ | CJ49: -76414 | CM49: 801 | CN49: 星ホテル | CO49: Yoshida | CP49: 2020-08-30 | CQ49: 816 | CR49: 545393 | CS49: □▲ | CT49: 67286 | CW49: 1029 | CX49: 泰製本 | CY49: Ito | CZ49: 2020-10-13 | DA49: 291 | DB49: 258767 | DC49: □▼ | DD49: 141668 | DG49: 808 | DH49: 台建設 | DI49: Sato | DJ49: 2020-09-01 | DK49: 410 | DL49: 995302 | DM49: △▼ | DN49: 128217
A50: 529 | B50: 印度商事 | C50: Tanaka | D50: 2020-07-12 | E50: 218 | F50: 519377 | G50: 〇◇ | H50: -60777 | K50: 464 | L50: 米商会 | M50: Tanaka | N50: 2020-06-21 | O50: 215 | P50: 297161 | Q50: □▲ | R50: 8258 | U50: 426 | V50: 英販売 | W50: Ito | X50: 2020-06-16 | Y50: 226 | Z50: 672822 | AA50: □▼ | AB50: 75292 | AE50: 429 | AF50: 露不動産 | AG50: Tanaka | AH50: 2020-06-16 | AI50: 229 | AJ50: 912907 | AK50: 〇▲ | AL50: -92391 | AO50: 576 | AP50: 欄航空 | AQ50: Yoshida | AR50: 2020-07-17 | AS50: 159 | AT50: 511044 | AU50: □□ | AV50: 150958 | AY50: 624 | AZ50: 伊研究所 | BA50: Nakano | BB50: 2020-07-21 | BC50: 247 | BD50: 561964 | BE50: 〇◇ | BF50: -51021 | BI50: 1051 | BJ50: 尼百貨店 | BK50: Ito | BL50: 2020-10-15 | BM50: 207 | BN50: 970404 | BO50: 〇△ | BP50: 128111 | BS50: 1447 | BT50: 香商船 | BU50: Suzuki | BV50: 2020-12-30 | BW50: 818 | BX50: 927862 | BY50: △◇ | BZ50: 41554 | CC50: 814 | CD50: 沙信託 | CE50: Sato | CF50: 2020-09-09 | CG50: 221 | CH50: 358416 | CI50: 〇▲ | CJ50: 100610 | CM50: 825 | CN50: 星ホテル | CO50: Yoshida | CP50: 2020-09-09 | CQ50: 229 | CR50: 994590 | CS50: □□ | CT50: 38810 | CW50: 1049 | CX50: 泰製本 | CY50: Nakano | CZ50: 2020-10-15 | DA50: 205 | DB50: 839019 | DC50: △□ | DD50: 65181 | DG50: 835 | DH50: 台建設 | DI50: Nakano | DJ50: 2020-09-11 | DK50: 342 | DL50: 270526 | DM50: □◆ | DN50: -59891
A51: 538 | B51: 印度商事 | C51: Mita | D51: 2020-07-13 | E51: 316 | F51: 329067 | G51: 〇▼ | H51: 100243 | K51: 466 | L51: 米商会 | M51: Tanaka | N51: 2020-06-21 | O51: 217 | P51: 697229 | Q51: △◇ | R51: 33286 | U51: 431 | V51: 英販売 | W51: Sato | X51: 2020-06-16 | Y51: 231 | Z51: 653538 | AA51: △■ | AB51: 36509 | AE51: 435 | AF51: 露不動産 | AG51: Mita | AH51: 2020-06-16 | AI51: 235 | AJ51: 826293 | AK51: 〇△ | AL51: 73964 | AO51: 593 | AP51: 欄航空 | AQ51: Sato | AR51: 2020-07-17 | AS51: 533 | AT51: 233415 | AU51: □▼ | AV51: -94008 | AY51: 636 | AZ51: 伊研究所 | BA51: Mita | BB51: 2020-07-30 | BC51: 833 | BD51: 165031 | BE51: □▼ | BF51: 48212 | BI51: 1081 | BJ51: 尼百貨店 | BK51: Tanaka | BL51: 2020-10-15 | BM51: 237 | BN51: 452023 | BO51: 〇■ | BP51: -74969 | BS51: 1496 | BT51: 香商船 | BU51: Ito | BV51: 2021-04-12 | BW51: 231 | BX51: 526900 | BY51: △△ | BZ51: -29858 | CC51: 824 | CD51: 沙信託 | CE51: Ito | CF51: 2020-09-09 | CG51: 258 | CH51: 179196 | CI51: 〇◆ | CJ51: 27719 | CM51: 842 | CN51: 星ホテル | CO51: Mita | CP51: 2020-09-11 | CQ51: 349 | CR51: 771908 | CS51: 〇□ | CT51: 176083 | CW51: 1078 | CX51: 泰製本 | CY51: Sato | CZ51: 2020-10-15 | DA51: 234 | DB51: 993948 | DC51: △□ | DD51: -7199 | DG51: 847 | DH51: 台建設 | DI51: Mita | DJ51: 2020-09-12 | DK51: 226 | DL51: 639616 | DM51: △□ | DN51: 84715
A52: 545 | B52: 印度商事 | C52: Ito | D52: 2020-07-13 | E52: 323 | F52: 964643 | G52: 〇▼ | H52: 28147 | K52: 473 | L52: 米商会 | M52: Tanaka | N52: 2020-06-30 | O52: 798 | P52: 510535 | Q52: △□ | R52: -41484 | U52: 437 | V52: 英販売 | W52: Sato | X52: 2020-06-16 | Y52: 237 | Z52: 312991 | AA52: □▲ | AB52: -2354 | AE52: 442 | AF52: 露不動産 | AG52: Yoshida | AH52: 2020-06-17 | AI52: 691 | AJ52: 149900 | AK52: 〇◆ | AL52: 18155 | AO52: 618 | AP52: 欄航空 | AQ52: Yoshida | AR52: 2020-07-20 | AS52: 123 | AT52: 258846 | AU52: 〇▲ | AV52: 137439 | AY52: 647 | AZ52: 伊研究所 | BA52: Ito | BB52: 2020-08-01 | BC52: 378 | BD52: 754070 | BE52: □▽ | BF52: -47682 | BI52: 1091 | BJ52: 尼百貨店 | BK52: Nakano | BL52: 2020-10-15 | BM52: 696 | BN52: 872189 | BO52: 〇▼ | BP52: 150343 | BS52: 1546 | BT52: 香商船 | BU52: Tanaka | BV52: 2021-04-15 | BW52: 175 | BX52: 754360 | BY52: 〇▲ | BZ52: 28647 | CC52: 843 | CD52: 沙信託 | CE52: Yoshida | CF52: 2020-09-11 | CG52: 350 | CH52: 845870 | CI52: □□ | CJ52: 172900 | CM52: 852 | CN52: 星ホテル | CO52: Sato | CP52: 2020-09-12 | CQ52: 231 | CR52: 736413 | CS52: □▲ | CT52: -95837 | CW52: 1094 | CX52: 泰製本 | CY52: Suzuki | CZ52: 2020-10-15 | DA52: 699 | DB52: 855305 | DC52: 〇▽ | DD52: 111650 | DG52: 863 | DH52: 台建設 | DI52: Yoshida | DJ52: 2020-09-13 | DK52: 331 | DL52: 614495 | DM52: △〇 | DN52: 131057
A53: 566 | B53: 印度商事 | C53: Tanaka | D53: 2020-07-17 | E53: 138 | F53: 437403 | G53: 〇▽ | H53: 182051 | K53: 483 | L53: 米商会 | M53: Tanaka | N53: 2020-07-01 | O53: 398 | P53: 931315 | Q53: 〇▽ | R53: -25310 | U53: 460 | V53: 英販売 | W53: Yoshida | X53: 2020-06-21 | Y53: 211 | Z53: 574124 | AA53: 〇◇ | AB53: 139574 | AE53: 463 | AF53: 露不動産 | AG53: Tanaka | AH53: 2020-06-21 | AI53: 214 | AJ53: 615773 | AK53: 〇△ | AL53: 70232 | AO53: 621 | AP53: 欄航空 | AQ53: Tanaka | AR53: 2020-07-21 | AS53: 244 | AT53: 723524 | AU53: □■ | AV53: 98324 | AY53: 656 | AZ53: 伊研究所 | BA53: Tanaka | BB53: 2020-08-08 | BC53: 398 | BD53: 333669 | BE53: □▼ | BF53: 114736 | BI53: 1102 | BJ53: 尼百貨店 | BK53: Ito | BL53: 2020-10-20 | BM53: 91 | BN53: 497067 | BO53: △□ | BP53: 94864 | BS53: 1566 | BT53: 香商船 | BU53: Sato | BV53: 2021-04-16 | BW53: 552 | BX53: 609473 | BY53: □□ | BZ53: -85089 | CC53: 853 | CD53: 沙信託 | CE53: Ito | CF53: 2020-09-12 | CG53: 232 | CH53: 936396 | CI53: □□ | CJ53: 108348 | CM53: 870 | CN53: 星ホテル | CO53: Nakano | CP53: 2020-09-13 | CQ53: 338 | CR53: 492716 | CS53: □■ | CT53: 112463 | CW53: 1112 | CX53: 泰製本 | CY53: Sato | CZ53: 2020-10-21 | DA53: 219 | DB53: 396358 | DC53: 〇▽ | DD53: 45790 | DG53: 878 | DH53: 台建設 | DI53: Yoshida | DJ53: 2020-09-19 | DK53: 140 | DL53: 462853 | DM53: 〇▲ | DN53: -23932
A54: 573 | B54: 印度商事 | C54: Nakano | D54: 2020-07-17 | E54: 156 | F54: 329836 | G54: 〇△ | H54: 156880 | K54: 489 | L54: 米商会 | M54: Ito | N54: 2020-07-07 | O54: 331 | P54: 979685 | Q54: △▼ | R54: 85563 | U54: 465 | V54: 英販売 | W54: Sato | X54: 2020-06-21 | Y54: 216 | Z54: 113826 | AA54: 〇■ | AB54: -90570 | AE54: 469 | AF54: 露不動産 | AG54: Suzuki | AH54: 2020-06-21 | AI54: 220 | AJ54: 370531 | AK54: △▲ | AL54: 7961 | AO54: 634 | AP54: 欄航空 | AQ54: Nakano | AR54: 2020-07-30 | AS54: 831 | AT54: 306113 | AU54: 〇◆ | AV54: -67347 | AY54: 668 | AZ54: 伊研究所 | BA54: Nakano | BB54: 2020-08-10 | BC54: 200 | BD54: 822025 | BE54: △■ | BF54: 138921 | BI54: 1116 | BJ54: 尼百貨店 | BK54: Sato | BL54: 2020-10-30 | BM54: 797 | BN54: 257628 | BO54: 〇▲ | BP54: 150286 | BS54: 1587 | BT54: 香商船 | BU54: Mita | BV54: 2021-04-21 | BW54: 256 | BX54: 198574 | BY54: □△ | BZ54: 70416 | CC54: 871 | CD54: 沙信託 | CE54: Yoshida | CF54: 2020-09-13 | CG54: 339 | CH54: 923119 | CI54: △▲ | CJ54: 91462 | CM54: 885 | CN54: 星ホテル | CO54: Ito | CP54: 2020-09-19 | CQ54: 147 | CR54: 121279 | CS54: △〇 | CT54: 150256 | CW54: 1137 | CX54: 泰製本 | CY54: Sato | CZ54: 2020-11-05 | DA54: 417 | DB54: 280671 | DC54: 〇〇 | DD54: -73940 | DG54: 896 | DH54: 台建設 | DI54: Yoshida | DJ54: 2020-09-19 | DK54: 169 | DL54: 257191 | DM54: □▽ | DN54: -16759
A55: 581 | B55: 印度商事 | C55: Yoshida | D55: 2020-07-17 | E55: 164 | F55: 641794 | G55: □◆ | H55: 32261 | K55: 496 | L55: 米商会 | M55: Ito | N55: 2020-07-08 | O55: 523 | P55: 993198 | Q55: 〇■ | R55: 157304 | U55: 467 | V55: 英販売 | W55: Mita | X55: 2020-06-21 | Y55: 218 | Z55: 770438 | AA55: △■ | AB55: 16777 | AE55: 479 | AF55: 露不動産 | AG55: Ito | AH55: 2020-06-30 | AI55: 804 | AJ55: 422593 | AK55: □□ | AL55: 3697 | AO55: 642 | AP55: 欄航空 | AQ55: Suzuki | AR55: 2020-07-30 | AS55: 839 | AT55: 209288 | AU55: 〇▲ | AV55: -4255 | AY55: 687 | AZ55: 伊研究所 | BA55: Mita | BB55: 2020-08-12 | BC55: 194 | BD55: 374762 | BE55: □■ | BF55: 154888 | BI55: 1129 | BJ55: 尼百貨店 | BK55: Nakano | BL55: 2020-11-01 | BM55: 398 | BN55: 214905 | BO55: △▲ | BP55: 69659 | BS55: 1636 | BT55: 香商船 | BU55: Yoshida | BV55: 2021-05-10 | BW55: 190 | BX55: 786552 | BY55: △▽ | BZ55: -41052 | CC55: 892 | CD55: 沙信託 | CE55: Nakano | CF55: 2020-09-19 | CG55: 165 | CH55: 505743 | CI55: 〇〇 | CJ55: 166968 | CM55: 891 | CN55: 星ホテル | CO55: Sato | CP55: 2020-09-19 | CQ55: 164 | CR55: 996286 | CS55: □□ | CT55: 12874 | CW55: 1151 | CX55: 泰製本 | CY55: Yoshida | CZ55: 2020-11-09 | DA55: 221 | DB55: 113318 | DC55: △▽ | DD55: -28261 | DG55: 912 | DH55: 台建設 | DI55: Mita | DJ55: 2020-09-19 | DK55: 542 | DL55: 864680 | DM55: △□ | DN55: 162319
A56: 587 | B56: 印度商事 | C56: Tanaka | D56: 2020-07-17 | E56: 527 | F56: 184923 | G56: □▽ | H56: 14779 | K56: 503 | L56: 米商会 | M56: Sato | N56: 2020-07-10 | O56: 217 | P56: 510209 | Q56: □▽ | R56: 68661 | U56: 472 | V56: 英販売 | W56: Yoshida | X56: 2020-06-30 | Y56: 797 | Z56: 241223 | AA56: △△ | AB56: 77784 | AE56: 487 | AF56: 露不動産 | AG56: Nakano | AH56: 2020-07-03 | AI56: 233 | AJ56: 152004 | AK56: □□ | AL56: 45754 | AO56: 654 | AP56: 欄航空 | AQ56: Yoshida | AR56: 2020-08-08 | AS56: 189 | AT56: 132212 | AU56: △〇 | AV56: 19777 | AY56: 699 | AZ56: 伊研究所 | BA56: Suzuki | BB56: 2020-08-13 | BC56: 295 | BD56: 405958 | BE56: 〇◇ | BF56: 97596 | BI56: 1153 | BJ56: 尼百貨店 | BK56: Mita | BL56: 2020-11-09 | BM56: 223 | BN56: 829423 | BO56: △■ | BP56: 54367 | BS56: 1660 | BT56: 香商船 | BU56: Mita | BV56: 2021-05-12 | BW56: 189 | BX56: 224456 | BY56: 〇△ | BZ56: 112378 | CC56: 902 | CD56: 沙信託 | CE56: Sato | CF56: 2020-09-19 | CG56: 175 | CH56: 294738 | CI56: △▲ | CJ56: -65410 | CM56: 901 | CN56: 星ホテル | CO56: Suzuki | CP56: 2020-09-19 | CQ56: 174 | CR56: 964076 | CS56: 〇■ | CT56: 159906 | CW56: 1180 | CX56: 泰製本 | CY56: Ito | CZ56: 2020-11-12 | DA56: 314 | DB56: 628413 | DC56: 〇□ | DD56: 35613 | DG56: 928 | DH56: 台建設 | DI56: Nakano | DJ56: 2020-09-19 | DK56: 739 | DL56: 778711 | DM56: △◇ | DN56: 120470
A57: 594 | B57: 印度商事 | C57: Ito | D57: 2020-07-17 | E57: 534 | F57: 607743 | G57: 〇△ | H57: 106406 | K57: 516 | L57: 米商会 | M57: Ito | N57: 2020-07-11 | O57: 333 | P57: 216049 | Q57: □■ | R57: 94270 | U57: 485 | V57: 英販売 | W57: Mita | X57: 2020-07-01 | Y57: 398 | Z57: 306009 | AA57: △△ | AB57: -3066 | AE57: 495 | AF57: 露不動産 | AG57: Mita | AH57: 2020-07-07 | AI57: 419 | AJ57: 746493 | AK57: □■ | AL57: 165314 | AO57: 661 | AP57: 欄航空 | AQ57: Mita | AR57: 2020-08-09 | AS57: 223 | AT57: 231313 | AU57: △◇ | AV57: 167919 | AY57: 715 | AZ57: 伊研究所 | BA57: Suzuki | BB57: 2020-08-18 | BC57: 105 | BD57: 718564 | BE57: □△ | BF57: 199327 | BI57: 1202 | BJ57: 尼百貨店 | BK57: Suzuki | BL57: 2020-11-15 | BM57: 130 | BN57: 320219 | BO57: □▼ | BP57: 74419 | BS57: 1690 | BT57: 香商船 | BU57: Tanaka | BV57: 2021-05-15 | BW57: 202 | BX57: 608907 | BY57: 〇◇ | BZ57: 161207 | CC57: 933 | CD57: 沙信託 | CE57: Mita | CF57: 2020-09-19 | CG57: 744 | CH57: 716923 | CI57: 〇▽ | CJ57: 144682 | CM57: 934 | CN57: 星ホテル | CO57: Mita | CP57: 2020-09-19 | CQ57: 745 | CR57: 372096 | CS57: △◆ | CT57: 72747 | CW57: 1200 | CX57: 泰製本 | CY57: Yoshida | CZ57: 2020-11-15 | DA57: 128 | DB57: 534067 | DC57: □△ | DD57: 34183 | DG57: 942 | DH57: 台建設 | DI57: Sato | DJ57: 2020-09-20 | DK57: 255 | DL57: 519643 | DM57: □■ | DN57: 197764
A58: 615 | B58: 印度商事 | C58: Tanaka | D58: 2020-07-17 | E58: 736 | F58: 252805 | G58: 〇▲ | H58: -24192 | K58: 523 | L58: 米商会 | M58: Nakano | N58: 2020-07-12 | O58: 212 | P58: 597759 | Q58: □▼ | R58: -99792 | U58: 494 | V58: 英販売 | W58: Nakano | X58: 2020-07-07 | Y58: 418 | Z58: 177299 | AA58: □▲ | AB58: -3087 | AE58: 500 | AF58: 露不動産 | AG58: Nakano | AH58: 2020-07-09 | AI58: 244 | AJ58: 622446 | AK58: △▼ | AL58: 141332 | AO58: 669 | AP58: 欄航空 | AQ58: Nakano | AR58: 2020-08-10 | AS58: 201 | AT58: 465232 | AU58: △◆ | AV58: 103915 | AY58: 730 | AZ58: 伊研究所 | BA58: Sato | BB58: 2020-08-18 | BC58: 131 | BD58: 119230 | BE58: 〇■ | BF58: -86435 | BI58: 1230 | BJ58: 尼百貨店 | BK58: Tanaka | BL58: 2020-11-15 | BM58: 526 | BN58: 711289 | BO58: △〇 | BP58: 23170 | BS58: 1710 | BT58: 香商船 | BU58: Suzuki | BV58: 2021-05-15 | BW58: 222 | BX58: 383457 | BY58: 〇▲ | BZ58: 149538 | CC58: 954 | CD58: 沙信託 | CE58: Mita | CF58: 2020-09-21 | CG58: 841 | CH58: 537274 | CI58: 〇▽ | CJ58: -2698 | CM58: 953 | CN58: 星ホテル | CO58: Nakano | CP58: 2020-09-21 | CQ58: 840 | CR58: 913736 | CS58: 〇△ | CT58: -84517 | CW58: 1227 | CX58: 泰製本 | CY58: Mita | CZ58: 2020-11-15 | DA58: 523 | DB58: 727091 | DC58: □▼ | DD58: -31474 | DG58: 960 | DH58: 台建設 | DI58: Tanaka | DJ58: 2020-09-30 | DK58: 847 | DL58: 845944 | DM58: □■ | DN58: 23375
A59: 620 | B59: 印度商事 | C59: Suzuki | D59: 2020-07-21 | E59: 243 | F59: 766717 | G59: 〇▼ | H59: 21000 | K59: 527 | L59: 米商会 | M59: Sato | N59: 2020-07-12 | O59: 216 | P59: 730720 | Q59: □▲ | R59: 31789 | U59: 498 | V59: 英販売 | W59: Tanaka | X59: 2020-07-08 | Y59: 525 | Z59: 505520 | AA59: △▼ | AB59: 39282 | AE59: 507 | AF59: 露不動産 | AG59: Yoshida | AH59: 2020-07-10 | AI59: 221 | AJ59: 983956 | AK59: □▲ | AL59: -38788 | AO59: 683 | AP59: 欄航空 | AQ59: Tanaka | AR59: 2020-08-11 | AS59: 318 | AT59: 395789 | AU59: □□ | AV59: 82789 | AY59: 736 | AZ59: 伊研究所 | BA59: Ito | BB59: 2020-08-18 | BC59: 137 | BD59: 771968 | BE59: △■ | BF59: 125476 | BI59: 1240 | BJ59: 尼百貨店 | BK59: Sato | BL59: 2020-11-15 | BM59: 536 | BN59: 456994 | BO59: △▼ | BP59: -65659 | BS59: 1731 | BT59: 香商船 | BU59: Nakano | BV59: 2021-05-17 | BW59: 692 | BX59: 960340 | BY59: 〇■ | BZ59: 141997 | CC59: 966 | CD59: 沙信託 | CE59: Nakano | CF59: 2020-09-30 | CG59: 203 | CH59: 814668 | CI59: △□ | CJ59: 30846 | CM59: 977 | CN59: 星ホテル | CO59: Mita | CP59: 2020-10-10 | CQ59: 385 | CR59: 895192 | CS59: 〇▲ | CT59: -19714 | CW59: 1243 | CX59: 泰製本 | CY59: Nakano | CZ59: 2020-11-15 | DA59: 539 | DB59: 777464 | DC59: △■ | DD59: 52849 | DG59: 987 | DH59: 台建設 | DI59: Sato | DJ59: 2020-10-10 | DK59: 185 | DL59: 782944 | DM59: 〇〇 | DN59: 101778
A60: 627 | B60: 印度商事 | C60: Nakano | D60: 2020-07-21 | E60: 250 | F60: 874802 | G60: 〇▼ | H60: 139321 | K60: 532 | L60: 米商会 | M60: Nakano | N60: 2020-07-12 | O60: 221 | P60: 845502 | Q60: 〇□ | R60: -18720 | U60: 505 | V60: 英販売 | W60: Sato | X60: 2020-07-10 | Y60: 219 | Z60: 582995 | AA60: 〇◆ | AB60: 1157 | AE60: 517 | AF60: 露不動産 | AG60: Nakano | AH60: 2020-07-11 | AI60: 334 | AJ60: 741867 | AK60: 〇▲ | AL60: -55957 | AO60: 694 | AP60: 欄航空 | AQ60: Tanaka | AR60: 2020-08-12 | AS60: 201 | AT60: 759337 | AU60: □□ | AV60: -98771 | AY60: 748 | AZ60: 伊研究所 | BA60: Nakano | BB60: 2020-08-18 | BC60: 506 | BD60: 621098 | BE60: △△ | BF60: 111200 | BI60: 1251 | BJ60: 尼百貨店 | BK60: Ito | BL60: 2020-11-15 | BM60: 728 | BN60: 220528 | BO60: △▼ | BP60: -52157 | BS60: 1780 | BT60: 香商船 | BU60: Yoshida | BV60: 2021-06-06 | BW60: 209 | BX60: 533029 | BY60: 〇△ | BZ60: -76932 | CC60: 976 | CD60: 沙信託 | CE60: Yoshida | CF60: 2020-10-10 | CG60: 177 | CH60: 632112 | CI60: △◇ | CJ60: 46404 | CM60: 994 | CN60: 星ホテル | CO60: Yoshida | CP60: 2020-10-10 | CQ60: 192 | CR60: 513910 | CS60: 〇△ | CT60: 143248 | CW60: 1261 | CX60: 泰製本 | CY60: Suzuki | CZ60: 2020-11-15 | DA60: 322 | DB60: 185081 | DC60: 〇▽ | DD60: 199413 | DG60: 999 | DH60: 台建設 | DI60: Mita | DJ60: 2020-10-11 | DK60: 300 | DL60: 571457 | DM60: △△ | DN60: -54570
A61: 643 | B61: 印度商事 | C61: Ito | D61: 2020-07-31 | E61: 190 | F61: 234394 | G61: △■ | H61: -52820 | K61: 540 | L61: 米商会 | M61: Nakano | N61: 2020-07-13 | O61: 318 | P61: 878519 | Q61: □〇 | R61: -61491 | U61: 515 | V61: 英販売 | W61: Mita | X61: 2020-07-11 | Y61: 332 | Z61: 518388 | AA61: □△ | AB61: -27439 | AE61: 522 | AF61: 露不動産 | AG61: Nakano | AH61: 2020-07-11 | AI61: 339 | AJ61: 475026 | AK61: 〇▼ | AL61: 192940 | AO61: 722 | AP61: 欄航空 | AQ61: Ito | AR61: 2020-08-18 | AS61: 112 | AT61: 535968 | AU61: 〇□ | AV61: 87823 | AY61: 764 | AZ61: 伊研究所 | BA61: Mita | BB61: 2020-08-18 | BC61: 703 | BD61: 227541 | BE61: △◆ | BF61: -78552 | BI61: 1265 | BJ61: 尼百貨店 | BK61: Nakano | BL61: 2020-11-21 | BM61: 244 | BN61: 669205 | BO61: □△ | BP61: 17485 | BS61: 1824 | BT61: 香商船 | BU61: Yoshida | BV61: 2021-06-12 | BW61: 314 | BX61: 891908 | BY61: 〇■ | BZ61: -10987 | CC61: 995 | CD61: 沙信託 | CE61: Nakano | CF61: 2020-10-11 | CG61: 296 | CH61: 909976 | CI61: □▼ | CJ61: 24023 | CM61: 1004 | CN61: 星ホテル | CO61: Mita | CP61: 2020-10-11 | CQ61: 305 | CR61: 182339 | CS61: □△ | CT61: -90112 | CW61: 1286 | CX61: 泰製本 | CY61: Suzuki | CZ61: 2020-11-30 | DA61: 839 | DB61: 613540 | DC61: △▽ | DD61: 119325 | DG61: 1015 | DH61: 台建設 | DI61: Tanaka | DJ61: 2020-10-12 | DK61: 188 | DL61: 642041 | DM61: △▼ | DN61: 10866
A62: 662 | B62: 印度商事 | C62: Nakano | D62: 2020-08-09 | E62: 224 | F62: 730721 | G62: 〇▼ | H62: 99896 | K62: 568 | L62: 米商会 | M62: Tanaka | N62: 2020-07-17 | O62: 151 | P62: 589526 | Q62: 〇◆ | R62: -25552 | U62: 521 | V62: 英販売 | W62: Suzuki | X62: 2020-07-11 | Y62: 338 | Z62: 209274 | AA62: □△ | AB62: -62288 | AE62: 531 | AF62: 露不動産 | AG62: Suzuki | AH62: 2020-07-12 | AI62: 220 | AJ62: 271981 | AK62: △△ | AL62: -65698 | AO62: 726 | AP62: 欄航空 | AQ62: Sato | AR62: 2020-08-18 | AS62: 116 | AT62: 949494 | AU62: 〇〇 | AV62: -1817 | AY62: 774 | AZ62: 伊研究所 | BA62: Suzuki | BB62: 2020-08-18 | BC62: 713 | BD62: 182420 | BE62: 〇◇ | BF62: 44274 | BI62: 1278 | BJ62: 尼百貨店 | BK62: Tanaka | BL62: 2020-11-30 | BM62: 831 | BN62: 286081 | BO62: □■ | BP62: 43807 | BS62: 1844 | BT62: 香商船 | BU62: Suzuki | BV62: 2021-06-16 | BW62: 128 | BX62: 292513 | BY62: □▼ | BZ62: 189510 | CC62: 1005 | CD62: 沙信託 | CE62: Ito | CF62: 2020-10-11 | CG62: 306 | CH62: 164121 | CI62: △□ | CJ62: -77071 | CM62: 1022 | CN62: 星ホテル | CO62: Sato | CP62: 2020-10-13 | CQ62: 284 | CR62: 847846 | CS62: □▽ | CT62: 124735 | CW62: 1300 | CX62: 泰製本 | CY62: Suzuki | CZ62: 2020-12-06 | DA62: 398 | DB62: 913635 | DC62: △△ | DD62: 101550 | DG62: 1030 | DH62: 台建設 | DI62: Nakano | DJ62: 2020-10-13 | DK62: 292 | DL62: 284874 | DM62: △△ | DN62: -22282
A63: 670 | B63: 印度商事 | C63: Yoshida | D63: 2020-08-10 | E63: 202 | F63: 109513 | G63: □□ | H63: 180351 | K63: 575 | L63: 米商会 | M63: Ito | N63: 2020-07-17 | O63: 158 | P63: 254952 | Q63: □▼ | R63: 174959 | U63: 528 | V63: 英販売 | W63: Nakano | X63: 2020-07-12 | Y63: 217 | Z63: 254289 | AA63: △▽ | AB63: 166278 | AE63: 539 | AF63: 露不動産 | AG63: Suzuki | AH63: 2020-07-13 | AI63: 317 | AJ63: 784886 | AK63: △■ | AL63: 156442 | AO63: 743 | AP63: 欄航空 | AQ63: Tanaka | AR63: 2020-08-18 | AS63: 144 | AT63: 195620 | AU63: △◇ | AV63: 128416 | AY63: 786 | AZ63: 伊研究所 | BA63: Sato | BB63: 2020-08-21 | BC63: 227 | BD63: 666329 | BE63: 〇▲ | BF63: 120163 | BI63: 1302 | BJ63: 尼百貨店 | BK63: Suzuki | BL63: 2020-12-07 | BM63: 503 | BN63: 961563 | BO63: 〇▼ | BP63: -91669 | BS63: 1865 | BT63: 香商船 | BU63: Tanaka | BV63: 2021-06-16 | BW63: 160 | BX63: 872720 | BY63: 〇■ | BZ63: -76373 | CC63: 1023 | CD63: 沙信託 | CE63: Yoshida | CF63: 2020-10-13 | CG63: 285 | CH63: 788788 | CI63: △◇ | CJ63: 12263 | CM63: 1037 | CN63: 星ホテル | CO63: Tanaka | CP63: 2020-10-15 | CQ63: 193 | CR63: 851748 | CS63: □△ | CT63: 173834 | CW63: 1329 | CX63: 泰製本 | CY63: Mita | CZ63: 2020-12-11 | DA63: 192 | DB63: 609086 | DC63: △▼ | DD63: 66162 | DG63: 1048 | DH63: 台建設 | DI63: Suzuki | DJ63: 2020-10-15 | DK63: 204 | DL63: 276867 | DM63: 〇■ | DN63: 7135
A64: 679 | B64: 印度商事 | C64: Tanaka | D64: 2020-08-11 | E64: 314 | F64: 670174 | G64: □▲ | H64: -11802 | K64: 583 | L64: 米商会 | M64: Yoshida | N64: 2020-07-17 | O64: 523 | P64: 208710 | Q64: △△ | R64: 147098 | U64: 536 | V64: 英販売 | W64: Tanaka | X64: 2020-07-13 | Y64: 314 | Z64: 408398 | AA64: △◆ | AB64: 88742 | AE64: 546 | AF64: 露不動産 | AG64: Suzuki | AH64: 2020-07-13 | AI64: 324 | AJ64: 258201 | AK64: 〇△ | AL64: 163019 | AO64: 768 | AP64: 欄航空 | AQ64: Mita | AR64: 2020-08-18 | AS64: 707 | AT64: 649344 | AU64: 〇△ | AV64: 39115 | AY64: 797 | AZ64: 伊研究所 | BA64: Ito | BB64: 2020-08-30 | BC64: 812 | BD64: 127625 | BE64: □◇ | BF64: 190513 | BI64: 1351 | BJ64: 尼百貨店 | BK64: Sato | BL64: 2020-12-13 | BM64: 303 | BN64: 984818 | BO64: □◆ | BP64: -32808 | BS64: 1914 | BT64: 香商船 | BU64: Yoshida | BV64: 2021-06-21 | BW64: 249 | BX64: 211341 | BY64: △▲ | BZ64: 48664 | CC64: 1044 | CD64: 沙信託 | CE64: Ito | CF64: 2020-10-15 | CG64: 200 | CH64: 856685 | CI64: 〇◇ | CJ64: 134694 | CM64: 1043 | CN64: 星ホテル | CO64: Ito | CP64: 2020-10-15 | CQ64: 199 | CR64: 967443 | CS64: □◆ | CT64: 181943 | CW64: 1349 | CX64: 泰製本 | CY64: Ito | CZ64: 2020-12-13 | DA64: 301 | DB64: 184569 | DC64: □■ | DD64: 38000 | DG64: 1064 | DH64: 台建設 | DI64: Sato | DJ64: 2020-10-15 | DK64: 220 | DL64: 610042 | DM64: □□ | DN64: -96545
A65: 688 | B65: 印度商事 | C65: Nakano | D65: 2020-08-12 | E65: 195 | F65: 542607 | G65: 〇▼ | H65: -41762 | K65: 589 | L65: 米商会 | M65: Mita | N65: 2020-07-17 | O65: 529 | P65: 591333 | Q65: 〇▽ | R65: 125146 | U65: 541 | V65: 英販売 | W65: Ito | X65: 2020-07-13 | Y65: 319 | Z65: 125608 | AA65: △▽ | AB65: 109396 | AE65: 567 | AF65: 露不動産 | AG65: Ito | AH65: 2020-07-17 | AI65: 150 | AJ65: 517161 | AK65: 〇■ | AL65: -85961 | AO65: 771 | AP65: 欄航空 | AQ65: Nakano | AR65: 2020-08-18 | AS65: 710 | AT65: 943484 | AU65: □▼ | AV65: 35893 | AY65: 806 | AZ65: 伊研究所 | BA65: Yoshida | BB65: 2020-08-31 | BC65: 410 | BD65: 699867 | BE65: 〇▲ | BF65: 123922 | BI65: 1374 | BJ65: 尼百貨店 | BK65: Mita | BL65: 2020-12-15 | BM65: 131 | BN65: 924682 | BO65: △■ | BP65: -11434 | BS65: 1938 | BT65: 香商船 | BU65: Tanaka | BV65: 2021-07-03 | BW65: 213 | BX65: 931110 | BY65: △▲ | BZ65: -31853 | CC65: 1054 | CD65: 沙信託 | CE65: Mita | CF65: 2020-10-15 | CG65: 210 | CH65: 214522 | CI65: 〇◆ | CJ65: -81305 | CM65: 1053 | CN65: 星ホテル | CO65: Yoshida | CP65: 2020-10-15 | CQ65: 209 | CR65: 827092 | CS65: □△ | CT65: 96061 | CW65: 1371 | CX65: 泰製本 | CY65: Mita | CZ65: 2020-12-15 | DA65: 117 | DB65: 233529 | DC65: □■ | DD65: -62612 | DG65: 1079 | DH65: 台建設 | DI65: Ito | DJ65: 2020-10-15 | DK65: 235 | DL65: 216728 | DM65: 〇△ | DN65: 125578
A66: 695 | B66: 印度商事 | C66: Mita | D66: 2020-08-12 | E66: 202 | F66: 440192 | G66: 〇▲ | H66: -51057 | K66: 616 | L66: 米商会 | M66: Ito | N66: 2020-07-18 | O66: 623 | P66: 985227 | Q66: □◆ | R66: 184947 | U66: 564 | V66: 英販売 | W66: Sato | X66: 2020-07-17 | Y66: 136 | Z66: 522707 | AA66: △▽ | AB66: 36644 | AE66: 574 | AF66: 露不動産 | AG66: Yoshida | AH66: 2020-07-17 | AI66: 157 | AJ66: 795653 | AK66: 〇□ | AL66: 54995 | AO66: 784 | AP66: 欄航空 | AQ66: Ito | AR66: 2020-08-21 | AS66: 225 | AT66: 555861 | AU66: □〇 | AV66: 47926 | AY66: 818 | AZ66: 伊研究所 | BA66: Tanaka | BB66: 2020-09-09 | BC66: 535 | BD66: 919917 | BE66: 〇■ | BF66: 7004 | BI66: 1384 | BJ66: 尼百貨店 | BK66: Tanaka | BL66: 2020-12-15 | BM66: 141 | BN66: 172165 | BO66: 〇■ | BP66: 171077 | BS66: 1968 | BT66: 香商船 | BU66: Ito | BV66: 2021-07-11 | BW66: 315 | BX66: 262543 | BY66: △◆ | BZ66: 87358 | CC66: 1084 | CD66: 沙信託 | CE66: Suzuki | CF66: 2020-10-15 | CG66: 240 | CH66: 504775 | CI66: □▼ | CJ66: 57393 | CM66: 1085 | CN66: 星ホテル | CO66: Sato | CP66: 2020-10-15 | CQ66: 690 | CR66: 578873 | CS66: △〇 | CT66: 136495 | CW66: 1387 | CX66: 泰製本 | CY66: Nakano | CZ66: 2020-12-15 | DA66: 144 | DB66: 204353 | DC66: □◆ | DD66: 97666 | DG66: 1093 | DH66: 台建設 | DI66: Suzuki | DJ66: 2020-10-15 | DK66: 698 | DL66: 178158 | DM66: □▽ | DN66: -77410
A67: 716 | B67: 印度商事 | C67: Sato | D67: 2020-08-18 | E67: 106 | F67: 346456 | G67: □◆ | H67: -76884 | K67: 623 | L67: 米商会 | M67: Sato | N67: 2020-07-21 | O67: 246 | P67: 783038 | Q67: 〇◇ | R67: 196373 | U67: 569 | V67: 英販売 | W67: Sato | X67: 2020-07-17 | Y67: 152 | Z67: 275004 | AA67: △▼ | AB67: 90801 | AE67: 582 | AF67: 露不動産 | AG67: Nakano | AH67: 2020-07-17 | AI67: 165 | AJ67: 812265 | AK67: □▲ | AL67: -98416 | AO67: 792 | AP67: 欄航空 | AQ67: Yoshida | AR67: 2020-08-21 | AS67: 233 | AT67: 289880 | AU67: 〇■ | AV67: 32415 | AY67: 837 | AZ67: 伊研究所 | BA67: Suzuki | BB67: 2020-09-11 | BC67: 344 | BD67: 751019 | BE67: △▲ | BF67: 124312 | BI67: 1395 | BJ67: 尼百貨店 | BK67: Nakano | BL67: 2020-12-15 | BM67: 509 | BN67: 473404 | BO67: △□ | BP67: 106503 | BS67: 1988 | BT67: 香商船 | BU67: Yoshida | BV67: 2021-07-13 | BW67: 296 | BX67: 405766 | BY67: 〇△ | BZ67: -60418 | CC67: 1105 | CD67: 沙信託 | CE67: Mita | CF67: 2020-10-21 | CG67: 212 | CH67: 397882 | CI67: △■ | CJ67: -38350 | CM67: 1104 | CN67: 星ホテル | CO67: Suzuki | CP67: 2020-10-21 | CQ67: 211 | CR67: 413467 | CS67: 〇■ | CT67: 103427 | CW67: 1405 | CX67: 泰製本 | CY67: Sato | CZ67: 2020-12-15 | DA67: 519 | DB67: 701465 | DC67: □■ | DD67: 170513 | DG67: 1111 | DH67: 台建設 | DI67: Nakano | DJ67: 2020-10-21 | DK67: 218 | DL67: 594606 | DM67: 〇■ | DN67: -44988
A68: 723 | B68: 印度商事 | C68: Mita | D68: 2020-08-18 | E68: 113 | F68: 808315 | G68: △▲ | H68: 50597 | K68: 633 | L68: 米商会 | M68: Nakano | N68: 2020-07-30 | O68: 830 | P68: 255277 | Q68: 〇◆ | R68: 4386 | U68: 579 | V68: 英販売 | W68: Sato | X68: 2020-07-17 | Y68: 162 | Z68: 629447 | AA68: □▼ | AB68: -97380 | AE68: 588 | AF68: 露不動産 | AG68: Sato | AH68: 2020-07-17 | AI68: 528 | AJ68: 593241 | AK68: □▲ | AL68: 163604 | AO68: 804 | AP68: 欄航空 | AQ68: Tanaka | AR68: 2020-08-30 | AS68: 819 | AT68: 857643 | AU68: 〇□ | AV68: 129687 | AY68: 849 | AZ68: 伊研究所 | BA68: Nakano | BB68: 2020-09-12 | BC68: 228 | BD68: 273194 | BE68: 〇△ | BF68: 90105 | BI68: 1409 | BJ68: 尼百貨店 | BK68: Yoshida | BL68: 2020-12-15 | BM68: 704 | BN68: 158410 | BO68: △▼ | BP68: 113234 | BS68: 2009 | BT68: 香商船 | BU68: Yoshida | BV68: 2021-07-17 | BW68: 111 | BX68: 378817 | BY68: △◆ | BZ68: 68028 | CC68: 1117 | CD68: 沙信託 | CE68: Sato | CF68: 2020-10-30 | CG68: 798 | CH68: 236347 | CI68: 〇▽ | CJ68: 199613 | CM68: 1128 | CN68: 星ホテル | CO68: Mita | CP68: 2020-10-31 | CQ68: 398 | CR68: 413288 | CS68: △◇ | CT68: -18304 | CW68: 1430 | CX68: 泰製本 | CY68: Yoshida | CZ68: 2020-12-21 | DA68: 227 | DB68: 296010 | DC68: □◆ | DD68: 109249 | DG68: 1138 | DH68: 台建設 | DI68: Mita | DJ68: 2020-11-06 | DK68: 418 | DL68: 811718 | DM68: △■ | DN68: 89484
A69: 731 | B69: 印度商事 | C69: Sato | D69: 2020-08-18 | E69: 132 | F69: 825963 | G69: △▲ | H69: -92270 | K69: 639 | L69: 米商会 | M69: Yoshida | N69: 2020-07-30 | O69: 836 | P69: 876216 | Q69: 〇▽ | R69: -169 | U69: 584 | V69: 英販売 | W69: Sato | X69: 2020-07-17 | Y69: 524 | Z69: 925577 | AA69: 〇〇 | AB69: -21238 | AE69: 595 | AF69: 露不動産 | AG69: Ito | AH69: 2020-07-17 | AI69: 535 | AJ69: 303966 | AK69: □△ | AL69: -90791 | AO69: 811 | AP69: 欄航空 | AQ69: Mita | AR69: 2020-09-03 | AS69: 343 | AT69: 233589 | AU69: □▼ | AV69: 18357 | AY69: 865 | AZ69: 伊研究所 | BA69: Mita | BB69: 2020-09-13 | BC69: 333 | BD69: 249379 | BE69: □□ | BF69: -48607 | BI69: 1422 | BJ69: 尼百貨店 | BK69: Yoshida | BL69: 2020-12-15 | BM69: 603 | BN69: 128125 | BO69: 〇〇 | BP69: 150000 | BS69: 2058 | BT69: 香商船 | BU69: Suzuki | BV69: 2021-07-17 | BW69: 709 | BX69: 923095 | BY69: △▼ | BZ69: -75786 | CC69: 1127 | CD69: 沙信託 | CE69: Mita | CF69: 2020-10-31 | CG69: 398 | CH69: 452940 | CI69: □△ | CJ69: 132047 | CM69: 1145 | CN69: 星ホテル | CO69: Tanaka | CP69: 2020-11-07 | CQ69: 245 | CR69: 160608 | CS69: △▼ | CT69: 91497 | CW69: 1444 | CX69: 泰製本 | CY69: Yoshida | CZ69: 2020-12-30 | DA69: 815 | DB69: 848947 | DC69: 〇〇 | DD69: -64573 | DG69: 1150 | DH69: 台建設 | DI69: Sato | DJ69: 2020-11-08 | DK69: 220 | DL69: 398187 | DM69: △△ | DN69: 186788
A70: 737 | B70: 印度商事 | C70: Yoshida | D70: 2020-08-18 | E70: 138 | F70: 639419 | G70: △〇 | H70: 96188 | K70: 646 | L70: 米商会 | M70: Sato | N70: 2020-08-01 | O70: 378 | P70: 580686 | Q70: □◇ | R70: 180857 | U70: 590 | V70: 英販売 | W70: Mita | X70: 2020-07-17 | Y70: 530 | Z70: 225395 | AA70: △□ | AB70: -4980 | AE70: 619 | AF70: 露不動産 | AG70: Tanaka | AH70: 2020-07-21 | AI70: 242 | AJ70: 594013 | AK70: 〇◇ | AL70: 145893 | AO70: 819 | AP70: 欄航空 | AQ70: Suzuki | AR70: 2020-09-09 | AS70: 536 | AT70: 639508 | AU70: □◇ | AV70: 4604 | AY70: 880 | AZ70: 伊研究所 | BA70: Sato | BB70: 2020-09-19 | BC70: 142 | BD70: 736434 | BE70: □△ | BF70: -78837 | BI70: 1446 | BJ70: 尼百貨店 | BK70: Nakano | BL70: 2020-12-30 | BM70: 817 | BN70: 242352 | BO70: 〇□ | BP70: -24099 | BS70: 2096 | BT70: 香商船 | BU70: Ito | BV70: 2021-08-01 | BW70: 410 | BX70: 193517 | BY70: □▲ | BZ70: 121832 | CC70: 1146 | CD70: 沙信託 | CE70: Nakano | CF70: 2020-11-08 | CG70: 246 | CH70: 704997 | CI70: □▼ | CJ70: 176698 | CM70: 1155 | CN70: 星ホテル | CO70: Yoshida | CP70: 2020-11-10 | CQ70: 328 | CR70: 214461 | CS70: □▼ | CT70: -72861 | CW70: 1473 | CX70: 泰製本 | CY70: Ito | CZ70: 2021-04-10 | DA70: 233 | DB70: 786916 | DC70: □▲ | DD70: 152091 | DG70: 1166 | DH70: 台建設 | DI70: Ito | DJ70: 2020-11-11 | DK70: 339 | DL70: 544536 | DM70: 〇▲ | DN70: -99843
A71: 744 | B71: 印度商事 | C71: Suzuki | D71: 2020-08-18 | E71: 145 | F71: 705713 | G71: □〇 | H71: 58575 | K71: 653 | L71: 米商会 | M71: Suzuki | N71: 2020-08-08 | O71: 204 | P71: 135599 | Q71: □▽ | R71: 118784 | U71: 613 | V71: 英販売 | W71: Suzuki | X71: 2020-07-17 | Y71: 734 | Z71: 957316 | AA71: 〇〇 | AB71: 74150 | AE71: 629 | AF71: 露不動産 | AG71: Mita | AH71: 2020-07-21 | AI71: 252 | AJ71: 960231 | AK71: △□ | AL71: -87619 | AO71: 833 | AP71: 欄航空 | AQ71: Suzuki | AR71: 2020-09-10 | AS71: 340 | AT71: 860462 | AU71: 〇△ | AV71: 23447 | AY71: 886 | AZ71: 伊研究所 | BA71: Suzuki | BB71: 2020-09-19 | BC71: 148 | BD71: 579384 | BE71: 〇◇ | BF71: -78721 | BI71: 1495 | BJ71: 尼百貨店 | BK71: Ito | BL71: 2021-04-12 | BM71: 230 | BN71: 802308 | BO71: □△ | BP71: 32684 | BS71: 2116 | BT71: 香商船 | BU71: Ito | BV71: 2021-08-10 | BW71: 232 | BX71: 542328 | BY71: □▽ | BZ71: -1463 | CC71: 1156 | CD71: 沙信託 | CE71: Sato | CF71: 2020-11-10 | CG71: 329 | CH71: 936693 | CI71: 〇▼ | CJ71: -32265 | CM71: 1173 | CN71: 星ホテル | CO71: Sato | CP71: 2020-11-12 | CQ71: 218 | CR71: 594708 | CS71: □■ | CT71: 83372 | CW71: 1493 | CX71: 泰製本 | CY71: Yoshida | CZ71: 2021-04-12 | DA71: 228 | DB71: 961238 | DC71: □〇 | DD71: -90372 | DG71: 1181 | DH71: 台建設 | DI71: Suzuki | DJ71: 2020-11-13 | DK71: 315 | DL71: 972009 | DM71: □■ | DN71: 164813
A72: 765 | B72: 印度商事 | C72: Mita | D72: 2020-08-18 | E72: 704 | F72: 460282 | G72: △◆ | H72: 74638 | K72: 666 | L72: 米商会 | M72: Nakano | N72: 2020-08-10 | O72: 198 | P72: 551584 | Q72: △◆ | R72: 191908 | U72: 617 | V72: 英販売 | W72: Mita | X72: 2020-07-19 | Y72: 322 | Z72: 566250 | AA72: □□ | AB72: 36605 | AE72: 637 | AF72: 露不動産 | AG72: Tanaka | AH72: 2020-07-30 | AI72: 834 | AJ72: 954381 | AK72: 〇◆ | AL72: 144854 | AO72: 844 | AP72: 欄航空 | AQ72: Mita | AR72: 2020-09-11 | AS72: 351 | AT72: 662616 | AU72: 〇◆ | AV72: 117988 | AY72: 898 | AZ72: 伊研究所 | BA72: Yoshida | BB72: 2020-09-19 | BC72: 171 | BD72: 800288 | BE72: 〇□ | BF72: -71542 | BI72: 1524 | BJ72: 尼百貨店 | BK72: Ito | BL72: 2021-04-14 | BM72: 142 | BN72: 264174 | BO72: △□ | BP72: 24560 | BS72: 2137 | BT72: 香商船 | BU72: Yoshida | BV72: 2021-08-12 | BW72: 228 | BX72: 894788 | BY72: △▽ | BZ72: 15174 | CC72: 1174 | CD72: 沙信託 | CE72: Mita | CF72: 2020-11-12 | CG72: 219 | CH72: 818922 | CI72: 〇□ | CJ72: -71170 | CM72: 1188 | CN72: 星ホテル | CO72: Nakano | CP72: 2020-11-13 | CQ72: 322 | CR72: 183782 | CS72: 〇▲ | CT72: 25187 | CW72: 1527 | CX72: 泰製本 | CY72: Ito | CZ72: 2021-04-14 | DA72: 145 | DB72: 214977 | DC72: △△ | DD72: 180794 | DG72: 1199 | DH72: 台建設 | DI72: Nakano | DJ72: 2020-11-15 | DK72: 127 | DL72: 481058 | DM72: 〇▲ | DN72: 110043
A73: 770 | B73: 印度商事 | C73: Ito | D73: 2020-08-18 | E73: 709 | F73: 809693 | G73: 〇▼ | H73: 197430 | K73: 673 | L73: 米商会 | M73: Mita | N73: 2020-08-11 | O73: 308 | P73: 987992 | Q73: △▽ | R73: 195299 | U73: 622 | V73: 英販売 | W73: Yoshida | X73: 2020-07-21 | Y73: 245 | Z73: 410948 | AA73: △■ | AB73: 63749 | AE73: 645 | AF73: 露不動産 | AG73: Sato | AH73: 2020-08-01 | AI73: 378 | AJ73: 640800 | AK73: △◇ | AL73: -91500 | AO73: 872 | AP73: 欄航空 | AQ73: Nakano | AR73: 2020-09-13 | AS73: 340 | AT73: 459305 | AU73: □◇ | AV73: -5989 | AY73: 914 | AZ73: 伊研究所 | BA73: Mita | BB73: 2020-09-19 | BC73: 544 | BD73: 607324 | BE73: □▲ | BF73: 45086 | BI73: 1535 | BJ73: 尼百貨店 | BK73: Tanaka | BL73: 2021-04-15 | BM73: 164 | BN73: 659218 | BO73: 〇■ | BP73: 67199 | BS73: 2186 | BT73: 香商船 | BU73: Mita | BV73: 2021-08-18 | BW73: 171 | BX73: 154385 | BY73: □▽ | BZ73: 61722 | CC73: 1195 | CD73: 沙信託 | CE73: Ito | CF73: 2020-11-13 | CG73: 123 | CH73: 603628 | CI73: 〇▼ | CJ73: 173248 | CM73: 1194 | CN73: 星ホテル | CO73: Tanaka | CP73: 2020-11-13 | CQ73: 328 | CR73: 943099 | CS73: □▲ | CT73: -50357 | CW73: 1545 | CX73: 泰製本 | CY73: Mita | CZ73: 2021-04-15 | DA73: 174 | DB73: 556288 | DC73: □◇ | DD73: 85556 | DG73: 1215 | DH73: 台建設 | DI73: Mita | DJ73: 2020-11-15 | DK73: 154 | DL73: 682340 | DM73: □◆ | DN73: 137729
A74: 777 | B74: 印度商事 | C74: Tanaka | D74: 2020-08-18 | E74: 716 | F74: 641896 | G74: △▼ | H74: 41330 | K74: 677 | L74: 米商会 | M74: Suzuki | N74: 2020-08-11 | O74: 312 | P74: 476672 | Q74: △◆ | R74: 58461 | U74: 635 | V74: 英販売 | W74: Ito | X74: 2020-07-30 | Y74: 832 | Z74: 208448 | AA74: 〇〇 | AB74: -38098 | AE74: 650 | AF74: 露不動産 | AG74: Tanaka | AH74: 2020-08-03 | AI74: 213 | AJ74: 298216 | AK74: △◆ | AL74: 7888 | AO74: 876 | AP74: 欄航空 | AQ74: Suzuki | AR74: 2020-09-19 | AS74: 138 | AT74: 128304 | AU74: △□ | AV74: 16194 | AY74: 926 | AZ74: 伊研究所 | BA74: Sato | BB74: 2020-09-19 | BC74: 737 | BD74: 992960 | BE74: 〇□ | BF74: -9448 | BI74: 1549 | BJ74: 尼百貨店 | BK74: Tanaka | BL74: 2021-04-15 | BM74: 535 | BN74: 566008 | BO74: □▼ | BP74: 16845 | BS74: 2210 | BT74: 香商船 | BU74: Mita | BV74: 2021-08-18 | BW74: 552 | BX74: 389883 | BY74: △■ | BZ74: -12386 | CC74: 1205 | CD74: 沙信託 | CE74: Nakano | CF74: 2020-11-15 | CG74: 133 | CH74: 437661 | CI74: △〇 | CJ74: 63890 | CM74: 1204 | CN74: 星ホテル | CO74: Yoshida | CP74: 2020-11-15 | CQ74: 132 | CR74: 640792 | CS74: □△ | CT74: 180023 | CW74: 1570 | CX74: 泰製本 | CY74: Tanaka | CZ74: 2021-04-17 | DA74: 737 | DB74: 867169 | DC74: 〇▲ | DD74: -55171 | DG74: 1228 | DH74: 台建設 | DI74: Mita | DJ74: 2020-11-15 | DK74: 524 | DL74: 410212 | DM74: 〇◆ | DN74: 109590
A75: 793 | B75: 印度商事 | C75: Tanaka | D75: 2020-08-30 | E75: 808 | F75: 150083 | G75: □◆ | H75: 171056 | K75: 682 | L75: 米商会 | M75: Sato | N75: 2020-08-11 | O75: 317 | P75: 433962 | Q75: △□ | R75: 154957 | U75: 644 | V75: 英販売 | W75: Ito | X75: 2020-07-31 | Y75: 191 | Z75: 718247 | AA75: △◆ | AB75: 140287 | AE75: 657 | AF75: 露不動産 | AG75: Suzuki | AH75: 2020-08-08 | AI75: 399 | AJ75: 664021 | AK75: △□ | AL75: -75911 | AO75: 893 | AP75: 欄航空 | AQ75: Suzuki | AR75: 2020-09-19 | AS75: 166 | AT75: 834994 | AU75: 〇◆ | AV75: 198255 | AY75: 938 | AZ75: 伊研究所 | BA75: Mita | BB75: 2020-09-19 | BC75: 635 | BD75: 208749 | BE75: 〇◇ | BF75: 63637 | BI75: 1562 | BJ75: 尼百貨店 | BK75: Tanaka | BL75: 2021-04-16 | BM75: 548 | BN75: 580348 | BO75: □◆ | BP75: 98120 | BS75: 2240 | BT75: 香商船 | BU75: Nakano | BV75: 2021-08-21 | BW75: 265 | BX75: 681336 | BY75: 〇△ | BZ75: 175416 | CC75: 1233 | CD75: 沙信託 | CE75: Yoshida | CF75: 2020-11-15 | CG75: 529 | CH75: 972345 | CI75: 〇■ | CJ75: -70550 | CM75: 1234 | CN75: 星ホテル | CO75: Sato | CP75: 2020-11-15 | CQ75: 530 | CR75: 784867 | CS75: △□ | CT75: 52527 | CW75: 1584 | CX75: 泰製本 | CY75: Ito | CZ75: 2021-04-18 | DA75: 135 | DB75: 996239 | DC75: 〇〇 | DD75: 29424 | DG75: 1242 | DH75: 台建設 | DI75: Ito | DJ75: 2020-11-15 | DK75: 538 | DL75: 314852 | DM75: △▲ | DN75: -26804
A76: 812 | B76: 印度商事 | C76: Tanaka | D76: 2020-09-03 | E76: 235 | F76: 465254 | G76: 〇■ | H76: 30337 | K76: 690 | L76: 米商会 | M76: Sato | N76: 2020-08-12 | O76: 197 | P76: 866664 | Q76: □▼ | R76: 75687 | U76: 648 | V76: 英販売 | W76: Tanaka | X76: 2020-08-01 | Y76: 378 | Z76: 455191 | AA76: □◆ | AB76: -56221 | AE76: 667 | AF76: 露不動産 | AG76: Mita | AH76: 2020-08-10 | AI76: 199 | AJ76: 749399 | AK76: 〇▲ | AL76: 16263 | AO76: 920 | AP76: 欄航空 | AQ76: Mita | AR76: 2020-09-19 | AS76: 550 | AT76: 160195 | AU76: △▽ | AV76: 40445 | AY76: 949 | AZ76: 伊研究所 | BA76: Ito | BB76: 2020-09-21 | BC76: 262 | BD76: 805944 | BE76: □■ | BF76: 139732 | BI76: 1586 | BJ76: 尼百貨店 | BK76: Nakano | BL76: 2021-04-20 | BM76: 255 | BN76: 658847 | BO76: 〇▼ | BP76: 4803 | BS76: 2260 | BT76: 香商船 | BU76: Nakano | BV76: 2021-09-01 | BW76: 201 | BX76: 891964 | BY76: △▲ | BZ76: 67984 | CC76: 1254 | CD76: 沙信託 | CE76: Ito | CF76: 2020-11-15 | CG76: 731 | CH76: 406266 | CI76: 〇△ | CJ76: -99089 | CM76: 1253 | CN76: 星ホテル | CO76: Nakano | CP76: 2020-11-15 | CQ76: 730 | CR76: 782278 | CS76: 〇△ | CT76: 183245 | CW76: 1613 | CX76: 泰製本 | CY76: Mita | CZ76: 2021-05-01 | DA76: 366 | DB76: 780508 | DC76: □▲ | DD76: 169714 | DG76: 1260 | DH76: 台建設 | DI76: Yoshida | DJ76: 2020-11-15 | DK76: 623 | DL76: 490195 | DM76: 〇▽ | DN76: 142991
A77: 820 | B77: 印度商事 | C77: Ito | D77: 2020-09-09 | E77: 537 | F77: 281607 | G77: △▽ | H77: 43361 | K77: 718 | L77: 米商会 | M77: Tanaka | N77: 2020-08-18 | O77: 108 | P77: 807133 | Q77: □▲ | R77: -29618 | U77: 655 | V77: 英販売 | W77: Suzuki | X77: 2020-08-08 | Y77: 397 | Z77: 334963 | AA77: △◆ | AB77: 62436 | AE77: 672 | AF77: 露不動産 | AG77: Nakano | AH77: 2020-08-10 | AI77: 204 | AJ77: 291804 | AK77: △▽ | AL77: 114554 | AO77: 923 | AP77: 欄航空 | AQ77: Tanaka | AR77: 2020-09-19 | AS77: 734 | AT77: 573934 | AU77: △〇 | AV77: -83983 | AY77: 958 | AZ77: 伊研究所 | BA77: Ito | BB77: 2020-09-30 | BC77: 845 | BD77: 330546 | BE77: △◇ | BF77: 198345 | BI77: 1635 | BJ77: 尼百貨店 | BK77: Yoshida | BL77: 2021-05-10 | BM77: 189 | BN77: 692884 | BO77: 〇▽ | BP77: 147599 | BS77: 2281 | BT77: 香商船 | BU77: Mita | BV77: 2021-09-10 | BW77: 191 | BX77: 200364 | BY77: □□ | BZ77: -86247 | CC77: 1266 | CD77: 沙信託 | CE77: Sato | CF77: 2020-11-21 | CG77: 245 | CH77: 512746 | CI77: 〇◆ | CJ77: 161483 | CM77: 1277 | CN77: 星ホテル | CO77: Nakano | CP77: 2020-11-30 | CQ77: 830 | CR77: 386154 | CS77: 〇◇ | CT77: 15796 | CW77: 1633 | CX77: 泰製本 | CY77: Tanaka | CZ77: 2021-05-10 | DA77: 187 | DB77: 187166 | DC77: □▲ | DD77: 74144 | DG77: 1287 | DH77: 台建設 | DI77: Suzuki | DJ77: 2020-11-30 | DK77: 190 | DL77: 689661 | DM77: 〇◆ | DN77: 148676
A78: 829 | B78: 印度商事 | C78: Ito | D78: 2020-09-10 | E78: 233 | F78: 811624 | G78: △△ | H78: 90235 | K78: 725 | L78: 米商会 | M78: Sato | N78: 2020-08-18 | O78: 115 | P78: 209083 | Q78: □□ | R78: -54533 | U78: 665 | V78: 英販売 | W78: Nakano | X78: 2020-08-10 | Y78: 197 | Z78: 878705 | AA78: △□ | AB78: 107574 | AE78: 681 | AF78: 露不動産 | AG78: Ito | AH78: 2020-08-11 | AI78: 316 | AJ78: 629636 | AK78: □▼ | AL78: 44390 | AO78: 936 | AP78: 欄航空 | AQ78: Suzuki | AR78: 2020-09-19 | AS78: 747 | AT78: 969957 | AU78: △□ | AV78: 189749 | AY78: 970 | AZ78: 伊研究所 | BA78: Yoshida | BB78: 2020-10-01 | BC78: 366 | BD78: 584184 | BE78: 〇▼ | BF78: -85505 | BI78: 1658 | BJ78: 尼百貨店 | BK78: Sato | BL78: 2021-05-12 | BM78: 187 | BN78: 949483 | BO78: □□ | BP78: -90676 | BS78: 2330 | BT78: 香商船 | BU78: Mita | BV78: 2021-09-19 | BW78: 198 | BX78: 495321 | BY78: 〇■ | BZ78: -67868 | CC78: 1276 | CD78: 沙信託 | CE78: Mita | CF78: 2020-11-21 | CG78: 829 | CH78: 368396 | CI78: △◇ | CJ78: 108471 | CM78: 1294 | CN78: 星ホテル | CO78: Ito | CP78: 2020-12-03 | CQ78: 213 | CR78: 173578 | CS78: 〇▽ | CT78: 46283 | CW78: 1655 | CX78: 泰製本 | CY78: Ito | CZ78: 2021-05-12 | DA78: 184 | DB78: 821350 | DC78: □▼ | DD78: -71583 | DG78: 1299 | DH78: 台建設 | DI78: Ito | DJ78: 2020-12-06 | DK78: 397 | DL78: 228172 | DM78: 〇◇ | DN78: 341
A79: 838 | B79: 印度商事 | C79: Nakano | D79: 2020-09-11 | E79: 345 | F79: 714694 | G79: □▲ | H79: 170017 | K79: 733 | L79: 米商会 | M79: Tanaka | N79: 2020-08-18 | O79: 134 | P79: 895263 | Q79: △▼ | R79: 134690 | U79: 671 | V79: 英販売 | W79: Nakano | X79: 2020-08-10 | Y79: 203 | Z79: 496350 | AA79: 〇◆ | AB79: 140566 | AE79: 689 | AF79: 露不動産 | AG79: Tanaka | AH79: 2020-08-12 | AI79: 196 | AJ79: 607849 | AK79: □▽ | AL79: -78404 | AO79: 944 | AP79: 欄航空 | AQ79: Ito | AR79: 2020-09-21 | AS79: 257 | AT79: 951492 | AU79: □▼ | AV79: -229 | AY79: 989 | AZ79: 伊研究所 | BA79: Sato | BB79: 2020-10-10 | BC79: 187 | BD79: 292350 | BE79: 〇◇ | BF79: 191459 | BI79: 1668 | BJ79: 尼百貨店 | BK79: Sato | BL79: 2021-05-13 | BM79: 286 | BN79: 468055 | BO79: □■ | BP79: 115926 | BS79: 2371 | BT79: 香商船 | BU79: Suzuki | BV79: 2021-09-19 | BW79: 239 | BX79: 118544 | BY79: △◇ | BZ79: 156669 | CC79: 1295 | CD79: 沙信託 | CE79: Suzuki | CF79: 2020-12-05 | CG79: 311 | CH79: 289380 | CI79: 〇◆ | CJ79: 73934 | CM79: 1304 | CN79: 星ホテル | CO79: Yoshida | CP79: 2020-12-07 | CQ79: 505 | CR79: 788863 | CS79: △▼ | CT79: -64174 | CW79: 1671 | CX79: 泰製本 | CY79: Yoshida | CZ79: 2021-05-13 | DA79: 289 | DB79: 774304 | DC79: 〇△ | DD79: 1206 | DG79: 1315 | DH79: 台建設 | DI79: Suzuki | DJ79: 2020-12-10 | DK79: 203 | DL79: 894244 | DM79: 〇〇 | DN79: 171544
A80: 845 | B80: 印度商事 | C80: Nakano | D80: 2020-09-11 | E80: 224 | F80: 291290 | G80: △▽ | H80: -63785 | K80: 739 | L80: 米商会 | M80: Yoshida | N80: 2020-08-18 | O80: 140 | P80: 529923 | Q80: △▽ | R80: 101157 | U80: 678 | V80: 英販売 | W80: Ito | X80: 2020-08-11 | Y80: 313 | Z80: 269434 | AA80: □▽ | AB80: 150884 | AE80: 696 | AF80: 露不動産 | AG80: Ito | AH80: 2020-08-12 | AI80: 203 | AJ80: 239736 | AK80: □▽ | AL80: 172178 | AO80: 956 | AP80: 欄航空 | AQ80: Yoshida | AR80: 2020-09-30 | AS80: 843 | AT80: 629940 | AU80: □△ | AV80: 19010 | AY80: 1001 | AZ80: 伊研究所 | BA80: Ito | BB80: 2020-10-11 | BC80: 302 | BD80: 383312 | BE80: □▽ | BF80: -19900 | BI80: 1679 | BJ80: 尼百貨店 | BK80: Suzuki | BL80: 2021-05-15 | BM80: 191 | BN80: 823648 | BO80: 〇◇ | BP80: 88550 | BS80: 2391 | BT80: 香商船 | BU80: Mita | BV80: 2021-09-19 | BW80: 210 | BX80: 868586 | BY80: □□ | BZ80: 12300 | CC80: 1305 | CD80: 沙信託 | CE80: Mita | CF80: 2020-12-07 | CG80: 223 | CH80: 639591 | CI80: □▼ | CJ80: -76277 | CM80: 1322 | CN80: 星ホテル | CO80: Suzuki | CP80: 2020-12-11 | CQ80: 313 | CR80: 847973 | CS80: □▼ | CT80: 34204 | CW80: 1689 | CX80: 泰製本 | CY80: Tanaka | CZ80: 2021-05-15 | DA80: 201 | DB80: 814173 | DC80: □▽ | DD80: 195172 | DG80: 1330 | DH80: 台建設 | DI80: Yoshida | DJ80: 2020-12-12 | DK80: 193 | DL80: 593630 | DM80: △▽ | DN80: 81468
A81: 866 | B81: 印度商事 | C81: Tanaka | D81: 2020-09-13 | E81: 334 | F81: 246515 | G81: □◆ | H81: -60584 | K81: 766 | L81: 米商会 | M81: Suzuki | N81: 2020-08-18 | O81: 705 | P81: 720036 | Q81: △▽ | R81: -30759 | U81: 686 | V81: 英販売 | W81: Sato | X81: 2020-08-12 | Y81: 193 | Z81: 145144 | AA81: △▽ | AB81: 160761 | AE81: 717 | AF81: 露不動産 | AG81: Tanaka | AH81: 2020-08-18 | AI81: 107 | AJ81: 359159 | AK81: 〇▼ | AL81: 164249 | AO81: 963 | AP81: 欄航空 | AQ81: Yoshida | AR81: 2020-09-30 | AS81: 850 | AT81: 112460 | AU81: □□ | AV81: 60761 | AY81: 1017 | AZ81: 伊研究所 | BA81: Mita | BB81: 2020-10-12 | BC81: 190 | BD81: 578650 | BE81: □▽ | BF81: -61821 | BI81: 1693 | BJ81: 尼百貨店 | BK81: Nakano | BL81: 2021-05-15 | BM81: 205 | BN81: 100917 | BO81: 〇△ | BP81: 184563 | BS81: 2412 | BT81: 香商船 | BU81: Mita | BV81: 2021-09-30 | BW81: 805 | BX81: 167346 | BY81: 〇▲ | BZ81: -72976 | CC81: 1323 | CD81: 沙信託 | CE81: Ito | CF81: 2020-12-11 | CG81: 314 | CH81: 874429 | CI81: □■ | CJ81: -29640 | CM81: 1337 | CN81: 星ホテル | CO81: Ito | CP81: 2020-12-12 | CQ81: 200 | CR81: 383769 | CS81: □〇 | CT81: 75950 | CW81: 1714 | CX81: 泰製本 | CY81: Ito | CZ81: 2021-05-16 | DA81: 226 | DB81: 604173 | DC81: 〇□ | DD81: -53876 | DG81: 1348 | DH81: 台建設 | DI81: Mita | DJ81: 2020-12-13 | DK81: 300 | DL81: 991951 | DM81: △□ | DN81: 165282
A82: 873 | B82: 印度商事 | C82: Mita | D82: 2020-09-13 | E82: 135 | F82: 478520 | G82: □▽ | H82: -6833 | K82: 773 | L82: 米商会 | M82: Yoshida | N82: 2020-08-18 | O82: 712 | P82: 750383 | Q82: △▼ | R82: 41387 | U82: 691 | V82: 英販売 | W82: Nakano | X82: 2020-08-12 | Y82: 198 | Z82: 654342 | AA82: □△ | AB82: 191772 | AE82: 724 | AF82: 露不動産 | AG82: Tanaka | AH82: 2020-08-18 | AI82: 114 | AJ82: 470734 | AK82: 〇〇 | AL82: 73639 | AO82: 971 | AP82: 欄航空 | AQ82: Ito | AR82: 2020-10-03 | AS82: 201 | AT82: 283202 | AU82: △▽ | AV82: -28419 | AY82: 1032 | AZ82: 伊研究所 | BA82: Tanaka | BB82: 2020-10-13 | BC82: 294 | BD82: 196463 | BE82: △□ | BF82: -49327 | BI82: 1706 | BJ82: 尼百貨店 | BK82: Tanaka | BL82: 2021-05-15 | BM82: 218 | BN82: 698587 | BO82: □〇 | BP82: 88835 | BS82: 2461 | BT82: 香商船 | BU82: Mita | BV82: 2021-10-12 | BW82: 218 | BX82: 264125 | BY82: □▽ | BZ82: -82876 | CC82: 1344 | CD82: 沙信託 | CE82: Mita | CF82: 2020-12-13 | CG82: 296 | CH82: 991701 | CI82: □◆ | CJ82: -1824 | CM82: 1343 | CN82: 星ホテル | CO82: Yoshida | CP82: 2020-12-13 | CQ82: 295 | CR82: 184799 | CS82: 〇▲ | CT82: 79715 | CW82: 1728 | CX82: 泰製本 | CY82: Sato | CZ82: 2021-05-16 | DA82: 240 | DB82: 158859 | DC82: □□ | DD82: 45995 | DG82: 1372 | DH82: 台建設 | DI82: Sato | DJ82: 2020-12-15 | DK82: 118 | DL82: 401980 | DM82: □▲ | DN82: 120452
A83: 881 | B83: 印度商事 | C83: Tanaka | D83: 2020-09-19 | E83: 143 | F83: 515070 | G83: □▲ | H83: 92042 | K83: 783 | L83: 米商会 | M83: Ito | N83: 2020-08-21 | O83: 224 | P83: 474974 | Q83: □▲ | R83: -14738 | U83: 714 | V83: 英販売 | W83: Tanaka | X83: 2020-08-18 | Y83: 104 | Z83: 585589 | AA83: 〇△ | AB83: -44043 | AE83: 732 | AF83: 露不動産 | AG83: Ito | AH83: 2020-08-18 | AI83: 133 | AJ83: 440026 | AK83: △□ | AL83: -88042 | AO83: 985 | AP83: 欄航空 | AQ83: Tanaka | AR83: 2020-10-10 | AS83: 213 | AT83: 764562 | AU83: △〇 | AV83: -86250 | AY83: 1038 | AZ83: 伊研究所 | BA83: Ito | BB83: 2020-10-15 | BC83: 194 | BD83: 635662 | BE83: □▼ | BF83: -81304 | BI83: 1730 | BJ83: 尼百貨店 | BK83: Suzuki | BL83: 2021-05-17 | BM83: 691 | BN83: 418700 | BO83: 〇◆ | BP83: 135931 | BS83: 2485 | BT83: 香商船 | BU83: Mita | BV83: 2021-10-15 | BW83: 125 | BX83: 212480 | BY83: 〇◇ | BZ83: 116333 | CC83: 1354 | CD83: 沙信託 | CE83: Yoshida | CF83: 2020-12-13 | CG83: 306 | CH83: 432029 | CI83: □▽ | CJ83: 120768 | CM83: 1353 | CN83: 星ホテル | CO83: Tanaka | CP83: 2020-12-13 | CQ83: 305 | CR83: 172148 | CS83: △◆ | CT83: -47270 | CW83: 1757 | CX83: 泰製本 | CY83: Suzuki | CZ83: 2021-05-21 | DA83: 220 | DB83: 428936 | DC83: 〇▼ | DD83: 62007 | DG83: 1386 | DH83: 台建設 | DI83: Mita | DJ83: 2020-12-15 | DK83: 143 | DL83: 964125 | DM83: 〇△ | DN83: -83051
A84: 887 | B84: 印度商事 | C84: Suzuki | D84: 2020-09-19 | E84: 149 | F84: 607953 | G84: 〇〇 | H84: 98888 | K84: 789 | L84: 米商会 | M84: Mita | N84: 2020-08-21 | O84: 230 | P84: 497077 | Q84: 〇◇ | R84: 159296 | U84: 719 | V84: 英販売 | W84: Mita | X84: 2020-08-18 | Y84: 109 | Z84: 832105 | AA84: △▲ | AB84: -91940 | AE84: 738 | AF84: 露不動産 | AG84: Tanaka | AH84: 2020-08-18 | AI84: 139 | AJ84: 562368 | AK84: □◇ | AL84: 5693 | AO84: 996 | AP84: 欄航空 | AQ84: Nakano | AR84: 2020-10-11 | AS84: 297 | AT84: 174136 | AU84: □▼ | AV84: 67053 | AY84: 1050 | AZ84: 伊研究所 | BA84: Sato | BB84: 2020-10-15 | BC84: 206 | BD84: 103582 | BE84: △◇ | BF84: 156616 | BI84: 1779 | BJ84: 尼百貨店 | BK84: Suzuki | BL84: 2021-06-06 | BM84: 224 | BN84: 629555 | BO84: □〇 | BP84: -26409 | BS84: 2515 | BT84: 香商船 | BU84: Ito | BV84: 2021-10-15 | BW84: 523 | BX84: 168300 | BY84: △▽ | BZ84: 120018 | CC84: 1377 | CD84: 沙信託 | CE84: Suzuki | CF84: 2020-12-15 | CG84: 134 | CH84: 960582 | CI84: 〇▽ | CJ84: 24741 | CM84: 1378 | CN84: 星ホテル | CO84: Tanaka | CP84: 2020-12-15 | CQ84: 135 | CR84: 325452 | CS84: 〇◇ | CT84: -89943 | CW84: 1777 | CX84: 泰製本 | CY84: Yoshida | CZ84: 2021-06-03 | DA84: 331 | DB84: 783463 | DC84: △◆ | DD84: 130966 | DG84: 1404 | DH84: 台建設 | DI84: Nakano | DJ84: 2020-12-15 | DK84: 518 | DL84: 862315 | DM84: □〇 | DN84: -82313
A85: 894 | B85: 印度商事 | C85: Sato | D85: 2020-09-19 | E85: 167 | F85: 963833 | G85: △▽ | H85: 121301 | K85: 796 | L85: 米商会 | M85: Tanaka | N85: 2020-08-30 | O85: 811 | P85: 591828 | Q85: 〇〇 | R85: 43298 | U85: 729 | V85: 英販売 | W85: Tanaka | X85: 2020-08-18 | Y85: 130 | Z85: 483919 | AA85: □△ | AB85: -2617 | AE85: 745 | AF85: 露不動産 | AG85: Suzuki | AH85: 2020-08-18 | AI85: 503 | AJ85: 599082 | AK85: 〇▲ | AL85: 85812 | AO85: 1024 | AP85: 欄航空 | AQ85: Tanaka | AR85: 2020-10-13 | AS85: 286 | AT85: 802289 | AU85: 〇■ | AV85: 151203 | AY85: 1066 | AZ85: 伊研究所 | BA85: Yoshida | BB85: 2020-10-15 | BC85: 222 | BD85: 714612 | BE85: □□ | BF85: 153454 | BI85: 1802 | BJ85: 尼百貨店 | BK85: Ito | BL85: 2021-06-11 | BM85: 331 | BN85: 625648 | BO85: 〇■ | BP85: -72201 | BS85: 2535 | BT85: 香商船 | BU85: Ito | BV85: 2021-10-15 | BW85: 724 | BX85: 202237 | BY85: △▼ | BZ85: 2417 | CC85: 1398 | CD85: 沙信託 | CE85: Ito | CF85: 2020-12-15 | CG85: 512 | CH85: 838920 | CI85: □◇ | CJ85: 96654 | CM85: 1397 | CN85: 星ホテル | CO85: Ito | CP85: 2020-12-15 | CQ85: 511 | CR85: 966704 | CS85: 〇〇 | CT85: -19518 | CW85: 1805 | CX85: 泰製本 | CY85: Sato | CZ85: 2021-06-11 | DA85: 334 | DB85: 744111 | DC85: △〇 | DD85: 109055 | DG85: 1431 | DH85: 台建設 | DI85: Mita | DJ85: 2020-12-21 | DK85: 228 | DL85: 620715 | DM85: 〇▼ | DN85: 123566
A86: 915 | B86: 印度商事 | C86: Tanaka | D86: 2020-09-19 | E86: 545 | F86: 125167 | G86: 〇■ | H86: -9246 | K86: 803 | L86: 米商会 | M86: Tanaka | N86: 2020-08-30 | O86: 818 | P86: 216144 | Q86: △◇ | R86: 55475 | U86: 734 | V86: 英販売 | W86: Suzuki | X86: 2020-08-18 | Y86: 135 | Z86: 738885 | AA86: 〇〇 | AB86: 20977 | AE86: 769 | AF86: 露不動産 | AG86: Ito | AH86: 2020-08-18 | AI86: 708 | AJ86: 315343 | AK86: △■ | AL86: -89972 | AO86: 1028 | AP86: 欄航空 | AQ86: Tanaka | AR86: 2020-10-13 | AS86: 290 | AT86: 587800 | AU86: □◇ | AV86: 102609 | AY86: 1077 | AZ86: 伊研究所 | BA86: Nakano | BB86: 2020-10-15 | BC86: 233 | BD86: 666010 | BE86: □▲ | BF86: 33712 | BI86: 1813 | BJ86: 尼百貨店 | BK86: Yoshida | BL86: 2021-06-12 | BM86: 214 | BN86: 129103 | BO86: △◇ | BP86: 108854 | BS86: 2556 | BT86: 香商船 | BU86: Mita | BV86: 2021-10-21 | BW86: 247 | BX86: 569396 | BY86: 〇■ | BZ86: -8059 | CC86: 1410 | CD86: 沙信託 | CE86: Yoshida | CF86: 2020-12-15 | CG86: 705 | CH86: 920618 | CI86: 〇〇 | CJ86: 4369 | CM86: 1421 | CN86: 星ホテル | CO86: Tanaka | CP86: 2020-12-15 | CQ86: 716 | CR86: 606705 | CS86: □■ | CT86: 115331 | CW86: 1823 | CX86: 泰製本 | CY86: Sato | CZ86: 2021-06-12 | DA86: 313 | DB86: 881578 | DC86: △△ | DD86: 23958 | DG86: 1443 | DH86: 台建設 | DI86: Sato | DJ86: 2020-12-30 | DK86: 814 | DL86: 379920 | DM86: △▽ | DN86: 192182
A87: 922 | B87: 印度商事 | C87: Tanaka | D87: 2020-09-19 | E87: 552 | F87: 219277 | G87: 〇□ | H87: -69048 | K87: 816 | L87: 米商会 | M87: Ito | N87: 2020-09-09 | O87: 430 | P87: 434458 | Q87: 〇◆ | R87: 49450 | U87: 740 | V87: 英販売 | W87: Tanaka | X87: 2020-08-18 | Y87: 141 | Z87: 916317 | AA87: △▽ | AB87: 111910 | AE87: 779 | AF87: 露不動産 | AG87: Nakano | AH87: 2020-08-19 | AI87: 302 | AJ87: 566208 | AK87: □▲ | AL87: 187804 | AO87: 1045 | AP87: 欄航空 | AQ87: Tanaka | AR87: 2020-10-15 | AS87: 201 | AT87: 945837 | AU87: □■ | AV87: 189056 | AY87: 1089 | AZ87: 伊研究所 | BA87: Tanaka | BB87: 2020-10-15 | BC87: 694 | BD87: 706530 | BE87: □〇 | BF87: 32602 | BI87: 1827 | BJ87: 尼百貨店 | BK87: Tanaka | BL87: 2021-06-13 | BM87: 317 | BN87: 341977 | BO87: □□ | BP87: 57034 | BS87: 2605 | BT87: 香商船 | BU87: Tanaka | BV87: 2021-11-10 | BW87: 308 | BX87: 997945 | BY87: △▼ | BZ87: 5085 | CC87: 1420 | CD87: 沙信託 | CE87: Sato | CF87: 2020-12-15 | CG87: 715 | CH87: 820965 | CI87: △■ | CJ87: 183798 | CM87: 1438 | CN87: 星ホテル | CO87: Tanaka | CP87: 2020-12-30 | CQ87: 809 | CR87: 711542 | CS87: 〇△ | CT87: 128159 | CW87: 1848 | CX87: 泰製本 | CY87: Sato | CZ87: 2021-06-16 | DA87: 132 | DB87: 879127 | DC87: △△ | DD87: -81243 | DG87: 1459 | DH87: 台建設 | DI87: Sato | DJ87: 2021-04-05 | DK87: 429 | DL87: 518071 | DM87: 〇▽ | DN87: -25258
A88: 929 | B88: 印度商事 | C88: Mita | D88: 2020-09-19 | E88: 740 | F88: 313791 | G88: 〇△ | H88: 92715 | K88: 823 | L88: 米商会 | M88: Nakano | N88: 2020-09-09 | O88: 257 | P88: 992502 | Q88: △〇 | R88: 61746 | U88: 763 | V88: 英販売 | W88: Ito | X88: 2020-08-18 | Y88: 702 | Z88: 152189 | AA88: 〇〇 | AB88: 79677 | AE88: 787 | AF88: 露不動産 | AG88: Sato | AH88: 2020-08-21 | AI88: 228 | AJ88: 188086 | AK88: △□ | AL88: 78482 | AO88: 1071 | AP88: 欄航空 | AQ88: Nakano | AR88: 2020-10-15 | AS88: 227 | AT88: 541302 | AU88: □〇 | AV88: 85110 | AY88: 1100 | AZ88: 伊研究所 | BA88: Tanaka | BB88: 2020-10-15 | BC88: 591 | BD88: 517413 | BE88: 〇▲ | BF88: 170006 | BI88: 1840 | BJ88: 尼百貨店 | BK88: Nakano | BL88: 2021-06-13 | BM88: 124 | BN88: 238787 | BO88: □■ | BP88: 108498 | BS88: 2649 | BT88: 香商船 | BU88: Yoshida | BV88: 2021-11-15 | BW88: 107 | BX88: 205229 | BY88: △△ | BZ88: -85106 | CC88: 1439 | CD88: 沙信託 | CE88: Ito | CF88: 2020-12-30 | CG88: 810 | CH88: 820219 | CI88: 〇▼ | CJ88: 100234 | CM88: 1448 | CN88: 星ホテル | CO88: Suzuki | CP88: 2020-12-30 | CQ88: 819 | CR88: 492875 | CS88: □◇ | CT88: 21554 | CW88: 1862 | CX88: 泰製本 | CY88: Yoshida | CZ88: 2021-06-16 | DA88: 157 | DB88: 199549 | DC88: 〇▽ | DD88: 169445 | DG88: 1474 | DH88: 台建設 | DI88: Ito | DJ88: 2021-04-10 | DK88: 234 | DL88: 446144 | DM88: 〇◇ | DN88: 17646
A89: 945 | B89: 印度商事 | C89: Yoshida | D89: 2020-09-21 | E89: 258 | F89: 267764 | G89: 〇◇ | H89: -3080 | K89: 827 | L89: 米商会 | M89: Ito | N89: 2020-09-10 | O89: 231 | P89: 589629 | Q89: △▽ | R89: -63666 | U89: 767 | V89: 英販売 | W89: Ito | X89: 2020-08-18 | Y89: 706 | Z89: 479506 | AA89: △〇 | AB89: 37926 | AE89: 795 | AF89: 露不動産 | AG89: Yoshida | AH89: 2020-08-30 | AI89: 810 | AJ89: 737195 | AK89: △△ | AL89: 180078 | AO89: 1074 | AP89: 欄航空 | AQ89: Suzuki | AR89: 2020-10-15 | AS89: 230 | AT89: 162717 | AU89: 〇□ | AV89: 163836 | AY89: 1109 | AZ89: 伊研究所 | BA89: Mita | BB89: 2020-10-21 | BC89: 216 | BD89: 518421 | BE89: △〇 | BF89: 149859 | BI89: 1864 | BJ89: 尼百貨店 | BK89: Ito | BL89: 2021-06-16 | BM89: 159 | BN89: 165946 | BO89: □〇 | BP89: -34166 | BS89: 2669 | BT89: 香商船 | BU89: Ito | BV89: 2021-11-15 | BW89: 138 | BX89: 738429 | BY89: 〇◇ | BZ89: -33910 | CC89: 1449 | CD89: 沙信託 | CE89: Sato | CF89: 2020-12-31 | CG89: 410 | CH89: 360053 | CI89: △◇ | CJ89: -35060 | CM89: 1466 | CN89: 星ホテル | CO89: Sato | CP89: 2021-04-08 | CQ89: 256 | CR89: 236780 | CS89: 〇▼ | CT89: 82636 | CW89: 1891 | CX89: 泰製本 | CY89: Sato | CZ89: 2021-06-17 | DA89: 724 | DB89: 366013 | DC89: □△ | DD89: 26996 | DG89: 1492 | DH89: 台建設 | DI89: Yoshida | DJ89: 2021-04-12 | DK89: 227 | DL89: 346487 | DM89: □▼ | DN89: 172105
A90: 964 | B90: 印度商事 | C90: Sato | D90: 2020-09-30 | E90: 851 | F90: 420393 | G90: □▼ | H90: -13051 | K90: 832 | L90: 米商会 | M90: Yoshida | N90: 2020-09-10 | O90: 236 | P90: 348835 | Q90: 〇▼ | R90: -35783 | U90: 772 | V90: 英販売 | W90: Suzuki | X90: 2020-08-18 | Y90: 711 | Z90: 389615 | AA90: △〇 | AB90: -90234 | AE90: 800 | AF90: 露不動産 | AG90: Sato | AH90: 2020-08-30 | AI90: 815 | AJ90: 670097 | AK90: △◆ | AL90: 176213 | AO90: 1087 | AP90: 欄航空 | AQ90: Ito | AR90: 2020-10-15 | AS90: 692 | AT90: 727774 | AU90: 〇▽ | AV90: 15822 | AY90: 1121 | AZ90: 伊研究所 | BA90: Sato | BB90: 2020-10-30 | BC90: 802 | BD90: 119193 | BE90: □▲ | BF90: -62672 | BI90: 1913 | BJ90: 尼百貨店 | BK90: Suzuki | BL90: 2021-06-21 | BM90: 248 | BN90: 781744 | BO90: 〇△ | BP90: 24253 | BS90: 2690 | BT90: 香商船 | BU90: Yoshida | BV90: 2021-11-15 | BW90: 516 | BX90: 820853 | BY90: △▲ | BZ90: -61751 | CC90: 1467 | CD90: 沙信託 | CE90: Suzuki | CF90: 2021-04-09 | CG90: 257 | CH90: 595646 | CI90: 〇◆ | CJ90: -31274 | CM90: 1481 | CN90: 星ホテル | CO90: Ito | CP90: 2021-04-11 | CQ90: 344 | CR90: 308939 | CS90: □◇ | CT90: 2251 | CW90: 1911 | CX90: 泰製本 | CY90: Mita | CZ90: 2021-06-21 | DA90: 246 | DB90: 819252 | DC90: □■ | DD90: -68863 | DG90: 1508 | DH90: 台建設 | DI90: Tanaka | DJ90: 2021-04-13 | DK90: 332 | DL90: 658210 | DM90: □△ | DN90: 172808
A91: 972 | B91: 印度商事 | C91: Nakano | D91: 2020-10-03 | E91: 201 | F91: 122398 | G91: □△ | H91: 23562 | K91: 840 | L91: 米商会 | M91: Tanaka | N91: 2020-09-11 | O91: 347 | P91: 350533 | Q91: □△ | R91: 191276 | U91: 785 | V91: 英販売 | W91: Tanaka | X91: 2020-08-21 | Y91: 226 | Z91: 449465 | AA91: 〇◇ | AB91: 139931 | AE91: 807 | AF91: 露不動産 | AG91: Suzuki | AH91: 2020-09-01 | AI91: 410 | AJ91: 470340 | AK91: △◇ | AL91: 101855 | AO91: 1095 | AP91: 欄航空 | AQ91: Mita | AR91: 2020-10-15 | AS91: 700 | AT91: 696895 | AU91: △◇ | AV91: 136368 | AY91: 1140 | AZ91: 伊研究所 | BA91: Ito | BB91: 2020-11-06 | BC91: 523 | BD91: 874434 | BE91: △■ | BF91: -38212 | BI91: 1936 | BJ91: 尼百貨店 | BK91: Nakano | BL91: 2021-07-01 | BM91: 378 | BN91: 931153 | BO91: □■ | BP91: -76126 | BS91: 2739 | BT91: 香商船 | BU91: Sato | BV91: 2021-12-01 | BW91: 410 | BX91: 123119 | BY91: □▲ | BZ91: -7048 | CC91: 1488 | CD91: 沙信託 | CE91: Sato | CF91: 2021-04-11 | CG91: 351 | CH91: 886996 | CI91: □▲ | CJ91: 157905 | CM91: 1487 | CN91: 星ホテル | CO91: Nakano | CP91: 2021-04-11 | CQ91: 350 | CR91: 455573 | CS91: 〇■ | CT91: 95948 | CW91: 1933 | CX91: 泰製本 | CY91: Nakano | CZ91: 2021-07-01 | DA91: 378 | DB91: 138760 | DC91: △△ | DD91: 95801 | DG91: 1526 | DH91: 台建設 | DI91: Yoshida | DJ91: 2021-04-14 | DK91: 144 | DL91: 838982 | DM91: 〇□ | DN91: 3773
A92: 981 | B92: 印度商事 | C92: Sato | D92: 2020-10-10 | E92: 492 | F92: 187168 | G92: 〇〇 | H92: -87278 | K92: 868 | L92: 米商会 | M92: Nakano | N92: 2020-09-13 | O92: 336 | P92: 432893 | Q92: □▼ | R92: -35948 | U92: 794 | V92: 英販売 | W92: Tanaka | X92: 2020-08-30 | Y92: 809 | Z92: 747578 | AA92: □◇ | AB92: -53711 | AE92: 817 | AF92: 露不動産 | AG92: Suzuki | AH92: 2020-09-09 | AI92: 431 | AJ92: 444033 | AK92: □■ | AL92: 148620 | AO92: 1107 | AP92: 欄航空 | AQ92: Nakano | AR92: 2020-10-21 | AS92: 214 | AT92: 427651 | AU92: △◆ | AV92: -31677 | AY92: 1152 | AZ92: 伊研究所 | BA92: Nakano | BB92: 2020-11-09 | BC92: 222 | BD92: 103042 | BE92: □◆ | BF92: 152370 | BI92: 1946 | BJ92: 尼百貨店 | BK92: Sato | BL92: 2021-07-08 | BM92: 503 | BN92: 652503 | BO92: 〇△ | BP92: -43812 | BS92: 2763 | BT92: 香商船 | BU92: Suzuki | BV92: 2021-12-09 | BW92: 235 | BX92: 696068 | BY92: 〇■ | BZ92: 100613 | CC92: 1498 | CD92: 沙信託 | CE92: Sato | CF92: 2021-04-12 | CG92: 233 | CH92: 982887 | CI92: 〇▽ | CJ92: 80267 | CM92: 1497 | CN92: 星ホテル | CO92: Yoshida | CP92: 2021-04-12 | CQ92: 232 | CR92: 940685 | CS92: □▼ | CT92: 99853 | CW92: 1949 | CX92: 泰製本 | CY92: Nakano | CZ92: 2021-07-09 | DA92: 223 | DB92: 724586 | DC92: 〇△ | DD92: -54526 | DG92: 1544 | DH92: 台建設 | DI92: Tanaka | DJ92: 2021-04-15 | DK92: 173 | DL92: 243106 | DM92: △▲ | DN92: 17331
A93: 990 | B93: 印度商事 | C93: Tanaka | D93: 2020-10-10 | E93: 188 | F93: 390092 | G93: △〇 | H93: -19620 | K93: 875 | L93: 米商会 | M93: Suzuki | N93: 2020-09-19 | O93: 137 | P93: 164064 | Q93: 〇◆ | R93: -95238 | U93: 798 | V93: 英販売 | W93: Yoshida | X93: 2020-08-30 | Y93: 813 | Z93: 576392 | AA93: □◇ | AB93: 137082 | AE93: 822 | AF93: 露不動産 | AG93: Mita | AH93: 2020-09-09 | AI93: 256 | AJ93: 326833 | AK93: △◆ | AL93: 90507 | AO93: 1114 | AP93: 欄航空 | AQ93: Sato | AR93: 2020-10-21 | AS93: 221 | AT93: 967890 | AU93: □△ | AV93: 190664 | AY93: 1168 | AZ93: 伊研究所 | BA93: Tanaka | BB93: 2020-11-11 | BC93: 213 | BD93: 544028 | BE93: △◆ | BF93: 879 | BI93: 1957 | BJ93: 尼百貨店 | BK93: Sato | BL93: 2021-07-10 | BM93: 201 | BN93: 176918 | BO93: 〇▼ | BP93: 105328 | BS93: 2793 | BT93: 香商船 | BU93: Nakano | BV93: 2021-12-13 | BW93: 329 | BX93: 697976 | BY93: □〇 | BZ93: 157700 | CC93: 1516 | CD93: 沙信託 | CE93: Tanaka | CF93: 2021-04-13 | CG93: 340 | CH93: 383628 | CI93: 〇▽ | CJ93: 59093 | CM93: 1515 | CN93: 星ホテル | CO93: Mita | CP93: 2021-04-13 | CQ93: 339 | CR93: 347862 | CS93: 〇□ | CT93: -64480 | CW93: 1967 | CX93: 泰製本 | CY93: Tanaka | CZ93: 2021-07-11 | DA93: 314 | DB93: 229028 | DC93: △〇 | DD93: 29408 | DG93: 1571 | DH93: 台建設 | DI93: Suzuki | DJ93: 2021-04-17 | DK93: 738 | DL93: 332713 | DM93: △△ | DN93: -37362
A94: 997 | B94: 印度商事 | C94: Yoshida | D94: 2020-10-11 | E94: 298 | F94: 936290 | G94: 〇◆ | H94: -54224 | K94: 883 | L94: 米商会 | M94: Mita | N94: 2020-09-19 | O94: 145 | P94: 704199 | Q94: △▲ | R94: 152133 | U94: 805 | V94: 英販売 | W94: Suzuki | X94: 2020-08-31 | Y94: 410 | Z94: 872076 | AA94: □▼ | AB94: 12587 | AE94: 831 | AF94: 露不動産 | AG94: Yoshida | AH94: 2020-09-10 | AI94: 235 | AJ94: 220230 | AK94: △〇 | AL94: 148172 | AO94: 1122 | AP94: 欄航空 | AQ94: Suzuki | AR94: 2020-10-30 | AS94: 803 | AT94: 555171 | AU94: 〇◇ | AV94: -78684 | AY94: 1183 | AZ94: 伊研究所 | BA94: Yoshida | BB94: 2020-11-13 | BC94: 317 | BD94: 457704 | BE94: 〇■ | BF94: 141068 | BI94: 1971 | BJ94: 尼百貨店 | BK94: Yoshida | BL94: 2021-07-11 | BM94: 318 | BN94: 838454 | BO94: □□ | BP94: 176557 | BS94: 2813 | BT94: 香商船 | BU94: Tanaka | BV94: 2021-12-15 | BW94: 143 | BX94: 502029 | BY94: 〇△ | BZ94: -75854 | CC94: 1538 | CD94: 沙信託 | CE94: Suzuki | CF94: 2021-04-15 | CG94: 167 | CH94: 371860 | CI94: 〇▲ | CJ94: 106833 | CM94: 1537 | CN94: 星ホテル | CO94: Nakano | CP94: 2021-04-15 | CQ94: 166 | CR94: 852780 | CS94: △▼ | CT94: 120509 | CW94: 1992 | CX94: 泰製本 | CY94: Sato | CZ94: 2021-07-13 | DA94: 300 | DB94: 510359 | DC94: □〇 | DD94: 89247 | DG94: 1583 | DH94: 台建設 | DI94: Yoshida | DJ94: 2021-04-17 | DK94: 334 | DL94: 799835 | DM94: △〇 | DN94: 69361
A95: 1018 | B95: 印度商事 | C95: Ito | D95: 2020-10-12 | E95: 191 | F95: 855605 | G95: □◆ | H95: 196308 | K95: 889 | L95: 米商会 | M95: Sato | N95: 2020-09-19 | O95: 162 | P95: 448515 | Q95: △□ | R95: 162955 | U95: 815 | V95: 英販売 | W95: Mita | X95: 2020-09-09 | Y95: 429 | Z95: 869918 | AA95: 〇▲ | AB95: 42671 | AE95: 839 | AF95: 露不動産 | AG95: Suzuki | AH95: 2020-09-11 | AI95: 346 | AJ95: 477731 | AK95: □■ | AL95: -61694 | AO95: 1136 | AP95: 欄航空 | AQ95: Suzuki | AR95: 2020-11-05 | AS95: 209 | AT95: 191009 | AU95: □▽ | AV95: 8651 | AY95: 1189 | AZ95: 伊研究所 | BA95: Yoshida | BB95: 2020-11-13 | BC95: 323 | BD95: 734686 | BE95: △△ | BF95: -80816 | BI95: 1984 | BJ95: 尼百貨店 | BK95: Sato | BL95: 2021-07-12 | BM95: 203 | BN95: 559244 | BO95: □▼ | BP95: 51960 | BS95: 2834 | BT95: 香商船 | BU95: Ito | BV95: 2021-12-15 | BW95: 175 | BX95: 902754 | BY95: □△ | BZ95: 138101 | CC95: 1550 | CD95: 沙信託 | CE95: Yoshida | CF95: 2021-04-15 | CG95: 536 | CH95: 734739 | CI95: 〇〇 | CJ95: -40014 | CM95: 1561 | CN95: 星ホテル | CO95: Tanaka | CP95: 2021-04-16 | CQ95: 547 | CR95: 658609 | CS95: □◇ | CT95: 155106 | CW95: 2006 | CX95: 泰製本 | CY95: Suzuki | CZ95: 2021-07-17 | DA95: 108 | DB95: 679853 | DC95: △▽ | DD95: 74274 | DG95: 1599 | DH95: 台建設 | DI95: Sato | DJ95: 2021-04-30 | DK95: 842 | DL95: 182924 | DM95: △▽ | DN95: -68593
A96: 1025 | B96: 印度商事 | C96: Suzuki | D96: 2020-10-13 | E96: 287 | F96: 700966 | G96: 〇■ | H96: 190721 | K96: 917 | L96: 米商会 | M96: Ito | N96: 2020-09-19 | O96: 547 | P96: 423463 | Q96: △■ | R96: 198186 | U96: 821 | V96: 英販売 | W96: Ito | X96: 2020-09-09 | Y96: 255 | Z96: 844216 | AA96: □▲ | AB96: -71819 | AE96: 846 | AF96: 露不動産 | AG96: Tanaka | AH96: 2020-09-11 | AI96: 225 | AJ96: 360787 | AK96: △◇ | AL96: 105786 | AO96: 1147 | AP96: 欄航空 | AQ96: Mita | AR96: 2020-11-08 | AS96: 217 | AT96: 920320 | AU96: 〇▽ | AV96: 162687 | AY96: 1201 | AZ96: 伊研究所 | BA96: Tanaka | BB96: 2020-11-15 | BC96: 129 | BD96: 300429 | BE96: 〇◇ | BF96: -58137 | BI96: 2008 | BJ96: 尼百貨店 | BK96: Suzuki | BL96: 2021-07-17 | BM96: 110 | BN96: 241208 | BO96: □◆ | BP96: -81982 | BS96: 2883 | BT96: 香商船 | BU96: Tanaka | BV96: 2021-12-21 | BW96: 264 | BX96: 179521 | BY96: □〇 | BZ96: 158722 | CC96: 1560 | CD96: 沙信託 | CE96: Nakano | CF96: 2021-04-16 | CG96: 546 | CH96: 125776 | CI96: □〇 | CJ96: 110605 | CM96: 1578 | CN96: 星ホテル | CO96: Tanaka | CP96: 2021-04-17 | CQ96: 745 | CR96: 539856 | CS96: 〇■ | CT96: -10348 | CW96: 2035 | CX96: 泰製本 | CY96: Mita | CZ96: 2021-07-17 | DA96: 505 | DB96: 897363 | DC96: □▼ | DD96: 81665 | DG96: 1614 | DH96: 台建設 | DI96: Ito | DJ96: 2021-05-01 | DK96: 366 | DL96: 835339 | DM96: 〇◆ | DN96: -6761
A97: 1033 | B97: 印度商事 | C97: Suzuki | D97: 2020-10-13 | E97: 295 | F97: 539606 | G97: 〇▽ | H97: -72213 | K97: 918 | L97: 米商会 | M97: Ito | N97: 2020-09-19 | O97: 548 | P97: 668257 | Q97: 〇▼ | R97: -43926 | U97: 828 | V97: 英販売 | W97: Nakano | X97: 2020-09-10 | Y97: 232 | Z97: 156169 | AA97: △◇ | AB97: -73501 | AE97: 867 | AF97: 露不動産 | AG97: Ito | AH97: 2020-09-13 | AI97: 335 | AJ97: 188512 | AK97: □▼ | AL97: 75354 | AO97: 1175 | AP97: 欄航空 | AQ97: Sato | AR97: 2020-11-12 | AS97: 220 | AT97: 442799 | AU97: △△ | AV97: -63108 | AY97: 1217 | AZ97: 伊研究所 | BA97: Sato | BB97: 2020-11-15 | BC97: 156 | BD97: 637712 | BE97: □■ | BF97: 145300 | BI97: 2057 | BJ97: 尼百貨店 | BK97: Sato | BL97: 2021-07-17 | BM97: 708 | BN97: 679462 | BO97: △▲ | BP97: 138711 | CC97: 1579 | CD97: 沙信託 | CE97: Nakano | CF97: 2021-04-17 | CG97: 746 | CH97: 167794 | CI97: □□ | CJ97: 92486 | CM97: 1588 | CN97: 星ホテル | CO97: Nakano | CP97: 2021-04-21 | CQ97: 257 | CR97: 319570 | CS97: △△ | CT97: 7053 | CW97: 2055 | CX97: 泰製本 | CY97: Yoshida | CZ97: 2021-07-17 | DA97: 706 | DB97: 597459 | DC97: □〇 | DD97: -29040 | DG97: 1632 | DH97: 台建設 | DI97: Suzuki | DJ97: 2021-05-10 | DK97: 186 | DL97: 187516 | DM97: □□ | DN97: 184890
A98: 1039 | B98: 印度商事 | C98: Nakano | D98: 2020-10-15 | E98: 195 | F98: 447622 | G98: 〇▼ | H98: -44865 | K98: 925 | L98: 米商会 | M98: Yoshida | N98: 2020-09-19 | O98: 736 | P98: 485326 | Q98: 〇▲ | R98: -28028 | U98: 836 | V98: 英販売 | W98: Ito | X98: 2020-09-11 | Y98: 343 | Z98: 705830 | AA98: □△ | AB98: 44076 | AE98: 874 | AF98: 露不動産 | AG98: Yoshida | AH98: 2020-09-13 | AI98: 136 | AJ98: 341089 | AK98: □▼ | AL98: 114156 | AO98: 1179 | AP98: 欄航空 | AQ98: Ito | AR98: 2020-11-12 | AS98: 313 | AT98: 256548 | AU98: □▼ | AV98: 123985 | AY98: 1226 | AZ98: 伊研究所 | BA98: Ito | BB98: 2020-11-15 | BC98: 165 | BD98: 364332 | BE98: 〇▽ | BF98: 39601 | BI98: 2074 | BJ98: 尼百貨店 | BK98: Mita | BL98: 2021-07-21 | BM98: 227 | BN98: 794091 | BO98: △▼ | BP98: -77842 | CC98: 1589 | CD98: 沙信託 | CE98: Suzuki | CF98: 2021-04-21 | CG98: 258 | CH98: 638302 | CI98: △▲ | CJ98: 10685 | CM98: 1606 | CN98: 星ホテル | CO98: Tanaka | CP98: 2021-04-30 | CQ98: 849 | CR98: 922961 | CS98: △▼ | CT98: 103080 | CW98: 2077 | CX98: 泰製本 | CY98: Tanaka | CZ98: 2021-07-21 | DA98: 230 | DB98: 825066 | DC98: △△ | DD98: 40388 | DG98: 1656 | DH98: 台建設 | DI98: Suzuki | DJ98: 2021-05-12 | DK98: 185 | DL98: 508263 | DM98: 〇〇 | DN98: 10245
A99: 1046 | B99: 印度商事 | C99: Sato | D99: 2020-10-15 | E99: 202 | F99: 602621 | G99: 〇△ | H99: 12691 | K99: 935 | L99: 米商会 | M99: Tanaka | N99: 2020-09-19 | O99: 746 | P99: 583408 | Q99: □◇ | R99: 24269 | U99: 841 | V99: 英販売 | W99: Suzuki | X99: 2020-09-11 | Y99: 348 | Z99: 430080 | AA99: 〇◇ | AB99: 87512 | AE99: 882 | AF99: 露不動産 | AG99: Mita | AH99: 2020-09-19 | AI99: 144 | AJ99: 641518 | AK99: □△ | AL99: -89904 | AO99: 1196 | AP99: 欄航空 | AQ99: Yoshida | AR99: 2020-11-13 | AS99: 124 | AT99: 437808 | AU99: □▽ | AV99: 58225 | AY99: 1238 | AZ99: 伊研究所 | BA99: Sato | BB99: 2020-11-15 | BC99: 534 | BD99: 688232 | BE99: □▽ | BF99: 153398 | BI99: 2085 | BJ99: 尼百貨店 | BK99: Mita | BL99: 2021-07-30 | BM99: 812 | BN99: 944546 | BO99: 〇▼ | BP99: -85943 | CC99: 1607 | CD99: 沙信託 | CE99: Nakano | CF99: 2021-04-30 | CG99: 850 | CH99: 665491 | CI99: 〇▲ | CJ99: -8553 | CM99: 1621 | CN99: 星ホテル | CO99: Tanaka | CP99: 2021-05-07 | CQ99: 385 | CR99: 924369 | CS99: □■ | CT99: 48404 | CW99: 2095 | CX99: 泰製本 | CY99: Suzuki | CZ99: 2021-08-01 | DA99: 410 | DB99: 261471 | DC99: 〇◇ | DD99: -5867 | DG99: 1670 | DH99: 台建設 | DI99: Ito | DJ99: 2021-05-13 | DK99: 288 | DL99: 796218 | DM99: □▼ | DN99: 24258
A100: 1067 | B100: 印度商事 | C100: Tanaka | D100: 2020-10-15 | E100: 223 | F100: 890785 | G100: 〇▽ | H100: 43281 | K100: 941 | L100: 米商会 | M100: Suzuki | N100: 2020-09-19 | O100: 254 | P100: 349408 | Q100: △□ | R100: 136878 | U100: 864 | V100: 英販売 | W100: Tanaka | X100: 2020-09-13 | Y100: 332 | Z100: 527368 | AA100: △▲ | AB100: 49883 | AE100: 888 | AF100: 露不動産 | AG100: Suzuki | AH100: 2020-09-19 | AI100: 150 | AJ100: 724832 | AK100: □◇ | AL100: -5898 | AO100: 1220 | AP100: 欄航空 | AQ100: Tanaka | AR100: 2020-11-15 | AS100: 159 | AT100: 705995 | AU100: △□ | AV100: -54075 | AY100: 1249 | AZ100: 伊研究所 | BA100: Yoshida | BB100: 2020-11-15 | BC100: 726 | BD100: 912753 | BE100: 〇▲ | BF100: 84171 | BI100: 2099 | BJ100: 尼百貨店 | BK100: Tanaka | BL100: 2021-08-03 | BM100: 343 | BN100: 234812 | BO100: △▽ | BP100: 37643 | CC100: 1628 | CD100: 沙信託 | CE100: Suzuki | CF100: 2021-05-09 | CG100: 212 | CH100: 231103 | CI100: 〇■ | CJ100: 183953 | CM100: 1627 | CN100: 星ホテル | CO100: Yoshida | CP100: 2021-05-09 | CQ100: 211 | CR100: 505667 | CS100: △◆ | CT100: -27812 | CW100: 2120 | CX100: 泰製本 | CY100: Ito | CZ100: 2021-08-10 | DA100: 236 | DB100: 360487 | DC100: △△ | DD100: 170464 | DG100: 1688 | DH100: 台建設 | DI100: Yoshida | DJ100: 2021-05-15 | DK100: 200 | DL100: 166677 | DM100: 〇□ | DN100: 31883
A101: 1073 | B101: 印度商事 | C101: Tanaka | D101: 2020-10-15 | E101: 229 | F101: 477834 | G101: 〇◇ | H101: 95934 | K101: 948 | L101: 米商会 | M101: Nakano | N101: 2020-09-21 | O101: 261 | P101: 109517 | Q101: □◆ | R101: -39658 | U101: 869 | V101: 英販売 | W101: Tanaka | X101: 2020-09-13 | Y101: 337 | Z101: 109717 | AA101: □◆ | AB101: 84550 | AE101: 895 | AF101: 露不動産 | AG101: Nakano | AH101: 2020-09-19 | AI101: 168 | AJ101: 558175 | AK101: □▼ | AL101: 164684 | AO101: 1223 | AP101: 欄航空 | AQ101: Sato | AR101: 2020-11-15 | AS101: 162 | AT101: 604571 | AU101: 〇〇 | AV101: 5031 | AY101: 1258 | AZ101: 伊研究所 | BA101: Mita | BB101: 2020-11-15 | BC101: 735 | BD101: 136086 | BE101: 〇◆ | BF101: -23188 | BI101: 2112 | BJ101: 尼百貨店 | BK101: Ito | BL101: 2021-08-09 | BM101: 258 | BN101: 686021 | BO101: □▽ | BP101: 1211 | CC101: 1638 | CD101: 沙信託 | CE101: Nakano | CF101: 2021-05-10 | CG101: 192 | CH101: 638454 | CI101: □◆ | CJ101: 169454 | CM101: 1637 | CN101: 星ホテル | CO101: Tanaka | CP101: 2021-05-10 | CQ101: 191 | CR101: 720828 | CS101: 〇◆ | CT101: 17655 | CW101: 2134 | CX101: 泰製本 | CY101: Ito | CZ101: 2021-08-11 | DA101: 225 | DB101: 898696 | DC101: △◆ | DD101: 81182 | DG101: 1715 | DH101: 台建設 | DI101: Sato | DJ101: 2021-05-16 | DK101: 227 | DL101: 173486 | DM101: □〇 | DN101: -46902
A102: 1080 | B102: 印度商事 | C102: Tanaka | D102: 2020-10-15 | E102: 236 | F102: 493530 | G102: □◇ | H102: 171721 | K102: 955 | L102: 米商会 | M102: Sato | N102: 2020-09-30 | O102: 842 | P102: 672768 | Q102: △◆ | R102: -89134 | U102: 879 | V102: 英販売 | W102: Ito | X102: 2020-09-19 | Y102: 141 | Z102: 232763 | AA102: △◆ | AB102: 147720 | AE102: 916 | AF102: 露不動産 | AG102: Nakano | AH102: 2020-09-19 | AI102: 546 | AJ102: 117923 | AK102: □▽ | AL102: 152479 | AO102: 1236 | AP102: 欄航空 | AQ102: Sato | AR102: 2020-11-15 | AS102: 532 | AT102: 891148 | AU102: △〇 | AV102: -50938 | AY102: 1270 | AZ102: 伊研究所 | BA102: Ito | BB102: 2020-11-21 | BC102: 249 | BD102: 376298 | BE102: □▽ | BF102: -24668 | BI102: 2136 | BJ102: 尼百貨店 | BK102: Mita | BL102: 2021-08-12 | BM102: 227 | BN102: 902800 | BO102: □▲ | BP102: 177644 | CC102: 1661 | CD102: 沙信託 | CE102: Mita | CF102: 2021-05-12 | CG102: 190 | CH102: 917100 | CI102: △□ | CJ102: 92538 | CM102: 1662 | CN102: 星ホテル | CO102: Suzuki | CP102: 2021-05-12 | CQ102: 191 | CR102: 590633 | CS102: □◆ | CT102: 183872 | CW102: 2163 | CX102: 泰製本 | CY102: Nakano | CZ102: 2021-08-18 | DA102: 137 | DB102: 802763 | DC102: □△ | DD102: -88654 | DG102: 1727 | DH102: 台建設 | DI102: Yoshida | DJ102: 2021-05-16 | DK102: 239 | DL102: 811222 | DM102: 〇▼ | DN102: -75325
A103: 1096 | B103: 印度商事 | C103: Nakano | D103: 2020-10-15 | E103: 701 | F103: 168084 | G103: △■ | H103: -78421 | K103: 968 | L103: 米商会 | M103: Ito | N103: 2020-10-01 | O103: 366 | P103: 834308 | Q103: △〇 | R103: 130864 | U103: 884 | V103: 英販売 | W103: Suzuki | X103: 2020-09-19 | Y103: 146 | Z103: 154663 | AA103: 〇□ | AB103: 187637 | AE103: 921 | AF103: 露不動産 | AG103: Yoshida | AH103: 2020-09-19 | AI103: 551 | AJ103: 636886 | AK103: 〇◆ | AL103: -78072 | AO103: 1244 | AP103: 欄航空 | AQ103: Ito | AR103: 2020-11-15 | AS103: 540 | AT103: 512769 | AU103: △■ | AV103: 162430 | AY103: 1289 | AZ103: 伊研究所 | BA103: Ito | BB103: 2020-12-01 | BC103: 378 | BD103: 118589 | BE103: △▲ | BF103: -58384 | BI103: 2185 | BJ103: 尼百貨店 | BK103: Nakano | BL103: 2021-08-18 | BM103: 170 | BN103: 903352 | BO103: 〇△ | BP103: -86834 | CC103: 1682 | CD103: 沙信託 | CE103: Mita | CF103: 2021-05-15 | CG103: 194 | CH103: 347334 | CI103: □■ | CJ103: 30406 | CM103: 1681 | CN103: 星ホテル | CO103: Nakano | CP103: 2021-05-15 | CQ103: 193 | CR103: 291996 | CS103: △▽ | CT103: 52397 | CW103: 2183 | CX103: 泰製本 | CY103: Sato | CZ103: 2021-08-18 | DA103: 168 | DB103: 978737 | DC103: □□ | DD103: 121698 | DG103: 1743 | DH103: 台建設 | DI103: Yoshida | DJ103: 2021-05-17 | DK103: 704 | DL103: 898639 | DM103: □◇ | DN103: -10482
A104: 1115 | B104: 印度商事 | C104: Nakano | D104: 2020-10-30 | E104: 796 | F104: 201609 | G104: 〇▲ | H104: 7098 | K104: 975 | L104: 米商会 | M104: Yoshida | N104: 2020-10-10 | O104: 192 | P104: 648394 | Q104: □■ | R104: 85221 | U104: 890 | V104: 英販売 | W104: Mita | X104: 2020-09-19 | Y104: 163 | Z104: 142557 | AA104: △〇 | AB104: -52809 | AE104: 931 | AF104: 露不動産 | AG104: Tanaka | AH104: 2020-09-19 | AI104: 742 | AJ104: 383484 | AK104: □□ | AL104: 171763 | AO104: 1256 | AP104: 欄航空 | AQ104: Sato | AR104: 2020-11-15 | AS104: 733 | AT104: 933309 | AU104: 〇▽ | AV104: 27732 | AY104: 1301 | AZ104: 伊研究所 | BA104: Suzuki | BB104: 2020-12-06 | BC104: 399 | BD104: 929012 | BE104: △□ | BF104: 44601 | BI104: 2208 | BJ104: 尼百貨店 | BK104: Suzuki | BL104: 2021-08-18 | BM104: 550 | BN104: 557098 | BO104: △■ | BP104: 24389 | CC104: 1694 | CD104: 沙信託 | CE104: Nakano | CF104: 2021-05-15 | CG104: 206 | CH104: 482285 | CI104: △◇ | CJ104: 164173 | CM104: 1705 | CN104: 星ホテル | CO104: Yoshida | CP104: 2021-05-15 | CQ104: 217 | CR104: 775460 | CS104: 〇△ | CT104: 95920 | CW104: 2205 | CX104: 泰製本 | CY104: Tanaka | CZ104: 2021-08-18 | DA104: 547 | DB104: 642493 | DC104: △▽ | DD104: 198365 | DG104: 1758 | DH104: 台建設 | DI104: Ito | DJ104: 2021-05-21 | DK104: 221 | DL104: 204193 | DM104: △■ | DN104: -22291
A105: 1123 | B105: 印度商事 | C105: Ito | D105: 2020-10-30 | E105: 804 | F105: 237357 | G105: 〇◇ | H105: 46716 | K105: 979 | L105: 米商会 | M105: Nakano | N105: 2020-10-10 | O105: 387 | P105: 328823 | Q105: △□ | R105: -79590 | U105: 913 | V105: 英販売 | W105: Tanaka | X105: 2020-09-19 | Y105: 543 | Z105: 881895 | AA105: 〇□ | AB105: -33009 | AE105: 939 | AF105: 露不動産 | AG105: Yoshida | AH105: 2020-09-19 | AI105: 334 | AJ105: 769424 | AK105: △■ | AL105: 143478 | AO105: 1263 | AP105: 欄航空 | AQ105: Tanaka | AR105: 2020-11-15 | AS105: 242 | AT105: 474691 | AU105: □■ | AV105: -33392 | AY105: 1317 | AZ105: 伊研究所 | BA105: Suzuki | BB105: 2020-12-10 | BC105: 308 | BD105: 113226 | BE105: △▲ | BF105: 10946 | BI105: 2218 | BJ105: 尼百貨店 | BK105: Sato | BL105: 2021-08-18 | BM105: 741 | BN105: 697113 | BO105: △▽ | BP105: 125288 | CC105: 1704 | CD105: 沙信託 | CE105: Nakano | CF105: 2021-05-15 | CG105: 216 | CH105: 839483 | CI105: △▼ | CJ105: 17368 | CM105: 1722 | CN105: 星ホテル | CO105: Suzuki | CP105: 2021-05-16 | CQ105: 234 | CR105: 997703 | CS105: □▲ | CT105: -27618 | CW105: 2221 | CX105: 泰製本 | CY105: Mita | CZ105: 2021-08-18 | DA105: 744 | DB105: 761609 | DC105: △◆ | DD105: -28663 | DG105: 1776 | DH105: 台建設 | DI105: Mita | DJ105: 2021-06-01 | DK105: 233 | DL105: 688085 | DM105: □▽ | DN105: 10018
A106: 1132 | B106: 印度商事 | C106: Sato | D106: 2020-11-01 | E106: 233 | F106: 967259 | G106: □■ | H106: 51034 | K106: 984 | L106: 米商会 | M106: Tanaka | N106: 2020-10-10 | O106: 212 | P106: 187811 | Q106: □▽ | R106: 109670 | U106: 919 | V106: 英販売 | W106: Suzuki | X106: 2020-09-19 | Y106: 549 | Z106: 143852 | AA106: □□ | AB106: 170193 | AE106: 947 | AF106: 露不動産 | AG106: Mita | AH106: 2020-09-21 | AI106: 260 | AJ106: 175802 | AK106: △◇ | AL106: -62353 | AO106: 1271 | AP106: 欄航空 | AQ106: Suzuki | AR106: 2020-11-21 | AS106: 250 | AT106: 824628 | AU106: □■ | AV106: 85324 | AY106: 1332 | AZ106: 伊研究所 | BA106: Tanaka | BB106: 2020-12-12 | BC106: 195 | BD106: 126131 | BE106: □◆ | BF106: 122675 | BI106: 2229 | BJ106: 尼百貨店 | BK106: Yoshida | BL106: 2021-08-19 | BM106: 254 | BN106: 848810 | BO106: 〇〇 | BP106: 22748 | CC106: 1723 | CD106: 沙信託 | CE106: Suzuki | CF106: 2021-05-16 | CG106: 235 | CH106: 159213 | CI106: 〇△ | CJ106: 110441 | CM106: 1732 | CN106: 星ホテル | CO106: Yoshida | CP106: 2021-05-17 | CQ106: 693 | CR106: 633783 | CS106: □◆ | CT106: 60354 | CW106: 2239 | CX106: 泰製本 | CY106: Tanaka | CZ106: 2021-08-21 | DA106: 264 | DB106: 186552 | DC106: □◆ | DD106: 45439 | DG106: 1792 | DH106: 台建設 | DI106: Suzuki | DJ106: 2021-06-09 | DK106: 218 | DL106: 812538 | DM106: △□ | DN106: -57316
A107: 1141 | B107: 印度商事 | C107: Suzuki | D107: 2020-11-06 | E107: 524 | F107: 835314 | G107: △▼ | H107: 13243 | K107: 992 | L107: 米商会 | M107: Yoshida | N107: 2020-10-10 | O107: 190 | P107: 222693 | Q107: 〇▽ | R107: -9958 | U107: 924 | V107: 英販売 | W107: Nakano | X107: 2020-09-19 | Y107: 735 | Z107: 879195 | AA107: △□ | AB107: 62138 | AE107: 952 | AF107: 露不動産 | AG107: Ito | AH107: 2020-09-21 | AI107: 265 | AJ107: 665005 | AK107: □▽ | AL107: 170549 | AO107: 1285 | AP107: 欄航空 | AQ107: Nakano | AR107: 2020-11-30 | AS107: 838 | AT107: 936406 | AU107: △◇ | AV107: -90172 | AY107: 1338 | AZ107: 伊研究所 | BA107: Ito | BB107: 2020-12-12 | BC107: 201 | BD107: 635304 | BE107: △◇ | BF107: 182538 | BI107: 2243 | BJ107: 尼百貨店 | BK107: Ito | BL107: 2021-08-30 | BM107: 842 | BN107: 106879 | BO107: □▼ | BP107: 181045 | CC107: 1733 | CD107: 沙信託 | CE107: Sato | CF107: 2021-05-17 | CG107: 694 | CH107: 597768 | CI107: □◇ | CJ107: 127142 | CM107: 1750 | CN107: 星ホテル | CO107: Yoshida | CP107: 2021-05-21 | CQ107: 213 | CR107: 534261 | CS107: △◇ | CT107: 99577 | CW107: 2264 | CX107: 泰製本 | CY107: Ito | CZ107: 2021-09-09 | DA107: 177 | DB107: 390572 | DC107: 〇▲ | DD107: -61514 | DG107: 1804 | DH107: 台建設 | DI107: Suzuki | DJ107: 2021-06-11 | DK107: 333 | DL107: 365409 | DM107: 〇□ | DN107: 76615
A108: 1148 | B108: 印度商事 | C108: Suzuki | D108: 2020-11-08 | E108: 218 | F108: 394411 | G108: △■ | H108: 179753 | K108: 1020 | L108: 米商会 | M108: Nakano | N108: 2020-10-13 | O108: 282 | P108: 328526 | Q108: □◆ | R108: -84693 | U108: 937 | V108: 英販売 | W108: Yoshida | X108: 2020-09-19 | Y108: 748 | Z108: 930751 | AA108: △■ | AB108: -79692 | AE108: 959 | AF108: 露不動産 | AG108: Ito | AH108: 2020-09-30 | AI108: 846 | AJ108: 738730 | AK108: △〇 | AL108: -76878 | AO108: 1296 | AP108: 欄航空 | AQ108: Suzuki | AR108: 2020-12-05 | AS108: 203 | AT108: 938293 | AU108: 〇〇 | AV108: -97023 | AY108: 1350 | AZ108: 伊研究所 | BA108: Mita | BB108: 2020-12-13 | BC108: 302 | BD108: 749908 | BE108: △〇 | BF108: -1507 | BI108: 2256 | BJ108: 尼百貨店 | BK108: Suzuki | BL108: 2021-08-31 | BM108: 366 | BN108: 310918 | BO108: 〇▲ | BP108: 96429 | CC108: 1751 | CD108: 沙信託 | CE108: Mita | CF108: 2021-05-21 | CG108: 214 | CH108: 526764 | CI108: □△ | CJ108: 134463 | CM108: 1765 | CN108: 星ホテル | CO108: Yoshida | CP108: 2021-05-30 | CQ108: 802 | CR108: 552419 | CS108: △▼ | CT108: -49733 | CW108: 2278 | CX108: 泰製本 | CY108: Yoshida | CZ108: 2021-09-10 | DA108: 188 | DB108: 932000 | DC108: △△ | DD108: 171315 | DG108: 1822 | DH108: 台建設 | DI108: Sato | DJ108: 2021-06-12 | DK108: 223 | DL108: 111801 | DM108: △▽ | DN108: 90849
A109: 1169 | B109: 印度商事 | C109: Tanaka | D109: 2020-11-12 | E109: 214 | F109: 439965 | G109: 〇◇ | H109: 182818 | K109: 1027 | L109: 米商会 | M109: Ito | N109: 2020-10-13 | O109: 289 | P109: 460436 | Q109: △▽ | R109: -8003 | U109: 946 | V109: 英販売 | W109: Tanaka | X109: 2020-09-21 | Y109: 259 | Z109: 342137 | AA109: 〇△ | AB109: 60909 | AE109: 969 | AF109: 露不動産 | AG109: Sato | AH109: 2020-10-01 | AI109: 366 | AJ109: 499113 | AK109: △▲ | AL109: 12038 | AO109: 1324 | AP109: 欄航空 | AQ109: Nakano | AR109: 2020-12-11 | AS109: 315 | AT109: 981664 | AU109: △▼ | AV109: 107728 | AY109: 1370 | AZ109: 伊研究所 | BA109: Suzuki | BB109: 2020-12-15 | BC109: 116 | BD109: 802315 | BE109: △□ | BF109: 132246 | BI109: 2280 | BJ109: 尼百貨店 | BK109: Ito | BL109: 2021-09-10 | BM109: 190 | BN109: 466619 | BO109: □◆ | BP109: 161833 | CC109: 1772 | CD109: 沙信託 | CE109: Nakano | CF109: 2021-05-31 | CG109: 398 | CH109: 744934 | CI109: □◆ | CJ109: 153595 | CM109: 1771 | CN109: 星ホテル | CO109: Suzuki | CP109: 2021-05-31 | CQ109: 398 | CR109: 945272 | CS109: 〇△ | CT109: -14229 | CW109: 2307 | CX109: 泰製本 | CY109: Ito | CZ109: 2021-09-12 | DA109: 281 | DB109: 631875 | DC109: △▲ | DD109: 55309 | DG109: 1849 | DH109: 台建設 | DI109: Mita | DJ109: 2021-06-16 | DK109: 133 | DL109: 924258 | DM109: 〇■ | DN109: 54713
A110: 1176 | B110: 印度商事 | C110: Nakano | D110: 2020-11-12 | E110: 221 | F110: 260815 | G110: 〇□ | H110: 3840 | K110: 1035 | L110: 米商会 | M110: Yoshida | N110: 2020-10-15 | O110: 191 | P110: 690764 | Q110: □▼ | R110: 32393 | U110: 950 | V110: 英販売 | W110: Suzuki | X110: 2020-09-21 | Y110: 263 | Z110: 335831 | AA110: △〇 | AB110: 139133 | AE110: 974 | AF110: 露不動産 | AG110: Suzuki | AH110: 2020-10-10 | AI110: 191 | AJ110: 321195 | AK110: □■ | AL110: 105530 | AO110: 1328 | AP110: 欄航空 | AQ110: Tanaka | AR110: 2020-12-11 | AS110: 319 | AT110: 170586 | AU110: □□ | AV110: 34028 | AY110: 1382 | AZ110: 伊研究所 | BA110: Ito | BB110: 2020-12-15 | BC110: 139 | BD110: 739514 | BE110: △□ | BF110: 89894 | BI110: 2329 | BJ110: 尼百貨店 | BK110: Yoshida | BL110: 2021-09-19 | BM110: 197 | BN110: 220864 | BO110: △◆ | BP110: 114831 | CC110: 1782 | CD110: 沙信託 | CE110: Sato | CF110: 2021-06-06 | CG110: 418 | CH110: 947215 | CI110: □▲ | CJ110: 187951 | CM110: 1781 | CN110: 星ホテル | CO110: Ito | CP110: 2021-06-06 | CQ110: 417 | CR110: 155229 | CS110: △□ | CT110: 172614 | CW110: 2327 | CX110: 泰製本 | CY110: Sato | CZ110: 2021-09-19 | DA110: 195 | DB110: 611272 | DC110: 〇▲ | DD110: 50539 | DG110: 1861 | DH110: 台建設 | DI110: Sato | DJ110: 2021-06-16 | DK110: 156 | DL110: 816529 | DM110: 〇△ | DN110: -14616
A111: 1184 | B111: 印度商事 | C111: Mita | D111: 2020-11-13 | E111: 318 | F111: 738306 | G111: □〇 | H111: 87249 | K111: 1041 | L111: 米商会 | M111: Mita | N111: 2020-10-15 | O111: 197 | P111: 206221 | Q111: □▼ | R111: -8627 | U111: 957 | V111: 英販売 | W111: Yoshida | X111: 2020-09-30 | Y111: 844 | Z111: 520720 | AA111: □〇 | AB111: 11622 | AE111: 983 | AF111: 露不動産 | AG111: Sato | AH111: 2020-10-10 | AI111: 211 | AJ111: 892322 | AK111: △□ | AL111: 9454 | AO111: 1345 | AP111: 欄航空 | AQ111: Ito | AR111: 2020-12-13 | AS111: 297 | AT111: 735952 | AU111: □〇 | AV111: 2859 | AY111: 1393 | AZ111: 伊研究所 | BA111: Sato | BB111: 2020-12-15 | BC111: 507 | BD111: 764050 | BE111: △◆ | BF111: 145886 | BI111: 2349 | BJ111: 尼百貨店 | BK111: Yoshida | BL111: 2021-09-19 | BM111: 217 | BN111: 169260 | BO111: □◇ | BP111: 48073 | CC111: 1816 | CD111: 沙信託 | CE111: Mita | CF111: 2021-06-12 | CG111: 217 | CH111: 973863 | CI111: 〇◇ | CJ111: -31522 | CM111: 1799 | CN111: 星ホテル | CO111: Mita | CP111: 2021-06-10 | CQ111: 328 | CR111: 200720 | CS111: 〇◇ | CT111: -64557 | CW111: 2352 | CX111: 泰製本 | CY111: Nakano | CZ111: 2021-09-19 | DA111: 220 | DB111: 829279 | DC111: 〇□ | DD111: -1490 | DG111: 1877 | DH111: 台建設 | DI111: Mita | DJ111: 2021-06-16 | DK111: 529 | DL111: 632103 | DM111: □▲ | DN111: 198312
A112: 1190 | B112: 印度商事 | C112: Nakano | D112: 2020-11-13 | E112: 324 | F112: 784533 | G112: △▲ | H112: 73357 | K112: 1069 | L112: 米商会 | M112: Suzuki | N112: 2020-10-15 | O112: 225 | P112: 884927 | Q112: 〇□ | R112: -8649 | U112: 967 | V112: 英販売 | W112: Mita | X112: 2020-10-01 | Y112: 366 | Z112: 321328 | AA112: 〇▼ | AB112: 42788 | AE112: 991 | AF112: 露不動産 | AG112: Tanaka | AH112: 2020-10-10 | AI112: 189 | AJ112: 674114 | AK112: 〇□ | AL112: 92961 | AO112: 1364 | AP112: 欄航空 | AQ112: Ito | AR112: 2020-12-15 | AS112: 110 | AT112: 633066 | AU112: □◆ | AV112: 36679 | AY112: 1402 | AZ112: 伊研究所 | BA112: Nakano | BB112: 2020-12-15 | BC112: 516 | BD112: 503723 | BE112: △■ | BF112: -8329 | BI112: 2360 | BJ112: 尼百貨店 | BK112: Tanaka | BL112: 2021-09-19 | BM112: 228 | BN112: 790326 | BO112: △▼ | BP112: -26703 | CC112: 1828 | CD112: 沙信託 | CE112: Yoshida | CF112: 2021-06-13 | CG112: 318 | CH112: 818710 | CI112: 〇◆ | CJ112: 32340 | CM112: 1815 | CN112: 星ホテル | CO112: Yoshida | CP112: 2021-06-12 | CQ112: 216 | CR112: 694377 | CS112: □◆ | CT112: 85669 | CW112: 2370 | CX112: 泰製本 | CY112: Yoshida | CZ112: 2021-09-19 | DA112: 238 | DB112: 347226 | DC112: 〇■ | DD112: -23492 | DG112: 1892 | DH112: 台建設 | DI112: Yoshida | DJ112: 2021-06-17 | DK112: 725 | DL112: 358694 | DM112: □〇 | DN112: 25112
A113: 1197 | B113: 印度商事 | C113: Mita | D113: 2020-11-15 | E113: 125 | F113: 705543 | G113: △◇ | H113: 41190 | K113: 1076 | L113: 米商会 | M113: Nakano | N113: 2020-10-15 | O113: 232 | P113: 412702 | Q113: □▲ | R113: -90390 | U113: 973 | V113: 英販売 | W113: Nakano | X113: 2020-10-10 | Y113: 299 | Z113: 736646 | AA113: 〇△ | AB113: 175365 | AE113: 998 | AF113: 露不動産 | AG113: Suzuki | AH113: 2020-10-11 | AI113: 299 | AJ113: 651538 | AK113: □◇ | AL113: -30240 | AO113: 1367 | AP113: 欄航空 | AQ113: Yoshida | AR113: 2020-12-15 | AS113: 113 | AT113: 794177 | AU113: □▼ | AV113: -91658 | AY113: 1414 | AZ113: 伊研究所 | BA113: Suzuki | BB113: 2020-12-15 | BC113: 709 | BD113: 832942 | BE113: △▲ | BF113: 137965 | BI113: 2374 | BJ113: 尼百貨店 | BK113: Yoshida | BL113: 2021-09-19 | BM113: 691 | BN113: 477207 | BO113: 〇▼ | BP113: 95203 | CC113: 1838 | CD113: 沙信託 | CE113: Yoshida | CF113: 2021-06-13 | CG113: 328 | CH113: 152992 | CI113: △□ | CJ113: 58374 | CM113: 1839 | CN113: 星ホテル | CO113: Tanaka | CP113: 2021-06-13 | CQ113: 123 | CR113: 875046 | CS113: 〇◇ | CT113: 151207 | CW113: 2395 | CX113: 泰製本 | CY113: Yoshida | CZ113: 2021-09-21 | DA113: 214 | DB113: 924985 | DC113: □◆ | DD113: 113107 | DG113: 1910 | DH113: 台建設 | DI113: Suzuki | DJ113: 2021-06-21 | DK113: 245 | DL113: 233918 | DM113: △■ | DN113: 117478
A114: 1222 | B114: 印度商事 | C114: Tanaka | D114: 2020-11-15 | E114: 161 | F114: 277871 | G114: △◇ | H114: 106300 | K114: 1086 | L114: 米商会 | M114: Mita | N114: 2020-10-15 | O114: 691 | P114: 942993 | Q114: 〇◆ | R114: 16438 | U114: 980 | V114: 英販売 | W114: Sato | X114: 2020-10-10 | Y114: 491 | Z114: 120350 | AA114: 〇■ | AB114: 44914 | AE114: 1019 | AF114: 露不動産 | AG114: Mita | AH114: 2020-10-13 | AI114: 281 | AJ114: 282693 | AK114: △▼ | AL114: -94485 | AO114: 1380 | AP114: 欄航空 | AQ114: Suzuki | AR114: 2020-12-15 | AS114: 137 | AT114: 543183 | AU114: □◆ | AV114: -40389 | AY114: 1433 | AZ114: 伊研究所 | BA114: Sato | BB114: 2020-12-21 | BC114: 230 | BD114: 915066 | BE114: △◆ | BF114: 177931 | BI114: 2387 | BJ114: 尼百貨店 | BK114: Sato | BL114: 2021-09-19 | BM114: 704 | BN114: 346627 | BO114: □□ | BP114: 157950 | CC114: 1857 | CD114: 沙信託 | CE114: Tanaka | CF114: 2021-06-16 | CG114: 152 | CH114: 292719 | CI114: □■ | CJ114: -26145 | CM114: 1856 | CN114: 星ホテル | CO114: Ito | CP114: 2021-06-16 | CQ114: 151 | CR114: 436153 | CS114: 〇◇ | CT114: -61449 | CW114: 2409 | CX114: 泰製本 | CY114: Mita | CZ114: 2021-09-30 | DA114: 802 | DB114: 933979 | DC114: △□ | DD114: 171695 | DG114: 1934 | DH114: 台建設 | DI114: Mita | DJ114: 2021-07-01 | DK114: 378 | DL114: 345518 | DM114: 〇▽ | DN114: 161273
A115: 1229 | B115: 印度商事 | C115: Mita | D115: 2020-11-15 | E115: 525 | F115: 298738 | G115: △▼ | H115: 150501 | K115: 1092 | L115: 米商会 | M115: Suzuki | N115: 2020-10-15 | O115: 697 | P115: 378709 | Q115: □▽ | R115: 146456 | U115: 988 | V115: 英販売 | W115: Sato | X115: 2020-10-10 | Y115: 186 | Z115: 339515 | AA115: □◇ | AB115: 51800 | AE115: 1026 | AF115: 露不動産 | AG115: Suzuki | AH115: 2020-10-13 | AI115: 288 | AJ115: 386138 | AK115: △■ | AL115: -24095 | AO115: 1388 | AP115: 欄航空 | AQ115: Suzuki | AR115: 2020-12-15 | AS115: 145 | AT115: 740232 | AU115: □▲ | AV115: 81234 | AY115: 1445 | AZ115: 伊研究所 | BA115: Ito | BB115: 2020-12-30 | BC115: 816 | BD115: 896609 | BE115: △▽ | BF115: -99391 | BI115: 2411 | BJ115: 尼百貨店 | BK115: Suzuki | BL115: 2021-09-30 | BM115: 804 | BN115: 960212 | BO115: △□ | BP115: 137023 | CC115: 1867 | CD115: 沙信託 | CE115: Tanaka | CF115: 2021-06-16 | CG115: 162 | CH115: 329651 | CI115: □△ | CJ115: -3895 | CM115: 1866 | CN115: 星ホテル | CO115: Ito | CP115: 2021-06-16 | CQ115: 161 | CR115: 534830 | CS115: 〇▼ | CT115: 190871 | CW115: 2438 | CX115: 泰製本 | CY115: Nakano | CZ115: 2021-10-10 | DA115: 220 | DB115: 106919 | DC115: 〇□ | DD115: -72424 | DG115: 1948 | DH115: 台建設 | DI115: Nakano | DJ115: 2021-07-08 | DK115: 505 | DL115: 382903 | DM115: △□ | DN115: 49610
A116: 1245 | B116: 印度商事 | C116: Nakano | D116: 2020-11-15 | E116: 722 | F116: 969962 | G116: 〇◆ | H116: -35686 | K116: 1099 | L116: 米商会 | M116: Tanaka | N116: 2020-10-15 | O116: 704 | P116: 736825 | Q116: 〇▲ | R116: -65610 | U116: 993 | V116: 英販売 | W116: Mita | X116: 2020-10-10 | Y116: 191 | Z116: 213451 | AA116: △〇 | AB116: 155750 | AE116: 1034 | AF116: 露不動産 | AG116: Suzuki | AH116: 2020-10-13 | AI116: 296 | AJ116: 470605 | AK116: △▲ | AL116: 162470 | AO116: 1400 | AP116: 欄航空 | AQ116: Nakano | AR116: 2020-12-15 | AS116: 514 | AT116: 486558 | AU116: 〇▲ | AV116: -3445 | AY116: 1461 | AZ116: 伊研究所 | BA116: Tanaka | BB116: 2021-04-07 | BC116: 431 | BD116: 206260 | BE116: □▲ | BF116: 74205 | BI116: 2460 | BJ116: 尼百貨店 | BK116: Mita | BL116: 2021-10-12 | BM116: 217 | BN116: 620609 | BO116: △〇 | BP116: -99633 | CC116: 1885 | CD116: 沙信託 | CE116: Mita | CF116: 2021-06-16 | CG116: 537 | CH116: 782926 | CI116: 〇△ | CJ116: -60134 | CM116: 1884 | CN116: 星ホテル | CO116: Yoshida | CP116: 2021-06-16 | CQ116: 536 | CR116: 747252 | CS116: △▲ | CT116: 184178 | CW116: 2458 | CX116: 泰製本 | CY116: Suzuki | CZ116: 2021-10-12 | DA116: 215 | DB116: 659630 | DC116: △▲ | DD116: -33610 | DG116: 1966 | DH116: 台建設 | DI116: Sato | DJ116: 2021-07-11 | DK116: 313 | DL116: 808632 | DM116: □△ | DN116: -44533
A117: 1264 | B117: 印度商事 | C117: Yoshida | D117: 2020-11-20 | E117: 243 | F117: 936159 | G117: △▲ | H117: 138887 | K117: 1106 | L117: 米商会 | M117: Yoshida | N117: 2020-10-21 | O117: 213 | P117: 555635 | Q117: □▼ | R117: 127479 | U117: 1016 | V117: 英販売 | W117: Nakano | X117: 2020-10-12 | Y117: 189 | Z117: 204001 | AA117: □◆ | AB117: 131425 | AE117: 1040 | AF117: 露不動産 | AG117: Ito | AH117: 2020-10-15 | AI117: 196 | AJ117: 130573 | AK117: △◇ | AL117: -71603 | AO117: 1407 | AP117: 欄航空 | AQ117: Suzuki | AR117: 2020-12-15 | AS117: 702 | AT117: 506277 | AU117: 〇□ | AV117: 117471 | AY117: 1476 | AZ117: 伊研究所 | BA117: Tanaka | BB117: 2021-04-10 | BC117: 236 | BD117: 117429 | BE117: 〇■ | BF117: 95684 | BI117: 2483 | BJ117: 尼百貨店 | BK117: Nakano | BL117: 2021-10-13 | BM117: 123 | BN117: 440072 | BO117: □▼ | BP117: -25544 | CC117: 1906 | CD117: 沙信託 | CE117: Suzuki | CF117: 2021-06-18 | CG117: 123 | CH117: 499280 | CI117: △▼ | CJ117: -45267 | CM117: 1899 | CN117: 星ホテル | CO117: Sato | CP117: 2021-06-17 | CQ117: 732 | CR117: 169876 | CS117: 〇△ | CT117: -73259 | CW117: 2480 | CX117: 泰製本 | CY117: Suzuki | CZ117: 2021-10-13 | DA117: 326 | DB117: 892465 | DC117: △▲ | DD117: 60239 | DG117: 1993 | DH117: 台建設 | DI117: Sato | DJ117: 2021-07-13 | DK117: 301 | DL117: 831109 | DM117: △◇ | DN117: -90792
A118: 1272 | B118: 印度商事 | C118: Ito | D118: 2020-11-21 | E118: 251 | F118: 305298 | G118: 〇▲ | H118: 169845 | K118: 1119 | L118: 米商会 | M118: Yoshida | N118: 2020-10-30 | O118: 800 | P118: 182468 | Q118: △◆ | R118: 147458 | U118: 1021 | V118: 英販売 | W118: Nakano | X118: 2020-10-13 | Y118: 283 | Z118: 997022 | AA118: 〇▼ | AB118: 89524 | AE118: 1047 | AF118: 露不動産 | AG118: Mita | AH118: 2020-10-15 | AI118: 203 | AJ118: 231062 | AK118: △▲ | AL118: -91846 | AO118: 1415 | AP118: 欄航空 | AQ118: Suzuki | AR118: 2020-12-15 | AS118: 710 | AT118: 260415 | AU118: 〇▼ | AV118: -99237 | AY118: 1482 | AZ118: 伊研究所 | BA118: Ito | BB118: 2021-04-11 | BC118: 345 | BD118: 582997 | BE118: △▽ | BF118: 82290 | BI118: 2493 | BJ118: 尼百貨店 | BK118: Tanaka | BL118: 2021-10-15 | BM118: 133 | BN118: 448754 | BO118: □△ | BP118: -55268 | CC118: 1916 | CD118: 沙信託 | CE118: Yoshida | CF118: 2021-06-21 | CG118: 251 | CH118: 635376 | CI118: △□ | CJ118: -59500 | CM118: 1905 | CN118: 星ホテル | CO118: Ito | CP118: 2021-06-17 | CQ118: 322 | CR118: 369009 | CS118: □■ | CT118: 84366 | CW118: 2496 | CX118: 泰製本 | CY118: Mita | CZ118: 2021-10-15 | DA118: 136 | DB118: 168394 | DC118: □△ | DD118: -85254 | DG118: 2005 | DH118: 台建設 | DI118: Sato | DJ118: 2021-07-17 | DK118: 107 | DL118: 108436 | DM118: □◆ | DN118: 158578
A119: 1281 | B119: 印度商事 | C119: Ito | D119: 2020-11-30 | E119: 834 | F119: 108501 | G119: 〇△ | H119: 165976 | K119: 1126 | L119: 米商会 | M119: Mita | N119: 2020-10-30 | O119: 807 | P119: 695623 | Q119: △▽ | R119: 118745 | U119: 1031 | V119: 英販売 | W119: Yoshida | X119: 2020-10-13 | Y119: 293 | Z119: 199089 | AA119: □▼ | AB119: 29034 | AE119: 1068 | AF119: 露不動産 | AG119: Tanaka | AH119: 2020-10-15 | AI119: 224 | AJ119: 809910 | AK119: △◇ | AL119: 90382 | AO119: 1429 | AP119: 欄航空 | AQ119: Ito | AR119: 2020-12-21 | AS119: 226 | AT119: 283342 | AU119: 〇■ | AV119: 20590 | AY119: 1494 | AZ119: 伊研究所 | BA119: Tanaka | BB119: 2021-04-12 | BC119: 229 | BD119: 901653 | BE119: △■ | BF119: -81823 | BI119: 2504 | BJ119: 尼百貨店 | BK119: Ito | BL119: 2021-10-15 | BM119: 155 | BN119: 600405 | BO119: △〇 | BP119: 78002 | CC119: 1939 | CD119: 沙信託 | CE119: Ito | CF119: 2021-07-07 | CG119: 311 | CH119: 479961 | CI119: △△ | CJ119: -77543 | CM119: 1915 | CN119: 星ホテル | CO119: Ito | CP119: 2021-06-21 | CQ119: 250 | CR119: 129660 | CS119: 〇▼ | CT119: 195238 | CW119: 2514 | CX119: 泰製本 | CY119: Suzuki | CZ119: 2021-10-15 | DA119: 165 | DB119: 781470 | DC119: 〇△ | DD119: 31376 | DG119: 2021 | DH119: 台建設 | DI119: Nakano | DJ119: 2021-07-17 | DK119: 134 | DL119: 841769 | DM119: 〇■ | DN119: 18059
A120: 1290 | B120: 印度商事 | C120: Tanaka | D120: 2020-12-01 | E120: 378 | F120: 417569 | G120: △△ | H120: 178870 | K120: 1130 | L120: 米商会 | M120: Tanaka | N120: 2020-11-01 | O120: 398 | P120: 767240 | Q120: 〇□ | R120: 8982 | U120: 1036 | V120: 英販売 | W120: Ito | X120: 2020-10-15 | Y120: 192 | Z120: 906872 | AA120: 〇◇ | AB120: -96291 | AE120: 1072 | AF120: 露不動産 | AG120: Ito | AH120: 2020-10-15 | AI120: 228 | AJ120: 845364 | AK120: 〇◇ | AL120: -71009 | AO120: 1440 | AP120: 欄航空 | AQ120: Sato | AR120: 2020-12-30 | AS120: 811 | AT120: 917572 | AU120: 〇〇 | AV120: -90984 | AY120: 1510 | AZ120: 伊研究所 | BA120: Yoshida | BB120: 2021-04-13 | BC120: 334 | BD120: 245540 | BE120: 〇▲ | BF120: -91401 | BI120: 2518 | BJ120: 尼百貨店 | BK120: Nakano | BL120: 2021-10-15 | BM120: 526 | BN120: 105034 | BO120: 〇□ | BP120: 99333 | CC120: 1960 | CD120: 沙信託 | CE120: Tanaka | CF120: 2021-07-10 | CG120: 204 | CH120: 264425 | CI120: 〇■ | CJ120: 84352 | CM120: 1940 | CN120: 星ホテル | CO120: Sato | CP120: 2021-07-07 | CQ120: 203 | CR120: 737722 | CS120: 〇◇ | CT120: 191119 | CW120: 2539 | CX120: 泰製本 | CY120: Sato | CZ120: 2021-10-15 | DA120: 728 | DB120: 289040 | DC120: 〇▲ | DD120: 108813 | DG120: 2036 | DH120: 台建設 | DI120: Ito | DJ120: 2021-07-17 | DK120: 506 | DL120: 815849 | DM120: □◇ | DN120: 88019
A121: 1297 | B121: 印度商事 | C121: Nakano | D121: 2020-12-05 | E121: 204 | F121: 563272 | G121: 〇▼ | H121: 68904 | K121: 1135 | L121: 米商会 | M121: Mita | N121: 2020-11-05 | O121: 224 | P121: 757718 | Q121: △□ | R121: -38175 | U121: 1042 | V121: 英販売 | W121: Nakano | X121: 2020-10-15 | Y121: 198 | Z121: 321376 | AA121: □□ | AB121: -96383 | AE121: 1082 | AF121: 露不動産 | AG121: Nakano | AH121: 2020-10-15 | AI121: 238 | AJ121: 738987 | AK121: 〇■ | AL121: -56905 | AO121: 1468 | AP121: 欄航空 | AQ121: Nakano | AR121: 2021-04-09 | AS121: 258 | AT121: 287976 | AU121: △◆ | AV121: -10252 | AY121: 1522 | AZ121: 伊研究所 | BA121: Ito | BB121: 2021-04-14 | BC121: 140 | BD121: 693912 | BE121: □◇ | BF121: 183010 | BI121: 2531 | BJ121: 尼百貨店 | BK121: Yoshida | BL121: 2021-10-15 | BM121: 539 | BN121: 866466 | BO121: 〇◆ | BP121: 39992 | CC121: 1972 | CD121: 沙信託 | CE121: Tanaka | CF121: 2021-07-11 | CG121: 319 | CH121: 853242 | CI121: 〇□ | CJ121: 110144 | CM121: 1959 | CN121: 星ホテル | CO121: Ito | CP121: 2021-07-10 | CQ121: 203 | CR121: 765493 | CS121: 〇〇 | CT121: 79842 | CW121: 2553 | CX121: 泰製本 | CY121: Suzuki | CZ121: 2021-10-21 | DA121: 244 | DB121: 709899 | DC121: 〇◇ | DD121: 155349 | DG121: 2054 | DH121: 台建設 | DI121: Tanaka | DJ121: 2021-07-17 | DK121: 705 | DL121: 214618 | DM121: △◇ | DN121: -51393
A122: 1318 | B122: 印度商事 | C122: Nakano | D122: 2020-12-10 | E122: 309 | F122: 730492 | G122: 〇〇 | H122: 169853 | K122: 1143 | L122: 米商会 | M122: Nakano | N122: 2020-11-07 | O122: 243 | P122: 744016 | Q122: △□ | R122: 90222 | U122: 1065 | V122: 英販売 | W122: Yoshida | X122: 2020-10-15 | Y122: 221 | Z122: 302997 | AA122: △■ | AB122: -83810 | AE122: 1090 | AF122: 露不動産 | AG122: Ito | AH122: 2020-10-15 | AI122: 695 | AJ122: 442333 | AK122: 〇◇ | AL122: 131196 | AO122: 1472 | AP122: 欄航空 | AQ122: Sato | AR122: 2021-04-10 | AS122: 232 | AT122: 226769 | AU122: 〇□ | AV122: 83900 | AY122: 1533 | AZ122: 伊研究所 | BA122: Suzuki | BB122: 2021-04-14 | BC122: 162 | BD122: 502027 | BE122: 〇◆ | BF122: 180213 | BI122: 2555 | BJ122: 尼百貨店 | BK122: Ito | BL122: 2021-10-21 | BM122: 246 | BN122: 240622 | BO122: □▽ | BP122: 64269 | CC122: 1982 | CD122: 沙信託 | CE122: Sato | CF122: 2021-07-12 | CG122: 201 | CH122: 523105 | CI122: □◆ | CJ122: 51970 | CM122: 1983 | CN122: 星ホテル | CO122: Suzuki | CP122: 2021-07-12 | CQ122: 202 | CR122: 157331 | CS122: △△ | CT122: 55526 | CW122: 2582 | CX122: 泰製本 | CY122: Tanaka | CZ122: 2021-11-01 | DA122: 213 | DB122: 714723 | DC122: △□ | DD122: 68074 | DG122: 2070 | DH122: 台建設 | DI122: Tanaka | DJ122: 2021-07-21 | DK122: 223 | DL122: 454271 | DM122: 〇▽ | DN122: -5858
A123: 1325 | B123: 印度商事 | C123: Nakano | D123: 2020-12-11 | E123: 316 | F123: 901910 | G123: 〇▽ | H123: -31803 | K123: 1171 | L123: 米商会 | M123: Tanaka | N123: 2020-11-12 | O123: 216 | P123: 971896 | Q123: □△ | R123: -60315 | U123: 1070 | V123: 英販売 | W123: Sato | X123: 2020-10-15 | Y123: 226 | Z123: 797460 | AA123: □▼ | AB123: -83233 | AE123: 1098 | AF123: 露不動産 | AG123: Tanaka | AH123: 2020-10-15 | AI123: 703 | AJ123: 385663 | AK123: 〇■ | AL123: 81410 | AO123: 1489 | AP123: 欄航空 | AQ123: Nakano | AR123: 2021-04-11 | AS123: 224 | AT123: 807620 | AU123: 〇▼ | AV123: -65373 | AY123: 1542 | AZ123: 伊研究所 | BA123: Tanaka | BB123: 2021-04-15 | BC123: 171 | BD123: 480539 | BE123: △〇 | BF123: 37735 | BI123: 2604 | BJ123: 尼百貨店 | BK123: Ito | BL123: 2021-11-09 | BM123: 204 | BN123: 252181 | BO123: □〇 | BP123: 114431 | CC123: 2001 | CD123: 沙信託 | CE123: Ito | CF123: 2021-07-17 | CG123: 103 | CH123: 480400 | CI123: 〇◇ | CJ123: -88755 | CM123: 2000 | CN123: 星ホテル | CO123: Suzuki | CP123: 2021-07-13 | CQ123: 308 | CR123: 524650 | CS123: △▽ | CT123: -65565 | CW123: 2602 | CX123: 泰製本 | CY123: Sato | CZ123: 2021-11-09 | DA123: 202 | DB123: 994256 | DC123: △▼ | DD123: -72191 | DG123: 2076 | DH123: 台建設 | DI123: Tanaka | DJ123: 2021-07-21 | DK123: 229 | DL123: 269779 | DM123: 〇□ | DN123: 129968
A124: 1333 | B124: 印度商事 | C124: Yoshida | D124: 2020-12-12 | E124: 196 | F124: 174645 | G124: 〇◇ | H124: -52479 | K124: 1178 | L124: 米商会 | M124: Ito | N124: 2020-11-12 | O124: 223 | P124: 122382 | Q124: □▽ | R124: -7138 | U124: 1075 | V124: 英販売 | W124: Tanaka | X124: 2020-10-15 | Y124: 231 | Z124: 355071 | AA124: 〇〇 | AB124: -47071 | AE124: 1103 | AF124: 露不動産 | AG124: Yoshida | AH124: 2020-10-21 | AI124: 210 | AJ124: 693355 | AK124: △▲ | AL124: 30061 | AO124: 1517 | AP124: 欄航空 | AQ124: Nakano | AR124: 2021-04-13 | AS124: 135 | AT124: 651148 | AU124: 〇■ | AV124: 9367 | AY124: 1554 | AZ124: 伊研究所 | BA124: Nakano | BB124: 2021-04-16 | BC124: 540 | BD124: 899906 | BE124: □■ | BF124: 173324 | BI124: 2627 | BJ124: 尼百貨店 | BK124: Yoshida | BL124: 2021-11-12 | BM124: 202 | BN124: 831115 | BO124: △◆ | BP124: -96375 | CC124: 2011 | CD124: 沙信託 | CE124: Suzuki | CF124: 2021-07-17 | CG124: 113 | CH124: 419207 | CI124: 〇□ | CJ124: 133504 | CM124: 2010 | CN124: 星ホテル | CO124: Suzuki | CP124: 2021-07-17 | CQ124: 112 | CR124: 174514 | CS124: 〇▼ | CT124: 37509 | CW124: 2630 | CX124: 泰製本 | CY124: Mita | CZ124: 2021-11-12 | DA124: 294 | DB124: 683638 | DC124: □▼ | DD124: -17736 | DG124: 2094 | DH124: 台建設 | DI124: Sato | DJ124: 2021-07-31 | DK124: 410 | DL124: 560257 | DM124: 〇△ | DN124: -36093
A125: 1339 | B125: 印度商事 | C125: Yoshida | D125: 2020-12-12 | E125: 202 | F125: 779126 | G125: □△ | H125: -51611 | K125: 1186 | L125: 米商会 | M125: Yoshida | N125: 2020-11-13 | O125: 320 | P125: 565056 | Q125: △▼ | R125: 177986 | U125: 1088 | V125: 英販売 | W125: Sato | X125: 2020-10-15 | Y125: 693 | Z125: 824114 | AA125: □◇ | AB125: 176128 | AE125: 1110 | AF125: 露不動産 | AG125: Nakano | AH125: 2020-10-21 | AI125: 217 | AJ125: 489197 | AK125: 〇▽ | AL125: 111478 | AO125: 1521 | AP125: 欄航空 | AQ125: Yoshida | AR125: 2021-04-14 | AS125: 139 | AT125: 950535 | AU125: △▼ | AV125: 134538 | AY125: 1573 | AZ125: 伊研究所 | BA125: Tanaka | BB125: 2021-04-17 | BC125: 740 | BD125: 817391 | BE125: △◆ | BF125: -50668 | BI125: 2638 | BJ125: 尼百貨店 | BK125: Suzuki | BL125: 2021-11-13 | BM125: 302 | BN125: 627539 | BO125: □△ | BP125: 62395 | CC125: 2029 | CD125: 沙信託 | CE125: Nakano | CF125: 2021-07-17 | CG125: 142 | CH125: 315358 | CI125: □△ | CJ125: -85338 | CM125: 2028 | CN125: 星ホテル | CO125: Tanaka | CP125: 2021-07-17 | CQ125: 141 | CR125: 530988 | CS125: 〇▼ | CT125: -2648 | CW125: 2648 | CX125: 泰製本 | CY125: Nakano | CZ125: 2021-11-15 | DA125: 106 | DB125: 931867 | DC125: □▼ | DD125: 163681 | DG125: 2121 | DH125: 台建設 | DI125: Sato | DJ125: 2021-08-10 | DK125: 340 | DL125: 642274 | DM125: 〇■ | DN125: -28110
A126: 1346 | B126: 印度商事 | C126: Yoshida | D126: 2020-12-13 | E126: 298 | F126: 940219 | G126: □▽ | H126: 75036 | K126: 1192 | L126: 米商会 | M126: Mita | N126: 2020-11-13 | O126: 326 | P126: 964692 | Q126: 〇◇ | R126: 161023 | U126: 1097 | V126: 英販売 | W126: Nakano | X126: 2020-10-15 | Y126: 702 | Z126: 796469 | AA126: △▼ | AB126: -90099 | AE126: 1120 | AF126: 露不動産 | AG126: Ito | AH126: 2020-10-30 | AI126: 801 | AJ126: 851655 | AK126: 〇▼ | AL126: 171183 | AO126: 1528 | AP126: 欄航空 | AQ126: Nakano | AR126: 2021-04-14 | AS126: 146 | AT126: 178892 | AU126: 〇▲ | AV126: 75370 | AY126: 1585 | AZ126: 伊研究所 | BA126: Yoshida | BB126: 2021-04-19 | BC126: 254 | BD126: 892034 | BE126: 〇▲ | BF126: -7963 | BI126: 2652 | BJ126: 尼百貨店 | BK126: Sato | BL126: 2021-11-15 | BM126: 110 | BN126: 948647 | BO126: △△ | BP126: 169229 | CC126: 2050 | CD126: 沙信託 | CE126: Suzuki | CF126: 2021-07-17 | CG126: 520 | CH126: 950391 | CI126: △□ | CJ126: 23983 | CM126: 2043 | CN126: 星ホテル | CO126: Nakano | CP126: 2021-07-17 | CQ126: 513 | CR126: 238988 | CS126: △□ | CT126: 165250 | CW126: 2673 | CX126: 泰製本 | CY126: Sato | CZ126: 2021-11-15 | DA126: 142 | DB126: 444646 | DC126: 〇■ | DD126: 65294 | DG126: 2133 | DH126: 台建設 | DI126: Nakano | DJ126: 2021-08-11 | DK126: 224 | DL126: 150592 | DM126: □〇 | DN126: 136437
A127: 1366 | B127: 印度商事 | C127: Yoshida | D127: 2020-12-15 | E127: 112 | F127: 237448 | G127: △△ | H127: -65760 | K127: 1218 | L127: 米商会 | M127: Sato | N127: 2020-11-15 | O127: 157 | P127: 543291 | Q127: △〇 | R127: 53163 | U127: 1101 | V127: 英販売 | W127: Sato | X127: 2020-10-15 | Y127: 290 | Z127: 596007 | AA127: □□ | AB127: -52932 | AE127: 1125 | AF127: 露不動産 | AG127: Tanaka | AH127: 2020-10-30 | AI127: 806 | AJ127: 438964 | AK127: □◆ | AL127: 13369 | AO127: 1540 | AP127: 欄航空 | AQ127: Nakano | AR127: 2021-04-15 | AS127: 169 | AT127: 997438 | AU127: △▲ | AV127: 169773 | AY127: 1601 | AZ127: 伊研究所 | BA127: Nakano | BB127: 2021-04-30 | BC127: 844 | BD127: 333811 | BE127: 〇□ | BF127: 149851 | BI127: 2665 | BJ127: 尼百貨店 | BK127: Yoshida | BL127: 2021-11-15 | BM127: 134 | BN127: 909808 | BO127: 〇▲ | BP127: -81881 | CC127: 2060 | CD127: 沙信託 | CE127: Tanaka | CF127: 2021-07-17 | CG127: 711 | CH127: 232630 | CI127: △□ | CJ127: 151405 | CM127: 2049 | CN127: 星ホテル | CO127: Ito | CP127: 2021-07-17 | CQ127: 519 | CR127: 639536 | CS127: △□ | CT127: -65966 | CW127: 2687 | CX127: 泰製本 | CY127: Nakano | CZ127: 2021-11-15 | DA127: 513 | DB127: 449736 | DC127: 〇◆ | DD127: -38890 | DG127: 2149 | DH127: 台建設 | DI127: Nakano | DJ127: 2021-08-13 | DK127: 329 | DL127: 892458 | DM127: 〇▲ | DN127: 25415
A128: 1373 | B128: 印度商事 | C128: Sato | D128: 2020-12-15 | E128: 130 | F128: 336558 | G128: △□ | H128: 64669 | K128: 1225 | L128: 米商会 | M128: Suzuki | N128: 2020-11-15 | O128: 164 | P128: 503104 | Q128: 〇▼ | R128: 78111 | U128: 1108 | V128: 英販売 | W128: Suzuki | X128: 2020-10-21 | Y128: 215 | Z128: 926354 | AA128: 〇□ | AB128: 91792 | AE128: 1134 | AF128: 露不動産 | AG128: Sato | AH128: 2020-11-03 | AI128: 223 | AJ128: 939066 | AK128: 〇▽ | AL128: 142606 | AO128: 1547 | AP128: 欄航空 | AQ128: Tanaka | AR128: 2021-04-15 | AS128: 176 | AT128: 806779 | AU128: 〇■ | AV128: -33020 | AY128: 1616 | AZ128: 伊研究所 | BA128: Suzuki | BB128: 2021-05-03 | BC128: 201 | BD128: 174003 | BE128: △■ | BF128: -16882 | BI128: 2689 | BJ128: 尼百貨店 | BK128: Tanaka | BL128: 2021-11-15 | BM128: 515 | BN128: 670886 | BO128: △△ | BP128: -95905 | CC128: 2088 | CD128: 沙信託 | CE128: Sato | CF128: 2021-07-30 | CG128: 815 | CH128: 328984 | CI128: 〇〇 | CJ128: -49570 | CM128: 2059 | CN128: 星ホテル | CO128: Yoshida | CP128: 2021-07-17 | CQ128: 710 | CR128: 434293 | CS128: □▲ | CT128: 65899 | CW128: 2716 | CX128: 泰製本 | CY128: Yoshida | CZ128: 2021-11-21 | DA128: 225 | DB128: 381284 | DC128: △■ | DD128: 91981 | DG128: 2164 | DH128: 台建設 | DI128: Sato | DJ128: 2021-08-18 | DK128: 138 | DL128: 465598 | DM128: 〇▽ | DN128: -2580
A129: 1389 | B129: 印度商事 | C129: Ito | D129: 2020-12-15 | E129: 503 | F129: 369009 | G129: 〇◇ | H129: -23457 | K129: 1235 | L129: 米商会 | M129: Tanaka | N129: 2020-11-15 | O129: 531 | P129: 198255 | Q129: □□ | R129: 131486 | U129: 1118 | V129: 英販売 | W129: Tanaka | X129: 2020-10-30 | Y129: 799 | Z129: 644034 | AA129: △□ | AB129: 28632 | AE129: 1142 | AF129: 露不動産 | AG129: Ito | AH129: 2020-11-07 | AI129: 525 | AJ129: 194675 | AK129: □▲ | AL129: 40459 | AO129: 1555 | AP129: 欄航空 | AQ129: Tanaka | AR129: 2021-04-16 | AS129: 541 | AT129: 750417 | AU129: □◇ | AV129: 128070 | AY129: 1622 | AZ129: 伊研究所 | BA129: Sato | BB129: 2021-05-07 | BC129: 386 | BD129: 689871 | BE129: □▽ | BF129: 98790 | BI129: 2738 | BJ129: 尼百貨店 | BK129: Nakano | BL129: 2021-11-30 | BM129: 410 | BN129: 110748 | BO129: △◆ | BP129: 136898 | CC129: 2100 | CD129: 沙信託 | CE129: Sato | CF129: 2021-08-03 | CG129: 235 | CH129: 469670 | CI129: 〇▼ | CJ129: -95068 | CM129: 2087 | CN129: 星ホテル | CO129: Tanaka | CP129: 2021-07-30 | CQ129: 814 | CR129: 726808 | CS129: □◇ | CT129: 194844 | CW129: 2736 | CX129: 泰製本 | CY129: Sato | CZ129: 2021-11-30 | DA129: 819 | DB129: 362556 | DC129: 〇△ | DD129: 162286 | DG129: 2182 | DH129: 台建設 | DI129: Tanaka | DJ129: 2021-08-18 | DK129: 167 | DL129: 284956 | DM129: △◆ | DN129: -18700
A130: 1408 | B130: 印度商事 | C130: Yoshida | D130: 2020-12-15 | E130: 703 | F130: 353232 | G130: 〇■ | H130: -6543 | K130: 1241 | L130: 米商会 | M130: Sato | N130: 2020-11-15 | O130: 537 | P130: 767437 | Q130: △〇 | R130: -64501 | U130: 1124 | V130: 英販売 | W130: Nakano | X130: 2020-10-30 | Y130: 805 | Z130: 532090 | AA130: □〇 | AB130: -64873 | AE130: 1149 | AF130: 露不動産 | AG130: Yoshida | AH130: 2020-11-08 | AI130: 219 | AJ130: 638614 | AK130: △◆ | AL130: 147511 | AO130: 1569 | AP130: 欄航空 | AQ130: Ito | AR130: 2021-04-17 | AS130: 736 | AT130: 237561 | AU130: □▽ | AV130: -4086 | AY130: 1634 | AZ130: 伊研究所 | BA130: Suzuki | BB130: 2021-05-10 | BC130: 188 | BD130: 775899 | BE130: △〇 | BF130: 112449 | BI130: 2761 | BJ130: 尼百貨店 | BK130: Tanaka | BL130: 2021-12-09 | BM130: 233 | BN130: 991204 | BO130: □▼ | BP130: 96776 | CC130: 2110 | CD130: 沙信託 | CE130: Mita | CF130: 2021-08-08 | CG130: 256 | CH130: 973623 | CI130: □△ | CJ130: -87502 | CM130: 2111 | CN130: 星ホテル | CO130: Yoshida | CP130: 2021-08-09 | CQ130: 257 | CR130: 364150 | CS130: 〇◆ | CT130: -81167 | CW130: 2758 | CX130: 泰製本 | CY130: Mita | CZ130: 2021-12-08 | DA130: 230 | DB130: 870448 | DC130: △▼ | DD130: -5537 | DG130: 2206 | DH130: 台建設 | DI130: Tanaka | DJ130: 2021-08-18 | DK130: 548 | DL130: 484966 | DM130: □〇 | DN130: 154358
A131: 1416 | B131: 印度商事 | C131: Ito | D131: 2020-12-15 | E131: 711 | F131: 670553 | G131: 〇〇 | H131: 143150 | K131: 1248 | L131: 米商会 | M131: Mita | N131: 2020-11-15 | O131: 725 | P131: 713347 | Q131: 〇◆ | R131: 182782 | U131: 1131 | V131: 英販売 | W131: Nakano | X131: 2020-11-01 | Y131: 233 | Z131: 620229 | AA131: □〇 | AB131: 142296 | AE131: 1170 | AF131: 露不動産 | AG131: Sato | AH131: 2020-11-12 | AI131: 215 | AJ131: 705694 | AK131: △◇ | AL131: 78527 | AO131: 1580 | AP131: 欄航空 | AQ131: Ito | AR131: 2021-04-17 | AS131: 747 | AT131: 758037 | AU131: □◇ | AV131: 60474 | AY131: 1654 | AZ131: 伊研究所 | BA131: Ito | BB131: 2021-05-12 | BC131: 183 | BD131: 804288 | BE131: △〇 | BF131: -55937 | BI131: 2771 | BJ131: 尼百貨店 | BK131: Mita | BL131: 2021-12-11 | BM131: 346 | BN131: 621968 | BO131: 〇△ | BP131: 84425 | CC131: 2129 | CD131: 沙信託 | CE131: Mita | CF131: 2021-08-11 | CG131: 348 | CH131: 114111 | CI131: 〇▽ | CJ131: 103404 | CM131: 2128 | CN131: 星ホテル | CO131: Suzuki | CP131: 2021-08-11 | CQ131: 347 | CR131: 548397 | CS131: □◆ | CT131: 91511 | CW131: 2774 | CX131: 泰製本 | CY131: Nakano | CZ131: 2021-12-11 | DA131: 349 | DB131: 957202 | DC131: △〇 | DD131: 160485 | DG131: 2220 | DH131: 台建設 | DI131: Nakano | DJ131: 2021-08-18 | DK131: 743 | DL131: 740932 | DM131: △▼ | DN131: 192953
A132: 1425 | B132: 印度商事 | C132: Ito | D132: 2020-12-21 | E132: 222 | F132: 194262 | G132: □▼ | H132: 182213 | K132: 1255 | L132: 米商会 | M132: Sato | N132: 2020-11-15 | O132: 732 | P132: 859290 | Q132: 〇▽ | R132: -91930 | U132: 1139 | V132: 英販売 | W132: Sato | X132: 2020-11-06 | Y132: 419 | Z132: 730652 | AA132: 〇△ | AB132: 11122 | AE132: 1177 | AF132: 露不動産 | AG132: Suzuki | AH132: 2020-11-12 | AI132: 222 | AJ132: 262429 | AK132: △◆ | AL132: 88756 | AO132: 1608 | AP132: 欄航空 | AQ132: Nakano | AR132: 2021-04-30 | AS132: 851 | AT132: 113532 | AU132: □◇ | AV132: 105414 | AY132: 1666 | AZ132: 伊研究所 | BA132: Sato | BB132: 2021-05-13 | BC132: 284 | BD132: 782386 | BE132: △〇 | BF132: 127161 | BI132: 2782 | BJ132: 尼百貨店 | BK132: Yoshida | BL132: 2021-12-12 | BM132: 229 | BN132: 805457 | BO132: △▽ | BP132: -24397 | CC132: 2139 | CD132: 沙信託 | CE132: Yoshida | CF132: 2021-08-12 | CG132: 230 | CH132: 881583 | CI132: △▼ | CJ132: -87552 | CM132: 2138 | CN132: 星ホテル | CO132: Nakano | CP132: 2021-08-12 | CQ132: 229 | CR132: 565579 | CS132: △□ | CT132: 121869 | CW132: 2792 | CX132: 泰製本 | CY132: Yoshida | CZ132: 2021-12-13 | DA132: 328 | DB132: 941957 | DC132: 〇▽ | DD132: 1389 | DG132: 2238 | DH132: 台建設 | DI132: Yoshida | DJ132: 2021-08-21 | DK132: 263 | DL132: 965829 | DM132: □□ | DN132: 27041
A133: 1434 | B133: 印度商事 | C133: Ito | D133: 2020-12-21 | E133: 231 | F133: 276390 | G133: △▼ | H133: -68671 | K133: 1268 | L133: 米商会 | M133: Nakano | N133: 2020-11-21 | O133: 247 | P133: 541302 | Q133: △▼ | R133: 122102 | U133: 1144 | V133: 英販売 | W133: Tanaka | X133: 2020-11-07 | Y133: 244 | Z133: 466854 | AA133: □▲ | AB133: 11541 | AE133: 1185 | AF133: 露不動産 | AG133: Nakano | AH133: 2020-11-13 | AI133: 319 | AJ133: 505272 | AK133: □◆ | AL133: 162396 | AO133: 1612 | AP133: 欄航空 | AQ133: Mita | AR133: 2021-05-01 | AS133: 366 | AT133: 603429 | AU133: □◇ | AV133: 61532 | AY133: 1677 | AZ133: 伊研究所 | BA133: Nakano | BB133: 2021-05-13 | BC133: 295 | BD133: 627896 | BE133: 〇■ | BF133: 110987 | BI133: 2796 | BJ133: 尼百貨店 | BK133: Suzuki | BL133: 2021-12-13 | BM133: 332 | BN133: 651293 | BO133: △▲ | BP133: -5468 | CC133: 2157 | CD133: 沙信託 | CE133: Tanaka | CF133: 2021-08-13 | CG133: 337 | CH133: 397302 | CI133: △□ | CJ133: 4509 | CM133: 2156 | CN133: 星ホテル | CO133: Tanaka | CP133: 2021-08-13 | CQ133: 336 | CR133: 216632 | CS133: 〇□ | CT133: -83458 | CW133: 2817 | CX133: 泰製本 | CY133: Mita | CZ133: 2021-12-15 | DA133: 147 | DB133: 271682 | DC133: 〇▽ | DD133: 10857 | DG133: 2265 | DH133: 台建設 | DI133: Tanaka | DJ133: 2021-09-09 | DK133: 385 | DL133: 282124 | DM133: 〇▼ | DN133: -47090
A134: 1441 | B134: 印度商事 | C134: Sato | D134: 2020-12-30 | E134: 812 | F134: 806242 | G134: △◆ | H134: 38573 | K134: 1275 | L134: 米商会 | M134: Sato | N134: 2020-11-21 | O134: 828 | P134: 770143 | Q134: △■ | R134: -13444 | U134: 1167 | V134: 英販売 | W134: Sato | X134: 2020-11-11 | Y134: 212 | Z134: 450326 | AA134: 〇▽ | AB134: 136572 | AE134: 1191 | AF134: 露不動産 | AG134: Nakano | AH134: 2020-11-13 | AI134: 325 | AJ134: 883394 | AK134: 〇▲ | AL134: 23445 | AO134: 1629 | AP134: 欄航空 | AQ134: Suzuki | AR134: 2021-05-09 | AS134: 213 | AT134: 280355 | AU134: △▽ | AV134: 172929 | AY134: 1686 | AZ134: 伊研究所 | BA134: Sato | BB134: 2021-05-15 | BC134: 198 | BD134: 310122 | BE134: △▽ | BF134: -4599 | BI134: 2809 | BJ134: 尼百貨店 | BK134: Yoshida | BL134: 2021-12-15 | BM134: 139 | BN134: 418418 | BO134: △▼ | BP134: 10298 | CC134: 2178 | CD134: 沙信託 | CE134: Nakano | CF134: 2021-08-18 | CG134: 163 | CH134: 733988 | CI134: □▼ | CJ134: 2460 | CM134: 2171 | CN134: 星ホテル | CO134: Suzuki | CP134: 2021-08-18 | CQ134: 145 | CR134: 203575 | CS134: □▲ | CT134: -90873 | CW134: 2831 | CX134: 泰製本 | CY134: Yoshida | CZ134: 2021-12-15 | DA134: 172 | DB134: 786992 | DC134: □〇 | DD134: 397 | DG134: 2277 | DH134: 台建設 | DI134: Nakano | DJ134: 2021-09-10 | DK134: 187 | DL134: 405323 | DM134: 〇〇 | DN134: 2348
A135: 1462 | B135: 印度商事 | C135: Tanaka | D135: 2021-04-07 | E135: 535 | F135: 300399 | G135: 〇□ | H135: 19475 | K135: 1279 | L135: 米商会 | M135: Tanaka | N135: 2020-11-30 | O135: 832 | P135: 246966 | Q135: □◇ | R135: 110614 | U135: 1172 | V135: 英販売 | W135: Tanaka | X135: 2020-11-12 | Y135: 217 | Z135: 963440 | AA135: 〇△ | AB135: 173678 | AE135: 1198 | AF135: 露不動産 | AG135: Ito | AH135: 2020-11-15 | AI135: 126 | AJ135: 610601 | AK135: △■ | AL135: 179993 | AO135: 1648 | AP135: 欄航空 | AQ135: Mita | AR135: 2021-05-11 | AS135: 305 | AT135: 109741 | AU135: 〇■ | AV135: 9862 | AY135: 1698 | AZ135: 伊研究所 | BA135: Ito | BB135: 2021-05-15 | BC135: 210 | BD135: 544410 | BE135: 〇□ | BF135: 137820 | BI135: 2833 | BJ135: 尼百貨店 | BK135: Tanaka | BL135: 2021-12-15 | BM135: 174 | BN135: 715543 | BO135: 〇〇 | BP135: 67803 | CC135: 2188 | CD135: 沙信託 | CE135: Mita | CF135: 2021-08-18 | CG135: 173 | CH135: 361405 | CI135: △▲ | CJ135: -12020 | CM135: 2177 | CN135: 星ホテル | CO135: Sato | CP135: 2021-08-18 | CQ135: 162 | CR135: 496605 | CS135: □◇ | CT135: -50867 | CW135: 2860 | CX135: 泰製本 | CY135: Mita | CZ135: 2021-12-15 | DA135: 739 | DB135: 109437 | DC135: △◆ | DD135: 82566 | DG135: 2293 | DH135: 台建設 | DI135: Mita | DJ135: 2021-09-11 | DK135: 306 | DL135: 654774 | DM135: □□ | DN135: 63387
A136: 1469 | B136: 印度商事 | C136: Tanaka | D136: 2021-04-09 | E136: 229 | F136: 348898 | G136: □▼ | H136: 133371 | K136: 1284 | L136: 米商会 | M136: Mita | N136: 2020-11-30 | O136: 837 | P136: 429609 | Q136: △▽ | R136: -4649 | U136: 1182 | V136: 英販売 | W136: Ito | X136: 2020-11-13 | Y136: 316 | Z136: 970004 | AA136: □〇 | AB136: -42357 | AE136: 1221 | AF136: 露不動産 | AG136: Mita | AH136: 2020-11-15 | AI136: 160 | AJ136: 997820 | AK136: □◇ | AL136: 162840 | AO136: 1651 | AP136: 欄航空 | AQ136: Tanaka | AR136: 2021-05-12 | AS136: 180 | AT136: 511114 | AU136: △□ | AV136: -66857 | AY136: 1717 | AZ136: 伊研究所 | BA136: Nakano | BB136: 2021-05-16 | BC136: 229 | BD136: 689573 | BE136: □■ | BF136: -92491 | BI136: 2882 | BJ136: 尼百貨店 | BK136: Mita | BL136: 2021-12-21 | BM136: 263 | BN136: 160814 | BO136: △▽ | BP136: 73666 | CC136: 2211 | CD136: 沙信託 | CE136: Yoshida | CF136: 2021-08-18 | CG136: 734 | CH136: 381274 | CI136: □▼ | CJ136: 121647 | CM136: 2187 | CN136: 星ホテル | CO136: Ito | CP136: 2021-08-18 | CQ136: 172 | CR136: 575868 | CS136: □△ | CT136: 139061 | CW136: 2880 | CX136: 泰製本 | CY136: Mita | CZ136: 2021-12-21 | DA136: 261 | DB136: 941261 | DC136: □◆ | DD136: -3598 | DG136: 2308 | DH136: 台建設 | DI136: Mita | DJ136: 2021-09-12 | DK136: 282 | DL136: 892955 | DM136: △◇ | DN136: 11898
A137: 1477 | B137: 印度商事 | C137: Suzuki | D137: 2021-04-10 | E137: 340 | F137: 813215 | G137: □△ | H137: -28097 | K137: 1292 | L137: 米商会 | M137: Tanaka | N137: 2020-12-01 | O137: 378 | P137: 545896 | Q137: □▼ | R137: 77455 | U137: 1187 | V137: 英販売 | W137: Ito | X137: 2020-11-13 | Y137: 321 | Z137: 695974 | AA137: 〇△ | AB137: -60239 | AE137: 1231 | AF137: 露不動産 | AG137: Suzuki | AH137: 2020-11-15 | AI137: 527 | AJ137: 861382 | AK137: 〇◇ | AL137: 119414 | AO137: 1664 | AP137: 欄航空 | AQ137: Sato | AR137: 2021-05-13 | AS137: 282 | AT137: 630146 | AU137: □△ | AV137: 121320 | AY137: 1729 | AZ137: 伊研究所 | BA137: Sato | BB137: 2021-05-17 | BC137: 690 | BD137: 765231 | BE137: □▽ | BF137: 163077 | CC137: 2232 | CD137: 沙信託 | CE137: Yoshida | CF137: 2021-08-21 | CG137: 257 | CH137: 360592 | CI137: △■ | CJ137: 34431 | CM137: 2212 | CN137: 星ホテル | CO137: Tanaka | CP137: 2021-08-18 | CQ137: 735 | CR137: 127427 | CS137: □□ | CT137: -39966 | DG137: 2326 | DH137: 台建設 | DI137: Yoshida | DJ137: 2021-09-19 | DK137: 194 | DL137: 366152 | DM137: △△ | DN137: 189940
A138: 1483 | B138: 印度商事 | C138: Yoshida | D138: 2021-04-11 | E138: 346 | F138: 304141 | G138: △〇 | H138: 61121 | K138: 1320 | L138: 米商会 | M138: Mita | N138: 2020-12-10 | O138: 311 | P138: 750864 | Q138: △▽ | R138: 81128 | U138: 1193 | V138: 英販売 | W138: Ito | X138: 2020-11-13 | Y138: 327 | Z138: 550769 | AA138: □〇 | AB138: -71648 | AE138: 1239 | AF138: 露不動産 | AG138: Mita | AH138: 2020-11-15 | AI138: 535 | AJ138: 885428 | AK138: □〇 | AL138: 134732 | AO138: 1672 | AP138: 欄航空 | AQ138: Tanaka | AR138: 2021-05-13 | AS138: 290 | AT138: 199081 | AU138: 〇〇 | AV138: 87238 | AY138: 1745 | AZ138: 伊研究所 | BA138: Suzuki | BB138: 2021-05-19 | BC138: 290 | BD138: 693390 | BE138: △▲ | BF138: -22761 | CC138: 2244 | CD138: 沙信託 | CE138: Mita | CF138: 2021-08-30 | CG138: 843 | CH138: 919586 | CI138: □▼ | CJ138: 36949 | CM138: 2231 | CN138: 星ホテル | CO138: Ito | CP138: 2021-08-21 | CQ138: 256 | CR138: 185735 | CS138: □■ | CT138: 41452 | DG138: 2342 | DH138: 台建設 | DI138: Suzuki | DJ138: 2021-09-19 | DK138: 210 | DL138: 146670 | DM138: △▽ | DN138: 14203
A139: 1490 | B139: 印度商事 | C139: Nakano | D139: 2021-04-11 | E139: 225 | F139: 471607 | G139: □▲ | H139: -51138 | K139: 1327 | L139: 米商会 | M139: Ito | N139: 2020-12-11 | O139: 318 | P139: 312288 | Q139: △■ | R139: -28309 | U139: 1216 | V139: 英販売 | W139: Ito | X139: 2020-11-15 | Y139: 155 | Z139: 694002 | AA139: □■ | AB139: 143162 | AE139: 1247 | AF139: 露不動産 | AG139: Tanaka | AH139: 2020-11-15 | AI139: 724 | AJ139: 167703 | AK139: □◆ | AL139: 24223 | AO139: 1684 | AP139: 欄航空 | AQ139: Sato | AR139: 2021-05-15 | AS139: 196 | AT139: 988014 | AU139: △◆ | AV139: 86281 | AY139: 1760 | AZ139: 伊研究所 | BA139: Suzuki | BB139: 2021-05-30 | BC139: 797 | BD139: 850472 | BE139: △◇ | BF139: -40344 | CC139: 2254 | CD139: 沙信託 | CE139: Mita | CF139: 2021-08-30 | CG139: 203 | CH139: 383794 | CI139: □■ | CJ139: 139556 | CM139: 2255 | CN139: 星ホテル | CO139: Ito | CP139: 2021-08-31 | CQ139: 366 | CR139: 381936 | CS139: △■ | CT139: -60613 | DG139: 2351 | DH139: 台建設 | DI139: Mita | DJ139: 2021-09-19 | DK139: 219 | DL139: 257910 | DM139: △▽ | DN139: 174610
A140: 1511 | B140: 印度商事 | C140: Yoshida | D140: 2021-04-13 | E140: 335 | F140: 896550 | G140: △△ | H140: 24293 | K140: 1335 | L140: 米商会 | M140: Tanaka | N140: 2020-12-12 | O140: 198 | P140: 260529 | Q140: □□ | R140: -97450 | U140: 1219 | V140: 英販売 | W140: Ito | X140: 2020-11-15 | Y140: 158 | Z140: 331592 | AA140: 〇△ | AB140: -44230 | AE140: 1252 | AF140: 露不動産 | AG140: Sato | AH140: 2020-11-15 | AI140: 729 | AJ140: 897473 | AK140: □△ | AL140: 83706 | AO140: 1691 | AP140: 欄航空 | AQ140: Tanaka | AR140: 2021-05-15 | AS140: 203 | AT140: 604079 | AU140: △■ | AV140: 22228 | AY140: 1766 | AZ140: 伊研究所 | BA140: Mita | BB140: 2021-05-30 | BC140: 803 | BD140: 785079 | BE140: △□ | BF140: -28964 | CC140: 2273 | CD140: 沙信託 | CE140: Nakano | CF140: 2021-09-09 | CG140: 213 | CH140: 379672 | CI140: 〇◆ | CJ140: 23888 | CM140: 2272 | CN140: 星ホテル | CO140: Mita | CP140: 2021-09-09 | CQ140: 212 | CR140: 911545 | CS140: □▲ | CT140: 178293 | DG140: 2369 | DH140: 台建設 | DI140: Nakano | DJ140: 2021-09-19 | DK140: 237 | DL140: 973653 | DM140: 〇▽ | DN140: 91747
A141: 1518 | B141: 印度商事 | C141: Suzuki | D141: 2021-04-13 | E141: 136 | F141: 129722 | G141: 〇〇 | H141: -61768 | K141: 1341 | L141: 米商会 | M141: Sato | N141: 2020-12-13 | O141: 293 | P141: 655275 | Q141: 〇◆ | R141: -91325 | U141: 1224 | V141: 英販売 | W141: Suzuki | X141: 2020-11-15 | Y141: 163 | Z141: 592340 | AA141: □▲ | AB141: 187066 | AE141: 1259 | AF141: 露不動産 | AG141: Nakano | AH141: 2020-11-15 | AI141: 736 | AJ141: 419722 | AK141: 〇〇 | AL141: -7582 | AO141: 1699 | AP141: 欄航空 | AQ141: Mita | AR141: 2021-05-15 | AS141: 211 | AT141: 628097 | AU141: △■ | AV141: 132378 | AY141: 1778 | AZ141: 伊研究所 | BA141: Tanaka | BB141: 2021-06-03 | BC141: 223 | BD141: 625309 | BE141: □▼ | BF141: 136646 | CC141: 2283 | CD141: 沙信託 | CE141: Nakano | CF141: 2021-09-10 | CG141: 296 | CH141: 411609 | CI141: 〇□ | CJ141: -98671 | CM141: 2282 | CN141: 星ホテル | CO141: Mita | CP141: 2021-09-10 | CQ141: 192 | CR141: 220592 | CS141: □▲ | CT141: 62930 | DG141: 2396 | DH141: 台建設 | DI141: Sato | DJ141: 2021-09-21 | DK141: 215 | DL141: 748657 | DM141: △▲ | DN141: 166817
A142: 1529 | B142: 印度商事 | C142: Sato | D142: 2021-04-14 | E142: 147 | F142: 121138 | G142: 〇◇ | H142: 110377 | K142: 1362 | L142: 米商会 | M142: Nakano | N142: 2020-12-15 | O142: 108 | P142: 323487 | Q142: △◆ | R142: -51948 | U142: 1237 | V142: 英販売 | W142: Mita | X142: 2020-11-15 | Y142: 533 | Z142: 774644 | AA142: □▽ | AB142: -59976 | AE142: 1269 | AF142: 露不動産 | AG142: Sato | AH142: 2020-11-21 | AI142: 248 | AJ142: 227202 | AK142: 〇◆ | AL142: 174004 | AO142: 1713 | AP142: 欄航空 | AQ142: Ito | AR142: 2021-05-16 | AS142: 225 | AT142: 581283 | AU142: 〇▼ | AV142: 155334 | AY142: 1794 | AZ142: 伊研究所 | BA142: Tanaka | BB142: 2021-06-10 | BC142: 220 | BD142: 237292 | BE142: △〇 | BF142: 167089 | CC142: 2301 | CD142: 沙信託 | CE142: Suzuki | CF142: 2021-09-12 | CG142: 186 | CH142: 326554 | CI142: △▽ | CJ142: 90788 | CM142: 2300 | CN142: 星ホテル | CO142: Mita | CP142: 2021-09-12 | CQ142: 185 | CR142: 133583 | CS142: 〇■ | CT142: -80446 | DG142: 2408 | DH142: 台建設 | DI142: Suzuki | DJ142: 2021-09-30 | DK142: 801 | DL142: 657459 | DM142: □▼ | DN142: 104505
A143: 1548 | B143: 印度商事 | C143: Nakano | D143: 2021-04-15 | E143: 177 | F143: 855115 | G143: 〇▽ | H143: 168969 | K143: 1369 | L143: 米商会 | M143: Ito | N143: 2020-12-15 | O143: 115 | P143: 658386 | Q143: △▲ | R143: 46691 | U143: 1246 | V143: 英販売 | W143: Mita | X143: 2020-11-15 | Y143: 723 | Z143: 812957 | AA143: 〇◇ | AB143: 38259 | AE143: 1274 | AF143: 露不動産 | AG143: Nakano | AH143: 2020-11-21 | AI143: 253 | AJ143: 939854 | AK143: □▲ | AL143: 95172 | AO143: 1724 | AP143: 欄航空 | AQ143: Suzuki | AR143: 2021-05-16 | AS143: 236 | AT143: 515820 | AU143: 〇▽ | AV143: 184085 | AY143: 1800 | AZ143: 伊研究所 | BA143: Mita | BB143: 2021-06-10 | BC143: 329 | BD143: 961434 | BE143: △▽ | BF143: -34330 | CC143: 2322 | CD143: 沙信託 | CE143: Mita | CF143: 2021-09-13 | CG143: 296 | CH143: 244593 | CI143: △▼ | CJ143: -1911 | CM143: 2315 | CN143: 星ホテル | CO143: Tanaka | CP143: 2021-09-13 | CQ143: 289 | CR143: 500945 | CS143: 〇◆ | CT143: 177817 | DG143: 2424 | DH143: 台建設 | DI143: Suzuki | DJ143: 2021-10-10 | DK143: 209 | DL143: 279162 | DM143: △◇ | DN143: 30581
A144: 1556 | B144: 印度商事 | C144: Tanaka | D144: 2021-04-16 | E144: 542 | F144: 767784 | G144: △□ | H144: 156523 | K144: 1379 | L144: 米商会 | M144: Mita | N144: 2020-12-15 | O144: 136 | P144: 634913 | Q144: □▲ | R144: -46131 | U144: 1250 | V144: 英販売 | W144: Nakano | X144: 2020-11-15 | Y144: 727 | Z144: 139440 | AA144: □〇 | AB144: 144213 | AE144: 1283 | AF144: 露不動産 | AG144: Sato | AH144: 2020-11-30 | AI144: 836 | AJ144: 887768 | AK144: △■ | AL144: 70660 | AO144: 1752 | AP144: 欄航空 | AQ144: Nakano | AR144: 2021-05-21 | AS144: 215 | AT144: 796748 | AU144: 〇◆ | AV144: 154220 | AY144: 1811 | AZ144: 伊研究所 | BA144: Tanaka | BB144: 2021-06-11 | BC144: 212 | BD144: 319062 | BE144: 〇▽ | BF144: 187952 | CC144: 2332 | CD144: 沙信託 | CE144: Nakano | CF144: 2021-09-19 | CG144: 200 | CH144: 981398 | CI144: □▲ | CJ144: 85314 | CM144: 2321 | CN144: 星ホテル | CO144: Mita | CP144: 2021-09-13 | CQ144: 295 | CR144: 784290 | CS144: 〇▲ | CT144: -89845 | DG144: 2439 | DH144: 台建設 | DI144: Nakano | DJ144: 2021-10-10 | DK144: 221 | DL144: 844897 | DM144: 〇◆ | DN144: -63894
A145: 1565 | B145: 印度商事 | C145: Sato | D145: 2021-04-16 | E145: 551 | F145: 999325 | G145: 〇◆ | H145: -65874 | K145: 1385 | L145: 米商会 | M145: Sato | N145: 2020-12-15 | O145: 142 | P145: 710385 | Q145: □■ | R145: 185315 | U145: 1257 | V145: 英販売 | W145: Mita | X145: 2020-11-15 | Y145: 734 | Z145: 667714 | AA145: △▲ | AB145: 49376 | AE145: 1291 | AF145: 露不動産 | AG145: Tanaka | AH145: 2020-12-01 | AI145: 378 | AJ145: 534696 | AK145: □△ | AL145: 141405 | AO145: 1756 | AP145: 欄航空 | AQ145: Ito | AR145: 2021-05-21 | AS145: 219 | AT145: 222424 | AU145: 〇▼ | AV145: 116253 | AY145: 1820 | AZ145: 伊研究所 | BA145: Tanaka | BB145: 2021-06-12 | BC145: 221 | BD145: 861156 | BE145: 〇▽ | BF145: 27718 | CC145: 2363 | CD145: 沙信託 | CE145: Yoshida | CF145: 2021-09-19 | CG145: 231 | CH145: 937487 | CI145: △△ | CJ145: -24350 | CM145: 2331 | CN145: 星ホテル | CO145: Suzuki | CP145: 2021-09-19 | CQ145: 199 | CR145: 481099 | CS145: △▼ | CT145: -16747 | DG145: 2457 | DH145: 台建設 | DI145: Nakano | DJ145: 2021-10-12 | DK145: 214 | DL145: 201225 | DM145: □▽ | DN145: 189062
A146: 1574 | B146: 印度商事 | C146: Tanaka | D146: 2021-04-17 | E146: 741 | F146: 450742 | G146: □□ | H146: 44759 | K146: 1392 | L146: 米商会 | M146: Sato | N146: 2020-12-15 | O146: 506 | P146: 742832 | Q146: □◆ | R146: -60919 | U146: 1267 | V146: 英販売 | W146: Yoshida | X146: 2020-11-21 | Y146: 246 | Z146: 561757 | AA146: 〇△ | AB146: 98683 | AE146: 1298 | AF146: 露不動産 | AG146: Yoshida | AH146: 2020-12-06 | AI146: 189 | AJ146: 113686 | AK146: △△ | AL146: 29094 | AO146: 1773 | AP146: 欄航空 | AQ146: Tanaka | AR146: 2021-06-01 | AS146: 398 | AT146: 695743 | AU146: □△ | AV146: 57409 | AY146: 1832 | AZ146: 伊研究所 | BA146: Nakano | BB146: 2021-06-13 | BC146: 322 | BD146: 243855 | BE146: △▽ | BF146: 168415 | CC146: 2375 | CD146: 沙信託 | CE146: Sato | CF146: 2021-09-19 | CG146: 692 | CH146: 932310 | CI146: □△ | CJ146: 93459 | CM146: 2362 | CN146: 星ホテル | CO146: Tanaka | CP146: 2021-09-19 | CQ146: 230 | CR146: 240099 | CS146: △■ | CT146: 141811 | DG146: 2481 | DH146: 台建設 | DI146: Mita | DJ146: 2021-10-13 | DK146: 327 | DL146: 175216 | DM146: △▼ | DN146: 47735
A147: 1581 | B147: 印度商事 | C147: Yoshida | D147: 2021-04-17 | E147: 748 | F147: 213541 | G147: □▽ | H147: 107706 | K147: 1399 | L147: 米商会 | M147: Suzuki | N147: 2020-12-15 | O147: 513 | P147: 736539 | Q147: 〇▼ | R147: -93736 | U147: 1273 | V147: 英販売 | W147: Mita | X147: 2020-11-21 | Y147: 252 | Z147: 348214 | AA147: □▼ | AB147: 71526 | AE147: 1319 | AF147: 露不動産 | AG147: Yoshida | AH147: 2020-12-10 | AI147: 310 | AJ147: 427591 | AK147: □■ | AL147: 18709 | AO147: 1806 | AP147: 欄航空 | AQ147: Mita | AR147: 2021-06-11 | AS147: 335 | AT147: 763681 | AU147: 〇〇 | AV147: -73636 | AY147: 1851 | AZ147: 伊研究所 | BA147: Suzuki | BB147: 2021-06-16 | BC147: 135 | BD147: 982820 | BE147: 〇▼ | BF147: 59392 | CC147: 2385 | CD147: 沙信託 | CE147: Nakano | CF147: 2021-09-19 | CG147: 702 | CH147: 446606 | CI147: 〇△ | CJ147: 37423 | CM147: 2386 | CN147: 星ホテル | CO147: Suzuki | CP147: 2021-09-19 | CQ147: 703 | CR147: 779848 | CS147: △〇 | CT147: 19659 | DG147: 2495 | DH147: 台建設 | DI147: Ito | DJ147: 2021-10-15 | DK147: 135 | DL147: 121601 | DM147: 〇〇 | DN147: 6372
A148: 1602 | B148: 印度商事 | C148: Ito | D148: 2021-04-30 | E148: 845 | F148: 863231 | G148: □■ | H148: 64823 | K148: 1412 | L148: 米商会 | M148: Yoshida | N148: 2020-12-15 | O148: 707 | P148: 635207 | Q148: △〇 | R148: 71517 | U148: 1280 | V148: 英販売 | W148: Sato | X148: 2020-11-30 | Y148: 833 | Z148: 571039 | AA148: □▼ | AB148: 123026 | AE148: 1326 | AF148: 露不動産 | AG148: Tanaka | AH148: 2020-12-11 | AI148: 317 | AJ148: 930698 | AK148: △□ | AL148: 91206 | AO148: 1818 | AP148: 欄航空 | AQ148: Suzuki | AR148: 2021-06-12 | AS148: 219 | AT148: 113669 | AU148: △▲ | AV148: 127495 | AY148: 1863 | AZ148: 伊研究所 | BA148: Tanaka | BB148: 2021-06-16 | BC148: 158 | BD148: 643923 | BE148: □〇 | BF148: 24462 | CC148: 2404 | CD148: 沙信託 | CE148: Nakano | CF148: 2021-09-21 | CG148: 797 | CH148: 460690 | CI148: △▲ | CJ148: 165625 | CM148: 2403 | CN148: 星ホテル | CO148: Suzuki | CP148: 2021-09-21 | CQ148: 796 | CR148: 858411 | CS148: □◆ | CT148: -59828 | DG148: 2513 | DH148: 台建設 | DI148: Mita | DJ148: 2021-10-15 | DK148: 164 | DL148: 521384 | DM148: △▽ | DN148: -22439
A149: 1609 | B149: 印度商事 | C149: Ito | D149: 2021-04-30 | E149: 202 | F149: 488597 | G149: □〇 | H149: -64820 | K149: 1419 | L149: 米商会 | M149: Sato | N149: 2020-12-15 | O149: 714 | P149: 596709 | Q149: □▼ | R149: 162478 | U149: 1288 | V149: 英販売 | W149: Sato | X149: 2020-11-30 | Y149: 191 | Z149: 797120 | AA149: △■ | AB149: -85570 | AE149: 1334 | AF149: 露不動産 | AG149: Tanaka | AH149: 2020-12-12 | AI149: 197 | AJ149: 810175 | AK149: △◆ | AL149: 182665 | AO149: 1825 | AP149: 欄航空 | AQ149: Ito | AR149: 2021-06-13 | AS149: 315 | AT149: 761392 | AU149: △△ | AV149: 82535 | AY149: 1879 | AZ149: 伊研究所 | BA149: Mita | BB149: 2021-06-16 | BC149: 531 | BD149: 677457 | BE149: □△ | BF149: -87847 | CC149: 2414 | CD149: 沙信託 | CE149: Nakano | CF149: 2021-09-30 | CG149: 807 | CH149: 538088 | CI149: 〇◆ | CJ149: -16236 | CM149: 2413 | CN149: 星ホテル | CO149: Suzuki | CP149: 2021-09-30 | CQ149: 806 | CR149: 426646 | CS149: 〇▲ | CT149: 154451 | DG149: 2540 | DH149: 台建設 | DI149: Suzuki | DJ149: 2021-10-15 | DK149: 729 | DL149: 163943 | DM149: □▽ | DN149: 152886
A150: 1617 | B150: 印度商事 | C150: Yoshida | D150: 2021-05-05 | E150: 299 | F150: 739081 | G150: △■ | H150: 143764 | K150: 1423 | L150: 米商会 | M150: Tanaka | N150: 2020-12-15 | O150: 302 | P150: 510230 | Q150: 〇□ | R150: 46268 | U150: 1293 | V150: 英販売 | W150: Suzuki | X150: 2020-12-03 | Y150: 213 | Z150: 136557 | AA150: 〇▲ | AB150: 54569 | AE150: 1340 | AF150: 露不動産 | AG150: Tanaka | AH150: 2020-12-12 | AI150: 203 | AJ150: 962845 | AK150: 〇◇ | AL150: 20624 | AO150: 1833 | AP150: 欄航空 | AQ150: Ito | AR150: 2021-06-13 | AS150: 323 | AT150: 757084 | AU150: △■ | AV150: -84147 | AY150: 1894 | AZ150: 伊研究所 | BA150: Nakano | BB150: 2021-06-17 | BC150: 727 | BD150: 103390 | BE150: 〇▲ | BF150: 165835 | CC150: 2432 | CD150: 沙信託 | CE150: Ito | CF150: 2021-10-10 | CG150: 244 | CH150: 898429 | CI150: △◆ | CJ150: 33195 | CM150: 2431 | CN150: 星ホテル | CO150: Sato | CP150: 2021-10-10 | CQ150: 243 | CR150: 113154 | CS150: 〇◇ | CT150: 90101 | DG150: 2552 | DH150: 台建設 | DI150: Ito | DJ150: 2021-10-20 | DK150: 243 | DL150: 459889 | DM150: △〇 | DN150: -44500
A151: 1623 | B151: 印度商事 | C151: Yoshida | D151: 2021-05-07 | E151: 387 | F151: 484079 | G151: △△ | H151: 91522 | K151: 1428 | L151: 米商会 | M151: Suzuki | N151: 2020-12-21 | O151: 225 | P151: 520313 | Q151: △〇 | R151: 168435 | U151: 1316 | V151: 英販売 | W151: Tanaka | X151: 2020-12-10 | Y151: 204 | Z151: 683304 | AA151: □◆ | AB151: 30175 | AE151: 1347 | AF151: 露不動産 | AG151: Sato | AH151: 2020-12-13 | AI151: 299 | AJ151: 532481 | AK151: 〇◆ | AL151: 139976 | AO151: 1847 | AP151: 欄航空 | AQ151: Sato | AR151: 2021-06-16 | AS151: 131 | AT151: 492374 | AU151: △◆ | AV151: 46280 | AY151: 1900 | AZ151: 伊研究所 | BA151: Yoshida | BB151: 2021-06-17 | BC151: 733 | BD151: 716793 | BE151: □◆ | BF151: -27044 | CC151: 2453 | CD151: 沙信託 | CE151: Sato | CF151: 2021-10-11 | CG151: 338 | CH151: 378062 | CI151: 〇◇ | CJ151: 15848 | CM151: 2446 | CN151: 星ホテル | CO151: Suzuki | CP151: 2021-10-11 | CQ151: 331 | CR151: 821884 | CS151: △◇ | CT151: 16055 | DG151: 2568 | DH151: 台建設 | DI151: Nakano | DJ151: 2021-10-30 | DK151: 833 | DL151: 728298 | DM151: 〇▼ | DN151: 174960
A152: 1630 | B152: 印度商事 | C152: Mita | D152: 2021-05-09 | E152: 214 | F152: 602277 | G152: □◆ | H152: 139566 | K152: 1436 | L152: 米商会 | M152: Nakano | N152: 2020-12-21 | O152: 233 | P152: 609657 | Q152: □〇 | R152: -42866 | U152: 1321 | V152: 英販売 | W152: Nakano | X152: 2020-12-11 | Y152: 312 | Z152: 509530 | AA152: △▼ | AB152: -90865 | AE152: 1365 | AF152: 露不動産 | AG152: Nakano | AH152: 2020-12-15 | AI152: 111 | AJ152: 877485 | AK152: △◇ | AL152: 108401 | AO152: 1858 | AP152: 欄航空 | AQ152: Sato | AR152: 2021-06-16 | AS152: 153 | AT152: 191520 | AU152: △△ | AV152: 183010 | AY152: 1912 | AZ152: 伊研究所 | BA152: Suzuki | BB152: 2021-06-21 | BC152: 247 | BD152: 614375 | BE152: □△ | BF152: 83953 | CC152: 2463 | CD152: 沙信託 | CE152: Yoshida | CF152: 2021-10-12 | CG152: 220 | CH152: 102724 | CI152: 〇▽ | CJ152: -34093 | CM152: 2452 | CN152: 星ホテル | CO152: Tanaka | CP152: 2021-10-11 | CQ152: 337 | CR152: 571987 | CS152: △□ | CT152: -51 | DG152: 2583 | DH152: 台建設 | DI152: Yoshida | DJ152: 2021-11-03 | DK152: 311 | DL152: 760327 | DM152: △△ | DN152: -26801
A153: 1650 | B153: 印度商事 | C153: Suzuki | D153: 2021-05-11 | E153: 307 | F153: 504516 | G153: △■ | H153: -68943 | K153: 1464 | L153: 米商会 | M153: Nakano | N153: 2021-04-08 | O153: 537 | P153: 973132 | Q153: 〇▲ | R153: -44881 | U153: 1331 | V153: 英販売 | W153: Ito | X153: 2020-12-12 | Y153: 194 | Z153: 161441 | AA153: 〇▲ | AB153: 40749 | AE153: 1375 | AF153: 露不動産 | AG153: Suzuki | AH153: 2020-12-15 | AI153: 132 | AJ153: 127145 | AK153: □■ | AL153: 32743 | AO153: 1886 | AP153: 欄航空 | AQ153: Nakano | AR153: 2021-06-16 | AS153: 538 | AT153: 298361 | AU153: △▽ | AV153: 13964 | AY153: 1932 | AZ153: 伊研究所 | BA153: Suzuki | BB153: 2021-06-30 | BC153: 191 | BD153: 915735 | BE153: 〇◇ | BF153: 168697 | CC153: 2486 | CD153: 沙信託 | CE153: Nakano | CF153: 2021-10-15 | CG153: 126 | CH153: 415343 | CI153: △■ | CJ153: 117786 | CM153: 2462 | CN153: 星ホテル | CO153: Yoshida | CP153: 2021-10-12 | CQ153: 219 | CR153: 194678 | CS153: 〇◆ | CT153: 65759 | DG153: 2601 | DH153: 台建設 | DI153: Tanaka | DJ153: 2021-11-09 | DK153: 201 | DL153: 359904 | DM153: △▲ | DN153: -6435
A154: 1657 | B154: 印度商事 | C154: Sato | D154: 2021-05-12 | E154: 186 | F154: 830249 | G154: □〇 | H154: 192569 | K154: 1471 | L154: 米商会 | M154: Mita | N154: 2021-04-10 | O154: 231 | P154: 397728 | Q154: 〇□ | R154: 54808 | U154: 1336 | V154: 英販売 | W154: Ito | X154: 2020-12-12 | Y154: 199 | Z154: 966862 | AA154: △△ | AB154: 94485 | AE154: 1383 | AF154: 露不動産 | AG154: Sato | AH154: 2020-12-15 | AI154: 140 | AJ154: 938857 | AK154: 〇△ | AL154: 81072 | AO154: 1890 | AP154: 欄航空 | AQ154: Mita | AR154: 2021-06-16 | AS154: 723 | AT154: 280138 | AU154: 〇■ | AV154: -33559 | AY154: 1944 | AZ154: 伊研究所 | BA154: Ito | BB154: 2021-07-07 | BC154: 398 | BD154: 613129 | BE154: △〇 | BF154: 106759 | CC154: 2507 | CD154: 沙信託 | CE154: Suzuki | CF154: 2021-10-15 | CG154: 158 | CH154: 243169 | CI154: △◇ | CJ154: 111969 | CM154: 2487 | CN154: 星ホテル | CO154: Mita | CP154: 2021-10-15 | CQ154: 127 | CR154: 398408 | CS154: △▲ | CT154: 192612 | DG154: 2617 | DH154: 台建設 | DI154: Mita | DJ154: 2021-11-11 | DK154: 192 | DL154: 735431 | DM154: □■ | DN154: 37507
A155: 1673 | B155: 印度商事 | C155: Suzuki | D155: 2021-05-13 | E155: 291 | F155: 768044 | G155: □▽ | H155: -5811 | K155: 1479 | L155: 米商会 | M155: Yoshida | N155: 2021-04-11 | O155: 342 | P155: 742567 | Q155: △◇ | R155: -79967 | U155: 1342 | V155: 英販売 | W155: Ito | X155: 2020-12-13 | Y155: 294 | Z155: 160093 | AA155: 〇△ | AB155: 107416 | AE155: 1391 | AF155: 露不動産 | AG155: Suzuki | AH155: 2020-12-15 | AI155: 505 | AJ155: 530014 | AK155: △▽ | AL155: 69607 | AO155: 1907 | AP155: 欄航空 | AQ155: Mita | AR155: 2021-06-19 | AS155: 242 | AT155: 972483 | AU155: 〇□ | AV155: 85298 | AY155: 1955 | AZ155: 伊研究所 | BA155: Yoshida | BB155: 2021-07-10 | BC155: 199 | BD155: 622593 | BE155: △▲ | BF155: 74393 | CC155: 2519 | CD155: 沙信託 | CE155: Mita | CF155: 2021-10-15 | CG155: 527 | CH155: 976550 | CI155: 〇△ | CJ155: 10944 | CM155: 2506 | CN155: 星ホテル | CO155: Suzuki | CP155: 2021-10-15 | CQ155: 157 | CR155: 129618 | CS155: 〇◆ | CT155: 78618 | DG155: 2629 | DH155: 台建設 | DI155: Nakano | DJ155: 2021-11-12 | DK155: 293 | DL155: 116917 | DM155: □◇ | DN155: 18000
A156: 1692 | B156: 印度商事 | C156: Sato | D156: 2021-05-15 | E156: 204 | F156: 623984 | G156: △〇 | H156: 50266 | K156: 1485 | L156: 米商会 | M156: Sato | N156: 2021-04-11 | O156: 348 | P156: 459251 | Q156: △△ | R156: 45822 | U156: 1363 | V156: 英販売 | W156: Tanaka | X156: 2020-12-15 | Y156: 109 | Z156: 600423 | AA156: □〇 | AB156: 11237 | AE156: 1396 | AF156: 露不動産 | AG156: Mita | AH156: 2020-12-15 | AI156: 510 | AJ156: 854434 | AK156: □◆ | AL156: -43280 | AO156: 1926 | AP156: 欄航空 | AQ156: Yoshida | AR156: 2021-06-30 | AS156: 835 | AT156: 868494 | AU156: 〇▼ | AV156: 116056 | AY156: 1964 | AZ156: 伊研究所 | BA156: Ito | BB156: 2021-07-11 | BC156: 311 | BD156: 234422 | BE156: □◇ | BF156: -6260 | CC156: 2529 | CD156: 沙信託 | CE156: Nakano | CF156: 2021-10-15 | CG156: 537 | CH156: 574072 | CI156: □△ | CJ156: 33878 | CM156: 2530 | CN156: 星ホテル | CO156: Ito | CP156: 2021-10-15 | CQ156: 538 | CR156: 349744 | CS156: △〇 | CT156: -13592 | DG156: 2647 | DH156: 台建設 | DI156: Suzuki | DJ156: 2021-11-15 | DK156: 105 | DL156: 151131 | DM156: 〇□ | DN156: -13867
A157: 1700 | B157: 印度商事 | C157: Suzuki | D157: 2021-05-15 | E157: 212 | F157: 469500 | G157: □▽ | H157: -70079 | K157: 1513 | L157: 米商会 | M157: Yoshida | N157: 2021-04-13 | O157: 337 | P157: 446842 | Q157: □▽ | R157: -90112 | U157: 1368 | V157: 英販売 | W157: Tanaka | X157: 2020-12-15 | Y157: 114 | Z157: 489652 | AA157: △◇ | AB157: -93041 | AE157: 1403 | AF157: 露不動産 | AG157: Nakano | AH157: 2020-12-15 | AI157: 517 | AJ157: 629517 | AK157: 〇△ | AL157: 156105 | AO157: 1929 | AP157: 欄航空 | AQ157: Suzuki | AR157: 2021-06-30 | AS157: 838 | AT157: 518367 | AU157: □△ | AV157: -1806 | AY157: 1976 | AZ157: 伊研究所 | BA157: Yoshida | BB157: 2021-07-12 | BC157: 195 | BD157: 222987 | BE157: △◆ | BF157: 194603 | CC157: 2548 | CD157: 沙信託 | CE157: Tanaka | CF157: 2021-10-15 | CG157: 623 | CH157: 425529 | CI157: 〇△ | CJ157: 148930 | CM157: 2547 | CN157: 星ホテル | CO157: Yoshida | CP157: 2021-10-15 | CQ157: 736 | CR157: 226434 | CS157: 〇▽ | CT157: 73723 | DG157: 2674 | DH157: 台建設 | DI157: Mita | DJ157: 2021-11-15 | DK157: 143 | DL157: 253427 | DM157: △◇ | DN157: -40049
A158: 1709 | B158: 印度商事 | C158: Suzuki | D158: 2021-05-15 | E158: 221 | F158: 308405 | G158: △◇ | H158: 146809 | K158: 1520 | L158: 米商会 | M158: Tanaka | N158: 2021-04-14 | O158: 138 | P158: 258062 | Q158: △〇 | R158: -10892 | U158: 1381 | V158: 英販売 | W158: Tanaka | X158: 2020-12-15 | Y158: 138 | Z158: 585861 | AA158: □▼ | AB158: 114280 | AE158: 1413 | AF158: 露不動産 | AG158: Nakano | AH158: 2020-12-15 | AI158: 708 | AJ158: 974673 | AK158: □〇 | AL158: 95510 | AO158: 1942 | AP158: 欄航空 | AQ158: Suzuki | AR158: 2021-07-07 | AS158: 189 | AT158: 612833 | AU158: □■ | AV158: 4460 | AY158: 1995 | AZ158: 伊研究所 | BA158: Tanaka | BB158: 2021-07-13 | BC158: 303 | BD158: 709204 | BE158: □■ | BF158: 79119 | CC158: 2558 | CD158: 沙信託 | CE158: Tanaka | CF158: 2021-10-21 | CG158: 249 | CH158: 980064 | CI158: △▽ | CJ158: 150169 | CM158: 2557 | CN158: 星ホテル | CO158: Suzuki | CP158: 2021-10-21 | CQ158: 248 | CR158: 247528 | CS158: □◆ | CT158: -52366 | DG158: 2686 | DH158: 台建設 | DI158: Suzuki | DJ158: 2021-11-15 | DK158: 512 | DL158: 655631 | DM158: □▼ | DN158: 162904
A159: 1718 | B159: 印度商事 | C159: Ito | D159: 2021-05-16 | E159: 230 | F159: 288025 | G159: 〇□ | H159: -16542 | K159: 1525 | L159: 米商会 | M159: Nakano | N159: 2021-04-14 | O159: 143 | P159: 676468 | Q159: □▼ | R159: -56667 | U159: 1390 | V159: 英販売 | W159: Nakano | X159: 2020-12-15 | Y159: 504 | Z159: 745401 | AA159: △▲ | AB159: -69123 | AE159: 1418 | AF159: 露不動産 | AG159: Yoshida | AH159: 2020-12-15 | AI159: 713 | AJ159: 344096 | AK159: 〇▼ | AL159: 138055 | AO159: 1950 | AP159: 欄航空 | AQ159: Nakano | AR159: 2021-07-09 | AS159: 224 | AT159: 141348 | AU159: □▼ | AV159: 130179 | AY159: 2007 | AZ159: 伊研究所 | BA159: Sato | BB159: 2021-07-17 | BC159: 109 | BD159: 925392 | BE159: 〇△ | BF159: 16034 | CC159: 2576 | CD159: 沙信託 | CE159: Sato | CF159: 2021-10-30 | CG159: 191 | CH159: 572643 | CI159: 〇▼ | CJ159: -47608 | CM159: 2575 | CN159: 星ホテル | CO159: Yoshida | CP159: 2021-10-30 | CQ159: 190 | CR159: 168865 | CS159: △△ | CT159: 159214 | DG159: 2702 | DH159: 台建設 | DI159: Suzuki | DJ159: 2021-11-15 | DK159: 709 | DL159: 579342 | DM159: 〇◆ | DN159: 19819
A160: 1725 | B160: 印度商事 | C160: Ito | D160: 2021-05-16 | E160: 237 | F160: 798880 | G160: □△ | H160: -4593 | K160: 1532 | L160: 米商会 | M160: Ito | N160: 2021-04-14 | O160: 150 | P160: 876863 | Q160: 〇〇 | R160: 162037 | U160: 1394 | V160: 英販売 | W160: Yoshida | X160: 2020-12-15 | Y160: 508 | Z160: 816645 | AA160: □■ | AB160: -74725 | AE160: 1427 | AF160: 露不動産 | AG160: Nakano | AH160: 2020-12-21 | AI160: 224 | AJ160: 782204 | AK160: 〇▽ | AL160: -96015 | AO160: 1962 | AP160: 欄航空 | AQ160: Tanaka | AR160: 2021-07-11 | AS160: 309 | AT160: 850152 | AU160: △▼ | AV160: 3435 | AY160: 2023 | AZ160: 伊研究所 | BA160: Suzuki | BB160: 2021-07-17 | BC160: 136 | BD160: 399185 | BE160: □▽ | BF160: 113723 | CC160: 2597 | CD160: 沙信託 | CE160: Sato | CF160: 2021-11-08 | CG160: 197 | CH160: 115402 | CI160: 〇◆ | CJ160: -69333 | CM160: 2590 | CN160: 星ホテル | CO160: Yoshida | CP160: 2021-11-06 | CQ160: 503 | CR160: 852680 | CS160: 〇◇ | CT160: 15524 | DG160: 2717 | DH160: 台建設 | DI160: Yoshida | DJ160: 2021-11-21 | DK160: 226 | DL160: 896338 | DM160: △△ | DN160: 197957
A161: 1746 | B161: 印度商事 | C161: Nakano | D161: 2021-05-20 | E161: 91 | F161: 437221 | G161: △▽ | H161: 12999 | K161: 1539 | L161: 米商会 | M161: Nakano | N161: 2021-04-15 | O161: 168 | P161: 919643 | Q161: 〇△ | R161: -27233 | U161: 1401 | V161: 英販売 | W161: Yoshida | X161: 2020-12-15 | Y161: 515 | Z161: 619109 | AA161: □■ | AB161: -39927 | AE161: 1435 | AF161: 露不動産 | AG161: Suzuki | AH161: 2020-12-21 | AI161: 232 | AJ161: 644776 | AK161: 〇▽ | AL161: 177481 | AO161: 1969 | AP161: 欄航空 | AQ161: Nakano | AR161: 2021-07-11 | AS161: 316 | AT161: 547509 | AU161: □〇 | AV161: 95026 | AY161: 2038 | AZ161: 伊研究所 | BA161: Tanaka | BB161: 2021-07-17 | BC161: 508 | BD161: 945849 | BE161: 〇◇ | BF161: 190675 | CC161: 2607 | CD161: 沙信託 | CE161: Nakano | CF161: 2021-11-10 | CG161: 310 | CH161: 460899 | CI161: 〇▽ | CJ161: -41982 | CM161: 2596 | CN161: 星ホテル | CO161: Nakano | CP161: 2021-11-08 | CQ161: 226 | CR161: 591866 | CS161: △■ | CT161: 136893 | DG161: 2735 | DH161: 台建設 | DI161: Nakano | DJ161: 2021-11-30 | DK161: 818 | DL161: 698103 | DM161: △◆ | DN161: 96613
A162: 1753 | B162: 印度商事 | C162: Suzuki | D162: 2021-05-21 | E162: 216 | F162: 880622 | G162: □■ | H162: -68674 | K162: 1552 | L162: 米商会 | M162: Mita | N162: 2021-04-16 | O162: 538 | P162: 656229 | Q162: 〇◆ | R162: -14119 | U162: 1411 | V162: 英販売 | W162: Suzuki | X162: 2020-12-15 | Y162: 706 | Z162: 892886 | AA162: □▽ | AB162: 104197 | AE162: 1442 | AF162: 露不動産 | AG162: Mita | AH162: 2020-12-30 | AI162: 813 | AJ162: 900492 | AK162: △◆ | AL162: -21417 | AO162: 1977 | AP162: 欄航空 | AQ162: Mita | AR162: 2021-07-12 | AS162: 196 | AT162: 967534 | AU162: 〇△ | AV162: -67715 | AY162: 2044 | AZ162: 伊研究所 | BA162: Mita | BB162: 2021-07-17 | BC162: 514 | BD162: 678018 | BE162: 〇△ | BF162: 27721 | CC162: 2641 | CD162: 沙信託 | CE162: Ito | CF162: 2021-11-13 | CG162: 305 | CH162: 451997 | CI162: 〇◆ | CJ162: 172190 | CM162: 2606 | CN162: 星ホテル | CO162: Mita | CP162: 2021-11-10 | CQ162: 309 | CR162: 834241 | CS162: □△ | CT162: 145196 | DG162: 2759 | DH162: 台建設 | DI162: Tanaka | DJ162: 2021-12-08 | DK162: 231 | DL162: 599477 | DM162: 〇〇 | DN162: 112261
A163: 1761 | B163: 印度商事 | C163: Nakano | D163: 2021-05-30 | E163: 798 | F163: 661515 | G163: △◇ | H163: -99572 | K163: 1559 | L163: 米商会 | M163: Yoshida | N163: 2021-04-16 | O163: 545 | P163: 793567 | Q163: □〇 | R163: 150692 | U163: 1417 | V163: 英販売 | W163: Tanaka | X163: 2020-12-15 | Y163: 712 | Z163: 577932 | AA163: 〇〇 | AB163: 198509 | AE163: 1463 | AF163: 露不動産 | AG163: Mita | AH163: 2021-04-07 | AI163: 536 | AJ163: 487944 | AK163: 〇▽ | AL163: 31668 | AO163: 1991 | AP163: 欄航空 | AQ163: Sato | AR163: 2021-07-13 | AS163: 299 | AT163: 726939 | AU163: □〇 | AV163: 35232 | AY163: 2056 | AZ163: 伊研究所 | BA163: Suzuki | BB163: 2021-07-17 | BC163: 707 | BD163: 994249 | BE163: □▲ | BF163: 24249 | CC163: 2653 | CD163: 沙信託 | CE163: Yoshida | CF163: 2021-11-15 | CG163: 111 | CH163: 806042 | CI163: □◆ | CJ163: 194739 | CM163: 2624 | CN163: 星ホテル | CO163: Nakano | CP163: 2021-11-12 | CQ163: 199 | CR163: 987469 | CS163: 〇〇 | CT163: -36357 | DG163: 2773 | DH163: 台建設 | DI163: Tanaka | DJ163: 2021-12-11 | DK163: 348 | DL163: 193918 | DM163: △◇ | DN163: -47513
A164: 1767 | B164: 印度商事 | C164: Nakano | D164: 2021-05-30 | E164: 804 | F164: 614249 | G164: 〇▲ | H164: -59199 | K164: 1563 | L164: 米商会 | M164: Tanaka | N164: 2021-04-16 | O164: 549 | P164: 519994 | Q164: □〇 | R164: 184814 | U164: 1424 | V164: 英販売 | W164: Ito | X164: 2020-12-20 | Y164: 103 | Z164: 206529 | AA164: 〇▽ | AB164: 181345 | AE164: 1470 | AF164: 露不動産 | AG164: Mita | AH164: 2021-04-09 | AI164: 230 | AJ164: 719827 | AK164: 〇▼ | AL164: -90375 | AO164: 2002 | AP164: 欄航空 | AQ164: Yoshida | AR164: 2021-07-17 | AS164: 104 | AT164: 500945 | AU164: △◆ | AV164: -9427 | AY164: 2072 | AZ164: 伊研究所 | BA164: Yoshida | BB164: 2021-07-21 | BC164: 225 | BD164: 147790 | BE164: △□ | BF164: 12694 | CC164: 2663 | CD164: 沙信託 | CE164: Mita | CF164: 2021-11-15 | CG164: 132 | CH164: 792947 | CI164: △◇ | CJ164: 36490 | CM164: 2640 | CN164: 星ホテル | CO164: Mita | CP164: 2021-11-13 | CQ164: 304 | CR164: 250336 | CS164: 〇◆ | CT164: 157978 | DG164: 2791 | DH164: 台建設 | DI164: Tanaka | DJ164: 2021-12-13 | DK164: 327 | DL164: 556048 | DM164: □▲ | DN164: 182099
A165: 1774 | B165: 印度商事 | C165: Sato | D165: 2021-06-01 | E165: 398 | F165: 776485 | G165: 〇〇 | H165: 190481 | K165: 1568 | L165: 米商会 | M165: Nakano | N165: 2021-04-16 | O165: 735 | P165: 730210 | Q165: □△ | R165: -9394 | U165: 1432 | V165: 英販売 | W165: Yoshida | X165: 2020-12-21 | Y165: 229 | Z165: 659286 | AA165: △▽ | AB165: 117677 | AE165: 1478 | AF165: 露不動産 | AG165: Sato | AH165: 2021-04-10 | AI165: 341 | AJ165: 553309 | AK165: △△ | AL165: 192490 | AO165: 2030 | AP165: 欄航空 | AQ165: Mita | AR165: 2021-07-17 | AS165: 143 | AT165: 827550 | AU165: □〇 | AV165: 67160 | AY165: 2083 | AZ165: 伊研究所 | BA165: Yoshida | BB165: 2021-07-30 | BC165: 810 | BD165: 964146 | BE165: △◇ | BF165: 199979 | CC165: 2682 | CD165: 沙信託 | CE165: Tanaka | CF165: 2021-11-15 | CG165: 508 | CH165: 977851 | CI165: 〇□ | CJ165: -91752 | CM165: 2664 | CN165: 星ホテル | CO165: Ito | CP165: 2021-11-15 | CQ165: 133 | CR165: 972266 | CS165: △◇ | CT165: -53355 | DG165: 2818 | DH165: 台建設 | DI165: Mita | DJ165: 2021-12-15 | DK165: 148 | DL165: 890854 | DM165: △▼ | DN165: 26215
A166: 1795 | B166: 印度商事 | C166: Mita | D166: 2021-06-10 | E166: 221 | F166: 110857 | G166: △△ | H166: -57527 | K166: 1576 | L166: 米商会 | M166: Nakano | N166: 2021-04-17 | O166: 743 | P166: 562108 | Q166: □▽ | R166: -69695 | U166: 1437 | V166: 英販売 | W166: Yoshida | X166: 2020-12-30 | Y166: 808 | Z166: 730823 | AA166: 〇◇ | AB166: 141779 | AE166: 1484 | AF166: 露不動産 | AG166: Nakano | AH166: 2021-04-11 | AI166: 347 | AJ166: 182005 | AK166: 〇◇ | AL166: 88256 | AO166: 2034 | AP166: 欄航空 | AQ166: Tanaka | AR166: 2021-07-17 | AS166: 504 | AT166: 590585 | AU166: □△ | AV166: 63159 | AY166: 2092 | AZ166: 伊研究所 | BA166: Suzuki | BB166: 2021-07-30 | BC166: 819 | BD166: 921475 | BE166: △▼ | BF166: -53867 | CC166: 2692 | CD166: 沙信託 | CE166: Sato | CF166: 2021-11-15 | CG166: 518 | CH166: 448326 | CI166: □▼ | CJ166: -86497 | CM166: 2681 | CN166: 星ホテル | CO166: Sato | CP166: 2021-11-15 | CQ166: 507 | CR166: 714161 | CS166: △▲ | CT166: -41399 | DG166: 2830 | DH166: 台建設 | DI166: Nakano | DJ166: 2021-12-15 | DK166: 171 | DL166: 415223 | DM166: □◇ | DN166: 148201
A167: 1807 | B167: 印度商事 | C167: Suzuki | D167: 2021-06-11 | E167: 336 | F167: 973557 | G167: 〇▽ | H167: -94854 | K167: 1604 | L167: 米商会 | M167: Mita | N167: 2021-04-30 | O167: 847 | P167: 212490 | Q167: □〇 | R167: 89012 | U167: 1460 | V167: 英販売 | W167: Suzuki | X167: 2021-04-06 | Y167: 430 | Z167: 519454 | AA167: △▲ | AB167: -92329 | AE167: 1491 | AF167: 露不動産 | AG167: Mita | AH167: 2021-04-12 | AI167: 226 | AJ167: 914039 | AK167: 〇〇 | AL167: 12222 | AO167: 2051 | AP167: 欄航空 | AQ167: Mita | AR167: 2021-07-17 | AS167: 702 | AT167: 536403 | AU167: 〇▽ | AV167: 194821 | AY167: 2104 | AZ167: 伊研究所 | BA167: Suzuki | BB167: 2021-08-08 | BC167: 430 | BD167: 790323 | BE167: 〇▼ | BF167: 103389 | CC167: 2710 | CD167: 沙信託 | CE167: Suzuki | CF167: 2021-11-15 | CG167: 603 | CH167: 390640 | CI167: □▽ | CJ167: 91963 | CM167: 2691 | CN167: 星ホテル | CO167: Tanaka | CP167: 2021-11-15 | CQ167: 517 | CR167: 368883 | CS167: 〇△ | CT167: 13976 | DG167: 2846 | DH167: 台建設 | DI167: Mita | DJ167: 2021-12-15 | DK167: 544 | DL167: 215408 | DM167: 〇〇 | DN167: 49395
A168: 1826 | B168: 印度商事 | C168: Nakano | D168: 2021-06-13 | E168: 316 | F168: 282964 | G168: □▲ | H168: -13971 | K168: 1611 | L168: 米商会 | M168: Suzuki | N168: 2021-05-01 | O168: 366 | P168: 877647 | Q168: 〇▽ | R168: -35169 | U168: 1465 | V168: 英販売 | W168: Ito | X168: 2021-04-08 | Y168: 255 | Z168: 376874 | AA168: 〇■ | AB168: 143389 | AE168: 1512 | AF168: 露不動産 | AG168: Nakano | AH168: 2021-04-13 | AI168: 336 | AJ168: 190912 | AK168: △□ | AL168: -36271 | AO168: 2078 | AP168: 欄航空 | AQ168: Mita | AR168: 2021-07-21 | AS168: 231 | AT168: 288814 | AU168: □△ | AV168: 4443 | AY168: 2123 | AZ168: 伊研究所 | BA168: Tanaka | BB168: 2021-08-11 | BC168: 342 | BD168: 717317 | BE168: 〇〇 | BF168: -26278 | CC168: 2731 | CD168: 沙信託 | CE168: Ito | CF168: 2021-11-30 | CG168: 814 | CH168: 329586 | CI168: □■ | CJ168: 18709 | CM168: 2709 | CN168: 星ホテル | CO168: Tanaka | CP168: 2021-11-15 | CQ168: 716 | CR168: 691741 | CS168: △▲ | CT168: 146560 | DG168: 2861 | DH168: 台建設 | DI168: Tanaka | DJ168: 2021-12-15 | DK168: 740 | DL168: 682343 | DM168: □■ | DN168: 112316
A169: 1834 | B169: 印度商事 | C169: Sato | D169: 2021-06-13 | E169: 324 | F169: 734277 | G169: □▽ | H169: -51127 | K169: 1619 | L169: 米商会 | M169: Yoshida | N169: 2021-05-05 | O169: 192 | P169: 976082 | Q169: 〇▲ | R169: -41446 | U169: 1475 | V169: 英販売 | W169: Yoshida | X169: 2021-04-10 | Y169: 235 | Z169: 832567 | AA169: 〇▲ | AB169: -74995 | AE169: 1519 | AF169: 露不動産 | AG169: Sato | AH169: 2021-04-14 | AI169: 137 | AJ169: 646219 | AK169: 〇〇 | AL169: -33046 | AO169: 2090 | AP169: 欄航空 | AQ169: Yoshida | AR169: 2021-07-30 | AS169: 817 | AT169: 531159 | AU169: 〇▼ | AV169: -39774 | AY169: 2135 | AZ169: 伊研究所 | BA169: Ito | BB169: 2021-08-12 | BC169: 226 | BD169: 388948 | BE169: □□ | BF169: 110957 | CC169: 2741 | CD169: 沙信託 | CE169: Tanaka | CF169: 2021-12-01 | CG169: 245 | CH169: 871950 | CI169: 〇▼ | CJ169: 111103 | CM169: 2724 | CN169: 星ホテル | CO169: Yoshida | CP169: 2021-11-21 | CQ169: 233 | CR169: 292172 | CS169: △◆ | CT169: 84971 | DG169: 2879 | DH169: 台建設 | DI169: Ito | DJ169: 2021-12-21 | DK169: 260 | DL169: 694096 | DM169: △◇ | DN169: 55449
A170: 1843 | B170: 印度商事 | C170: Sato | D170: 2021-06-16 | E170: 127 | F170: 606021 | G170: □◇ | H170: 17320 | K170: 1625 | L170: 米商会 | M170: Suzuki | N170: 2021-05-08 | O170: 492 | P170: 328494 | Q170: △■ | R170: -25630 | U170: 1480 | V170: 英販売 | W170: Mita | X170: 2021-04-11 | Y170: 343 | Z170: 561291 | AA170: □■ | AB170: -80501 | AE170: 1523 | AF170: 露不動産 | AG170: Suzuki | AH170: 2021-04-14 | AI170: 141 | AJ170: 160022 | AK170: 〇■ | AL170: -85072 | AO170: 2097 | AP170: 欄航空 | AQ170: Tanaka | AR170: 2021-08-01 | AS170: 245 | AT170: 186287 | AU170: 〇◇ | AV170: -68017 | AY170: 2151 | AZ170: 伊研究所 | BA170: Suzuki | BB170: 2021-08-13 | BC170: 331 | BD170: 122874 | BE170: 〇◇ | BF170: 193613 | CC170: 2764 | CD170: 沙信託 | CE170: Suzuki | CF170: 2021-12-09 | CG170: 236 | CH170: 215452 | CI170: △〇 | CJ170: 161786 | CM170: 2730 | CN170: 星ホテル | CO170: Yoshida | CP170: 2021-11-30 | CQ170: 813 | CR170: 916236 | CS170: △▼ | CT170: -51405 | DG170: 2895 | DH170: 台建設 | DI170: Sato | DJ170: 2021-12-30 | DK170: 850 | DL170: 262289 | DM170: □〇 | DN170: 102629
